Workbook

Sheet ACCUEILPRO
A1: Accueil
F7: =ACCUEIL!F7 -> 2021-08-01

Sheet ACCUEILPREM
A1: Accueil
F7: =ACCUEIL!F7 -> 2021-08-01

Sheet ACCUEILGP
A1: Accueil
F7: =ACCUEIL!F7 -> 2021-08-01

Sheet ACCUEIL
F7: 2021-08-01
C21: Item mensuels: ETP, satisfaction clientèle, remises commerciales, marges et accessoires crédits
E22: arrêtés au | F22: 2021-06-30

Sheet Accueilagence
A1: Accueil
E7: =ACCUEIL!F7 -> 2021-08-01

Sheet Accueilsecteur
A1: Accueil
E7: =ACCUEIL!F7 -> 2021-08-01

Sheet AccueilDircom
A1: Accueil
E7: =ACCUEIL!F7 -> 2021-08-01

Sheet DC_FICHE
A1: Accueil
A2: BAROMETRE BDD
A4: UNITE: | B4: DIRECTION REGIONALE | E4: ETP perf : | F4: =VLOOKUP(A5,'RECAP DIRCOM'!$G$6:$I$12,3,FALSE) -> 252.56
A5: =VLOOKUP(B5,LISTES!$M$6:$N$12,2,FALSE) -> 262 | B5: BAS-RHIN
C6: Coefficient du critére | E6: Résultats | I6: Ecart au 1ier | M6: Evolution | O6: Rang
E7: du 1ier | G7: DIRECTION | I7: Du mois | K7: Au 31/12/2019
A9: RANG au CLASSEMENT GENERAL | K9: =VLOOKUP($A$5,#REF!,168,FALSE) ->  | M9: =+K9-O9 ->  | O9: =VLOOKUP($A$5,'RECAP DIRCOM'!$G$6:$DG$312,168,FALSE) -> 
A11: CRITERE CLIENTS | C11: 15% | O11: =VLOOKUP($A$5,'RECAP DIRCOM'!$G$6:$DG$312,23,FALSE) -> 25.20952246
B12: PNB Evolution nette Clients BP | C12: 4% | E12: ='RECAP DIRCOM'!#REF! ->  | G12: =VLOOKUP($A$5,'RECAP DIRCOM'!$G$6:$DG$312,6,FALSE) -> 0.4 | I12: =VLOOKUP($A$5,'RECAP DIRCOM'!$G$6:$DG$312,7,FALSE) -> 500% | K12: =VLOOKUP($A$5,#REF!,7,FALSE) ->  | M12: =+K12-I12 ->  | O12: =VLOOKUP($A$5,'RECAP DIRCOM'!$G$6:$DG$312,8,FALSE) -> 0.5242498595
B13: PNB Evolution nette Clients PREMIUM | C13: 5% | E13: ='RECAP DIRCOM'!#REF! ->  | G13: =VLOOKUP($A$5,'RECAP DIRCOM'!$G$6:$DG$312,10,FALSE) -> 6.0 | I13: =VLOOKUP($A$5,'RECAP DIRCOM'!$G$6:$DG$312,11,FALSE) -> 33% | K13: =VLOOKUP($A$5,#REF!,11,FALSE) ->  | M13: =+K13-I13 ->  | O13: =VLOOKUP($A$5,'RECAP DIRCOM'!$G$6:$DG$312,12,FALSE) -> 0.3331958739
B14: PNB Evolution nette Clients Jeunes Equipés | C14: 3% | E14: ='RECAP DIRCOM'!#REF! ->  | G14: =VLOOKUP($A$5,'RECAP DIRCOM'!$G$6:$DG$312,14,FALSE) -> 0.0 | I14: =VLOOKUP($A$5,'RECAP DIRCOM'!$G$6:$DG$312,15,FALSE) -> 0% | K14: =VLOOKUP($A$5,#REF!,15,FALSE) ->  | M14: =+K14-I14 ->  | O14: =VLOOKUP($A$5,'RECAP DIRCOM'!$G$6:$DG$312,16,FALSE) -> 0
B15: PNB Evolution nette Clients Pro Actifs Equipés | C15: 3% | E15: ='RECAP DIRCOM'!W4 -> 0.0 | G15: =VLOOKUP($A$5,'RECAP DIRCOM'!$G$6:$DG$312,18,FALSE) -> 11892.4 | I15: =VLOOKUP($A$5,'RECAP DIRCOM'!$G$6:$DG$312,19,FALSE) -> 4709% | K15: =VLOOKUP($A$5,#REF!,19,FALSE) ->  | M15: =+K15-I15 ->  | O15: =VLOOKUP($A$5,'RECAP DIRCOM'!$G$6:$DG$312,20,FALSE) -> 0.104891227
A17: CRITERE BANCARISATION | C17: 15% | O17: =VLOOKUP($A$5,'RECAP DIRCOM'!$G$6:$DG$312,48,FALSE) -> 1
B18: PNB Ventes nettes forfaits | C18: 4% | E18: ='RECAP DIRCOM'!X4 -> 52.6 | G18: =VLOOKUP($A$5,'RECAP DIRCOM'!$G$6:$DG$312,31,FALSE) -> -1.9 | I18: =VLOOKUP($A$5,'RECAP DIRCOM'!$G$6:$DG$312,32,FALSE) -> 23% | K18: =VLOOKUP($A$5,#REF!,32,FALSE) ->  | M18: =+K18-I18 ->  | O18: =VLOOKUP($A$5,'RECAP DIRCOM'!$G$6:$DG$312,33,FALSE) -> 7
B19: PNB Ventes nettes IZICARTES Débit Différé | C19: 4% | E19: ='RECAP DIRCOM'!AB4 -> 29.5 | G19: =VLOOKUP($A$5,'RECAP DIRCOM'!$G$6:$DG$312,35,FALSE) -> 0.2 | I19: =VLOOKUP($A$5,'RECAP DIRCOM'!$G$6:$DG$312,36,FALSE) -> 300% | K19: =VLOOKUP($A$5,#REF!,36,FALSE) ->  | M19: =+K19-I19 ->  | O19: =VLOOKUP($A$5,'RECAP DIRCOM'!$G$6:$DG$312,37,FALSE) -> 0
B20: PNB Ventes nettes cartes HDG Débit Différé | C20: 4% | E20: ='RECAP DIRCOM'!AF4 -> 8.7 | G20: =VLOOKUP($A$5,'RECAP DIRCOM'!$G$6:$DG$312,39,FALSE) -> 0.0 | I20: =VLOOKUP($A$5,'RECAP DIRCOM'!$G$6:$DG$312,40,FALSE) -> 0% | K20: =VLOOKUP($A$5,#REF!,40,FALSE) ->  | M20: =+K20-I20 ->  | O20: =VLOOKUP($A$5,'RECAP DIRCOM'!$G$6:$DG$312,41,FALSE) -> 90229.21337
B21: PNB Ventes nettes Forfaits Pro, Carte pro | C21: 3% | E21: ='RECAP DIRCOM'!AJ4 -> -1.5 | G21: =VLOOKUP($A$5,'RECAP DIRCOM'!$G$6:$DG$312,43,FALSE) -> 0.1 | I21: =VLOOKUP($A$5,'RECAP DIRCOM'!$G$6:$DG$312,44,FALSE) -> 200% | K21: =VLOOKUP($A$5,#REF!,44,FALSE) ->  | M21: =+K21-I21 ->  | O21: =VLOOKUP($A$5,'RECAP DIRCOM'!$G$6:$DG$312,45,FALSE) -> 4111
A23: CRITERE EPARGNE | C23: 10% | O23: =VLOOKUP($A$5,'RECAP DIRCOM'!$G$6:$DG$312,69,FALSE) -> 0.3236855959
B24: PNB Epargne Liquide | C24: 3% | E24: ='RECAP DIRCOM'!AU4 -> 403.0 | G24: =VLOOKUP($A$5,'RECAP DIRCOM'!$G$6:$DG$312,56,FALSE) -> 16448.0 | I24: =VLOOKUP($A$5,'RECAP DIRCOM'!$G$6:$DG$312,57,FALSE) -> 6512% | K24: =VLOOKUP($A$5,#REF!,57,FALSE) ->  | M24: =+K24-I24 ->  | O24: =VLOOKUP($A$5,'RECAP DIRCOM'!$G$6:$DG$312,58,FALSE) -> 0.479291929
B25: PNB CA UC + arbitrage | C25: 4% | E25: ='RECAP DIRCOM'!AY4 -> 16.3 | G25: =VLOOKUP($A$5,'RECAP DIRCOM'!$G$6:$DG$312,60,FALSE) -> 8843.2 | I25: =VLOOKUP($A$5,'RECAP DIRCOM'!$G$6:$DG$312,61,FALSE) -> 3501% | K25: =VLOOKUP($A$5,#REF!,61,FALSE) ->  | M25: =+K25-I25 ->  | O25: =VLOOKUP($A$5,'RECAP DIRCOM'!$G$6:$DG$312,62,FALSE) -> 0.1099984172
B26: PNB Excédent assurance vie | C26: 3% | E26: ='RECAP DIRCOM'!#REF! ->  | G26: =VLOOKUP($A$5,'RECAP DIRCOM'!$G$6:$DG$312,64,FALSE) -> 2212.0 | I26: =VLOOKUP($A$5,'RECAP DIRCOM'!$G$6:$DG$312,65,FALSE) -> 876% | K26: =VLOOKUP($A$5,#REF!,65,FALSE) ->  | M26: =+K26-I26 ->  | O26: =VLOOKUP($A$5,'RECAP DIRCOM'!$G$6:$DG$312,66,FALSE) -> 0.3367310458
A28: CRITERE CREDITS | C28: 15% | O28: =VLOOKUP($A$5,'RECAP DIRCOM'!$G$6:$DG$312,102,FALSE) -> 0.201253624
B29: PNB crédit conso | C29: 4% | E29: ='RECAP DIRCOM'!BJ4 -> 125.1 | G29: =VLOOKUP($A$5,'RECAP DIRCOM'!$G$6:$DG$312,77,FALSE) -> 0.1 | I29: =VLOOKUP($A$5,'RECAP DIRCOM'!$G$6:$DG$312,78,FALSE) -> 300% | K29: =VLOOKUP($A$5,#REF!,78,FALSE) ->  | M29: =+K29-I29 ->  | O29: =VLOOKUP($A$5,'RECAP DIRCOM'!$G$6:$DG$312,79,FALSE) -> 5521
B30: PNB ADE crédit conso | C30: 1% | E30: ='RECAP DIRCOM'!#REF! ->  | G30: =VLOOKUP($A$5,'RECAP DIRCOM'!$G$6:$DG$312,81,FALSE) -> 0.2 | I30: =VLOOKUP($A$5,'RECAP DIRCOM'!$G$6:$DG$312,82,FALSE) -> 400% | K30: =VLOOKUP($A$5,#REF!,82,FALSE) ->  | O30: =VLOOKUP($A$5,'RECAP DIRCOM'!$G$6:$DG$312,83,FALSE) -> 0.1429359751
B31: PNB crédit immo | C31: 4% | E31: ='RECAP DIRCOM'!BN4 -> 39.3 | G31: =VLOOKUP($A$5,'RECAP DIRCOM'!$G$6:$DG$312,85,FALSE) -> 4.0 | I31: =VLOOKUP($A$5,'RECAP DIRCOM'!$G$6:$DG$312,86,FALSE) -> 0% | K31: =VLOOKUP($A$5,#REF!,86,FALSE) ->  | O31: =VLOOKUP($A$5,'RECAP DIRCOM'!$G$6:$DG$312,87,FALSE) -> 0
B32: PNB ADE crédit immo | C32: 2% | E32: ='RECAP DIRCOM'!#REF! ->  | G32: =VLOOKUP($A$5,'RECAP DIRCOM'!$G$6:$DG$312,89,FALSE) -> 0.0 | I32: =VLOOKUP($A$5,'RECAP DIRCOM'!$G$6:$DG$312,90,FALSE) -> 0% | K32: =VLOOKUP($A$5,#REF!,90,FALSE) ->  | O32: =VLOOKUP($A$5,'RECAP DIRCOM'!$G$6:$DG$312,91,FALSE) -> 0
B33: PNB SACCEF | C33: 2% | E33: ='RECAP DIRCOM'!#REF! ->  | G33: =VLOOKUP($A$5,'RECAP DIRCOM'!$G$6:$DG$312,93,FALSE) -> 0.0 | I33: =VLOOKUP($A$5,'RECAP DIRCOM'!$G$6:$DG$312,94,FALSE) -> 0% | K33: =VLOOKUP($A$5,#REF!,94,FALSE) ->  | O33: =VLOOKUP($A$5,'RECAP DIRCOM'!$G$6:$DG$312,95,FALSE) -> 0
B34: PNB Crédit MLT + Crédit Bail | C34: 2% | E34: ='RECAP DIRCOM'!BR4 -> 13.2 | G34: =VLOOKUP($A$5,'RECAP DIRCOM'!$G$6:$DG$312,97,FALSE) -> 0.0 | I34: =VLOOKUP($A$5,'RECAP DIRCOM'!$G$6:$DG$312,98,FALSE) -> 0% | K34: =VLOOKUP($A$5,#REF!,98,FALSE) ->  | O34: =VLOOKUP($A$5,'RECAP DIRCOM'!$G$6:$DG$312,99,FALSE) -> 0
A36: CRITERE IARD PREVOYANCE | C36: 15% | O36: =VLOOKUP($A$5,'RECAP DIRCOM'!$G$6:$DG$312,119,FALSE) -> 
B37: PNB Ventes nettes IARD | C37: 9% | E37: ='RECAP DIRCOM'!CC4 -> 153.0 | G37: =VLOOKUP($A$5,'RECAP DIRCOM'!$G$6:$DG$312,110,FALSE) ->  | I37: =VLOOKUP($A$5,'RECAP DIRCOM'!$G$6:$DG$312,111,FALSE) ->  | K37: =VLOOKUP($A$5,#REF!,111,FALSE) ->  | M37: =+K37-I37 ->  | O37: =VLOOKUP($A$5,'RECAP DIRCOM'!$G$6:$DG$312,112,FALSE) -> 
B38: PNB Ventes nettes Prévoyance | C38: 6% | E38: ='RECAP DIRCOM'!CG4 -> 26.6 | G38: =VLOOKUP($A$5,'RECAP DIRCOM'!$G$6:$DG$312,114,FALSE) ->  | I38: =VLOOKUP($A$5,'RECAP DIRCOM'!$G$6:$DG$312,115,FALSE) ->  | K38: =VLOOKUP($A$5,#REF!,115,FALSE) ->  | M38: =+K38-I38 ->  | O38: =VLOOKUP($A$5,'RECAP DIRCOM'!$G$6:$DG$312,116,FALSE) -> 
A40: CRITERE ACCELERATEURS PNB | C40: 15% | O40: =VLOOKUP($A$5,'RECAP DIRCOM'!$G$6:$DG$312,144,FALSE) -> 
B41: PNB Ventes brutes SED Finalisées | C41: 6% | E41: ='RECAP DIRCOM'!#REF! ->  | G41: =VLOOKUP($A$5,'RECAP DIRCOM'!$G$6:$DG$312,127,FALSE) ->  | I41: =VLOOKUP($A$5,'RECAP DIRCOM'!$G$6:$DG$312,128,FALSE) ->  | K41: =VLOOKUP($A$5,#REF!,128,FALSE) ->  | M41: =+K41-I41 ->  | O41: =VLOOKUP($A$5,'RECAP DIRCOM'!$G$6:$DG$312,129,FALSE) -> 
B42: PNB clients équipés E documents | C42: 3% | E42: ='RECAP DIRCOM'!#REF! ->  | G42: =VLOOKUP($A$5,'RECAP DIRCOM'!$G$6:$DG$312,131,FALSE) ->  | I42: =VLOOKUP($A$5,'RECAP DIRCOM'!$G$6:$DG$312,132,FALSE) ->  | K42: =VLOOKUP($A$5,#REF!,132,FALSE) ->  | M42: =+K42-I42 ->  | O42: =VLOOKUP($A$5,'RECAP DIRCOM'!$G$6:$DG$312,133,FALSE) -> 
B43: Economie opt'in | C43: 3% | E43: ='RECAP DIRCOM'!#REF! ->  | G43: =VLOOKUP($A$5,'RECAP DIRCOM'!$G$6:$DG$312,135,FALSE) ->  | I43: =VLOOKUP($A$5,'RECAP DIRCOM'!$G$6:$DG$312,136,FALSE) ->  | K43: =VLOOKUP($A$5,#REF!,136,FALSE) ->  | M43: =+K43-I43 ->  | O43: =VLOOKUP($A$5,'RECAP DIRCOM'!$G$6:$DG$312,137,FALSE) -> 
B44: Remises commerciales | C44: 3% | E44: ='RECAP DIRCOM'!#REF! ->  | G44: =VLOOKUP($A$5,'RECAP DIRCOM'!$G$6:$DG$312,139,FALSE) ->  | I44: =VLOOKUP($A$5,'RECAP DIRCOM'!$G$6:$DG$312,140,FALSE) ->  | K44: =VLOOKUP($A$5,#REF!,140,FALSE) ->  | M44: =+K44-I44 ->  | O44: =VLOOKUP($A$5,'RECAP DIRCOM'!$G$6:$DG$312,141,FALSE) -> 
A46: CRITERE Qualité-Satisfaction Clients | C46: 15% | O46: =VLOOKUP($A$5,'RECAP DIRCOM'!$G$6:$DG$312,159,FALSE) -> 
B47: Objectifs NPS* | C47: 8% | E47: ='RECAP DIRCOM'!K4 -> 23 | G47: =VLOOKUP($A$5,'RECAP DIRCOM'!$G$6:$DG$312,151,FALSE) ->  | I47: =VLOOKUP($A$5,'RECAP DIRCOM'!$G$6:$DG$312,152,FALSE) ->  | K47: =VLOOKUP($A$5,#REF!,152,FALSE) ->  | M47: =+K47-I47 ->  | O47: =VLOOKUP($A$5,'RECAP DIRCOM'!$G$6:$DG$312,153,FALSE) -> 
B48: Enquête Qualité Haute Définition | C48: 7% | E48: ='RECAP DIRCOM'!N4 -> 68% | G48: =VLOOKUP($A$5,'RECAP DIRCOM'!$G$6:$DG$312,154,FALSE) ->  | I48: =VLOOKUP($A$5,'RECAP DIRCOM'!$G$6:$DG$312,155,FALSE) ->  | K48: =VLOOKUP($A$5,#REF!,155,FALSE) ->  | M48: =+K48-I48 ->  | O48: =VLOOKUP($A$5,'RECAP DIRCOM'!$G$6:$DG$312,156,FALSE) -> 

Sheet DC_TOTAL
B1: Accueil | D1: BAROMETRE BDD - DIRECTIONS REGIONALES
D2: TOTAL GENERAL
D3: =ACCUEIL!F7 -> 2021-08-01
D7: TOTAL GENERAL | G7: Total Satisfaction Clients | J7: Total Bancarisation | M7: Total Epargne | P7: Total IARD Prévoyance | S7: Total Crédits
E8: coef | F8: 100% | H8: coef | I8: =DC_SATISFACTION!L8 -> 20% | K8: coef | L8: =DC_BANCA!V8 -> 20% | N8: coef | O8: =DC_EPARGNE!N8 -> 20% | Q8: coef | R8: =DC_IARD!N8 -> 20% | T8: coef | U8: =DC_CREDIT!R8 -> 20%
A9: eds | B9: Direction | C9: ="ETP perf "&DATEMAJ!$C$28 -> ETP perf 30-juin | D9: Moyenne ecart au 1er | E9: % Ecart au 1er | F9: Rang CEGEE | G9: Moyenne ecart au 1er | H9: % Ecart au 1er | I9: Rang CEGEE | J9: Moyenne ecart au 1er | K9: % Ecart au 1er | L9: Rang CEGEE | M9: Moyenne ecart au 1er | N9: % Ecart au 1er | O9: Rang CEGEE | P9: Moyenne ecart au 1er | Q9: % Ecart au 1er | R9: Rang CEGEE | S9: Moyenne ecart au 1er | T9: % Ecart au 1er | U9: Rang CEGEE
A10: 50 | B10: Meurthe et Moselle Meuse | C10: 243 | D10: 7% | E10: 0% | F10: 1 | G10: 29% | H10: 29% | I10: 4 | J10: 2% | K10: 0% | L10: 1 | M10: 3% | N10: 0% | O10: 1 | P10: 7% | Q10: 5% | R10: 2 | S10: 0% | T10: 0% | U10: 1
A11: 262 | B11: Marne-Ardennes | C11: 227 | D11: 11% | E11: 4% | F11: 2 | G11: 17% | H11: 17% | I11: 2 | J11: 18% | K11: 16% | L11: 2 | M11: 19% | N11: 16% | O11: 4 | P11: 2% | Q11: 0% | R11: 1 | S11: 8% | T11: 8% | U11: 2
A12: 264 | B12: Vosges | C12: 133 | D12: 19% | E12: 12% | F12: 3 | G12: 0% | H12: 0% | I12: 1 | J12: 31% | K12: 29% | L12: 6 | M12: 22% | N12: 20% | O12: 5 | P12: 18% | Q12: 16% | R12: 5 | S12: 28% | T12: 28% | U12: 4
A13: 30 | B13: Moselle | C13: 265 | D13: 20% | E13: 13% | F13: 4 | G13: 32% | H13: 32% | I13: 5 | J13: 22% | K13: 20% | L13: 4 | M13: 17% | N13: 15% | O13: 3 | P13: 14% | Q13: 12% | R13: 3 | S13: 22% | T13: 22% | U13: 3
A14: 110 | B14: Bas-Rhin | C14: 253 | D14: 20% | E14: 13% | F14: 5 | G14: 33% | H14: 33% | I14: 6 | J14: 19% | K14: 17% | L14: 3 | M14: 8% | N14: 5% | O14: 2 | P14: 14% | Q14: 13% | R14: 4 | S14: 33% | T14: 32% | U14: 6
A15: 160 | B15: Aube Haute Marne | C15: 128 | D15: 31% | E15: 24% | F15: 6 | G15: 24% | H15: 24% | I15: 3 | J15: 25% | K15: 23% | L15: 5 | M15: 52% | N15: 50% | O15: 7 | P15: 30% | Q15: 28% | R15: 6 | S15: 29% | T15: 29% | U15: 5
A16: 80 | B16: Haut-Rhin | C16: 158 | D16: 45% | E16: 38% | F16: 7 | G16: 58% | H16: 58% | I16: 7 | J16: 45% | K16: 43% | L16: 7 | M16: 49% | N16: 46% | O16: 6 | P16: 33% | Q16: 32% | R16: 7 | S16: 45% | T16: 45% | U16: 7
B17: Total CEGEE Directions Régionales | C17: =SUM(C10:C16) -> 1406

Sheet DC_BANCA
B1: Accueil | D1: BAROMETRE BDD - DIRECTIONS REGIONALES
D2: BANCARISATION
D3: =ACCUEIL!F7 -> 2021-08-01
D7: Ventes Nettes produits pondérés | H7: Ventes sur client non détenteur de l’univers | L7: Mobilité Macron | P7: Remises commerciales | T7: Total Bancarisation
D8: =DATEMAJ!C8 -> au 01/08 | F8: coef | G8: ='RECAP DIRCOM'!AA4 -> 10% | H8: =DATEMAJ!C9 -> au 01/08 | J8: coef | K8: ='RECAP DIRCOM'!AE4 -> 4% | L8: =DATEMAJ!C10 -> au 01/08 | N8: coef | O8: ='RECAP DIRCOM'!AI4 -> 3% | P8: =DATEMAJ!C11 -> au 30/06 | R8: coef | S8: ='RECAP DIRCOM'!AM4 -> 3% | U8: coef | V8: ='RECAP DIRCOM'!AP4 -> 20%
B9: Direction | C9: ="ETP perf "&DATEMAJ!$C$28 -> ETP perf 30-juin | D9: VN | E9: VN / ETP | F9: % Ecart au 1er | G9: Rang | H9: VB | I9: VB / ETP | J9: % Ecart au 1er | K9: Rang | L9: Nb | M9: Nb / ETP | N9: % Ecart au 1er | O9: Rang | P9: Montant | Q9: Montant / ETP | R9: % Ecart au 1er | S9: Rang | T9: Moyenne ecart au 1er | U9: % Ecart au 1er | V9: Rang CEGEE
A10: 50 | B10: Aube Haute Marne | C10: =VLOOKUP($A10,'RECAP DIRCOM'!$G$6:$DC$12,3,FALSE) -> 128 | D10: =VLOOKUP($A10,'RECAP DIRCOM'!$G$6:$DC$12,18,FALSE) -> 4,658 | E10: =VLOOKUP($A10,'RECAP DIRCOM'!$G$6:$DC$12,19,FALSE) -> 36.47 | F10: =VLOOKUP($A10,'RECAP DIRCOM'!$G$6:$DC$12,20,FALSE) -> 31% | G10: =VLOOKUP($A10,'RECAP DIRCOM'!$G$6:$DC$12,21,FALSE) -> 4 | H10: =VLOOKUP($A10,'RECAP DIRCOM'!$G$6:$DC$12,22,FALSE) -> 3,231 | I10: =VLOOKUP($A10,'RECAP DIRCOM'!$G$6:$DC$12,23,FALSE) -> 25.30 | J10: =VLOOKUP($A10,'RECAP DIRCOM'!$G$6:$DC$12,24,FALSE) -> 14% | K10: =VLOOKUP($A10,'RECAP DIRCOM'!$G$6:$DC$12,25,FALSE) -> 4 | L10: =VLOOKUP($A10,'RECAP DIRCOM'!$G$6:$DC$12,26,FALSE) -> 599 | M10: =VLOOKUP($A10,'RECAP DIRCOM'!$G$6:$DC$12,27,FALSE) -> 4.69 | N10: =VLOOKUP($A10,'RECAP DIRCOM'!$G$6:$DC$12,28,FALSE) -> 46% | O10: =VLOOKUP($A10,'RECAP DIRCOM'!$G$6:$DC$12,29,FALSE) -> 3 | P10: =VLOOKUP($A10,'RECAP DIRCOM'!$G$6:$DC$12,30,FALSE) -> -193 | Q10: =VLOOKUP($A10,'RECAP DIRCOM'!$G$6:$DC$12,31,FALSE) -> -1.51 | R10: =VLOOKUP($A10,'RECAP DIRCOM'!$G$6:$DC$12,32,FALSE) -> 0% | S10: =VLOOKUP($A10,'RECAP DIRCOM'!$G$6:$DC$12,33,FALSE) -> 1 | T10: =VLOOKUP($A10,'RECAP DIRCOM'!$G$6:$DC$12,34,FALSE) -> 25% | U10: =VLOOKUP($A10,'RECAP DIRCOM'!$G$6:$DC$12,35,FALSE) -> 23% | V10: =VLOOKUP($A10,'RECAP DIRCOM'!$G$6:$DC$12,36,FALSE) -> 5
A11: 262 | B11: Bas-Rhin | C11: =VLOOKUP($A11,'RECAP DIRCOM'!$G$6:$DC$12,3,FALSE) -> 253 | D11: =VLOOKUP($A11,'RECAP DIRCOM'!$G$6:$DC$12,18,FALSE) -> 11,892 | E11: =VLOOKUP($A11,'RECAP DIRCOM'!$G$6:$DC$12,19,FALSE) -> 47.09 | F11: =VLOOKUP($A11,'RECAP DIRCOM'!$G$6:$DC$12,20,FALSE) -> 10% | G11: =VLOOKUP($A11,'RECAP DIRCOM'!$G$6:$DC$12,21,FALSE) -> 2 | H11: =VLOOKUP($A11,'RECAP DIRCOM'!$G$6:$DC$12,22,FALSE) -> 6,367 | I11: =VLOOKUP($A11,'RECAP DIRCOM'!$G$6:$DC$12,23,FALSE) -> 25.21 | J11: =VLOOKUP($A11,'RECAP DIRCOM'!$G$6:$DC$12,24,FALSE) -> 15% | K11: =VLOOKUP($A11,'RECAP DIRCOM'!$G$6:$DC$12,25,FALSE) -> 5 | L11: =VLOOKUP($A11,'RECAP DIRCOM'!$G$6:$DC$12,26,FALSE) -> 1,122 | M11: =VLOOKUP($A11,'RECAP DIRCOM'!$G$6:$DC$12,27,FALSE) -> 4.44 | N11: =VLOOKUP($A11,'RECAP DIRCOM'!$G$6:$DC$12,28,FALSE) -> 49% | O11: =VLOOKUP($A11,'RECAP DIRCOM'!$G$6:$DC$12,29,FALSE) -> 4 | P11: =VLOOKUP($A11,'RECAP DIRCOM'!$G$6:$DC$12,30,FALSE) -> -468 | Q11: =VLOOKUP($A11,'RECAP DIRCOM'!$G$6:$DC$12,31,FALSE) -> -1.85 | R11: =VLOOKUP($A11,'RECAP DIRCOM'!$G$6:$DC$12,32,FALSE) -> 23% | S11: =VLOOKUP($A11,'RECAP DIRCOM'!$G$6:$DC$12,33,FALSE) -> 7 | T11: =VLOOKUP($A11,'RECAP DIRCOM'!$G$6:$DC$12,34,FALSE) -> 19% | U11: =VLOOKUP($A11,'RECAP DIRCOM'!$G$6:$DC$12,35,FALSE) -> 17% | V11: =VLOOKUP($A11,'RECAP DIRCOM'!$G$6:$DC$12,36,FALSE) -> 3
A12: 264 | B12: Haut-Rhin | C12: =VLOOKUP($A12,'RECAP DIRCOM'!$G$6:$DC$12,3,FALSE) -> 158 | D12: =VLOOKUP($A12,'RECAP DIRCOM'!$G$6:$DC$12,18,FALSE) -> 3,605 | E12: =VLOOKUP($A12,'RECAP DIRCOM'!$G$6:$DC$12,19,FALSE) -> 22.89 | F12: =VLOOKUP($A12,'RECAP DIRCOM'!$G$6:$DC$12,20,FALSE) -> 56% | G12: =VLOOKUP($A12,'RECAP DIRCOM'!$G$6:$DC$12,21,FALSE) -> 7 | H12: =VLOOKUP($A12,'RECAP DIRCOM'!$G$6:$DC$12,22,FALSE) -> 3,413 | I12: =VLOOKUP($A12,'RECAP DIRCOM'!$G$6:$DC$12,23,FALSE) -> 21.67 | J12: =VLOOKUP($A12,'RECAP DIRCOM'!$G$6:$DC$12,24,FALSE) -> 27% | K12: =VLOOKUP($A12,'RECAP DIRCOM'!$G$6:$DC$12,25,FALSE) -> 7 | L12: =VLOOKUP($A12,'RECAP DIRCOM'!$G$6:$DC$12,26,FALSE) -> 386 | M12: =VLOOKUP($A12,'RECAP DIRCOM'!$G$6:$DC$12,27,FALSE) -> 2.45 | N12: =VLOOKUP($A12,'RECAP DIRCOM'!$G$6:$DC$12,28,FALSE) -> 72% | O12: =VLOOKUP($A12,'RECAP DIRCOM'!$G$6:$DC$12,29,FALSE) -> 7 | P12: =VLOOKUP($A12,'RECAP DIRCOM'!$G$6:$DC$12,30,FALSE) -> -247 | Q12: =VLOOKUP($A12,'RECAP DIRCOM'!$G$6:$DC$12,31,FALSE) -> -1.57 | R12: =VLOOKUP($A12,'RECAP DIRCOM'!$G$6:$DC$12,32,FALSE) -> 4% | S12: =VLOOKUP($A12,'RECAP DIRCOM'!$G$6:$DC$12,33,FALSE) -> 3 | T12: =VLOOKUP($A12,'RECAP DIRCOM'!$G$6:$DC$12,34,FALSE) -> 45% | U12: =VLOOKUP($A12,'RECAP DIRCOM'!$G$6:$DC$12,35,FALSE) -> 43% | V12: =VLOOKUP($A12,'RECAP DIRCOM'!$G$6:$DC$12,36,FALSE) -> 7
A13: 30 | B13: Marne-Ardennes | C13: =VLOOKUP($A13,'RECAP DIRCOM'!$G$6:$DC$12,3,FALSE) -> 227 | D13: =VLOOKUP($A13,'RECAP DIRCOM'!$G$6:$DC$12,18,FALSE) -> 8,103 | E13: =VLOOKUP($A13,'RECAP DIRCOM'!$G$6:$DC$12,19,FALSE) -> 35.68 | F13: =VLOOKUP($A13,'RECAP DIRCOM'!$G$6:$DC$12,20,FALSE) -> 32% | G13: =VLOOKUP($A13,'RECAP DIRCOM'!$G$6:$DC$12,21,FALSE) -> 5 | H13: =VLOOKUP($A13,'RECAP DIRCOM'!$G$6:$DC$12,22,FALSE) -> 6,395 | I13: =VLOOKUP($A13,'RECAP DIRCOM'!$G$6:$DC$12,23,FALSE) -> 28.16 | J13: =VLOOKUP($A13,'RECAP DIRCOM'!$G$6:$DC$12,24,FALSE) -> 5% | K13: =VLOOKUP($A13,'RECAP DIRCOM'!$G$6:$DC$12,25,FALSE) -> 2 | L13: =VLOOKUP($A13,'RECAP DIRCOM'!$G$6:$DC$12,26,FALSE) -> 1,972 | M13: =VLOOKUP($A13,'RECAP DIRCOM'!$G$6:$DC$12,27,FALSE) -> 8.68 | N13: =VLOOKUP($A13,'RECAP DIRCOM'!$G$6:$DC$12,28,FALSE) -> 0% | O13: =VLOOKUP($A13,'RECAP DIRCOM'!$G$6:$DC$12,29,FALSE) -> 1 | P13: =VLOOKUP($A13,'RECAP DIRCOM'!$G$6:$DC$12,30,FALSE) -> -364 | Q13: =VLOOKUP($A13,'RECAP DIRCOM'!$G$6:$DC$12,31,FALSE) -> -1.60 | R13: =VLOOKUP($A13,'RECAP DIRCOM'!$G$6:$DC$12,32,FALSE) -> 6% | S13: =VLOOKUP($A13,'RECAP DIRCOM'!$G$6:$DC$12,33,FALSE) -> 4 | T13: =VLOOKUP($A13,'RECAP DIRCOM'!$G$6:$DC$12,34,FALSE) -> 18% | U13: =VLOOKUP($A13,'RECAP DIRCOM'!$G$6:$DC$12,35,FALSE) -> 16% | V13: =VLOOKUP($A13,'RECAP DIRCOM'!$G$6:$DC$12,36,FALSE) -> 2
A14: 110 | B14: Meurthe et Moselle Meuse | C14: =VLOOKUP($A14,'RECAP DIRCOM'!$G$6:$DC$12,3,FALSE) -> 243 | D14: =VLOOKUP($A14,'RECAP DIRCOM'!$G$6:$DC$12,18,FALSE) -> 12,768 | E14: =VLOOKUP($A14,'RECAP DIRCOM'!$G$6:$DC$12,19,FALSE) -> 52.60 | F14: =VLOOKUP($A14,'RECAP DIRCOM'!$G$6:$DC$12,20,FALSE) -> 0% | G14: =VLOOKUP($A14,'RECAP DIRCOM'!$G$6:$DC$12,21,FALSE) -> 1 | H14: =VLOOKUP($A14,'RECAP DIRCOM'!$G$6:$DC$12,22,FALSE) -> 7,160 | I14: =VLOOKUP($A14,'RECAP DIRCOM'!$G$6:$DC$12,23,FALSE) -> 29.50 | J14: =VLOOKUP($A14,'RECAP DIRCOM'!$G$6:$DC$12,24,FALSE) -> 0% | K14: =VLOOKUP($A14,'RECAP DIRCOM'!$G$6:$DC$12,25,FALSE) -> 1 | L14: =VLOOKUP($A14,'RECAP DIRCOM'!$G$6:$DC$12,26,FALSE) -> 2,038 | M14: =VLOOKUP($A14,'RECAP DIRCOM'!$G$6:$DC$12,27,FALSE) -> 8.40 | N14: =VLOOKUP($A14,'RECAP DIRCOM'!$G$6:$DC$12,28,FALSE) -> 3% | O14: =VLOOKUP($A14,'RECAP DIRCOM'!$G$6:$DC$12,29,FALSE) -> 2 | P14: =VLOOKUP($A14,'RECAP DIRCOM'!$G$6:$DC$12,30,FALSE) -> -397 | Q14: =VLOOKUP($A14,'RECAP DIRCOM'!$G$6:$DC$12,31,FALSE) -> -1.64 | R14: =VLOOKUP($A14,'RECAP DIRCOM'!$G$6:$DC$12,32,FALSE) -> 9% | S14: =VLOOKUP($A14,'RECAP DIRCOM'!$G$6:$DC$12,33,FALSE) -> 6 | T14: =VLOOKUP($A14,'RECAP DIRCOM'!$G$6:$DC$12,34,FALSE) -> 2% | U14: =VLOOKUP($A14,'RECAP DIRCOM'!$G$6:$DC$12,35,FALSE) -> 0% | V14: =VLOOKUP($A14,'RECAP DIRCOM'!$G$6:$DC$12,36,FALSE) -> 1
A15: 160 | B15: Moselle | C15: =VLOOKUP($A15,'RECAP DIRCOM'!$G$6:$DC$12,3,FALSE) -> 265 | D15: =VLOOKUP($A15,'RECAP DIRCOM'!$G$6:$DC$12,18,FALSE) -> 11,027 | E15: =VLOOKUP($A15,'RECAP DIRCOM'!$G$6:$DC$12,19,FALSE) -> 41.54 | F15: =VLOOKUP($A15,'RECAP DIRCOM'!$G$6:$DC$12,20,FALSE) -> 21% | G15: =VLOOKUP($A15,'RECAP DIRCOM'!$G$6:$DC$12,21,FALSE) -> 3 | H15: =VLOOKUP($A15,'RECAP DIRCOM'!$G$6:$DC$12,22,FALSE) -> 6,794 | I15: =VLOOKUP($A15,'RECAP DIRCOM'!$G$6:$DC$12,23,FALSE) -> 25.59 | J15: =VLOOKUP($A15,'RECAP DIRCOM'!$G$6:$DC$12,24,FALSE) -> 13% | K15: =VLOOKUP($A15,'RECAP DIRCOM'!$G$6:$DC$12,25,FALSE) -> 3 | L15: =VLOOKUP($A15,'RECAP DIRCOM'!$G$6:$DC$12,26,FALSE) -> 1,060 | M15: =VLOOKUP($A15,'RECAP DIRCOM'!$G$6:$DC$12,27,FALSE) -> 3.99 | N15: =VLOOKUP($A15,'RECAP DIRCOM'!$G$6:$DC$12,28,FALSE) -> 54% | O15: =VLOOKUP($A15,'RECAP DIRCOM'!$G$6:$DC$12,29,FALSE) -> 6 | P15: =VLOOKUP($A15,'RECAP DIRCOM'!$G$6:$DC$12,30,FALSE) -> -408 | Q15: =VLOOKUP($A15,'RECAP DIRCOM'!$G$6:$DC$12,31,FALSE) -> -1.54 | R15: =VLOOKUP($A15,'RECAP DIRCOM'!$G$6:$DC$12,32,FALSE) -> 2% | S15: =VLOOKUP($A15,'RECAP DIRCOM'!$G$6:$DC$12,33,FALSE) -> 2 | T15: =VLOOKUP($A15,'RECAP DIRCOM'!$G$6:$DC$12,34,FALSE) -> 22% | U15: =VLOOKUP($A15,'RECAP DIRCOM'!$G$6:$DC$12,35,FALSE) -> 20% | V15: =VLOOKUP($A15,'RECAP DIRCOM'!$G$6:$DC$12,36,FALSE) -> 4
A16: 80 | B16: Vosges | C16: =VLOOKUP($A16,'RECAP DIRCOM'!$G$6:$DC$12,3,FALSE) -> 133 | D16: =VLOOKUP($A16,'RECAP DIRCOM'!$G$6:$DC$12,18,FALSE) -> 4,381 | E16: =VLOOKUP($A16,'RECAP DIRCOM'!$G$6:$DC$12,19,FALSE) -> 32.93 | F16: =VLOOKUP($A16,'RECAP DIRCOM'!$G$6:$DC$12,20,FALSE) -> 37% | G16: =VLOOKUP($A16,'RECAP DIRCOM'!$G$6:$DC$12,21,FALSE) -> 6 | H16: =VLOOKUP($A16,'RECAP DIRCOM'!$G$6:$DC$12,22,FALSE) -> 3,214 | I16: =VLOOKUP($A16,'RECAP DIRCOM'!$G$6:$DC$12,23,FALSE) -> 24.16 | J16: =VLOOKUP($A16,'RECAP DIRCOM'!$G$6:$DC$12,24,FALSE) -> 18% | K16: =VLOOKUP($A16,'RECAP DIRCOM'!$G$6:$DC$12,25,FALSE) -> 6 | L16: =VLOOKUP($A16,'RECAP DIRCOM'!$G$6:$DC$12,26,FALSE) -> 569 | M16: =VLOOKUP($A16,'RECAP DIRCOM'!$G$6:$DC$12,27,FALSE) -> 4.28 | N16: =VLOOKUP($A16,'RECAP DIRCOM'!$G$6:$DC$12,28,FALSE) -> 51% | O16: =VLOOKUP($A16,'RECAP DIRCOM'!$G$6:$DC$12,29,FALSE) -> 5 | P16: =VLOOKUP($A16,'RECAP DIRCOM'!$G$6:$DC$12,30,FALSE) -> -218 | Q16: =VLOOKUP($A16,'RECAP DIRCOM'!$G$6:$DC$12,31,FALSE) -> -1.64 | R16: =VLOOKUP($A16,'RECAP DIRCOM'!$G$6:$DC$12,32,FALSE) -> 8% | S16: =VLOOKUP($A16,'RECAP DIRCOM'!$G$6:$DC$12,33,FALSE) -> 5 | T16: =VLOOKUP($A16,'RECAP DIRCOM'!$G$6:$DC$12,34,FALSE) -> 31% | U16: =VLOOKUP($A16,'RECAP DIRCOM'!$G$6:$DC$12,35,FALSE) -> 29% | V16: =VLOOKUP($A16,'RECAP DIRCOM'!$G$6:$DC$12,36,FALSE) -> 6
B17: Total CEGEE Directions Régionales | C17: =SUM(C10:C16) -> 1406

Sheet DC_EPARGNE
B1: Accueil | D1: BAROMETRE BDD - DIRECTIONS REGIONALES
D2: EPARGNE
D3: =ACCUEIL!F7 -> 2021-08-01
D7: Excédent Epargne y/c DAV pondéré | H7: Ventes sur client non détenteur de l’univers | L7: Total Epargne
D8: =DATEMAJ!C14 -> au 01/08 | F8: coef | G8: ='RECAP DIRCOM'!AX4 -> 14% | H8: =DATEMAJ!C15 -> au 01/08 | J8: coef | K8: ='RECAP DIRCOM'!BB4 -> 6% | M8: coef | N8: ='RECAP DIRCOM'!BE4 -> 20%
B9: Direction | C9: ="ETP perf "&DATEMAJ!$C$28 -> ETP perf 30-juin | D9: Excédent | E9: Excédent / ETP | F9: % Ecart au 1er | G9: Rang | H9: VB | I9: VB / ETP | J9: % Ecart au 1er | K9: Rang | L9: Moyenne ecart au 1er | M9: % Ecart au 1er | N9: Rang CEGEE
A10: 50 | B10: Aube Haute Marne | C10: =VLOOKUP($A10,'RECAP DIRCOM'!$G$6:$DC$12,3,FALSE) -> 128 | D10: =VLOOKUP($A10,'RECAP DIRCOM'!$G$6:$DC$12,41,FALSE) -> 17,987 | E10: =VLOOKUP($A10,'RECAP DIRCOM'!$G$6:$DC$12,42,FALSE) -> 140.84 | F10: =VLOOKUP($A10,'RECAP DIRCOM'!$G$6:$DC$12,43,FALSE) -> 65% | G10: =VLOOKUP($A10,'RECAP DIRCOM'!$G$6:$DC$12,44,FALSE) -> 7 | H10: =VLOOKUP($A10,'RECAP DIRCOM'!$G$6:$DC$12,45,FALSE) -> 1,608 | I10: =VLOOKUP($A10,'RECAP DIRCOM'!$G$6:$DC$12,46,FALSE) -> 12.59 | J10: =VLOOKUP($A10,'RECAP DIRCOM'!$G$6:$DC$12,47,FALSE) -> 23% | K10: =VLOOKUP($A10,'RECAP DIRCOM'!$G$6:$DC$12,48,FALSE) -> 5 | L10: =VLOOKUP($A10,'RECAP DIRCOM'!$G$6:$DC$12,49,FALSE) -> 52% | M10: =VLOOKUP($A10,'RECAP DIRCOM'!$G$6:$DC$12,50,FALSE) -> 50% | N10: =VLOOKUP($A10,'RECAP DIRCOM'!$G$6:$DC$12,51,FALSE) -> 7
A11: 262 | B11: Bas-Rhin | C11: =VLOOKUP($A11,'RECAP DIRCOM'!$G$6:$DC$12,3,FALSE) -> 253 | D11: =VLOOKUP($A11,'RECAP DIRCOM'!$G$6:$DC$12,41,FALSE) -> 90,229 | E11: =VLOOKUP($A11,'RECAP DIRCOM'!$G$6:$DC$12,42,FALSE) -> 357.25 | F11: =VLOOKUP($A11,'RECAP DIRCOM'!$G$6:$DC$12,43,FALSE) -> 11% | G11: =VLOOKUP($A11,'RECAP DIRCOM'!$G$6:$DC$12,44,FALSE) -> 2 | H11: =VLOOKUP($A11,'RECAP DIRCOM'!$G$6:$DC$12,45,FALSE) -> 4,111 | I11: =VLOOKUP($A11,'RECAP DIRCOM'!$G$6:$DC$12,46,FALSE) -> 16.28 | J11: =VLOOKUP($A11,'RECAP DIRCOM'!$G$6:$DC$12,47,FALSE) -> 0% | K11: =VLOOKUP($A11,'RECAP DIRCOM'!$G$6:$DC$12,48,FALSE) -> 1 | L11: =VLOOKUP($A11,'RECAP DIRCOM'!$G$6:$DC$12,49,FALSE) -> 8% | M11: =VLOOKUP($A11,'RECAP DIRCOM'!$G$6:$DC$12,50,FALSE) -> 5% | N11: =VLOOKUP($A11,'RECAP DIRCOM'!$G$6:$DC$12,51,FALSE) -> 2
A12: 264 | B12: Haut-Rhin | C12: =VLOOKUP($A12,'RECAP DIRCOM'!$G$6:$DC$12,3,FALSE) -> 158 | D12: =VLOOKUP($A12,'RECAP DIRCOM'!$G$6:$DC$12,41,FALSE) -> 25,676 | E12: =VLOOKUP($A12,'RECAP DIRCOM'!$G$6:$DC$12,42,FALSE) -> 162.99 | F12: =VLOOKUP($A12,'RECAP DIRCOM'!$G$6:$DC$12,43,FALSE) -> 60% | G12: =VLOOKUP($A12,'RECAP DIRCOM'!$G$6:$DC$12,44,FALSE) -> 6 | H12: =VLOOKUP($A12,'RECAP DIRCOM'!$G$6:$DC$12,45,FALSE) -> 1,927 | I12: =VLOOKUP($A12,'RECAP DIRCOM'!$G$6:$DC$12,46,FALSE) -> 12.23 | J12: =VLOOKUP($A12,'RECAP DIRCOM'!$G$6:$DC$12,47,FALSE) -> 25% | K12: =VLOOKUP($A12,'RECAP DIRCOM'!$G$6:$DC$12,48,FALSE) -> 6 | L12: =VLOOKUP($A12,'RECAP DIRCOM'!$G$6:$DC$12,49,FALSE) -> 49% | M12: =VLOOKUP($A12,'RECAP DIRCOM'!$G$6:$DC$12,50,FALSE) -> 46% | N12: =VLOOKUP($A12,'RECAP DIRCOM'!$G$6:$DC$12,51,FALSE) -> 6
A13: 30 | B13: Marne-Ardennes | C13: =VLOOKUP($A13,'RECAP DIRCOM'!$G$6:$DC$12,3,FALSE) -> 227 | D13: =VLOOKUP($A13,'RECAP DIRCOM'!$G$6:$DC$12,41,FALSE) -> 68,303 | E13: =VLOOKUP($A13,'RECAP DIRCOM'!$G$6:$DC$12,42,FALSE) -> 300.79 | F13: =VLOOKUP($A13,'RECAP DIRCOM'!$G$6:$DC$12,43,FALSE) -> 25% | G13: =VLOOKUP($A13,'RECAP DIRCOM'!$G$6:$DC$12,44,FALSE) -> 5 | H13: =VLOOKUP($A13,'RECAP DIRCOM'!$G$6:$DC$12,45,FALSE) -> 3,596 | I13: =VLOOKUP($A13,'RECAP DIRCOM'!$G$6:$DC$12,46,FALSE) -> 15.84 | J13: =VLOOKUP($A13,'RECAP DIRCOM'!$G$6:$DC$12,47,FALSE) -> 3% | K13: =VLOOKUP($A13,'RECAP DIRCOM'!$G$6:$DC$12,48,FALSE) -> 3 | L13: =VLOOKUP($A13,'RECAP DIRCOM'!$G$6:$DC$12,49,FALSE) -> 19% | M13: =VLOOKUP($A13,'RECAP DIRCOM'!$G$6:$DC$12,50,FALSE) -> 16% | N13: =VLOOKUP($A13,'RECAP DIRCOM'!$G$6:$DC$12,51,FALSE) -> 4
A14: 110 | B14: Meurthe et Moselle Meuse | C14: =VLOOKUP($A14,'RECAP DIRCOM'!$G$6:$DC$12,3,FALSE) -> 243 | D14: =VLOOKUP($A14,'RECAP DIRCOM'!$G$6:$DC$12,41,FALSE) -> 97,810 | E14: =VLOOKUP($A14,'RECAP DIRCOM'!$G$6:$DC$12,42,FALSE) -> 402.98 | F14: =VLOOKUP($A14,'RECAP DIRCOM'!$G$6:$DC$12,43,FALSE) -> 0% | G14: =VLOOKUP($A14,'RECAP DIRCOM'!$G$6:$DC$12,44,FALSE) -> 1 | H14: =VLOOKUP($A14,'RECAP DIRCOM'!$G$6:$DC$12,45,FALSE) -> 3,602 | I14: =VLOOKUP($A14,'RECAP DIRCOM'!$G$6:$DC$12,46,FALSE) -> 14.84 | J14: =VLOOKUP($A14,'RECAP DIRCOM'!$G$6:$DC$12,47,FALSE) -> 9% | K14: =VLOOKUP($A14,'RECAP DIRCOM'!$G$6:$DC$12,48,FALSE) -> 4 | L14: =VLOOKUP($A14,'RECAP DIRCOM'!$G$6:$DC$12,49,FALSE) -> 3% | M14: =VLOOKUP($A14,'RECAP DIRCOM'!$G$6:$DC$12,50,FALSE) -> 0% | N14: =VLOOKUP($A14,'RECAP DIRCOM'!$G$6:$DC$12,51,FALSE) -> 1
A15: 160 | B15: Moselle | C15: =VLOOKUP($A15,'RECAP DIRCOM'!$G$6:$DC$12,3,FALSE) -> 265 | D15: =VLOOKUP($A15,'RECAP DIRCOM'!$G$6:$DC$12,41,FALSE) -> 81,045 | E15: =VLOOKUP($A15,'RECAP DIRCOM'!$G$6:$DC$12,42,FALSE) -> 305.32 | F15: =VLOOKUP($A15,'RECAP DIRCOM'!$G$6:$DC$12,43,FALSE) -> 24% | G15: =VLOOKUP($A15,'RECAP DIRCOM'!$G$6:$DC$12,44,FALSE) -> 4 | H15: =VLOOKUP($A15,'RECAP DIRCOM'!$G$6:$DC$12,45,FALSE) -> 4,266 | I15: =VLOOKUP($A15,'RECAP DIRCOM'!$G$6:$DC$12,46,FALSE) -> 16.07 | J15: =VLOOKUP($A15,'RECAP DIRCOM'!$G$6:$DC$12,47,FALSE) -> 1% | K15: =VLOOKUP($A15,'RECAP DIRCOM'!$G$6:$DC$12,48,FALSE) -> 2 | L15: =VLOOKUP($A15,'RECAP DIRCOM'!$G$6:$DC$12,49,FALSE) -> 17% | M15: =VLOOKUP($A15,'RECAP DIRCOM'!$G$6:$DC$12,50,FALSE) -> 15% | N15: =VLOOKUP($A15,'RECAP DIRCOM'!$G$6:$DC$12,51,FALSE) -> 3
A16: 80 | B16: Vosges | C16: =VLOOKUP($A16,'RECAP DIRCOM'!$G$6:$DC$12,3,FALSE) -> 133 | D16: =VLOOKUP($A16,'RECAP DIRCOM'!$G$6:$DC$12,41,FALSE) -> 45,058 | E16: =VLOOKUP($A16,'RECAP DIRCOM'!$G$6:$DC$12,42,FALSE) -> 338.69 | F16: =VLOOKUP($A16,'RECAP DIRCOM'!$G$6:$DC$12,43,FALSE) -> 16% | G16: =VLOOKUP($A16,'RECAP DIRCOM'!$G$6:$DC$12,44,FALSE) -> 3 | H16: =VLOOKUP($A16,'RECAP DIRCOM'!$G$6:$DC$12,45,FALSE) -> 1,357 | I16: =VLOOKUP($A16,'RECAP DIRCOM'!$G$6:$DC$12,46,FALSE) -> 10.20 | J16: =VLOOKUP($A16,'RECAP DIRCOM'!$G$6:$DC$12,47,FALSE) -> 37% | K16: =VLOOKUP($A16,'RECAP DIRCOM'!$G$6:$DC$12,48,FALSE) -> 7 | L16: =VLOOKUP($A16,'RECAP DIRCOM'!$G$6:$DC$12,49,FALSE) -> 22% | M16: =VLOOKUP($A16,'RECAP DIRCOM'!$G$6:$DC$12,50,FALSE) -> 20% | N16: =VLOOKUP($A16,'RECAP DIRCOM'!$G$6:$DC$12,51,FALSE) -> 5
B17: Total CEGEE Directions Régionales | C17: =SUM(C10:C16) -> 1406

Sheet DC_CREDIT
B1: Accueil | D1: BAROMETRE BDD - DIRECTIONS REGIONALES
D2: CREDITS
D3: =ACCUEIL!F7 -> 2021-08-01
D7: Engagements et ventes accessoires pondérés Immo | H7: Engagements et ventes accessoires pondérés Conso | L7: Ventes sur client non détenteur de l’univers | P7: Total Crédits
D8: =DATEMAJ!C18 -> au 01/08 | F8: coef | G8: ='RECAP DIRCOM'!BM4 -> 8% | H8: =DATEMAJ!C19 -> au 01/08 | J8: coef | K8: ='RECAP DIRCOM'!BQ4 -> 6% | L8: =DATEMAJ!C20 -> au 01/08 | N8: coef | O8: ='RECAP DIRCOM'!BU4 -> 6% | Q8: coef | R8: ='RECAP DIRCOM'!BX4 -> 20%
B9: Direction | C9: ="ETP perf "&DATEMAJ!$C$28 -> ETP perf 30-juin | D9: PNB | E9: PNB / ETP | F9: % Ecart au 1er | G9: Rang | H9: PNB | I9: PNB / ETP | J9: % Ecart au 1er | K9: Rang | L9: VB | M9: VB / ETP | N9: % Ecart au 1er | O9: Rang | P9: Moyenne ecart au 1er | Q9: % Ecart au 1er | R9: Rang CEGEE
A10: 50 | B10: Aube Haute Marne | C10: =VLOOKUP($A10,'RECAP DIRCOM'!$G$6:$DC$12,3,FALSE) -> 128 | D10: =VLOOKUP($A10,'RECAP DIRCOM'!$G$6:$DC$12,56,FALSE) -> 7,632 | E10: =VLOOKUP($A10,'RECAP DIRCOM'!$G$6:$DC$12,57,FALSE) -> 59.76 | F10: =VLOOKUP($A10,'RECAP DIRCOM'!$G$6:$DC$12,58,FALSE) -> 52% | G10: =VLOOKUP($A10,'RECAP DIRCOM'!$G$6:$DC$12,59,FALSE) -> 6 | H10: =VLOOKUP($A10,'RECAP DIRCOM'!$G$6:$DC$12,60,FALSE) -> 4,933 | I10: =VLOOKUP($A10,'RECAP DIRCOM'!$G$6:$DC$12,61,FALSE) -> 38.63 | J10: =VLOOKUP($A10,'RECAP DIRCOM'!$G$6:$DC$12,62,FALSE) -> 2% | K10: =VLOOKUP($A10,'RECAP DIRCOM'!$G$6:$DC$12,63,FALSE) -> 3 | L10: =VLOOKUP($A10,'RECAP DIRCOM'!$G$6:$DC$12,64,FALSE) -> 1,274 | M10: =VLOOKUP($A10,'RECAP DIRCOM'!$G$6:$DC$12,65,FALSE) -> 9.98 | N10: =VLOOKUP($A10,'RECAP DIRCOM'!$G$6:$DC$12,66,FALSE) -> 24% | O10: =VLOOKUP($A10,'RECAP DIRCOM'!$G$6:$DC$12,67,FALSE) -> 4 | P10: =VLOOKUP($A10,'RECAP DIRCOM'!$G$6:$DC$12,68,FALSE) -> 29% | Q10: =VLOOKUP($A10,'RECAP DIRCOM'!$G$6:$DC$12,69,FALSE) -> 29% | R10: =VLOOKUP($A10,'RECAP DIRCOM'!$G$6:$DC$12,70,FALSE) -> 5
A11: 262 | B11: Bas-Rhin | C11: =VLOOKUP($A11,'RECAP DIRCOM'!$G$6:$DC$12,3,FALSE) -> 253 | D11: =VLOOKUP($A11,'RECAP DIRCOM'!$G$6:$DC$12,56,FALSE) -> 16,448 | E11: =VLOOKUP($A11,'RECAP DIRCOM'!$G$6:$DC$12,57,FALSE) -> 65.12 | F11: =VLOOKUP($A11,'RECAP DIRCOM'!$G$6:$DC$12,58,FALSE) -> 48% | G11: =VLOOKUP($A11,'RECAP DIRCOM'!$G$6:$DC$12,59,FALSE) -> 5 | H11: =VLOOKUP($A11,'RECAP DIRCOM'!$G$6:$DC$12,60,FALSE) -> 8,843 | I11: =VLOOKUP($A11,'RECAP DIRCOM'!$G$6:$DC$12,61,FALSE) -> 35.01 | J11: =VLOOKUP($A11,'RECAP DIRCOM'!$G$6:$DC$12,62,FALSE) -> 11% | K11: =VLOOKUP($A11,'RECAP DIRCOM'!$G$6:$DC$12,63,FALSE) -> 5 | L11: =VLOOKUP($A11,'RECAP DIRCOM'!$G$6:$DC$12,64,FALSE) -> 2,212 | M11: =VLOOKUP($A11,'RECAP DIRCOM'!$G$6:$DC$12,65,FALSE) -> 8.76 | N11: =VLOOKUP($A11,'RECAP DIRCOM'!$G$6:$DC$12,66,FALSE) -> 34% | O11: =VLOOKUP($A11,'RECAP DIRCOM'!$G$6:$DC$12,67,FALSE) -> 6 | P11: =VLOOKUP($A11,'RECAP DIRCOM'!$G$6:$DC$12,68,FALSE) -> 33% | Q11: =VLOOKUP($A11,'RECAP DIRCOM'!$G$6:$DC$12,69,FALSE) -> 32% | R11: =VLOOKUP($A11,'RECAP DIRCOM'!$G$6:$DC$12,70,FALSE) -> 6
A12: 264 | B12: Haut-Rhin | C12: =VLOOKUP($A12,'RECAP DIRCOM'!$G$6:$DC$12,3,FALSE) -> 158 | D12: =VLOOKUP($A12,'RECAP DIRCOM'!$G$6:$DC$12,56,FALSE) -> 7,090 | E12: =VLOOKUP($A12,'RECAP DIRCOM'!$G$6:$DC$12,57,FALSE) -> 45.01 | F12: =VLOOKUP($A12,'RECAP DIRCOM'!$G$6:$DC$12,58,FALSE) -> 64% | G12: =VLOOKUP($A12,'RECAP DIRCOM'!$G$6:$DC$12,59,FALSE) -> 7 | H12: =VLOOKUP($A12,'RECAP DIRCOM'!$G$6:$DC$12,60,FALSE) -> 5,005 | I12: =VLOOKUP($A12,'RECAP DIRCOM'!$G$6:$DC$12,61,FALSE) -> 31.77 | J12: =VLOOKUP($A12,'RECAP DIRCOM'!$G$6:$DC$12,62,FALSE) -> 19% | K12: =VLOOKUP($A12,'RECAP DIRCOM'!$G$6:$DC$12,63,FALSE) -> 7 | L12: =VLOOKUP($A12,'RECAP DIRCOM'!$G$6:$DC$12,64,FALSE) -> 1,130 | M12: =VLOOKUP($A12,'RECAP DIRCOM'!$G$6:$DC$12,65,FALSE) -> 7.17 | N12: =VLOOKUP($A12,'RECAP DIRCOM'!$G$6:$DC$12,66,FALSE) -> 46% | O12: =VLOOKUP($A12,'RECAP DIRCOM'!$G$6:$DC$12,67,FALSE) -> 7 | P12: =VLOOKUP($A12,'RECAP DIRCOM'!$G$6:$DC$12,68,FALSE) -> 45% | Q12: =VLOOKUP($A12,'RECAP DIRCOM'!$G$6:$DC$12,69,FALSE) -> 45% | R12: =VLOOKUP($A12,'RECAP DIRCOM'!$G$6:$DC$12,70,FALSE) -> 7
A13: 30 | B13: Marne-Ardennes | C13: =VLOOKUP($A13,'RECAP DIRCOM'!$G$6:$DC$12,3,FALSE) -> 227 | D13: =VLOOKUP($A13,'RECAP DIRCOM'!$G$6:$DC$12,56,FALSE) -> 26,224 | E13: =VLOOKUP($A13,'RECAP DIRCOM'!$G$6:$DC$12,57,FALSE) -> 115.49 | F13: =VLOOKUP($A13,'RECAP DIRCOM'!$G$6:$DC$12,58,FALSE) -> 8% | G13: =VLOOKUP($A13,'RECAP DIRCOM'!$G$6:$DC$12,59,FALSE) -> 2 | H13: =VLOOKUP($A13,'RECAP DIRCOM'!$G$6:$DC$12,60,FALSE) -> 7,994 | I13: =VLOOKUP($A13,'RECAP DIRCOM'!$G$6:$DC$12,61,FALSE) -> 35.20 | J13: =VLOOKUP($A13,'RECAP DIRCOM'!$G$6:$DC$12,62,FALSE) -> 11% | K13: =VLOOKUP($A13,'RECAP DIRCOM'!$G$6:$DC$12,63,FALSE) -> 4 | L13: =VLOOKUP($A13,'RECAP DIRCOM'!$G$6:$DC$12,64,FALSE) -> 2,811 | M13: =VLOOKUP($A13,'RECAP DIRCOM'!$G$6:$DC$12,65,FALSE) -> 12.38 | N13: =VLOOKUP($A13,'RECAP DIRCOM'!$G$6:$DC$12,66,FALSE) -> 6% | O13: =VLOOKUP($A13,'RECAP DIRCOM'!$G$6:$DC$12,67,FALSE) -> 2 | P13: =VLOOKUP($A13,'RECAP DIRCOM'!$G$6:$DC$12,68,FALSE) -> 8% | Q13: =VLOOKUP($A13,'RECAP DIRCOM'!$G$6:$DC$12,69,FALSE) -> 8% | R13: =VLOOKUP($A13,'RECAP DIRCOM'!$G$6:$DC$12,70,FALSE) -> 2
A14: 110 | B14: Meurthe et Moselle Meuse | C14: =VLOOKUP($A14,'RECAP DIRCOM'!$G$6:$DC$12,3,FALSE) -> 243 | D14: =VLOOKUP($A14,'RECAP DIRCOM'!$G$6:$DC$12,56,FALSE) -> 30,356 | E14: =VLOOKUP($A14,'RECAP DIRCOM'!$G$6:$DC$12,57,FALSE) -> 125.07 | F14: =VLOOKUP($A14,'RECAP DIRCOM'!$G$6:$DC$12,58,FALSE) -> 0% | G14: =VLOOKUP($A14,'RECAP DIRCOM'!$G$6:$DC$12,59,FALSE) -> 1 | H14: =VLOOKUP($A14,'RECAP DIRCOM'!$G$6:$DC$12,60,FALSE) -> 9,484 | I14: =VLOOKUP($A14,'RECAP DIRCOM'!$G$6:$DC$12,61,FALSE) -> 39.07 | J14: =VLOOKUP($A14,'RECAP DIRCOM'!$G$6:$DC$12,62,FALSE) -> 1% | K14: =VLOOKUP($A14,'RECAP DIRCOM'!$G$6:$DC$12,63,FALSE) -> 2 | L14: =VLOOKUP($A14,'RECAP DIRCOM'!$G$6:$DC$12,64,FALSE) -> 3,205 | M14: =VLOOKUP($A14,'RECAP DIRCOM'!$G$6:$DC$12,65,FALSE) -> 13.20 | N14: =VLOOKUP($A14,'RECAP DIRCOM'!$G$6:$DC$12,66,FALSE) -> 0% | O14: =VLOOKUP($A14,'RECAP DIRCOM'!$G$6:$DC$12,67,FALSE) -> 1 | P14: =VLOOKUP($A14,'RECAP DIRCOM'!$G$6:$DC$12,68,FALSE) -> 0% | Q14: =VLOOKUP($A14,'RECAP DIRCOM'!$G$6:$DC$12,69,FALSE) -> 0% | R14: =VLOOKUP($A14,'RECAP DIRCOM'!$G$6:$DC$12,70,FALSE) -> 1
A15: 160 | B15: Moselle | C15: =VLOOKUP($A15,'RECAP DIRCOM'!$G$6:$DC$12,3,FALSE) -> 265 | D15: =VLOOKUP($A15,'RECAP DIRCOM'!$G$6:$DC$12,56,FALSE) -> 21,363 | E15: =VLOOKUP($A15,'RECAP DIRCOM'!$G$6:$DC$12,57,FALSE) -> 80.48 | F15: =VLOOKUP($A15,'RECAP DIRCOM'!$G$6:$DC$12,58,FALSE) -> 36% | G15: =VLOOKUP($A15,'RECAP DIRCOM'!$G$6:$DC$12,59,FALSE) -> 3 | H15: =VLOOKUP($A15,'RECAP DIRCOM'!$G$6:$DC$12,60,FALSE) -> 10,443 | I15: =VLOOKUP($A15,'RECAP DIRCOM'!$G$6:$DC$12,61,FALSE) -> 39.34 | J15: =VLOOKUP($A15,'RECAP DIRCOM'!$G$6:$DC$12,62,FALSE) -> 0% | K15: =VLOOKUP($A15,'RECAP DIRCOM'!$G$6:$DC$12,63,FALSE) -> 1 | L15: =VLOOKUP($A15,'RECAP DIRCOM'!$G$6:$DC$12,64,FALSE) -> 2,635 | M15: =VLOOKUP($A15,'RECAP DIRCOM'!$G$6:$DC$12,65,FALSE) -> 9.93 | N15: =VLOOKUP($A15,'RECAP DIRCOM'!$G$6:$DC$12,66,FALSE) -> 25% | O15: =VLOOKUP($A15,'RECAP DIRCOM'!$G$6:$DC$12,67,FALSE) -> 5 | P15: =VLOOKUP($A15,'RECAP DIRCOM'!$G$6:$DC$12,68,FALSE) -> 22% | Q15: =VLOOKUP($A15,'RECAP DIRCOM'!$G$6:$DC$12,69,FALSE) -> 22% | R15: =VLOOKUP($A15,'RECAP DIRCOM'!$G$6:$DC$12,70,FALSE) -> 3
A16: 80 | B16: Vosges | C16: =VLOOKUP($A16,'RECAP DIRCOM'!$G$6:$DC$12,3,FALSE) -> 133 | D16: =VLOOKUP($A16,'RECAP DIRCOM'!$G$6:$DC$12,56,FALSE) -> 8,939 | E16: =VLOOKUP($A16,'RECAP DIRCOM'!$G$6:$DC$12,57,FALSE) -> 67.19 | F16: =VLOOKUP($A16,'RECAP DIRCOM'!$G$6:$DC$12,58,FALSE) -> 46% | G16: =VLOOKUP($A16,'RECAP DIRCOM'!$G$6:$DC$12,59,FALSE) -> 4 | H16: =VLOOKUP($A16,'RECAP DIRCOM'!$G$6:$DC$12,60,FALSE) -> 4,605 | I16: =VLOOKUP($A16,'RECAP DIRCOM'!$G$6:$DC$12,61,FALSE) -> 34.62 | J16: =VLOOKUP($A16,'RECAP DIRCOM'!$G$6:$DC$12,62,FALSE) -> 12% | K16: =VLOOKUP($A16,'RECAP DIRCOM'!$G$6:$DC$12,63,FALSE) -> 6 | L16: =VLOOKUP($A16,'RECAP DIRCOM'!$G$6:$DC$12,64,FALSE) -> 1,396 | M16: =VLOOKUP($A16,'RECAP DIRCOM'!$G$6:$DC$12,65,FALSE) -> 10.49 | N16: =VLOOKUP($A16,'RECAP DIRCOM'!$G$6:$DC$12,66,FALSE) -> 21% | O16: =VLOOKUP($A16,'RECAP DIRCOM'!$G$6:$DC$12,67,FALSE) -> 3 | P16: =VLOOKUP($A16,'RECAP DIRCOM'!$G$6:$DC$12,68,FALSE) -> 28% | Q16: =VLOOKUP($A16,'RECAP DIRCOM'!$G$6:$DC$12,69,FALSE) -> 28% | R16: =VLOOKUP($A16,'RECAP DIRCOM'!$G$6:$DC$12,70,FALSE) -> 4
B17: Total CEGEE Directions Régionales | C17: =SUM(C10:C16) -> 1406

Sheet DC_IARD
B1: Accueil | D1: BAROMETRE BDD - DIRECTIONS REGIONALES
D2: IARD ET PREVOYANCE
D3: =ACCUEIL!F7 -> 2021-08-01
D7: Ventes Nettes produits pondérés | H7: Ventes sur client non détenteur de l’univers | L7: Total IARD Prévoyance
D8: =DATEMAJ!C23 -> au 01/08 | F8: coef | G8: ='RECAP DIRCOM'!CF4 -> 14% | H8: =DATEMAJ!C24 -> au 01/08 | J8: coef | K8: ='RECAP DIRCOM'!CJ4 -> 6% | M8: coef | N8: ='RECAP DIRCOM'!CM4 -> 20%
B9: Direction | C9: ="ETP perf "&DATEMAJ!$C$28 -> ETP perf 30-juin | D9: VN | E9: VN / ETP | F9: % Ecart au 1er | G9: Rang | H9: VB | I9: VB / ETP | J9: % Ecart au 1er | K9: Rang | L9: Moyenne ecart au 1er | M9: % Ecart au 1er | N9: Rang CEGEE
A10: 50 | B10: Aube Haute Marne | C10: =VLOOKUP($A10,'RECAP DIRCOM'!$G$6:$DC$12,3,FALSE) -> 128 | D10: =VLOOKUP($A10,'RECAP DIRCOM'!$G$6:$DC$12,75,FALSE) -> 12,664 | E10: =VLOOKUP($A10,'RECAP DIRCOM'!$G$6:$DC$12,76,FALSE) -> 99.16 | F10: =VLOOKUP($A10,'RECAP DIRCOM'!$G$6:$DC$12,77,FALSE) -> 35% | G10: =VLOOKUP($A10,'RECAP DIRCOM'!$G$6:$DC$12,78,FALSE) -> 6 | H10: =VLOOKUP($A10,'RECAP DIRCOM'!$G$6:$DC$12,79,FALSE) -> 2,762 | I10: =VLOOKUP($A10,'RECAP DIRCOM'!$G$6:$DC$12,80,FALSE) -> 21.63 | J10: =VLOOKUP($A10,'RECAP DIRCOM'!$G$6:$DC$12,81,FALSE) -> 19% | K10: =VLOOKUP($A10,'RECAP DIRCOM'!$G$6:$DC$12,82,FALSE) -> 5 | L10: =VLOOKUP($A10,'RECAP DIRCOM'!$G$6:$DC$12,83,FALSE) -> 30% | M10: =VLOOKUP($A10,'RECAP DIRCOM'!$G$6:$DC$12,84,FALSE) -> 28% | N10: =VLOOKUP($A10,'RECAP DIRCOM'!$G$6:$DC$12,85,FALSE) -> 6
A11: 262 | B11: Bas-Rhin | C11: =VLOOKUP($A11,'RECAP DIRCOM'!$G$6:$DC$12,3,FALSE) -> 253 | D11: =VLOOKUP($A11,'RECAP DIRCOM'!$G$6:$DC$12,75,FALSE) -> 33,690 | E11: =VLOOKUP($A11,'RECAP DIRCOM'!$G$6:$DC$12,76,FALSE) -> 133.39 | F11: =VLOOKUP($A11,'RECAP DIRCOM'!$G$6:$DC$12,77,FALSE) -> 13% | G11: =VLOOKUP($A11,'RECAP DIRCOM'!$G$6:$DC$12,78,FALSE) -> 3 | H11: =VLOOKUP($A11,'RECAP DIRCOM'!$G$6:$DC$12,79,FALSE) -> 5,521 | I11: =VLOOKUP($A11,'RECAP DIRCOM'!$G$6:$DC$12,80,FALSE) -> 21.86 | J11: =VLOOKUP($A11,'RECAP DIRCOM'!$G$6:$DC$12,81,FALSE) -> 18% | K11: =VLOOKUP($A11,'RECAP DIRCOM'!$G$6:$DC$12,82,FALSE) -> 4 | L11: =VLOOKUP($A11,'RECAP DIRCOM'!$G$6:$DC$12,83,FALSE) -> 14% | M11: =VLOOKUP($A11,'RECAP DIRCOM'!$G$6:$DC$12,84,FALSE) -> 13% | N11: =VLOOKUP($A11,'RECAP DIRCOM'!$G$6:$DC$12,85,FALSE) -> 4
A12: 264 | B12: Haut-Rhin | C12: =VLOOKUP($A12,'RECAP DIRCOM'!$G$6:$DC$12,3,FALSE) -> 158 | D12: =VLOOKUP($A12,'RECAP DIRCOM'!$G$6:$DC$12,75,FALSE) -> 15,158 | E12: =VLOOKUP($A12,'RECAP DIRCOM'!$G$6:$DC$12,76,FALSE) -> 96.23 | F12: =VLOOKUP($A12,'RECAP DIRCOM'!$G$6:$DC$12,77,FALSE) -> 37% | G12: =VLOOKUP($A12,'RECAP DIRCOM'!$G$6:$DC$12,78,FALSE) -> 7 | H12: =VLOOKUP($A12,'RECAP DIRCOM'!$G$6:$DC$12,79,FALSE) -> 3,147 | I12: =VLOOKUP($A12,'RECAP DIRCOM'!$G$6:$DC$12,80,FALSE) -> 19.98 | J12: =VLOOKUP($A12,'RECAP DIRCOM'!$G$6:$DC$12,81,FALSE) -> 25% | K12: =VLOOKUP($A12,'RECAP DIRCOM'!$G$6:$DC$12,82,FALSE) -> 7 | L12: =VLOOKUP($A12,'RECAP DIRCOM'!$G$6:$DC$12,83,FALSE) -> 33% | M12: =VLOOKUP($A12,'RECAP DIRCOM'!$G$6:$DC$12,84,FALSE) -> 32% | N12: =VLOOKUP($A12,'RECAP DIRCOM'!$G$6:$DC$12,85,FALSE) -> 7
A13: 30 | B13: Marne-Ardennes | C13: =VLOOKUP($A13,'RECAP DIRCOM'!$G$6:$DC$12,3,FALSE) -> 227 | D13: =VLOOKUP($A13,'RECAP DIRCOM'!$G$6:$DC$12,75,FALSE) -> 34,737 | E13: =VLOOKUP($A13,'RECAP DIRCOM'!$G$6:$DC$12,76,FALSE) -> 152.97 | F13: =VLOOKUP($A13,'RECAP DIRCOM'!$G$6:$DC$12,77,FALSE) -> 0% | G13: =VLOOKUP($A13,'RECAP DIRCOM'!$G$6:$DC$12,78,FALSE) -> 1 | H13: =VLOOKUP($A13,'RECAP DIRCOM'!$G$6:$DC$12,79,FALSE) -> 5,680 | I13: =VLOOKUP($A13,'RECAP DIRCOM'!$G$6:$DC$12,80,FALSE) -> 25.01 | J13: =VLOOKUP($A13,'RECAP DIRCOM'!$G$6:$DC$12,81,FALSE) -> 6% | K13: =VLOOKUP($A13,'RECAP DIRCOM'!$G$6:$DC$12,82,FALSE) -> 2 | L13: =VLOOKUP($A13,'RECAP DIRCOM'!$G$6:$DC$12,83,FALSE) -> 2% | M13: =VLOOKUP($A13,'RECAP DIRCOM'!$G$6:$DC$12,84,FALSE) -> 0% | N13: =VLOOKUP($A13,'RECAP DIRCOM'!$G$6:$DC$12,85,FALSE) -> 1
A14: 110 | B14: Meurthe et Moselle Meuse | C14: =VLOOKUP($A14,'RECAP DIRCOM'!$G$6:$DC$12,3,FALSE) -> 243 | D14: =VLOOKUP($A14,'RECAP DIRCOM'!$G$6:$DC$12,75,FALSE) -> 33,293 | E14: =VLOOKUP($A14,'RECAP DIRCOM'!$G$6:$DC$12,76,FALSE) -> 137.17 | F14: =VLOOKUP($A14,'RECAP DIRCOM'!$G$6:$DC$12,77,FALSE) -> 10% | G14: =VLOOKUP($A14,'RECAP DIRCOM'!$G$6:$DC$12,78,FALSE) -> 2 | H14: =VLOOKUP($A14,'RECAP DIRCOM'!$G$6:$DC$12,79,FALSE) -> 6,453 | I14: =VLOOKUP($A14,'RECAP DIRCOM'!$G$6:$DC$12,80,FALSE) -> 26.59 | J14: =VLOOKUP($A14,'RECAP DIRCOM'!$G$6:$DC$12,81,FALSE) -> 0% | K14: =VLOOKUP($A14,'RECAP DIRCOM'!$G$6:$DC$12,82,FALSE) -> 1 | L14: =VLOOKUP($A14,'RECAP DIRCOM'!$G$6:$DC$12,83,FALSE) -> 7% | M14: =VLOOKUP($A14,'RECAP DIRCOM'!$G$6:$DC$12,84,FALSE) -> 5% | N14: =VLOOKUP($A14,'RECAP DIRCOM'!$G$6:$DC$12,85,FALSE) -> 2
A15: 160 | B15: Moselle | C15: =VLOOKUP($A15,'RECAP DIRCOM'!$G$6:$DC$12,3,FALSE) -> 265 | D15: =VLOOKUP($A15,'RECAP DIRCOM'!$G$6:$DC$12,75,FALSE) -> 34,328 | E15: =VLOOKUP($A15,'RECAP DIRCOM'!$G$6:$DC$12,76,FALSE) -> 129.32 | F15: =VLOOKUP($A15,'RECAP DIRCOM'!$G$6:$DC$12,77,FALSE) -> 15% | G15: =VLOOKUP($A15,'RECAP DIRCOM'!$G$6:$DC$12,78,FALSE) -> 5 | H15: =VLOOKUP($A15,'RECAP DIRCOM'!$G$6:$DC$12,79,FALSE) -> 6,298 | I15: =VLOOKUP($A15,'RECAP DIRCOM'!$G$6:$DC$12,80,FALSE) -> 23.73 | J15: =VLOOKUP($A15,'RECAP DIRCOM'!$G$6:$DC$12,81,FALSE) -> 11% | K15: =VLOOKUP($A15,'RECAP DIRCOM'!$G$6:$DC$12,82,FALSE) -> 3 | L15: =VLOOKUP($A15,'RECAP DIRCOM'!$G$6:$DC$12,83,FALSE) -> 14% | M15: =VLOOKUP($A15,'RECAP DIRCOM'!$G$6:$DC$12,84,FALSE) -> 12% | N15: =VLOOKUP($A15,'RECAP DIRCOM'!$G$6:$DC$12,85,FALSE) -> 3
A16: 80 | B16: Vosges | C16: =VLOOKUP($A16,'RECAP DIRCOM'!$G$6:$DC$12,3,FALSE) -> 133 | D16: =VLOOKUP($A16,'RECAP DIRCOM'!$G$6:$DC$12,75,FALSE) -> 17,253 | E16: =VLOOKUP($A16,'RECAP DIRCOM'!$G$6:$DC$12,76,FALSE) -> 129.68 | F16: =VLOOKUP($A16,'RECAP DIRCOM'!$G$6:$DC$12,77,FALSE) -> 15% | G16: =VLOOKUP($A16,'RECAP DIRCOM'!$G$6:$DC$12,78,FALSE) -> 4 | H16: =VLOOKUP($A16,'RECAP DIRCOM'!$G$6:$DC$12,79,FALSE) -> 2,692 | I16: =VLOOKUP($A16,'RECAP DIRCOM'!$G$6:$DC$12,80,FALSE) -> 20.23 | J16: =VLOOKUP($A16,'RECAP DIRCOM'!$G$6:$DC$12,81,FALSE) -> 24% | K16: =VLOOKUP($A16,'RECAP DIRCOM'!$G$6:$DC$12,82,FALSE) -> 6 | L16: =VLOOKUP($A16,'RECAP DIRCOM'!$G$6:$DC$12,83,FALSE) -> 18% | M16: =VLOOKUP($A16,'RECAP DIRCOM'!$G$6:$DC$12,84,FALSE) -> 16% | N16: =VLOOKUP($A16,'RECAP DIRCOM'!$G$6:$DC$12,85,FALSE) -> 5
B17: Total CEGEE Directions Régionales | C17: =SUM(C10:C16) -> 1406

Sheet DC_SATISFACTION
B1: Accueil | D1: BAROMETRE BDD - DIRECTIONS REGIONALES
D2: SATISFACTION
D3: =ACCUEIL!F7 -> 2021-08-01
D7: NPS à froid (SAE) | G7: NPS à chaud (QHD) | J7: Total Satisfaction Clients
D8: =DATEMAJ!E4 -> au 30/06 | E8: coef | F8: ='RECAP DIRCOM'!M4 -> 10% | G8: =DATEMAJ!C5 -> au 30/06 | H8: coef | I8: ='RECAP DIRCOM'!P4 -> 10% | K8: coef | L8: ='RECAP DIRCOM'!S4 -> 20%
B9: Direction | C9: ="ETP perf "&DATEMAJ!$C$28 -> ETP perf 30-juin | E9: % Ecart au 1er | F9: Rang | H9: % Ecart au 1er | I9: Rang | J9: Moyenne ecart au 1er | K9: % Ecart au 1er | L9: Rang CEGEE
A10: 50 | B10: Aube Haute Marne | C10: =VLOOKUP($A10,'RECAP DIRCOM'!$G$6:$DC$12,3,FALSE) -> 128 | D10: =VLOOKUP($A10,'RECAP DIRCOM'!$G$6:$DC$12,5,FALSE) -> 16 | E10: =VLOOKUP($A10,'RECAP DIRCOM'!$G$6:$DC$12,6,FALSE) -> 30% | F10: =VLOOKUP($A10,'RECAP DIRCOM'!$G$6:$DC$12,7,FALSE) -> 2 | G10: =VLOOKUP($A10,'RECAP DIRCOM'!$G$6:$DC$12,8,FALSE) -> 56% | H10: =VLOOKUP($A10,'RECAP DIRCOM'!$G$6:$DC$12,9,FALSE) -> 18% | I10: =VLOOKUP($A10,'RECAP DIRCOM'!$G$6:$DC$12,10,FALSE) -> 4 | J10: =VLOOKUP($A10,'RECAP DIRCOM'!$G$6:$DC$12,11,FALSE) -> 24% | K10: =VLOOKUP($A10,'RECAP DIRCOM'!$G$6:$DC$12,12,FALSE) -> 24% | L10: =VLOOKUP($A10,'RECAP DIRCOM'!$G$6:$DC$12,13,FALSE) -> 3
A11: 262 | B11: Bas-Rhin | C11: =VLOOKUP($A11,'RECAP DIRCOM'!$G$6:$DC$12,3,FALSE) -> 253 | D11: =VLOOKUP($A11,'RECAP DIRCOM'!$G$6:$DC$12,5,FALSE) -> 13 | E11: =VLOOKUP($A11,'RECAP DIRCOM'!$G$6:$DC$12,6,FALSE) -> 43% | F11: =VLOOKUP($A11,'RECAP DIRCOM'!$G$6:$DC$12,7,FALSE) -> 5 | G11: =VLOOKUP($A11,'RECAP DIRCOM'!$G$6:$DC$12,8,FALSE) -> 52% | H11: =VLOOKUP($A11,'RECAP DIRCOM'!$G$6:$DC$12,9,FALSE) -> 23% | I11: =VLOOKUP($A11,'RECAP DIRCOM'!$G$6:$DC$12,10,FALSE) -> 6 | J11: =VLOOKUP($A11,'RECAP DIRCOM'!$G$6:$DC$12,11,FALSE) -> 33% | K11: =VLOOKUP($A11,'RECAP DIRCOM'!$G$6:$DC$12,12,FALSE) -> 33% | L11: =VLOOKUP($A11,'RECAP DIRCOM'!$G$6:$DC$12,13,FALSE) -> 6
A12: 264 | B12: Haut-Rhin | C12: =VLOOKUP($A12,'RECAP DIRCOM'!$G$6:$DC$12,3,FALSE) -> 158 | D12: =VLOOKUP($A12,'RECAP DIRCOM'!$G$6:$DC$12,5,FALSE) -> 6 | E12: =VLOOKUP($A12,'RECAP DIRCOM'!$G$6:$DC$12,6,FALSE) -> 74% | F12: =VLOOKUP($A12,'RECAP DIRCOM'!$G$6:$DC$12,7,FALSE) -> 7 | G12: =VLOOKUP($A12,'RECAP DIRCOM'!$G$6:$DC$12,8,FALSE) -> 40% | H12: =VLOOKUP($A12,'RECAP DIRCOM'!$G$6:$DC$12,9,FALSE) -> 42% | I12: =VLOOKUP($A12,'RECAP DIRCOM'!$G$6:$DC$12,10,FALSE) -> 7 | J12: =VLOOKUP($A12,'RECAP DIRCOM'!$G$6:$DC$12,11,FALSE) -> 58% | K12: =VLOOKUP($A12,'RECAP DIRCOM'!$G$6:$DC$12,12,FALSE) -> 58% | L12: =VLOOKUP($A12,'RECAP DIRCOM'!$G$6:$DC$12,13,FALSE) -> 7
A13: 30 | B13: Marne-Ardennes | C13: =VLOOKUP($A13,'RECAP DIRCOM'!$G$6:$DC$12,3,FALSE) -> 227 | D13: =VLOOKUP($A13,'RECAP DIRCOM'!$G$6:$DC$12,5,FALSE) -> 16 | E13: =VLOOKUP($A13,'RECAP DIRCOM'!$G$6:$DC$12,6,FALSE) -> 30% | F13: =VLOOKUP($A13,'RECAP DIRCOM'!$G$6:$DC$12,7,FALSE) -> 2 | G13: =VLOOKUP($A13,'RECAP DIRCOM'!$G$6:$DC$12,8,FALSE) -> 66% | H13: =VLOOKUP($A13,'RECAP DIRCOM'!$G$6:$DC$12,9,FALSE) -> 3% | I13: =VLOOKUP($A13,'RECAP DIRCOM'!$G$6:$DC$12,10,FALSE) -> 2 | J13: =VLOOKUP($A13,'RECAP DIRCOM'!$G$6:$DC$12,11,FALSE) -> 17% | K13: =VLOOKUP($A13,'RECAP DIRCOM'!$G$6:$DC$12,12,FALSE) -> 17% | L13: =VLOOKUP($A13,'RECAP DIRCOM'!$G$6:$DC$12,13,FALSE) -> 2
A14: 110 | B14: Meurthe et Moselle Meuse | C14: =VLOOKUP($A14,'RECAP DIRCOM'!$G$6:$DC$12,3,FALSE) -> 243 | D14: =VLOOKUP($A14,'RECAP DIRCOM'!$G$6:$DC$12,5,FALSE) -> 14 | E14: =VLOOKUP($A14,'RECAP DIRCOM'!$G$6:$DC$12,6,FALSE) -> 39% | F14: =VLOOKUP($A14,'RECAP DIRCOM'!$G$6:$DC$12,7,FALSE) -> 4 | G14: =VLOOKUP($A14,'RECAP DIRCOM'!$G$6:$DC$12,8,FALSE) -> 56% | H14: =VLOOKUP($A14,'RECAP DIRCOM'!$G$6:$DC$12,9,FALSE) -> 18% | I14: =VLOOKUP($A14,'RECAP DIRCOM'!$G$6:$DC$12,10,FALSE) -> 5 | J14: =VLOOKUP($A14,'RECAP DIRCOM'!$G$6:$DC$12,11,FALSE) -> 29% | K14: =VLOOKUP($A14,'RECAP DIRCOM'!$G$6:$DC$12,12,FALSE) -> 29% | L14: =VLOOKUP($A14,'RECAP DIRCOM'!$G$6:$DC$12,13,FALSE) -> 4
A15: 160 | B15: Moselle | C15: =VLOOKUP($A15,'RECAP DIRCOM'!$G$6:$DC$12,3,FALSE) -> 265 | D15: =VLOOKUP($A15,'RECAP DIRCOM'!$G$6:$DC$12,5,FALSE) -> 12 | E15: =VLOOKUP($A15,'RECAP DIRCOM'!$G$6:$DC$12,6,FALSE) -> 48% | F15: =VLOOKUP($A15,'RECAP DIRCOM'!$G$6:$DC$12,7,FALSE) -> 6 | G15: =VLOOKUP($A15,'RECAP DIRCOM'!$G$6:$DC$12,8,FALSE) -> 57% | H15: =VLOOKUP($A15,'RECAP DIRCOM'!$G$6:$DC$12,9,FALSE) -> 16% | I15: =VLOOKUP($A15,'RECAP DIRCOM'!$G$6:$DC$12,10,FALSE) -> 3 | J15: =VLOOKUP($A15,'RECAP DIRCOM'!$G$6:$DC$12,11,FALSE) -> 32% | K15: =VLOOKUP($A15,'RECAP DIRCOM'!$G$6:$DC$12,12,FALSE) -> 32% | L15: =VLOOKUP($A15,'RECAP DIRCOM'!$G$6:$DC$12,13,FALSE) -> 5
A16: 80 | B16: Vosges | C16: =VLOOKUP($A16,'RECAP DIRCOM'!$G$6:$DC$12,3,FALSE) -> 133 | D16: =VLOOKUP($A16,'RECAP DIRCOM'!$G$6:$DC$12,5,FALSE) -> 23 | E16: =VLOOKUP($A16,'RECAP DIRCOM'!$G$6:$DC$12,6,FALSE) -> 0% | F16: =VLOOKUP($A16,'RECAP DIRCOM'!$G$6:$DC$12,7,FALSE) -> 1 | G16: =VLOOKUP($A16,'RECAP DIRCOM'!$G$6:$DC$12,8,FALSE) -> 68% | H16: =VLOOKUP($A16,'RECAP DIRCOM'!$G$6:$DC$12,9,FALSE) -> 0% | I16: =VLOOKUP($A16,'RECAP DIRCOM'!$G$6:$DC$12,10,FALSE) -> 1 | J16: =VLOOKUP($A16,'RECAP DIRCOM'!$G$6:$DC$12,11,FALSE) -> 0% | K16: =VLOOKUP($A16,'RECAP DIRCOM'!$G$6:$DC$12,12,FALSE) -> 0% | L16: =VLOOKUP($A16,'RECAP DIRCOM'!$G$6:$DC$12,13,FALSE) -> 1
B17: Total CEGEE Directions Régionales | C17: =SUM(C10:C16) -> 1406

Sheet SE_FICHE
A1: Accueil
A2: BAROMETRE BDD
A4: UNITE: | B4: TERRITOIRE | E4: ETP perf : | F4: =VLOOKUP(A5,'RECAP SECT'!$G$6:$I$23,3,FALSE) -> 61.54
A5: =VLOOKUP(B5,LISTES!$H$6:$I$23,2,FALSE) -> 5130 | B5: COLMAR
C6: Coefficient du critére | E6: Résultats | I6: Ecart au 1ier | M6: Evolution | O6: Rang
E7: du 1ier | G7: du territoire | I7: Du mois | K7: Au 31/12/2019
A9: RANG au CLASSEMENT GENERAL | K9: =VLOOKUP($A$5,#REF!,168,FALSE) ->  | M9: =+K9-O9 ->  | O9: =VLOOKUP($A$5,'RECAP SECT'!$G$6:$DG$312,168,FALSE) ->  | S9: =VLOOKUP($A$5,#REF!,154,FALSE) ->  | U9: =+S9-O9 -> 
A11: CRITERE CONQUETE | C11: 15% | O11: =VLOOKUP($A$5,'RECAP SECT'!$G$6:$DG$312,23,FALSE) -> 28.56737392
B12: PNB Evolution nette Clients BP | C12: 4% | E12: ='RECAP SECT'!#REF! ->  | G12: =VLOOKUP($A$5,'RECAP SECT'!$G$6:$DG$312,6,FALSE) -> 0.8 | I12: =VLOOKUP($A$5,'RECAP SECT'!$G$6:$DG$312,7,FALSE) -> 1700% | K12: =VLOOKUP($A$5,#REF!,7,FALSE) ->  | M12: =+K12-I12 ->  | O12: =VLOOKUP($A$5,'RECAP SECT'!$G$6:$DG$312,8,FALSE) -> 0.4737259781 | S12: =VLOOKUP($A$5,#REF!,6,FALSE) ->  | U12: =+S12-I12 -> 
B13: PNB Evolution nette Clients PREMIUM | C13: 5% | E13: ='RECAP SECT'!#REF! ->  | G13: =VLOOKUP($A$5,'RECAP SECT'!$G$6:$DG$312,10,FALSE) -> 17.0 | I13: =VLOOKUP($A$5,'RECAP SECT'!$G$6:$DG$312,11,FALSE) -> 55% | K13: =VLOOKUP($A$5,#REF!,11,FALSE) ->  | M13: =+K13-I13 ->  | O13: =VLOOKUP($A$5,'RECAP SECT'!$G$6:$DG$312,12,FALSE) -> 0.5126908682 | S13: =VLOOKUP($A$5,#REF!,9,FALSE) ->  | U13: =+S13-I13 -> 
B14: PNB Evolution nette Clients Jeunes Equipés | C14: 3% | E14: ='RECAP SECT'!#REF! ->  | G14: =VLOOKUP($A$5,'RECAP SECT'!$G$6:$DG$312,14,FALSE) -> 0.0 | I14: =VLOOKUP($A$5,'RECAP SECT'!$G$6:$DG$312,15,FALSE) -> 0% | K14: =VLOOKUP($A$5,#REF!,15,FALSE) ->  | M14: =+K14-I14 ->  | O14: =VLOOKUP($A$5,'RECAP SECT'!$G$6:$DG$312,16,FALSE) -> 0 | S14: =VLOOKUP($A$5,#REF!,12,FALSE) ->  | U14: =+S14-I14 -> 
B15: PNB Evolution nette Clients Pro Actifs Equipés | C15: 3% | E15: ='RECAP SECT'!W4 -> 0.0 | G15: =VLOOKUP($A$5,'RECAP SECT'!$G$6:$DG$312,18,FALSE) -> 2569.8 | I15: =VLOOKUP($A$5,'RECAP SECT'!$G$6:$DG$312,19,FALSE) -> 4176% | K15: =VLOOKUP($A$5,#REF!,19,FALSE) ->  | M15: =+K15-I15 ->  | O15: =VLOOKUP($A$5,'RECAP SECT'!$G$6:$DG$312,20,FALSE) -> 0.382319976 | S15: =VLOOKUP($A$5,#REF!,15,FALSE) ->  | U15: =+S15-I15 -> 
A17: CRITERE BANCARISATION | C17: 15% | O17: =VLOOKUP($A$5,'RECAP SECT'!$G$6:$DG$312,48,FALSE) -> 16
B18: PNB Ventes nettes forfaits | C18: 4% | E18: ='RECAP SECT'!X4 -> 67.6 | G18: =VLOOKUP($A$5,'RECAP SECT'!$G$6:$DG$312,31,FALSE) -> -2.0 | I18: =VLOOKUP($A$5,'RECAP SECT'!$G$6:$DG$312,32,FALSE) -> 19% | K18: =VLOOKUP($A$5,#REF!,32,FALSE) ->  | M18: =+K18-I18 ->  | O18: =VLOOKUP($A$5,'RECAP SECT'!$G$6:$DG$312,33,FALSE) -> 8 | S18: =VLOOKUP($A$5,#REF!,27,FALSE) ->  | U18: =+S18-I18 -> 
B19: PNB Ventes nettes IZICARTES Débit Différé | C19: 4% | E19: ='RECAP SECT'!AB4 -> 40.2 | G19: =VLOOKUP($A$5,'RECAP SECT'!$G$6:$DG$312,35,FALSE) -> 0.3 | I19: =VLOOKUP($A$5,'RECAP SECT'!$G$6:$DG$312,36,FALSE) -> 1600% | K19: =VLOOKUP($A$5,#REF!,36,FALSE) ->  | M19: =+K19-I19 ->  | O19: =VLOOKUP($A$5,'RECAP SECT'!$G$6:$DG$312,37,FALSE) -> 0 | S19: =VLOOKUP($A$5,#REF!,30,FALSE) ->  | U19: =+S19-I19 -> 
B20: PNB Ventes nettes cartes HDG Débit Différé | C20: 4% | E20: ='RECAP SECT'!AF4 -> 13.9 | G20: =VLOOKUP($A$5,'RECAP SECT'!$G$6:$DG$312,39,FALSE) -> 0.0 | I20: =VLOOKUP($A$5,'RECAP SECT'!$G$6:$DG$312,40,FALSE) -> 0% | K20: =VLOOKUP($A$5,#REF!,40,FALSE) ->  | M20: =+K20-I20 ->  | O20: =VLOOKUP($A$5,'RECAP SECT'!$G$6:$DG$312,41,FALSE) -> 14898.63634 | S20: =VLOOKUP($A$5,#REF!,33,FALSE) ->  | U20: =+S20-I20 -> 
B21: PNB Ventes nettes Forfaits Pro, Carte pro | C21: 3% | E21: ='RECAP SECT'!AJ4 -> -1.6 | G21: =VLOOKUP($A$5,'RECAP SECT'!$G$6:$DG$312,43,FALSE) -> 0.5 | I21: =VLOOKUP($A$5,'RECAP SECT'!$G$6:$DG$312,44,FALSE) -> 1600% | K21: =VLOOKUP($A$5,#REF!,44,FALSE) ->  | M21: =+K21-I21 ->  | O21: =VLOOKUP($A$5,'RECAP SECT'!$G$6:$DG$312,45,FALSE) -> 894 | S21: =VLOOKUP($A$5,#REF!,39,FALSE) ->  | U21: =+S21-I21 -> 
A23: CRITERE EPARGNE | C23: 10% | O23: =VLOOKUP($A$5,'RECAP SECT'!$G$6:$DG$312,69,FALSE) -> 0.4607253933
B24: PNB Epargne Liquide | C24: 3% | E24: ='RECAP SECT'!AU4 -> 531.7 | G24: =VLOOKUP($A$5,'RECAP SECT'!$G$6:$DG$312,56,FALSE) -> 3201.6 | I24: =VLOOKUP($A$5,'RECAP SECT'!$G$6:$DG$312,57,FALSE) -> 5203% | K24: =VLOOKUP($A$5,#REF!,57,FALSE) ->  | M24: =+K24-I24 ->  | O24: =VLOOKUP($A$5,'RECAP SECT'!$G$6:$DG$312,58,FALSE) -> 0.7000491623 | S24: =VLOOKUP($A$5,#REF!,51,FALSE) ->  | U24: =+S24-I24 -> 
B25: PNB CA UC + arbitrage | C25: 4% | E25: ='RECAP SECT'!AY4 -> 22.6 | G25: =VLOOKUP($A$5,'RECAP SECT'!$G$6:$DG$312,60,FALSE) -> 2486.8 | I25: =VLOOKUP($A$5,'RECAP SECT'!$G$6:$DG$312,61,FALSE) -> 4041% | K25: =VLOOKUP($A$5,#REF!,61,FALSE) ->  | M25: =+K25-I25 ->  | O25: =VLOOKUP($A$5,'RECAP SECT'!$G$6:$DG$312,62,FALSE) -> 0.2933533206 | S25: =VLOOKUP($A$5,#REF!,57,FALSE) ->  | U25: =+S25-I25 -> 
B26: PNB Excédent assurance vie | C26: 3% | E26: ='RECAP SECT'!#REF! ->  | G26: =VLOOKUP($A$5,'RECAP SECT'!$G$6:$DG$312,64,FALSE) -> 569.0 | I26: =VLOOKUP($A$5,'RECAP SECT'!$G$6:$DG$312,65,FALSE) -> 925% | K26: =VLOOKUP($A$5,#REF!,65,FALSE) ->  | M26: =+K26-I26 ->  | O26: =VLOOKUP($A$5,'RECAP SECT'!$G$6:$DG$312,66,FALSE) -> 0.4942364808 | S26: =VLOOKUP($A$5,#REF!,60,FALSE) ->  | U26: =+S26-I26 -> 
A28: CRITERE CREDITS | C28: 15% | O28: =VLOOKUP($A$5,'RECAP SECT'!$G$6:$DG$312,102,FALSE) -> 0.3994293979
B29: PNB crédit conso | C29: 4% | E29: ='RECAP SECT'!BJ4 -> 173.4 | G29: =VLOOKUP($A$5,'RECAP SECT'!$G$6:$DG$312,77,FALSE) -> 0.2 | I29: =VLOOKUP($A$5,'RECAP SECT'!$G$6:$DG$312,78,FALSE) -> 1200% | K29: =VLOOKUP($A$5,#REF!,78,FALSE) ->  | M29: =+K29-I29 ->  | O29: =VLOOKUP($A$5,'RECAP SECT'!$G$6:$DG$312,79,FALSE) -> 1516 | S29: =VLOOKUP($A$5,#REF!,75,FALSE) ->  | U29: =+S29-I29 -> 
B30: PNB ADE crédit conso | C30: 1% | E30: ='RECAP SECT'!#REF! ->  | G30: =VLOOKUP($A$5,'RECAP SECT'!$G$6:$DG$312,81,FALSE) -> 0.3 | I30: =VLOOKUP($A$5,'RECAP SECT'!$G$6:$DG$312,82,FALSE) -> 1600% | K30: =VLOOKUP($A$5,#REF!,82,FALSE) ->  | O30: =VLOOKUP($A$5,'RECAP SECT'!$G$6:$DG$312,83,FALSE) -> 0.2592549535 | S30: =VLOOKUP($A$5,#REF!,78,FALSE) -> 
B31: PNB crédit immo | C31: 4% | E31: ='RECAP SECT'!BN4 -> 57.2 | G31: =VLOOKUP($A$5,'RECAP SECT'!$G$6:$DG$312,85,FALSE) -> 12.0 | I31: =VLOOKUP($A$5,'RECAP SECT'!$G$6:$DG$312,86,FALSE) -> 0% | K31: =VLOOKUP($A$5,#REF!,86,FALSE) ->  | O31: =VLOOKUP($A$5,'RECAP SECT'!$G$6:$DG$312,87,FALSE) -> 0 | S31: =VLOOKUP($A$5,#REF!,81,FALSE) -> 
B32: PNB ADE crédit immo | C32: 2% | E32: ='RECAP SECT'!#REF! ->  | G32: =VLOOKUP($A$5,'RECAP SECT'!$G$6:$DG$312,89,FALSE) -> 0.0 | I32: =VLOOKUP($A$5,'RECAP SECT'!$G$6:$DG$312,90,FALSE) -> 0% | K32: =VLOOKUP($A$5,#REF!,90,FALSE) ->  | O32: =VLOOKUP($A$5,'RECAP SECT'!$G$6:$DG$312,91,FALSE) -> 0 | S32: =VLOOKUP($A$5,#REF!,84,FALSE) -> 
B33: PNB SACCEF | C33: 2% | E33: ='RECAP SECT'!#REF! ->  | G33: =VLOOKUP($A$5,'RECAP SECT'!$G$6:$DG$312,93,FALSE) -> 0.0 | I33: =VLOOKUP($A$5,'RECAP SECT'!$G$6:$DG$312,94,FALSE) -> 0% | K33: =VLOOKUP($A$5,#REF!,94,FALSE) ->  | O33: =VLOOKUP($A$5,'RECAP SECT'!$G$6:$DG$312,95,FALSE) -> 0 | S33: =VLOOKUP($A$5,#REF!,87,FALSE) -> 
B34: PNB Crédit MLT + Crédit Bail | C34: 2% | E34: ='RECAP SECT'!BR4 -> 18.3 | G34: =VLOOKUP($A$5,'RECAP SECT'!$G$6:$DG$312,97,FALSE) -> 0.0 | I34: =VLOOKUP($A$5,'RECAP SECT'!$G$6:$DG$312,98,FALSE) -> 0% | K34: =VLOOKUP($A$5,#REF!,98,FALSE) ->  | O34: =VLOOKUP($A$5,'RECAP SECT'!$G$6:$DG$312,99,FALSE) -> 0 | S34: =VLOOKUP($A$5,#REF!,90,FALSE) -> 
A36: CRITERE IARD PREVOYANCE | C36: 15% | O36: =VLOOKUP($A$5,'RECAP SECT'!$G$6:$DG$312,119,FALSE) -> 
B37: PNB Ventes nettes IARD | C37: 9% | E37: ='RECAP SECT'!CC4 -> 205.4 | G37: =VLOOKUP($A$5,'RECAP SECT'!$G$6:$DG$312,110,FALSE) ->  | I37: =VLOOKUP($A$5,'RECAP SECT'!$G$6:$DG$312,111,FALSE) ->  | K37: =VLOOKUP($A$5,#REF!,111,FALSE) ->  | M37: =+K37-I37 ->  | O37: =VLOOKUP($A$5,'RECAP SECT'!$G$6:$DG$312,112,FALSE) ->  | S37: =VLOOKUP($A$5,#REF!,102,FALSE) ->  | U37: =+S37-I37 -> 
B38: PNB Ventes nettes Prévoyance | C38: 6% | E38: ='RECAP SECT'!CG4 -> 36.2 | G38: =VLOOKUP($A$5,'RECAP SECT'!$G$6:$DG$312,114,FALSE) ->  | I38: =VLOOKUP($A$5,'RECAP SECT'!$G$6:$DG$312,115,FALSE) ->  | K38: =VLOOKUP($A$5,#REF!,115,FALSE) ->  | M38: =+K38-I38 ->  | O38: =VLOOKUP($A$5,'RECAP SECT'!$G$6:$DG$312,116,FALSE) ->  | S38: =VLOOKUP($A$5,#REF!,105,FALSE) ->  | U38: =+S38-I38 -> 
A40: CRITERE ACCELERATEURS PNB | C40: 15% | O40: =VLOOKUP($A$5,'RECAP SECT'!$G$6:$DG$312,144,FALSE) -> 
B41: PNB Ventes brutes SED Finalisées | C41: 6% | E41: ='RECAP SECT'!#REF! ->  | G41: =VLOOKUP($A$5,'RECAP SECT'!$G$6:$DG$312,127,FALSE) ->  | I41: =VLOOKUP($A$5,'RECAP SECT'!$G$6:$DG$312,128,FALSE) ->  | K41: =VLOOKUP($A$5,#REF!,128,FALSE) ->  | M41: =+K41-I41 ->  | O41: =VLOOKUP($A$5,'RECAP SECT'!$G$6:$DG$312,129,FALSE) ->  | S41: =VLOOKUP($A$5,#REF!,120,FALSE) ->  | U41: =+S41-I41 -> 
B42: PNB clients équipés E documents | C42: 3% | E42: ='RECAP SECT'!#REF! ->  | G42: =VLOOKUP($A$5,'RECAP SECT'!$G$6:$DG$312,131,FALSE) ->  | I42: =VLOOKUP($A$5,'RECAP SECT'!$G$6:$DG$312,132,FALSE) ->  | K42: =VLOOKUP($A$5,#REF!,132,FALSE) ->  | M42: =+K42-I42 ->  | O42: =VLOOKUP($A$5,'RECAP SECT'!$G$6:$DG$312,133,FALSE) ->  | S42: =VLOOKUP($A$5,#REF!,123,FALSE) ->  | U42: =+S42-I42 -> 
B43: Economie opt'in | C43: 3% | E43: ='RECAP SECT'!#REF! ->  | G43: =VLOOKUP($A$5,'RECAP SECT'!$G$6:$DG$312,135,FALSE) ->  | I43: =VLOOKUP($A$5,'RECAP SECT'!$G$6:$DG$312,136,FALSE) ->  | K43: =VLOOKUP($A$5,#REF!,136,FALSE) ->  | M43: =+K43-I43 ->  | O43: =VLOOKUP($A$5,'RECAP SECT'!$G$6:$DG$312,137,FALSE) -> 
B44: Remises commerciales | C44: 3% | E44: ='RECAP SECT'!#REF! ->  | G44: =VLOOKUP($A$5,'RECAP SECT'!$G$6:$DG$312,139,FALSE) ->  | I44: =VLOOKUP($A$5,'RECAP SECT'!$G$6:$DG$312,140,FALSE) ->  | K44: =VLOOKUP($A$5,#REF!,140,FALSE) ->  | M44: =+K44-I44 ->  | O44: =VLOOKUP($A$5,'RECAP SECT'!$G$6:$DG$312,141,FALSE) ->  | S44: =VLOOKUP($A$5,#REF!,126,FALSE) ->  | U44: =+S44-I44 -> 
A46: CRITERE Satisfaction Clients | C46: 15% | O46: =VLOOKUP($A$5,'RECAP SECT'!$G$6:$DG$312,159,FALSE) -> 
B47: Objectifs NPS* | C47: 8% | E47: ='RECAP SECT'!K4 -> 24 | G47: =VLOOKUP($A$5,'RECAP SECT'!$G$6:$DG$312,151,FALSE) ->  | I47: =VLOOKUP($A$5,'RECAP SECT'!$G$6:$DG$312,152,FALSE) ->  | K47: =VLOOKUP($A$5,#REF!,152,FALSE) ->  | M47: =+K47-I47 ->  | O47: =VLOOKUP($A$5,'RECAP SECT'!$G$6:$DG$312,153,FALSE) ->  | S47: =VLOOKUP($A$5,#REF!,138,FALSE) ->  | U47: =+S47-I47 -> 
B48: Enquête Qualité Haute Définition | C48: 7% | E48: ='RECAP SECT'!N4 -> 74% | G48: =VLOOKUP($A$5,'RECAP SECT'!$G$6:$DG$312,154,FALSE) ->  | I48: =VLOOKUP($A$5,'RECAP SECT'!$G$6:$DG$312,155,FALSE) ->  | K48: =VLOOKUP($A$5,#REF!,155,FALSE) ->  | M48: =+K48-I48 ->  | O48: =VLOOKUP($A$5,'RECAP SECT'!$G$6:$DG$312,156,FALSE) ->  | S48: =VLOOKUP($A$5,#REF!,141,FALSE) ->  | U48: =+S48-I48 -> 

Sheet SE_TOTAL
B1: Accueil | F1: BAROMETRE BDD - TERRITOIRES
F2: TOTAL GENERAL
F3: =ACCUEIL!F7 -> 2021-08-01
F7: TOTAL GENERAL | I7: Total Satisfaction Clients | L7: Total Bancarisation | O7: Total Epargne | R7: Total IARD Prévoyance | U7: Total Crédits
G8: coef | H8: 100% | J8: coef | K8: =SE_SATISFACTION!N8 -> 20% | M8: coef | N8: =SE_BANCA!X8 -> 20% | P8: coef | Q8: =SE_EPARGNE!P8 -> 20% | S8: coef | T8: =SE_IARD!P8 -> 20% | V8: coef | W8: =SE_CREDIT!T8 -> 20%
B9: Direction | C9: eds | D9: Territoire | E9: ="ETP perf "&DATEMAJ!$C$28 -> ETP perf 30-juin | F9: Moyenne ecart au 1er | G9: % Ecart au 1er | H9: Rang CEGEE | I9: Moyenne ecart au 1er | J9: % Ecart au 1er | K9: Rang CEGEE | L9: Moyenne ecart au 1er | M9: % Ecart au 1er | N9: Rang CEGEE | O9: Moyenne ecart au 1er | P9: % Ecart au 1er | Q9: Rang CEGEE | R9: Moyenne ecart au 1er | S9: % Ecart au 1er | T9: Rang CEGEE | U9: Moyenne ecart au 1er | V9: % Ecart au 1er | W9: Rang CEGEE
A10: 50 | B10: MEURTHE ET MOSELLE MEUSE | C10: 26 | D10: NANCY | E10: 66.2 | F10: 6% | G10: 0% | H10: 1 | I10: 32% | J10: 28% | K10: 10 | L10: 6% | M10: 0% | N10: 1 | O10: 4% | P10: 0% | Q10: 1 | R10: 2% | S10: 0% | T10: 1 | U10: 6% | V10: 0% | W10: 1
A11: 50 | B11: MARNE-ARDENNES | C11: 2 | D11: CHARLEVILLE MEZIERES | E11: 56.6 | F11: 11% | G11: 5% | H11: 2 | I11: 11% | J11: 7% | K11: 4 | L11: 28% | M11: 22% | N11: 9 | O11: 11% | P11: 7% | Q11: 4 | R11: 7% | S11: 5% | T11: 4 | U11: 20% | V11: 14% | W11: 4
A12: 262 | B12: MEURTHE ET MOSELLE MEUSE | C12: 27 | D12: PONT A MOUSSON | E12: 76.5 | F12: 14% | G12: 9% | H12: 3 | I12: 43% | J12: 39% | K12: 15 | L12: 10% | M12: 4% | N12: 2 | O12: 8% | P12: 5% | Q12: 2 | R12: 19% | S12: 17% | T12: 8 | U12: 12% | V12: 6% | W12: 3
A13: 262 | B13: BAS-RHIN | C13: 5006 | D13: STRASBOURG | E13: 75.2 | F13: 17% | G13: 11% | H13: 4 | I13: 29% | J13: 25% | K13: 8 | L13: 23% | M13: 17% | N13: 5 | O13: 10% | P13: 7% | Q13: 3 | R13: 5% | S13: 2% | T13: 2 | U13: 37% | V13: 32% | W13: 11
A14: 262 | B14: MARNE-ARDENNES | C14: 6 | D14: CHALONS EN CHAMPAGNE | E14: 44.7 | F14: 17% | G14: 11% | H14: 5 | I14: 6% | J14: 2% | K14: 3 | L14: 27% | M14: 22% | N14: 8 | O14: 28% | P14: 25% | Q14: 10 | R14: 16% | S14: 14% | T14: 5 | U14: 27% | V14: 21% | W14: 7
A15: 264 | B15: MARNE-ARDENNES | C15: 11 | D15: REIMS | E15: 79.7 | F15: 18% | G15: 12% | H15: 6 | I15: 37% | J15: 33% | K15: 12 | L15: 24% | M15: 18% | N15: 6 | O15: 31% | P15: 27% | Q15: 13 | R15: 5% | S15: 3% | T15: 3 | U15: 12% | V15: 6% | W15: 2
A16: 264 | B16: MEURTHE ET MOSELLE MEUSE | C16: 31 | D16: VERDUN | E16: 55.1 | F16: 18% | G16: 13% | H16: 7 | I16: 20% | J16: 16% | K16: 5 | L16: 20% | M16: 14% | N16: 3 | O16: 23% | P16: 19% | Q16: 7 | R16: 27% | S16: 24% | T16: 13 | U16: 23% | V16: 18% | W16: 5
A17: 30 | B17: VOSGES | C17: 57 | D17: EPINAL | E17: 61.1 | F17: 21% | G17: 15% | H17: 8 | I17: 4% | J17: 0% | K17: 1 | L17: 36% | M17: 30% | N17: 14 | O17: 29% | P17: 25% | Q17: 11 | R17: 18% | S17: 16% | T17: 6 | U17: 38% | V17: 32% | W17: 12
A18: 30 | B18: MOSELLE | C18: 44 | D18: MOSELLE NORD | E18: 65.8 | F18: 22% | G18: 16% | H18: 9 | I18: 46% | J18: 42% | K18: 16 | L18: 22% | M18: 16% | N18: 4 | O18: 18% | P18: 15% | Q18: 6 | R18: 19% | S18: 16% | T18: 7 | U18: 27% | V18: 21% | W18: 6
A19: 30 | B19: MOSELLE | C19: 42 | D19: MOSELLE EST | E19: 70.2 | F19: 24% | G19: 18% | H19: 10 | I19: 27% | J19: 23% | K19: 7 | L19: 28% | M19: 22% | N19: 10 | O19: 29% | P19: 26% | Q19: 12 | R19: 21% | S19: 19% | T19: 10 | U19: 37% | V19: 31% | W19: 9
A20: 110 | B20: VOSGES | C20: 55 | D20: SAINT DIE | E20: 47.1 | F20: 25% | G20: 19% | H20: 11 | I20: 5% | J20: 1% | K20: 2 | L20: 41% | M20: 35% | N20: 17 | O20: 28% | P20: 24% | Q20: 9 | R20: 34% | S20: 32% | T20: 15 | U20: 37% | V20: 32% | W20: 10
A21: 110 | B21: BAS-RHIN | C21: 5101 | D21: SELESTAT | E21: 59.9 | F21: 26% | G21: 20% | H21: 12 | I21: 43% | J21: 39% | K21: 14 | L21: 27% | M21: 21% | N21: 7 | O21: 13% | P21: 9% | Q21: 5 | R21: 24% | S21: 21% | T21: 11 | U21: 45% | V21: 39% | W21: 16
A22: 110 | B22: AUBE HAUTE MARNE | C22: 21 | D22: CHAUMONT | E22: 33.9 | F22: 27% | G22: 22% | H22: 13 | I22: 37% | J22: 33% | K22: 11 | L22: 30% | M22: 25% | N22: 12 | O22: 38% | P22: 34% | Q22: 15 | R22: 20% | S22: 18% | T22: 9 | U22: 32% | V22: 27% | W22: 8
A23: 160 | B23: MOSELLE | C23: 45 | D23: METZ | E23: 88.4 | F23: 30% | G23: 25% | H23: 14 | I23: 31% | J23: 27% | K23: 9 | L23: 38% | M23: 32% | N23: 15 | O23: 33% | P23: 29% | Q23: 14 | R23: 32% | S23: 30% | T23: 14 | U23: 38% | V23: 33% | W23: 13
A24: 160 | B24: BAS-RHIN | C24: 5060 | D24: HAGUENAU | E24: 70.0 | F24: 31% | G24: 25% | H24: 15 | I24: 42% | J24: 38% | K24: 13 | L24: 30% | M24: 24% | N24: 11 | O24: 23% | P24: 20% | Q24: 8 | R24: 38% | S24: 36% | T24: 16 | U24: 43% | V24: 37% | W24: 15
A25: 160 | B25: AUBE HAUTE MARNE | C25: 14 | D25: TROYES | E25: 67.1 | F25: 36% | G25: 30% | H25: 16 | I25: 25% | J25: 21% | K25: 6 | L25: 31% | M25: 25% | N25: 13 | O25: 64% | P25: 61% | Q25: 18 | R25: 42% | S25: 40% | T25: 17 | U25: 38% | V25: 33% | W25: 14
A26: 80 | B26: HAUT-RHIN | C26: 5130 | D26: COLMAR | E26: 61.5 | F26: 40% | G26: 34% | H26: 17 | I26: 55% | J26: 51% | K26: 17 | L26: 39% | M26: 33% | N26: 16 | O26: 49% | P26: 45% | Q26: 16 | R26: 26% | S26: 24% | T26: 12 | U26: 52% | V26: 46% | W26: 18
A27: 80 | B27: HAUT-RHIN | C27: 5169 | D27: MULHOUSE | E27: 61.1 | F27: 51% | G27: 45% | H27: 18 | I27: 66% | J27: 62% | K27: 18 | L27: 60% | M27: 54% | N27: 18 | O27: 54% | P27: 51% | Q27: 17 | R27: 47% | S27: 45% | T27: 18 | U27: 49% | V27: 43% | W27: 17
A28: Total CEGEE Directions Régionales | E28: =SUM(E10:E27) -> 1140

Sheet SE_BANCA
B1: Accueil | F1: BAROMETRE BDD - TERRITOIRES
F2: BANCARISATION
F3: =ACCUEIL!F7 -> 2021-08-01
F7: Ventes Nettes produits pondérés | J7: Ventes sur client non détenteur de l’univers | N7: Mobilité Macron | R7: Remises commerciales | V7: Total Bancarisation
F8: =DATEMAJ!C8 -> au 01/08 | H8: coef | I8: ='RECAP DIRCOM'!AA4 -> 10% | J8: =DATEMAJ!C9 -> au 01/08 | L8: coef | M8: ='RECAP DIRCOM'!AE4 -> 4% | N8: =DATEMAJ!C10 -> au 01/08 | P8: coef | Q8: ='RECAP DIRCOM'!AI4 -> 3% | R8: =DATEMAJ!C11 -> au 30/06 | T8: coef | U8: ='RECAP DIRCOM'!AM4 -> 3% | W8: coef | X8: ='RECAP DIRCOM'!AP4 -> 20%
B9: Direction | C9: eds | D9: Territoire | E9: ="ETP perf "&DATEMAJ!$C$28 -> ETP perf 30-juin | F9: VN | G9: VN / ETP | H9: % Ecart au 1er | I9: Rang | J9: VB | K9: VB / ETP | L9: % Ecart au 1er | M9: Rang | N9: Nb | O9: Nb / ETP | P9: % Ecart au 1er | Q9: Rang | R9: Montant | S9: Montant / ETP | T9: % Ecart au 1er | U9: Rang | V9: Moyenne ecart au 1er | W9: % Ecart au 1er | X9: Rang CEGEE
A10: 50 | B10: AUBE HAUTE MARNE | C10: 21 | D10: CHAUMONT | E10: =VLOOKUP($C10,'RECAP SECT'!$G$6:$DC$253,3,FALSE) -> 33.9 | F10: =VLOOKUP($C10,'RECAP SECT'!$G$6:$DC$253,18,FALSE) -> 1,595 | G10: =VLOOKUP($C10,'RECAP SECT'!$G$6:$DC$253,19,FALSE) -> 47.04 | H10: =VLOOKUP($C10,'RECAP SECT'!$G$6:$DC$253,20,FALSE) -> 30% | I10: =VLOOKUP($C10,'RECAP SECT'!$G$6:$DC$253,21,FALSE) -> 10 | J10: =VLOOKUP($C10,'RECAP SECT'!$G$6:$DC$253,22,FALSE) -> 1,145 | K10: =VLOOKUP($C10,'RECAP SECT'!$G$6:$DC$253,23,FALSE) -> 33.77 | L10: =VLOOKUP($C10,'RECAP SECT'!$G$6:$DC$253,24,FALSE) -> 16% | M10: =VLOOKUP($C10,'RECAP SECT'!$G$6:$DC$253,25,FALSE) -> 6 | N10: =VLOOKUP($C10,'RECAP SECT'!$G$6:$DC$253,26,FALSE) -> 204 | O10: =VLOOKUP($C10,'RECAP SECT'!$G$6:$DC$253,27,FALSE) -> 6.02 | P10: =VLOOKUP($C10,'RECAP SECT'!$G$6:$DC$253,28,FALSE) -> 57% | Q10: =VLOOKUP($C10,'RECAP SECT'!$G$6:$DC$253,29,FALSE) -> 9 | R10: =VLOOKUP($C10,'RECAP SECT'!$G$6:$DC$253,30,FALSE) -> -68.7 | S10: =VLOOKUP($C10,'RECAP SECT'!$G$6:$DC$253,31,FALSE) -> -2.03 | T10: =VLOOKUP($C10,'RECAP SECT'!$G$6:$DC$253,32,FALSE) -> 24% | U10: =VLOOKUP($C10,'RECAP SECT'!$G$6:$DC$253,33,FALSE) -> 11 | V10: =VLOOKUP($C10,'RECAP SECT'!$G$6:$DC$253,34,FALSE) -> 30% | W10: =VLOOKUP($C10,'RECAP SECT'!$G$6:$DC$253,35,FALSE) -> 25% | X10: =VLOOKUP($C10,'RECAP SECT'!$G$6:$DC$253,36,FALSE) -> 12
A11: 50 | B11: AUBE HAUTE MARNE | C11: 14 | D11: TROYES | E11: =VLOOKUP($C11,'RECAP SECT'!$G$6:$DC$253,3,FALSE) -> 67.1 | F11: =VLOOKUP($C11,'RECAP SECT'!$G$6:$DC$253,18,FALSE) -> 3,063 | G11: =VLOOKUP($C11,'RECAP SECT'!$G$6:$DC$253,19,FALSE) -> 45.67 | H11: =VLOOKUP($C11,'RECAP SECT'!$G$6:$DC$253,20,FALSE) -> 32% | I11: =VLOOKUP($C11,'RECAP SECT'!$G$6:$DC$253,21,FALSE) -> 11 | J11: =VLOOKUP($C11,'RECAP SECT'!$G$6:$DC$253,22,FALSE) -> 2,086 | K11: =VLOOKUP($C11,'RECAP SECT'!$G$6:$DC$253,23,FALSE) -> 31.10 | L11: =VLOOKUP($C11,'RECAP SECT'!$G$6:$DC$253,24,FALSE) -> 23% | M11: =VLOOKUP($C11,'RECAP SECT'!$G$6:$DC$253,25,FALSE) -> 10 | N11: =VLOOKUP($C11,'RECAP SECT'!$G$6:$DC$253,26,FALSE) -> 395 | O11: =VLOOKUP($C11,'RECAP SECT'!$G$6:$DC$253,27,FALSE) -> 5.89 | P11: =VLOOKUP($C11,'RECAP SECT'!$G$6:$DC$253,28,FALSE) -> 58% | Q11: =VLOOKUP($C11,'RECAP SECT'!$G$6:$DC$253,29,FALSE) -> 10 | R11: =VLOOKUP($C11,'RECAP SECT'!$G$6:$DC$253,30,FALSE) -> -123.8 | S11: =VLOOKUP($C11,'RECAP SECT'!$G$6:$DC$253,31,FALSE) -> -1.85 | T11: =VLOOKUP($C11,'RECAP SECT'!$G$6:$DC$253,32,FALSE) -> 13% | U11: =VLOOKUP($C11,'RECAP SECT'!$G$6:$DC$253,33,FALSE) -> 5 | V11: =VLOOKUP($C11,'RECAP SECT'!$G$6:$DC$253,34,FALSE) -> 31% | W11: =VLOOKUP($C11,'RECAP SECT'!$G$6:$DC$253,35,FALSE) -> 25% | X11: =VLOOKUP($C11,'RECAP SECT'!$G$6:$DC$253,36,FALSE) -> 13
A12: 262 | B12: BAS-RHIN | C12: 5060 | D12: HAGUENAU | E12: =VLOOKUP($C12,'RECAP SECT'!$G$6:$DC$253,3,FALSE) -> 70.0 | F12: =VLOOKUP($C12,'RECAP SECT'!$G$6:$DC$253,18,FALSE) -> 3,874 | G12: =VLOOKUP($C12,'RECAP SECT'!$G$6:$DC$253,19,FALSE) -> 55.35 | H12: =VLOOKUP($C12,'RECAP SECT'!$G$6:$DC$253,20,FALSE) -> 18% | I12: =VLOOKUP($C12,'RECAP SECT'!$G$6:$DC$253,21,FALSE) -> 7 | J12: =VLOOKUP($C12,'RECAP SECT'!$G$6:$DC$253,22,FALSE) -> 1,879 | K12: =VLOOKUP($C12,'RECAP SECT'!$G$6:$DC$253,23,FALSE) -> 26.85 | L12: =VLOOKUP($C12,'RECAP SECT'!$G$6:$DC$253,24,FALSE) -> 33% | M12: =VLOOKUP($C12,'RECAP SECT'!$G$6:$DC$253,25,FALSE) -> 18 | N12: =VLOOKUP($C12,'RECAP SECT'!$G$6:$DC$253,26,FALSE) -> 298 | O12: =VLOOKUP($C12,'RECAP SECT'!$G$6:$DC$253,27,FALSE) -> 4.26 | P12: =VLOOKUP($C12,'RECAP SECT'!$G$6:$DC$253,28,FALSE) -> 69% | Q12: =VLOOKUP($C12,'RECAP SECT'!$G$6:$DC$253,29,FALSE) -> 14 | R12: =VLOOKUP($C12,'RECAP SECT'!$G$6:$DC$253,30,FALSE) -> -143.3 | S12: =VLOOKUP($C12,'RECAP SECT'!$G$6:$DC$253,31,FALSE) -> -2.05 | T12: =VLOOKUP($C12,'RECAP SECT'!$G$6:$DC$253,32,FALSE) -> 25% | U12: =VLOOKUP($C12,'RECAP SECT'!$G$6:$DC$253,33,FALSE) -> 12 | V12: =VLOOKUP($C12,'RECAP SECT'!$G$6:$DC$253,34,FALSE) -> 30% | W12: =VLOOKUP($C12,'RECAP SECT'!$G$6:$DC$253,35,FALSE) -> 24% | X12: =VLOOKUP($C12,'RECAP SECT'!$G$6:$DC$253,36,FALSE) -> 11
A13: 262 | B13: BAS-RHIN | C13: 5101 | D13: SELESTAT | E13: =VLOOKUP($C13,'RECAP SECT'!$G$6:$DC$253,3,FALSE) -> 59.9 | F13: =VLOOKUP($C13,'RECAP SECT'!$G$6:$DC$253,18,FALSE) -> 3,532 | G13: =VLOOKUP($C13,'RECAP SECT'!$G$6:$DC$253,19,FALSE) -> 58.98 | H13: =VLOOKUP($C13,'RECAP SECT'!$G$6:$DC$253,20,FALSE) -> 13% | I13: =VLOOKUP($C13,'RECAP SECT'!$G$6:$DC$253,21,FALSE) -> 4 | J13: =VLOOKUP($C13,'RECAP SECT'!$G$6:$DC$253,22,FALSE) -> 1,641 | K13: =VLOOKUP($C13,'RECAP SECT'!$G$6:$DC$253,23,FALSE) -> 27.40 | L13: =VLOOKUP($C13,'RECAP SECT'!$G$6:$DC$253,24,FALSE) -> 32% | M13: =VLOOKUP($C13,'RECAP SECT'!$G$6:$DC$253,25,FALSE) -> 16 | N13: =VLOOKUP($C13,'RECAP SECT'!$G$6:$DC$253,26,FALSE) -> 266 | O13: =VLOOKUP($C13,'RECAP SECT'!$G$6:$DC$253,27,FALSE) -> 4.44 | P13: =VLOOKUP($C13,'RECAP SECT'!$G$6:$DC$253,28,FALSE) -> 68% | Q13: =VLOOKUP($C13,'RECAP SECT'!$G$6:$DC$253,29,FALSE) -> 13 | R13: =VLOOKUP($C13,'RECAP SECT'!$G$6:$DC$253,30,FALSE) -> -126.9 | S13: =VLOOKUP($C13,'RECAP SECT'!$G$6:$DC$253,31,FALSE) -> -2.12 | T13: =VLOOKUP($C13,'RECAP SECT'!$G$6:$DC$253,32,FALSE) -> 29% | U13: =VLOOKUP($C13,'RECAP SECT'!$G$6:$DC$253,33,FALSE) -> 15 | V13: =VLOOKUP($C13,'RECAP SECT'!$G$6:$DC$253,34,FALSE) -> 27% | W13: =VLOOKUP($C13,'RECAP SECT'!$G$6:$DC$253,35,FALSE) -> 21% | X13: =VLOOKUP($C13,'RECAP SECT'!$G$6:$DC$253,36,FALSE) -> 7
A14: 262 | B14: BAS-RHIN | C14: 5006 | D14: STRASBOURG | E14: =VLOOKUP($C14,'RECAP SECT'!$G$6:$DC$253,3,FALSE) -> 75.2 | F14: =VLOOKUP($C14,'RECAP SECT'!$G$6:$DC$253,18,FALSE) -> 4,486 | G14: =VLOOKUP($C14,'RECAP SECT'!$G$6:$DC$253,19,FALSE) -> 59.64 | H14: =VLOOKUP($C14,'RECAP SECT'!$G$6:$DC$253,20,FALSE) -> 12% | I14: =VLOOKUP($C14,'RECAP SECT'!$G$6:$DC$253,21,FALSE) -> 3 | J14: =VLOOKUP($C14,'RECAP SECT'!$G$6:$DC$253,22,FALSE) -> 2,847 | K14: =VLOOKUP($C14,'RECAP SECT'!$G$6:$DC$253,23,FALSE) -> 37.85 | L14: =VLOOKUP($C14,'RECAP SECT'!$G$6:$DC$253,24,FALSE) -> 6% | M14: =VLOOKUP($C14,'RECAP SECT'!$G$6:$DC$253,25,FALSE) -> 2 | N14: =VLOOKUP($C14,'RECAP SECT'!$G$6:$DC$253,26,FALSE) -> 558 | O14: =VLOOKUP($C14,'RECAP SECT'!$G$6:$DC$253,27,FALSE) -> 7.42 | P14: =VLOOKUP($C14,'RECAP SECT'!$G$6:$DC$253,28,FALSE) -> 47% | Q14: =VLOOKUP($C14,'RECAP SECT'!$G$6:$DC$253,29,FALSE) -> 6 | R14: =VLOOKUP($C14,'RECAP SECT'!$G$6:$DC$253,30,FALSE) -> -197.3 | S14: =VLOOKUP($C14,'RECAP SECT'!$G$6:$DC$253,31,FALSE) -> -2.62 | T14: =VLOOKUP($C14,'RECAP SECT'!$G$6:$DC$253,32,FALSE) -> 60% | U14: =VLOOKUP($C14,'RECAP SECT'!$G$6:$DC$253,33,FALSE) -> 18 | V14: =VLOOKUP($C14,'RECAP SECT'!$G$6:$DC$253,34,FALSE) -> 23% | W14: =VLOOKUP($C14,'RECAP SECT'!$G$6:$DC$253,35,FALSE) -> 17% | X14: =VLOOKUP($C14,'RECAP SECT'!$G$6:$DC$253,36,FALSE) -> 5
A15: 264 | B15: HAUT-RHIN | C15: 5130 | D15: COLMAR | E15: =VLOOKUP($C15,'RECAP SECT'!$G$6:$DC$253,3,FALSE) -> 61.5 | F15: =VLOOKUP($C15,'RECAP SECT'!$G$6:$DC$253,18,FALSE) -> 2,570 | G15: =VLOOKUP($C15,'RECAP SECT'!$G$6:$DC$253,19,FALSE) -> 41.76 | H15: =VLOOKUP($C15,'RECAP SECT'!$G$6:$DC$253,20,FALSE) -> 38% | I15: =VLOOKUP($C15,'RECAP SECT'!$G$6:$DC$253,21,FALSE) -> 14 | J15: =VLOOKUP($C15,'RECAP SECT'!$G$6:$DC$253,22,FALSE) -> 1,758 | K15: =VLOOKUP($C15,'RECAP SECT'!$G$6:$DC$253,23,FALSE) -> 28.57 | L15: =VLOOKUP($C15,'RECAP SECT'!$G$6:$DC$253,24,FALSE) -> 29% | M15: =VLOOKUP($C15,'RECAP SECT'!$G$6:$DC$253,25,FALSE) -> 15 | N15: =VLOOKUP($C15,'RECAP SECT'!$G$6:$DC$253,26,FALSE) -> 192 | O15: =VLOOKUP($C15,'RECAP SECT'!$G$6:$DC$253,27,FALSE) -> 3.12 | P15: =VLOOKUP($C15,'RECAP SECT'!$G$6:$DC$253,28,FALSE) -> 78% | Q15: =VLOOKUP($C15,'RECAP SECT'!$G$6:$DC$253,29,FALSE) -> 18 | R15: =VLOOKUP($C15,'RECAP SECT'!$G$6:$DC$253,30,FALSE) -> -120.0 | S15: =VLOOKUP($C15,'RECAP SECT'!$G$6:$DC$253,31,FALSE) -> -1.95 | T15: =VLOOKUP($C15,'RECAP SECT'!$G$6:$DC$253,32,FALSE) -> 19% | U15: =VLOOKUP($C15,'RECAP SECT'!$G$6:$DC$253,33,FALSE) -> 8 | V15: =VLOOKUP($C15,'RECAP SECT'!$G$6:$DC$253,34,FALSE) -> 39% | W15: =VLOOKUP($C15,'RECAP SECT'!$G$6:$DC$253,35,FALSE) -> 33% | X15: =VLOOKUP($C15,'RECAP SECT'!$G$6:$DC$253,36,FALSE) -> 16
A16: 264 | B16: HAUT-RHIN | C16: 5169 | D16: MULHOUSE | E16: =VLOOKUP($C16,'RECAP SECT'!$G$6:$DC$253,3,FALSE) -> 61.1 | F16: =VLOOKUP($C16,'RECAP SECT'!$G$6:$DC$253,18,FALSE) -> 1,036 | G16: =VLOOKUP($C16,'RECAP SECT'!$G$6:$DC$253,19,FALSE) -> 16.94 | H16: =VLOOKUP($C16,'RECAP SECT'!$G$6:$DC$253,20,FALSE) -> 75% | I16: =VLOOKUP($C16,'RECAP SECT'!$G$6:$DC$253,21,FALSE) -> 18 | J16: =VLOOKUP($C16,'RECAP SECT'!$G$6:$DC$253,22,FALSE) -> 1,655 | K16: =VLOOKUP($C16,'RECAP SECT'!$G$6:$DC$253,23,FALSE) -> 27.07 | L16: =VLOOKUP($C16,'RECAP SECT'!$G$6:$DC$253,24,FALSE) -> 33% | M16: =VLOOKUP($C16,'RECAP SECT'!$G$6:$DC$253,25,FALSE) -> 17 | N16: =VLOOKUP($C16,'RECAP SECT'!$G$6:$DC$253,26,FALSE) -> 194 | O16: =VLOOKUP($C16,'RECAP SECT'!$G$6:$DC$253,27,FALSE) -> 3.17 | P16: =VLOOKUP($C16,'RECAP SECT'!$G$6:$DC$253,28,FALSE) -> 77% | Q16: =VLOOKUP($C16,'RECAP SECT'!$G$6:$DC$253,29,FALSE) -> 17 | R16: =VLOOKUP($C16,'RECAP SECT'!$G$6:$DC$253,30,FALSE) -> -126.5 | S16: =VLOOKUP($C16,'RECAP SECT'!$G$6:$DC$253,31,FALSE) -> -2.07 | T16: =VLOOKUP($C16,'RECAP SECT'!$G$6:$DC$253,32,FALSE) -> 26% | U16: =VLOOKUP($C16,'RECAP SECT'!$G$6:$DC$253,33,FALSE) -> 14 | V16: =VLOOKUP($C16,'RECAP SECT'!$G$6:$DC$253,34,FALSE) -> 60% | W16: =VLOOKUP($C16,'RECAP SECT'!$G$6:$DC$253,35,FALSE) -> 54% | X16: =VLOOKUP($C16,'RECAP SECT'!$G$6:$DC$253,36,FALSE) -> 18
A17: 30 | B17: MARNE-ARDENNES | C17: 6 | D17: CHALONS EN CHAMPAGNE | E17: =VLOOKUP($C17,'RECAP SECT'!$G$6:$DC$253,3,FALSE) -> 44.7 | F17: =VLOOKUP($C17,'RECAP SECT'!$G$6:$DC$253,18,FALSE) -> 1,991 | G17: =VLOOKUP($C17,'RECAP SECT'!$G$6:$DC$253,19,FALSE) -> 44.57 | H17: =VLOOKUP($C17,'RECAP SECT'!$G$6:$DC$253,20,FALSE) -> 34% | I17: =VLOOKUP($C17,'RECAP SECT'!$G$6:$DC$253,21,FALSE) -> 12 | J17: =VLOOKUP($C17,'RECAP SECT'!$G$6:$DC$253,22,FALSE) -> 1,419 | K17: =VLOOKUP($C17,'RECAP SECT'!$G$6:$DC$253,23,FALSE) -> 31.77 | L17: =VLOOKUP($C17,'RECAP SECT'!$G$6:$DC$253,24,FALSE) -> 21% | M17: =VLOOKUP($C17,'RECAP SECT'!$G$6:$DC$253,25,FALSE) -> 8 | N17: =VLOOKUP($C17,'RECAP SECT'!$G$6:$DC$253,26,FALSE) -> 447 | O17: =VLOOKUP($C17,'RECAP SECT'!$G$6:$DC$253,27,FALSE) -> 10.01 | P17: =VLOOKUP($C17,'RECAP SECT'!$G$6:$DC$253,28,FALSE) -> 28% | Q17: =VLOOKUP($C17,'RECAP SECT'!$G$6:$DC$253,29,FALSE) -> 4 | R17: =VLOOKUP($C17,'RECAP SECT'!$G$6:$DC$253,30,FALSE) -> -83.2 | S17: =VLOOKUP($C17,'RECAP SECT'!$G$6:$DC$253,31,FALSE) -> -1.86 | T17: =VLOOKUP($C17,'RECAP SECT'!$G$6:$DC$253,32,FALSE) -> 14% | U17: =VLOOKUP($C17,'RECAP SECT'!$G$6:$DC$253,33,FALSE) -> 6 | V17: =VLOOKUP($C17,'RECAP SECT'!$G$6:$DC$253,34,FALSE) -> 27% | W17: =VLOOKUP($C17,'RECAP SECT'!$G$6:$DC$253,35,FALSE) -> 22% | X17: =VLOOKUP($C17,'RECAP SECT'!$G$6:$DC$253,36,FALSE) -> 8
A18: 30 | B18: MARNE-ARDENNES | C18: 2 | D18: CHARLEVILLE MEZIERES | E18: =VLOOKUP($C18,'RECAP SECT'!$G$6:$DC$253,3,FALSE) -> 56.6 | F18: =VLOOKUP($C18,'RECAP SECT'!$G$6:$DC$253,18,FALSE) -> 2,190 | G18: =VLOOKUP($C18,'RECAP SECT'!$G$6:$DC$253,19,FALSE) -> 38.68 | H18: =VLOOKUP($C18,'RECAP SECT'!$G$6:$DC$253,20,FALSE) -> 43% | I18: =VLOOKUP($C18,'RECAP SECT'!$G$6:$DC$253,21,FALSE) -> 16 | J18: =VLOOKUP($C18,'RECAP SECT'!$G$6:$DC$253,22,FALSE) -> 2,059 | K18: =VLOOKUP($C18,'RECAP SECT'!$G$6:$DC$253,23,FALSE) -> 36.38 | L18: =VLOOKUP($C18,'RECAP SECT'!$G$6:$DC$253,24,FALSE) -> 10% | M18: =VLOOKUP($C18,'RECAP SECT'!$G$6:$DC$253,25,FALSE) -> 4 | N18: =VLOOKUP($C18,'RECAP SECT'!$G$6:$DC$253,26,FALSE) -> 571 | O18: =VLOOKUP($C18,'RECAP SECT'!$G$6:$DC$253,27,FALSE) -> 10.09 | P18: =VLOOKUP($C18,'RECAP SECT'!$G$6:$DC$253,28,FALSE) -> 27% | Q18: =VLOOKUP($C18,'RECAP SECT'!$G$6:$DC$253,29,FALSE) -> 3 | R18: =VLOOKUP($C18,'RECAP SECT'!$G$6:$DC$253,30,FALSE) -> -95.3 | S18: =VLOOKUP($C18,'RECAP SECT'!$G$6:$DC$253,31,FALSE) -> -1.68 | T18: =VLOOKUP($C18,'RECAP SECT'!$G$6:$DC$253,32,FALSE) -> 3% | U18: =VLOOKUP($C18,'RECAP SECT'!$G$6:$DC$253,33,FALSE) -> 2 | V18: =VLOOKUP($C18,'RECAP SECT'!$G$6:$DC$253,34,FALSE) -> 28% | W18: =VLOOKUP($C18,'RECAP SECT'!$G$6:$DC$253,35,FALSE) -> 22% | X18: =VLOOKUP($C18,'RECAP SECT'!$G$6:$DC$253,36,FALSE) -> 9
A19: 30 | B19: MARNE-ARDENNES | C19: 11 | D19: REIMS | E19: =VLOOKUP($C19,'RECAP SECT'!$G$6:$DC$253,3,FALSE) -> 79.7 | F19: =VLOOKUP($C19,'RECAP SECT'!$G$6:$DC$253,18,FALSE) -> 3,922 | G19: =VLOOKUP($C19,'RECAP SECT'!$G$6:$DC$253,19,FALSE) -> 49.20 | H19: =VLOOKUP($C19,'RECAP SECT'!$G$6:$DC$253,20,FALSE) -> 27% | I19: =VLOOKUP($C19,'RECAP SECT'!$G$6:$DC$253,21,FALSE) -> 9 | J19: =VLOOKUP($C19,'RECAP SECT'!$G$6:$DC$253,22,FALSE) -> 2,917 | K19: =VLOOKUP($C19,'RECAP SECT'!$G$6:$DC$253,23,FALSE) -> 36.59 | L19: =VLOOKUP($C19,'RECAP SECT'!$G$6:$DC$253,24,FALSE) -> 9% | M19: =VLOOKUP($C19,'RECAP SECT'!$G$6:$DC$253,25,FALSE) -> 3 | N19: =VLOOKUP($C19,'RECAP SECT'!$G$6:$DC$253,26,FALSE) -> 954 | O19: =VLOOKUP($C19,'RECAP SECT'!$G$6:$DC$253,27,FALSE) -> 11.97 | P19: =VLOOKUP($C19,'RECAP SECT'!$G$6:$DC$253,28,FALSE) -> 14% | Q19: =VLOOKUP($C19,'RECAP SECT'!$G$6:$DC$253,29,FALSE) -> 2 | R19: =VLOOKUP($C19,'RECAP SECT'!$G$6:$DC$253,30,FALSE) -> -185.2 | S19: =VLOOKUP($C19,'RECAP SECT'!$G$6:$DC$253,31,FALSE) -> -2.32 | T19: =VLOOKUP($C19,'RECAP SECT'!$G$6:$DC$253,32,FALSE) -> 42% | U19: =VLOOKUP($C19,'RECAP SECT'!$G$6:$DC$253,33,FALSE) -> 17 | V19: =VLOOKUP($C19,'RECAP SECT'!$G$6:$DC$253,34,FALSE) -> 24% | W19: =VLOOKUP($C19,'RECAP SECT'!$G$6:$DC$253,35,FALSE) -> 18% | X19: =VLOOKUP($C19,'RECAP SECT'!$G$6:$DC$253,36,FALSE) -> 6
A20: 110 | B20: MEURTHE ET MOSELLE MEUSE | C20: 26 | D20: NANCY | E20: =VLOOKUP($C20,'RECAP SECT'!$G$6:$DC$253,3,FALSE) -> 66.2 | F20: =VLOOKUP($C20,'RECAP SECT'!$G$6:$DC$253,18,FALSE) -> 4,434 | G20: =VLOOKUP($C20,'RECAP SECT'!$G$6:$DC$253,19,FALSE) -> 66.93 | H20: =VLOOKUP($C20,'RECAP SECT'!$G$6:$DC$253,20,FALSE) -> 1% | I20: =VLOOKUP($C20,'RECAP SECT'!$G$6:$DC$253,21,FALSE) -> 2 | J20: =VLOOKUP($C20,'RECAP SECT'!$G$6:$DC$253,22,FALSE) -> 2,666 | K20: =VLOOKUP($C20,'RECAP SECT'!$G$6:$DC$253,23,FALSE) -> 40.25 | L20: =VLOOKUP($C20,'RECAP SECT'!$G$6:$DC$253,24,FALSE) -> 0% | M20: =VLOOKUP($C20,'RECAP SECT'!$G$6:$DC$253,25,FALSE) -> 1 | N20: =VLOOKUP($C20,'RECAP SECT'!$G$6:$DC$253,26,FALSE) -> 919 | O20: =VLOOKUP($C20,'RECAP SECT'!$G$6:$DC$253,27,FALSE) -> 13.87 | P20: =VLOOKUP($C20,'RECAP SECT'!$G$6:$DC$253,28,FALSE) -> 0% | Q20: =VLOOKUP($C20,'RECAP SECT'!$G$6:$DC$253,29,FALSE) -> 1 | R20: =VLOOKUP($C20,'RECAP SECT'!$G$6:$DC$253,30,FALSE) -> -147.7 | S20: =VLOOKUP($C20,'RECAP SECT'!$G$6:$DC$253,31,FALSE) -> -2.23 | T20: =VLOOKUP($C20,'RECAP SECT'!$G$6:$DC$253,32,FALSE) -> 36% | U20: =VLOOKUP($C20,'RECAP SECT'!$G$6:$DC$253,33,FALSE) -> 16 | V20: =VLOOKUP($C20,'RECAP SECT'!$G$6:$DC$253,34,FALSE) -> 6% | W20: =VLOOKUP($C20,'RECAP SECT'!$G$6:$DC$253,35,FALSE) -> 0% | X20: =VLOOKUP($C20,'RECAP SECT'!$G$6:$DC$253,36,FALSE) -> 1
A21: 110 | B21: MEURTHE ET MOSELLE MEUSE | C21: 27 | D21: PONT A MOUSSON | E21: =VLOOKUP($C21,'RECAP SECT'!$G$6:$DC$253,3,FALSE) -> 76.5 | F21: =VLOOKUP($C21,'RECAP SECT'!$G$6:$DC$253,18,FALSE) -> 5,172 | G21: =VLOOKUP($C21,'RECAP SECT'!$G$6:$DC$253,19,FALSE) -> 67.61 | H21: =VLOOKUP($C21,'RECAP SECT'!$G$6:$DC$253,20,FALSE) -> 0% | I21: =VLOOKUP($C21,'RECAP SECT'!$G$6:$DC$253,21,FALSE) -> 1 | J21: =VLOOKUP($C21,'RECAP SECT'!$G$6:$DC$253,22,FALSE) -> 2,682 | K21: =VLOOKUP($C21,'RECAP SECT'!$G$6:$DC$253,23,FALSE) -> 35.06 | L21: =VLOOKUP($C21,'RECAP SECT'!$G$6:$DC$253,24,FALSE) -> 13% | M21: =VLOOKUP($C21,'RECAP SECT'!$G$6:$DC$253,25,FALSE) -> 5 | N21: =VLOOKUP($C21,'RECAP SECT'!$G$6:$DC$253,26,FALSE) -> 765 | O21: =VLOOKUP($C21,'RECAP SECT'!$G$6:$DC$253,27,FALSE) -> 10.00 | P21: =VLOOKUP($C21,'RECAP SECT'!$G$6:$DC$253,28,FALSE) -> 28% | Q21: =VLOOKUP($C21,'RECAP SECT'!$G$6:$DC$253,29,FALSE) -> 5 | R21: =VLOOKUP($C21,'RECAP SECT'!$G$6:$DC$253,30,FALSE) -> -155.0 | S21: =VLOOKUP($C21,'RECAP SECT'!$G$6:$DC$253,31,FALSE) -> -2.03 | T21: =VLOOKUP($C21,'RECAP SECT'!$G$6:$DC$253,32,FALSE) -> 24% | U21: =VLOOKUP($C21,'RECAP SECT'!$G$6:$DC$253,33,FALSE) -> 10 | V21: =VLOOKUP($C21,'RECAP SECT'!$G$6:$DC$253,34,FALSE) -> 10% | W21: =VLOOKUP($C21,'RECAP SECT'!$G$6:$DC$253,35,FALSE) -> 4% | X21: =VLOOKUP($C21,'RECAP SECT'!$G$6:$DC$253,36,FALSE) -> 2
A22: 110 | B22: MEURTHE ET MOSELLE MEUSE | C22: 31 | D22: VERDUN | E22: =VLOOKUP($C22,'RECAP SECT'!$G$6:$DC$253,3,FALSE) -> 55.1 | F22: =VLOOKUP($C22,'RECAP SECT'!$G$6:$DC$253,18,FALSE) -> 3,162 | G22: =VLOOKUP($C22,'RECAP SECT'!$G$6:$DC$253,19,FALSE) -> 57.37 | H22: =VLOOKUP($C22,'RECAP SECT'!$G$6:$DC$253,20,FALSE) -> 15% | I22: =VLOOKUP($C22,'RECAP SECT'!$G$6:$DC$253,21,FALSE) -> 6 | J22: =VLOOKUP($C22,'RECAP SECT'!$G$6:$DC$253,22,FALSE) -> 1,812 | K22: =VLOOKUP($C22,'RECAP SECT'!$G$6:$DC$253,23,FALSE) -> 32.87 | L22: =VLOOKUP($C22,'RECAP SECT'!$G$6:$DC$253,24,FALSE) -> 18% | M22: =VLOOKUP($C22,'RECAP SECT'!$G$6:$DC$253,25,FALSE) -> 7 | N22: =VLOOKUP($C22,'RECAP SECT'!$G$6:$DC$253,26,FALSE) -> 354 | O22: =VLOOKUP($C22,'RECAP SECT'!$G$6:$DC$253,27,FALSE) -> 6.42 | P22: =VLOOKUP($C22,'RECAP SECT'!$G$6:$DC$253,28,FALSE) -> 54% | Q22: =VLOOKUP($C22,'RECAP SECT'!$G$6:$DC$253,29,FALSE) -> 7 | R22: =VLOOKUP($C22,'RECAP SECT'!$G$6:$DC$253,30,FALSE) -> -94.4 | S22: =VLOOKUP($C22,'RECAP SECT'!$G$6:$DC$253,31,FALSE) -> -1.71 | T22: =VLOOKUP($C22,'RECAP SECT'!$G$6:$DC$253,32,FALSE) -> 4% | U22: =VLOOKUP($C22,'RECAP SECT'!$G$6:$DC$253,33,FALSE) -> 3 | V22: =VLOOKUP($C22,'RECAP SECT'!$G$6:$DC$253,34,FALSE) -> 20% | W22: =VLOOKUP($C22,'RECAP SECT'!$G$6:$DC$253,35,FALSE) -> 14% | X22: =VLOOKUP($C22,'RECAP SECT'!$G$6:$DC$253,36,FALSE) -> 3
A23: 160 | B23: MOSELLE | C23: 45 | D23: METZ | E23: =VLOOKUP($C23,'RECAP SECT'!$G$6:$DC$253,3,FALSE) -> 88.4 | F23: =VLOOKUP($C23,'RECAP SECT'!$G$6:$DC$253,18,FALSE) -> 3,615 | G23: =VLOOKUP($C23,'RECAP SECT'!$G$6:$DC$253,19,FALSE) -> 40.87 | H23: =VLOOKUP($C23,'RECAP SECT'!$G$6:$DC$253,20,FALSE) -> 40% | I23: =VLOOKUP($C23,'RECAP SECT'!$G$6:$DC$253,21,FALSE) -> 15 | J23: =VLOOKUP($C23,'RECAP SECT'!$G$6:$DC$253,22,FALSE) -> 2,600 | K23: =VLOOKUP($C23,'RECAP SECT'!$G$6:$DC$253,23,FALSE) -> 29.40 | L23: =VLOOKUP($C23,'RECAP SECT'!$G$6:$DC$253,24,FALSE) -> 27% | M23: =VLOOKUP($C23,'RECAP SECT'!$G$6:$DC$253,25,FALSE) -> 13 | N23: =VLOOKUP($C23,'RECAP SECT'!$G$6:$DC$253,26,FALSE) -> 443 | O23: =VLOOKUP($C23,'RECAP SECT'!$G$6:$DC$253,27,FALSE) -> 5.01 | P23: =VLOOKUP($C23,'RECAP SECT'!$G$6:$DC$253,28,FALSE) -> 64% | Q23: =VLOOKUP($C23,'RECAP SECT'!$G$6:$DC$253,29,FALSE) -> 12 | R23: =VLOOKUP($C23,'RECAP SECT'!$G$6:$DC$253,30,FALSE) -> -178.5 | S23: =VLOOKUP($C23,'RECAP SECT'!$G$6:$DC$253,31,FALSE) -> -2.02 | T23: =VLOOKUP($C23,'RECAP SECT'!$G$6:$DC$253,32,FALSE) -> 23% | U23: =VLOOKUP($C23,'RECAP SECT'!$G$6:$DC$253,33,FALSE) -> 9 | V23: =VLOOKUP($C23,'RECAP SECT'!$G$6:$DC$253,34,FALSE) -> 38% | W23: =VLOOKUP($C23,'RECAP SECT'!$G$6:$DC$253,35,FALSE) -> 32% | X23: =VLOOKUP($C23,'RECAP SECT'!$G$6:$DC$253,36,FALSE) -> 15
A24: 160 | B24: MOSELLE | C24: 42 | D24: MOSELLE EST | E24: =VLOOKUP($C24,'RECAP SECT'!$G$6:$DC$253,3,FALSE) -> 70.2 | F24: =VLOOKUP($C24,'RECAP SECT'!$G$6:$DC$253,18,FALSE) -> 3,543 | G24: =VLOOKUP($C24,'RECAP SECT'!$G$6:$DC$253,19,FALSE) -> 50.46 | H24: =VLOOKUP($C24,'RECAP SECT'!$G$6:$DC$253,20,FALSE) -> 25% | I24: =VLOOKUP($C24,'RECAP SECT'!$G$6:$DC$253,21,FALSE) -> 8 | J24: =VLOOKUP($C24,'RECAP SECT'!$G$6:$DC$253,22,FALSE) -> 2,118 | K24: =VLOOKUP($C24,'RECAP SECT'!$G$6:$DC$253,23,FALSE) -> 30.16 | L24: =VLOOKUP($C24,'RECAP SECT'!$G$6:$DC$253,24,FALSE) -> 25% | M24: =VLOOKUP($C24,'RECAP SECT'!$G$6:$DC$253,25,FALSE) -> 12 | N24: =VLOOKUP($C24,'RECAP SECT'!$G$6:$DC$253,26,FALSE) -> 360 | O24: =VLOOKUP($C24,'RECAP SECT'!$G$6:$DC$253,27,FALSE) -> 5.13 | P24: =VLOOKUP($C24,'RECAP SECT'!$G$6:$DC$253,28,FALSE) -> 63% | Q24: =VLOOKUP($C24,'RECAP SECT'!$G$6:$DC$253,29,FALSE) -> 11 | R24: =VLOOKUP($C24,'RECAP SECT'!$G$6:$DC$253,30,FALSE) -> -121.5 | S24: =VLOOKUP($C24,'RECAP SECT'!$G$6:$DC$253,31,FALSE) -> -1.73 | T24: =VLOOKUP($C24,'RECAP SECT'!$G$6:$DC$253,32,FALSE) -> 6% | U24: =VLOOKUP($C24,'RECAP SECT'!$G$6:$DC$253,33,FALSE) -> 4 | V24: =VLOOKUP($C24,'RECAP SECT'!$G$6:$DC$253,34,FALSE) -> 28% | W24: =VLOOKUP($C24,'RECAP SECT'!$G$6:$DC$253,35,FALSE) -> 22% | X24: =VLOOKUP($C24,'RECAP SECT'!$G$6:$DC$253,36,FALSE) -> 10
A25: 160 | B25: MOSELLE | C25: 44 | D25: MOSELLE NORD | E25: =VLOOKUP($C25,'RECAP SECT'!$G$6:$DC$253,3,FALSE) -> 65.8 | F25: =VLOOKUP($C25,'RECAP SECT'!$G$6:$DC$253,18,FALSE) -> 3,868 | G25: =VLOOKUP($C25,'RECAP SECT'!$G$6:$DC$253,19,FALSE) -> 58.77 | H25: =VLOOKUP($C25,'RECAP SECT'!$G$6:$DC$253,20,FALSE) -> 13% | I25: =VLOOKUP($C25,'RECAP SECT'!$G$6:$DC$253,21,FALSE) -> 5 | J25: =VLOOKUP($C25,'RECAP SECT'!$G$6:$DC$253,22,FALSE) -> 2,076 | K25: =VLOOKUP($C25,'RECAP SECT'!$G$6:$DC$253,23,FALSE) -> 31.54 | L25: =VLOOKUP($C25,'RECAP SECT'!$G$6:$DC$253,24,FALSE) -> 22% | M25: =VLOOKUP($C25,'RECAP SECT'!$G$6:$DC$253,25,FALSE) -> 9 | N25: =VLOOKUP($C25,'RECAP SECT'!$G$6:$DC$253,26,FALSE) -> 257 | O25: =VLOOKUP($C25,'RECAP SECT'!$G$6:$DC$253,27,FALSE) -> 3.90 | P25: =VLOOKUP($C25,'RECAP SECT'!$G$6:$DC$253,28,FALSE) -> 72% | Q25: =VLOOKUP($C25,'RECAP SECT'!$G$6:$DC$253,29,FALSE) -> 16 | R25: =VLOOKUP($C25,'RECAP SECT'!$G$6:$DC$253,30,FALSE) -> -107.9 | S25: =VLOOKUP($C25,'RECAP SECT'!$G$6:$DC$253,31,FALSE) -> -1.64 | T25: =VLOOKUP($C25,'RECAP SECT'!$G$6:$DC$253,32,FALSE) -> 0% | U25: =VLOOKUP($C25,'RECAP SECT'!$G$6:$DC$253,33,FALSE) -> 1 | V25: =VLOOKUP($C25,'RECAP SECT'!$G$6:$DC$253,34,FALSE) -> 22% | W25: =VLOOKUP($C25,'RECAP SECT'!$G$6:$DC$253,35,FALSE) -> 16% | X25: =VLOOKUP($C25,'RECAP SECT'!$G$6:$DC$253,36,FALSE) -> 4
A26: 80 | B26: VOSGES | C26: 57 | D26: EPINAL | E26: =VLOOKUP($C26,'RECAP SECT'!$G$6:$DC$253,3,FALSE) -> 61.1 | F26: =VLOOKUP($C26,'RECAP SECT'!$G$6:$DC$253,18,FALSE) -> 2,564 | G26: =VLOOKUP($C26,'RECAP SECT'!$G$6:$DC$253,19,FALSE) -> 41.97 | H26: =VLOOKUP($C26,'RECAP SECT'!$G$6:$DC$253,20,FALSE) -> 38% | I26: =VLOOKUP($C26,'RECAP SECT'!$G$6:$DC$253,21,FALSE) -> 13 | J26: =VLOOKUP($C26,'RECAP SECT'!$G$6:$DC$253,22,FALSE) -> 1,868 | K26: =VLOOKUP($C26,'RECAP SECT'!$G$6:$DC$253,23,FALSE) -> 30.58 | L26: =VLOOKUP($C26,'RECAP SECT'!$G$6:$DC$253,24,FALSE) -> 24% | M26: =VLOOKUP($C26,'RECAP SECT'!$G$6:$DC$253,25,FALSE) -> 11 | N26: =VLOOKUP($C26,'RECAP SECT'!$G$6:$DC$253,26,FALSE) -> 373 | O26: =VLOOKUP($C26,'RECAP SECT'!$G$6:$DC$253,27,FALSE) -> 6.11 | P26: =VLOOKUP($C26,'RECAP SECT'!$G$6:$DC$253,28,FALSE) -> 56% | Q26: =VLOOKUP($C26,'RECAP SECT'!$G$6:$DC$253,29,FALSE) -> 8 | R26: =VLOOKUP($C26,'RECAP SECT'!$G$6:$DC$253,30,FALSE) -> -126.2 | S26: =VLOOKUP($C26,'RECAP SECT'!$G$6:$DC$253,31,FALSE) -> -2.07 | T26: =VLOOKUP($C26,'RECAP SECT'!$G$6:$DC$253,32,FALSE) -> 26% | U26: =VLOOKUP($C26,'RECAP SECT'!$G$6:$DC$253,33,FALSE) -> 13 | V26: =VLOOKUP($C26,'RECAP SECT'!$G$6:$DC$253,34,FALSE) -> 36% | W26: =VLOOKUP($C26,'RECAP SECT'!$G$6:$DC$253,35,FALSE) -> 30% | X26: =VLOOKUP($C26,'RECAP SECT'!$G$6:$DC$253,36,FALSE) -> 14
A27: 80 | B27: VOSGES | C27: 55 | D27: SAINT DIE | E27: =VLOOKUP($C27,'RECAP SECT'!$G$6:$DC$253,3,FALSE) -> 47.1 | F27: =VLOOKUP($C27,'RECAP SECT'!$G$6:$DC$253,18,FALSE) -> 1,817 | G27: =VLOOKUP($C27,'RECAP SECT'!$G$6:$DC$253,19,FALSE) -> 38.59 | H27: =VLOOKUP($C27,'RECAP SECT'!$G$6:$DC$253,20,FALSE) -> 43% | I27: =VLOOKUP($C27,'RECAP SECT'!$G$6:$DC$253,21,FALSE) -> 17 | J27: =VLOOKUP($C27,'RECAP SECT'!$G$6:$DC$253,22,FALSE) -> 1,346 | K27: =VLOOKUP($C27,'RECAP SECT'!$G$6:$DC$253,23,FALSE) -> 28.59 | L27: =VLOOKUP($C27,'RECAP SECT'!$G$6:$DC$253,24,FALSE) -> 29% | M27: =VLOOKUP($C27,'RECAP SECT'!$G$6:$DC$253,25,FALSE) -> 14 | N27: =VLOOKUP($C27,'RECAP SECT'!$G$6:$DC$253,26,FALSE) -> 196 | O27: =VLOOKUP($C27,'RECAP SECT'!$G$6:$DC$253,27,FALSE) -> 4.16 | P27: =VLOOKUP($C27,'RECAP SECT'!$G$6:$DC$253,28,FALSE) -> 70% | Q27: =VLOOKUP($C27,'RECAP SECT'!$G$6:$DC$253,29,FALSE) -> 15 | R27: =VLOOKUP($C27,'RECAP SECT'!$G$6:$DC$253,30,FALSE) -> -91.4 | S27: =VLOOKUP($C27,'RECAP SECT'!$G$6:$DC$253,31,FALSE) -> -1.94 | T27: =VLOOKUP($C27,'RECAP SECT'!$G$6:$DC$253,32,FALSE) -> 18% | U27: =VLOOKUP($C27,'RECAP SECT'!$G$6:$DC$253,33,FALSE) -> 7 | V27: =VLOOKUP($C27,'RECAP SECT'!$G$6:$DC$253,34,FALSE) -> 41% | W27: =VLOOKUP($C27,'RECAP SECT'!$G$6:$DC$253,35,FALSE) -> 35% | X27: =VLOOKUP($C27,'RECAP SECT'!$G$6:$DC$253,36,FALSE) -> 17
A28: Total CEGEE Directions Régionales | E28: =SUM(E10:E27) -> 1140

Sheet SE_EPARGNE
B1: Accueil | F1: BAROMETRE BDD - TERRITOIRES
F2: EPARGNE
F3: =ACCUEIL!F7 -> 2021-08-01
F7: Excédent Epargne y/c DAV pondéré | J7: Ventes sur client non détenteur de l’univers | N7: Total Epargne
F8: =DATEMAJ!C14 -> au 01/08 | H8: coef | I8: ='RECAP DIRCOM'!AX4 -> 14% | J8: =DATEMAJ!C15 -> au 01/08 | L8: coef | M8: ='RECAP DIRCOM'!BB4 -> 6% | O8: coef | P8: ='RECAP DIRCOM'!BE4 -> 20%
A9: eds | B9: Direction | C9: eds | D9: Territoire | E9: ="ETP perf "&DATEMAJ!$C$28 -> ETP perf 30-juin | F9: Excédent | G9: Excédent / ETP | H9: % Ecart au 1er | I9: Rang | J9: VB | K9: VB / ETP | L9: % Ecart au 1er | M9: Rang | N9: Moyenne ecart au 1er | O9: % Ecart au 1er | P9: Rang CEGEE
A10: 50 | B10: AUBE HAUTE MARNE | C10: 21 | D10: CHAUMONT | E10: =VLOOKUP($C10,'RECAP SECT'!$G$6:$DC$253,3,FALSE) -> 33.9 | F10: =VLOOKUP($C10,'RECAP SECT'!$G$6:$DC$253,41,FALSE) -> 10,117 | G10: =VLOOKUP($C10,'RECAP SECT'!$G$6:$DC$253,42,FALSE) -> 298.36 | H10: =VLOOKUP($C10,'RECAP SECT'!$G$6:$DC$253,43,FALSE) -> 44% | I10: =VLOOKUP($C10,'RECAP SECT'!$G$6:$DC$253,44,FALSE) -> 15 | J10: =VLOOKUP($C10,'RECAP SECT'!$G$6:$DC$253,45,FALSE) -> 581 | K10: =VLOOKUP($C10,'RECAP SECT'!$G$6:$DC$253,46,FALSE) -> 17.13 | L10: =VLOOKUP($C10,'RECAP SECT'!$G$6:$DC$253,47,FALSE) -> 24% | M10: =VLOOKUP($C10,'RECAP SECT'!$G$6:$DC$253,48,FALSE) -> 10 | N10: =VLOOKUP($C10,'RECAP SECT'!$G$6:$DC$253,49,FALSE) -> 38% | O10: =VLOOKUP($C10,'RECAP SECT'!$G$6:$DC$253,50,FALSE) -> 34% | P10: =VLOOKUP($C10,'RECAP SECT'!$G$6:$DC$253,51,FALSE) -> 15
A11: 50 | B11: AUBE HAUTE MARNE | C11: 14 | D11: TROYES | E11: =VLOOKUP($C11,'RECAP SECT'!$G$6:$DC$253,3,FALSE) -> 67.1 | F11: =VLOOKUP($C11,'RECAP SECT'!$G$6:$DC$253,41,FALSE) -> 7,870 | G11: =VLOOKUP($C11,'RECAP SECT'!$G$6:$DC$253,42,FALSE) -> 117.35 | H11: =VLOOKUP($C11,'RECAP SECT'!$G$6:$DC$253,43,FALSE) -> 78% | I11: =VLOOKUP($C11,'RECAP SECT'!$G$6:$DC$253,44,FALSE) -> 18 | J11: =VLOOKUP($C11,'RECAP SECT'!$G$6:$DC$253,45,FALSE) -> 1,027 | K11: =VLOOKUP($C11,'RECAP SECT'!$G$6:$DC$253,46,FALSE) -> 15.31 | L11: =VLOOKUP($C11,'RECAP SECT'!$G$6:$DC$253,47,FALSE) -> 32% | M11: =VLOOKUP($C11,'RECAP SECT'!$G$6:$DC$253,48,FALSE) -> 15 | N11: =VLOOKUP($C11,'RECAP SECT'!$G$6:$DC$253,49,FALSE) -> 64% | O11: =VLOOKUP($C11,'RECAP SECT'!$G$6:$DC$253,50,FALSE) -> 61% | P11: =VLOOKUP($C11,'RECAP SECT'!$G$6:$DC$253,51,FALSE) -> 18
A12: 262 | B12: BAS-RHIN | C12: 5060 | D12: HAGUENAU | E12: =VLOOKUP($C12,'RECAP SECT'!$G$6:$DC$253,3,FALSE) -> 70.0 | F12: =VLOOKUP($C12,'RECAP SECT'!$G$6:$DC$253,41,FALSE) -> 28,592 | G12: =VLOOKUP($C12,'RECAP SECT'!$G$6:$DC$253,42,FALSE) -> 408.53 | H12: =VLOOKUP($C12,'RECAP SECT'!$G$6:$DC$253,43,FALSE) -> 23% | I12: =VLOOKUP($C12,'RECAP SECT'!$G$6:$DC$253,44,FALSE) -> 10 | J12: =VLOOKUP($C12,'RECAP SECT'!$G$6:$DC$253,45,FALSE) -> 1,212 | K12: =VLOOKUP($C12,'RECAP SECT'!$G$6:$DC$253,46,FALSE) -> 17.32 | L12: =VLOOKUP($C12,'RECAP SECT'!$G$6:$DC$253,47,FALSE) -> 23% | M12: =VLOOKUP($C12,'RECAP SECT'!$G$6:$DC$253,48,FALSE) -> 8 | N12: =VLOOKUP($C12,'RECAP SECT'!$G$6:$DC$253,49,FALSE) -> 23% | O12: =VLOOKUP($C12,'RECAP SECT'!$G$6:$DC$253,50,FALSE) -> 20% | P12: =VLOOKUP($C12,'RECAP SECT'!$G$6:$DC$253,51,FALSE) -> 8
A13: 262 | B13: BAS-RHIN | C13: 5101 | D13: SELESTAT | E13: =VLOOKUP($C13,'RECAP SECT'!$G$6:$DC$253,3,FALSE) -> 59.9 | F13: =VLOOKUP($C13,'RECAP SECT'!$G$6:$DC$253,41,FALSE) -> 27,296 | G13: =VLOOKUP($C13,'RECAP SECT'!$G$6:$DC$253,42,FALSE) -> 455.81 | H13: =VLOOKUP($C13,'RECAP SECT'!$G$6:$DC$253,43,FALSE) -> 14% | I13: =VLOOKUP($C13,'RECAP SECT'!$G$6:$DC$253,44,FALSE) -> 5 | J13: =VLOOKUP($C13,'RECAP SECT'!$G$6:$DC$253,45,FALSE) -> 1,223 | K13: =VLOOKUP($C13,'RECAP SECT'!$G$6:$DC$253,46,FALSE) -> 20.42 | L13: =VLOOKUP($C13,'RECAP SECT'!$G$6:$DC$253,47,FALSE) -> 10% | M13: =VLOOKUP($C13,'RECAP SECT'!$G$6:$DC$253,48,FALSE) -> 5 | N13: =VLOOKUP($C13,'RECAP SECT'!$G$6:$DC$253,49,FALSE) -> 13% | O13: =VLOOKUP($C13,'RECAP SECT'!$G$6:$DC$253,50,FALSE) -> 9% | P13: =VLOOKUP($C13,'RECAP SECT'!$G$6:$DC$253,51,FALSE) -> 5
A14: 262 | B14: BAS-RHIN | C14: 5006 | D14: STRASBOURG | E14: =VLOOKUP($C14,'RECAP SECT'!$G$6:$DC$253,3,FALSE) -> 75.2 | F14: =VLOOKUP($C14,'RECAP SECT'!$G$6:$DC$253,41,FALSE) -> 34,341 | G14: =VLOOKUP($C14,'RECAP SECT'!$G$6:$DC$253,42,FALSE) -> 456.51 | H14: =VLOOKUP($C14,'RECAP SECT'!$G$6:$DC$253,43,FALSE) -> 14% | I14: =VLOOKUP($C14,'RECAP SECT'!$G$6:$DC$253,44,FALSE) -> 4 | J14: =VLOOKUP($C14,'RECAP SECT'!$G$6:$DC$253,45,FALSE) -> 1,676 | K14: =VLOOKUP($C14,'RECAP SECT'!$G$6:$DC$253,46,FALSE) -> 22.28 | L14: =VLOOKUP($C14,'RECAP SECT'!$G$6:$DC$253,47,FALSE) -> 2% | M14: =VLOOKUP($C14,'RECAP SECT'!$G$6:$DC$253,48,FALSE) -> 2 | N14: =VLOOKUP($C14,'RECAP SECT'!$G$6:$DC$253,49,FALSE) -> 10% | O14: =VLOOKUP($C14,'RECAP SECT'!$G$6:$DC$253,50,FALSE) -> 7% | P14: =VLOOKUP($C14,'RECAP SECT'!$G$6:$DC$253,51,FALSE) -> 3
A15: 264 | B15: HAUT-RHIN | C15: 5130 | D15: COLMAR | E15: =VLOOKUP($C15,'RECAP SECT'!$G$6:$DC$253,3,FALSE) -> 61.5 | F15: =VLOOKUP($C15,'RECAP SECT'!$G$6:$DC$253,41,FALSE) -> 14,899 | G15: =VLOOKUP($C15,'RECAP SECT'!$G$6:$DC$253,42,FALSE) -> 242.10 | H15: =VLOOKUP($C15,'RECAP SECT'!$G$6:$DC$253,43,FALSE) -> 54% | I15: =VLOOKUP($C15,'RECAP SECT'!$G$6:$DC$253,44,FALSE) -> 16 | J15: =VLOOKUP($C15,'RECAP SECT'!$G$6:$DC$253,45,FALSE) -> 894 | K15: =VLOOKUP($C15,'RECAP SECT'!$G$6:$DC$253,46,FALSE) -> 14.53 | L15: =VLOOKUP($C15,'RECAP SECT'!$G$6:$DC$253,47,FALSE) -> 36% | M15: =VLOOKUP($C15,'RECAP SECT'!$G$6:$DC$253,48,FALSE) -> 16 | N15: =VLOOKUP($C15,'RECAP SECT'!$G$6:$DC$253,49,FALSE) -> 49% | O15: =VLOOKUP($C15,'RECAP SECT'!$G$6:$DC$253,50,FALSE) -> 45% | P15: =VLOOKUP($C15,'RECAP SECT'!$G$6:$DC$253,51,FALSE) -> 16
A16: 264 | B16: HAUT-RHIN | C16: 5169 | D16: MULHOUSE | E16: =VLOOKUP($C16,'RECAP SECT'!$G$6:$DC$253,3,FALSE) -> 61.1 | F16: =VLOOKUP($C16,'RECAP SECT'!$G$6:$DC$253,41,FALSE) -> 10,777 | G16: =VLOOKUP($C16,'RECAP SECT'!$G$6:$DC$253,42,FALSE) -> 176.29 | H16: =VLOOKUP($C16,'RECAP SECT'!$G$6:$DC$253,43,FALSE) -> 67% | I16: =VLOOKUP($C16,'RECAP SECT'!$G$6:$DC$253,44,FALSE) -> 17 | J16: =VLOOKUP($C16,'RECAP SECT'!$G$6:$DC$253,45,FALSE) -> 1,033 | K16: =VLOOKUP($C16,'RECAP SECT'!$G$6:$DC$253,46,FALSE) -> 16.90 | L16: =VLOOKUP($C16,'RECAP SECT'!$G$6:$DC$253,47,FALSE) -> 25% | M16: =VLOOKUP($C16,'RECAP SECT'!$G$6:$DC$253,48,FALSE) -> 12 | N16: =VLOOKUP($C16,'RECAP SECT'!$G$6:$DC$253,49,FALSE) -> 54% | O16: =VLOOKUP($C16,'RECAP SECT'!$G$6:$DC$253,50,FALSE) -> 51% | P16: =VLOOKUP($C16,'RECAP SECT'!$G$6:$DC$253,51,FALSE) -> 17
A17: 30 | B17: MARNE-ARDENNES | C17: 6 | D17: CHALONS EN CHAMPAGNE | E17: =VLOOKUP($C17,'RECAP SECT'!$G$6:$DC$253,3,FALSE) -> 44.7 | F17: =VLOOKUP($C17,'RECAP SECT'!$G$6:$DC$253,41,FALSE) -> 14,107 | G17: =VLOOKUP($C17,'RECAP SECT'!$G$6:$DC$253,42,FALSE) -> 315.80 | H17: =VLOOKUP($C17,'RECAP SECT'!$G$6:$DC$253,43,FALSE) -> 41% | I17: =VLOOKUP($C17,'RECAP SECT'!$G$6:$DC$253,44,FALSE) -> 14 | J17: =VLOOKUP($C17,'RECAP SECT'!$G$6:$DC$253,45,FALSE) -> 1,011 | K17: =VLOOKUP($C17,'RECAP SECT'!$G$6:$DC$253,46,FALSE) -> 22.63 | L17: =VLOOKUP($C17,'RECAP SECT'!$G$6:$DC$253,47,FALSE) -> 0% | M17: =VLOOKUP($C17,'RECAP SECT'!$G$6:$DC$253,48,FALSE) -> 1 | N17: =VLOOKUP($C17,'RECAP SECT'!$G$6:$DC$253,49,FALSE) -> 28% | O17: =VLOOKUP($C17,'RECAP SECT'!$G$6:$DC$253,50,FALSE) -> 25% | P17: =VLOOKUP($C17,'RECAP SECT'!$G$6:$DC$253,51,FALSE) -> 10
A18: 30 | B18: MARNE-ARDENNES | C18: 2 | D18: CHARLEVILLE MEZIERES | E18: =VLOOKUP($C18,'RECAP SECT'!$G$6:$DC$253,3,FALSE) -> 56.6 | F18: =VLOOKUP($C18,'RECAP SECT'!$G$6:$DC$253,41,FALSE) -> 26,093 | G18: =VLOOKUP($C18,'RECAP SECT'!$G$6:$DC$253,42,FALSE) -> 460.99 | H18: =VLOOKUP($C18,'RECAP SECT'!$G$6:$DC$253,43,FALSE) -> 13% | I18: =VLOOKUP($C18,'RECAP SECT'!$G$6:$DC$253,44,FALSE) -> 3 | J18: =VLOOKUP($C18,'RECAP SECT'!$G$6:$DC$253,45,FALSE) -> 1,222 | K18: =VLOOKUP($C18,'RECAP SECT'!$G$6:$DC$253,46,FALSE) -> 21.59 | L18: =VLOOKUP($C18,'RECAP SECT'!$G$6:$DC$253,47,FALSE) -> 5% | M18: =VLOOKUP($C18,'RECAP SECT'!$G$6:$DC$253,48,FALSE) -> 3 | N18: =VLOOKUP($C18,'RECAP SECT'!$G$6:$DC$253,49,FALSE) -> 11% | O18: =VLOOKUP($C18,'RECAP SECT'!$G$6:$DC$253,50,FALSE) -> 7% | P18: =VLOOKUP($C18,'RECAP SECT'!$G$6:$DC$253,51,FALSE) -> 4
A19: 30 | B19: MARNE-ARDENNES | C19: 11 | D19: REIMS | E19: =VLOOKUP($C19,'RECAP SECT'!$G$6:$DC$253,3,FALSE) -> 79.7 | F19: =VLOOKUP($C19,'RECAP SECT'!$G$6:$DC$253,41,FALSE) -> 28,102 | G19: =VLOOKUP($C19,'RECAP SECT'!$G$6:$DC$253,42,FALSE) -> 352.50 | H19: =VLOOKUP($C19,'RECAP SECT'!$G$6:$DC$253,43,FALSE) -> 34% | I19: =VLOOKUP($C19,'RECAP SECT'!$G$6:$DC$253,44,FALSE) -> 11 | J19: =VLOOKUP($C19,'RECAP SECT'!$G$6:$DC$253,45,FALSE) -> 1,363 | K19: =VLOOKUP($C19,'RECAP SECT'!$G$6:$DC$253,46,FALSE) -> 17.10 | L19: =VLOOKUP($C19,'RECAP SECT'!$G$6:$DC$253,47,FALSE) -> 24% | M19: =VLOOKUP($C19,'RECAP SECT'!$G$6:$DC$253,48,FALSE) -> 11 | N19: =VLOOKUP($C19,'RECAP SECT'!$G$6:$DC$253,49,FALSE) -> 31% | O19: =VLOOKUP($C19,'RECAP SECT'!$G$6:$DC$253,50,FALSE) -> 27% | P19: =VLOOKUP($C19,'RECAP SECT'!$G$6:$DC$253,51,FALSE) -> 13
A20: 110 | B20: MEURTHE ET MOSELLE MEUSE | C20: 26 | D20: NANCY | E20: =VLOOKUP($C20,'RECAP SECT'!$G$6:$DC$253,3,FALSE) -> 66.2 | F20: =VLOOKUP($C20,'RECAP SECT'!$G$6:$DC$253,41,FALSE) -> 34,106 | G20: =VLOOKUP($C20,'RECAP SECT'!$G$6:$DC$253,42,FALSE) -> 514.88 | H20: =VLOOKUP($C20,'RECAP SECT'!$G$6:$DC$253,43,FALSE) -> 3% | I20: =VLOOKUP($C20,'RECAP SECT'!$G$6:$DC$253,44,FALSE) -> 2 | J20: =VLOOKUP($C20,'RECAP SECT'!$G$6:$DC$253,45,FALSE) -> 1,429 | K20: =VLOOKUP($C20,'RECAP SECT'!$G$6:$DC$253,46,FALSE) -> 21.57 | L20: =VLOOKUP($C20,'RECAP SECT'!$G$6:$DC$253,47,FALSE) -> 5% | M20: =VLOOKUP($C20,'RECAP SECT'!$G$6:$DC$253,48,FALSE) -> 4 | N20: =VLOOKUP($C20,'RECAP SECT'!$G$6:$DC$253,49,FALSE) -> 4% | O20: =VLOOKUP($C20,'RECAP SECT'!$G$6:$DC$253,50,FALSE) -> 0% | P20: =VLOOKUP($C20,'RECAP SECT'!$G$6:$DC$253,51,FALSE) -> 1
A21: 110 | B21: MEURTHE ET MOSELLE MEUSE | C21: 27 | D21: PONT A MOUSSON | E21: =VLOOKUP($C21,'RECAP SECT'!$G$6:$DC$253,3,FALSE) -> 76.5 | F21: =VLOOKUP($C21,'RECAP SECT'!$G$6:$DC$253,41,FALSE) -> 40,678 | G21: =VLOOKUP($C21,'RECAP SECT'!$G$6:$DC$253,42,FALSE) -> 531.69 | H21: =VLOOKUP($C21,'RECAP SECT'!$G$6:$DC$253,43,FALSE) -> 0% | I21: =VLOOKUP($C21,'RECAP SECT'!$G$6:$DC$253,44,FALSE) -> 1 | J21: =VLOOKUP($C21,'RECAP SECT'!$G$6:$DC$253,45,FALSE) -> 1,242 | K21: =VLOOKUP($C21,'RECAP SECT'!$G$6:$DC$253,46,FALSE) -> 16.23 | L21: =VLOOKUP($C21,'RECAP SECT'!$G$6:$DC$253,47,FALSE) -> 28% | M21: =VLOOKUP($C21,'RECAP SECT'!$G$6:$DC$253,48,FALSE) -> 14 | N21: =VLOOKUP($C21,'RECAP SECT'!$G$6:$DC$253,49,FALSE) -> 8% | O21: =VLOOKUP($C21,'RECAP SECT'!$G$6:$DC$253,50,FALSE) -> 5% | P21: =VLOOKUP($C21,'RECAP SECT'!$G$6:$DC$253,51,FALSE) -> 2
A22: 110 | B22: MEURTHE ET MOSELLE MEUSE | C22: 31 | D22: VERDUN | E22: =VLOOKUP($C22,'RECAP SECT'!$G$6:$DC$253,3,FALSE) -> 55.1 | F22: =VLOOKUP($C22,'RECAP SECT'!$G$6:$DC$253,41,FALSE) -> 23,025 | G22: =VLOOKUP($C22,'RECAP SECT'!$G$6:$DC$253,42,FALSE) -> 417.72 | H22: =VLOOKUP($C22,'RECAP SECT'!$G$6:$DC$253,43,FALSE) -> 21% | I22: =VLOOKUP($C22,'RECAP SECT'!$G$6:$DC$253,44,FALSE) -> 8 | J22: =VLOOKUP($C22,'RECAP SECT'!$G$6:$DC$253,45,FALSE) -> 931 | K22: =VLOOKUP($C22,'RECAP SECT'!$G$6:$DC$253,46,FALSE) -> 16.89 | L22: =VLOOKUP($C22,'RECAP SECT'!$G$6:$DC$253,47,FALSE) -> 25% | M22: =VLOOKUP($C22,'RECAP SECT'!$G$6:$DC$253,48,FALSE) -> 13 | N22: =VLOOKUP($C22,'RECAP SECT'!$G$6:$DC$253,49,FALSE) -> 23% | O22: =VLOOKUP($C22,'RECAP SECT'!$G$6:$DC$253,50,FALSE) -> 19% | P22: =VLOOKUP($C22,'RECAP SECT'!$G$6:$DC$253,51,FALSE) -> 7
A23: 160 | B23: MOSELLE | C23: 45 | D23: METZ | E23: =VLOOKUP($C23,'RECAP SECT'!$G$6:$DC$253,3,FALSE) -> 88.4 | F23: =VLOOKUP($C23,'RECAP SECT'!$G$6:$DC$253,41,FALSE) -> 29,921 | G23: =VLOOKUP($C23,'RECAP SECT'!$G$6:$DC$253,42,FALSE) -> 338.28 | H23: =VLOOKUP($C23,'RECAP SECT'!$G$6:$DC$253,43,FALSE) -> 36% | I23: =VLOOKUP($C23,'RECAP SECT'!$G$6:$DC$253,44,FALSE) -> 12 | J23: =VLOOKUP($C23,'RECAP SECT'!$G$6:$DC$253,45,FALSE) -> 1,530 | K23: =VLOOKUP($C23,'RECAP SECT'!$G$6:$DC$253,46,FALSE) -> 17.30 | L23: =VLOOKUP($C23,'RECAP SECT'!$G$6:$DC$253,47,FALSE) -> 24% | M23: =VLOOKUP($C23,'RECAP SECT'!$G$6:$DC$253,48,FALSE) -> 9 | N23: =VLOOKUP($C23,'RECAP SECT'!$G$6:$DC$253,49,FALSE) -> 33% | O23: =VLOOKUP($C23,'RECAP SECT'!$G$6:$DC$253,50,FALSE) -> 29% | P23: =VLOOKUP($C23,'RECAP SECT'!$G$6:$DC$253,51,FALSE) -> 14
A24: 160 | B24: MOSELLE | C24: 42 | D24: MOSELLE EST | E24: =VLOOKUP($C24,'RECAP SECT'!$G$6:$DC$253,3,FALSE) -> 70.2 | F24: =VLOOKUP($C24,'RECAP SECT'!$G$6:$DC$253,41,FALSE) -> 23,587 | G24: =VLOOKUP($C24,'RECAP SECT'!$G$6:$DC$253,42,FALSE) -> 335.87 | H24: =VLOOKUP($C24,'RECAP SECT'!$G$6:$DC$253,43,FALSE) -> 37% | I24: =VLOOKUP($C24,'RECAP SECT'!$G$6:$DC$253,44,FALSE) -> 13 | J24: =VLOOKUP($C24,'RECAP SECT'!$G$6:$DC$253,45,FALSE) -> 1,411 | K24: =VLOOKUP($C24,'RECAP SECT'!$G$6:$DC$253,46,FALSE) -> 20.09 | L24: =VLOOKUP($C24,'RECAP SECT'!$G$6:$DC$253,47,FALSE) -> 11% | M24: =VLOOKUP($C24,'RECAP SECT'!$G$6:$DC$253,48,FALSE) -> 7 | N24: =VLOOKUP($C24,'RECAP SECT'!$G$6:$DC$253,49,FALSE) -> 29% | O24: =VLOOKUP($C24,'RECAP SECT'!$G$6:$DC$253,50,FALSE) -> 26% | P24: =VLOOKUP($C24,'RECAP SECT'!$G$6:$DC$253,51,FALSE) -> 12
A25: 160 | B25: MOSELLE | C25: 44 | D25: MOSELLE NORD | E25: =VLOOKUP($C25,'RECAP SECT'!$G$6:$DC$253,3,FALSE) -> 65.8 | F25: =VLOOKUP($C25,'RECAP SECT'!$G$6:$DC$253,41,FALSE) -> 27,538 | G25: =VLOOKUP($C25,'RECAP SECT'!$G$6:$DC$253,42,FALSE) -> 418.39 | H25: =VLOOKUP($C25,'RECAP SECT'!$G$6:$DC$253,43,FALSE) -> 21% | I25: =VLOOKUP($C25,'RECAP SECT'!$G$6:$DC$253,44,FALSE) -> 7 | J25: =VLOOKUP($C25,'RECAP SECT'!$G$6:$DC$253,45,FALSE) -> 1,325 | K25: =VLOOKUP($C25,'RECAP SECT'!$G$6:$DC$253,46,FALSE) -> 20.13 | L25: =VLOOKUP($C25,'RECAP SECT'!$G$6:$DC$253,47,FALSE) -> 11% | M25: =VLOOKUP($C25,'RECAP SECT'!$G$6:$DC$253,48,FALSE) -> 6 | N25: =VLOOKUP($C25,'RECAP SECT'!$G$6:$DC$253,49,FALSE) -> 18% | O25: =VLOOKUP($C25,'RECAP SECT'!$G$6:$DC$253,50,FALSE) -> 15% | P25: =VLOOKUP($C25,'RECAP SECT'!$G$6:$DC$253,51,FALSE) -> 6
A26: 80 | B26: VOSGES | C26: 57 | D26: EPINAL | E26: =VLOOKUP($C26,'RECAP SECT'!$G$6:$DC$253,3,FALSE) -> 61.1 | F26: =VLOOKUP($C26,'RECAP SECT'!$G$6:$DC$253,41,FALSE) -> 25,660 | G26: =VLOOKUP($C26,'RECAP SECT'!$G$6:$DC$253,42,FALSE) -> 420.04 | H26: =VLOOKUP($C26,'RECAP SECT'!$G$6:$DC$253,43,FALSE) -> 21% | I26: =VLOOKUP($C26,'RECAP SECT'!$G$6:$DC$253,44,FALSE) -> 6 | J26: =VLOOKUP($C26,'RECAP SECT'!$G$6:$DC$253,45,FALSE) -> 730 | K26: =VLOOKUP($C26,'RECAP SECT'!$G$6:$DC$253,46,FALSE) -> 11.95 | L26: =VLOOKUP($C26,'RECAP SECT'!$G$6:$DC$253,47,FALSE) -> 47% | M26: =VLOOKUP($C26,'RECAP SECT'!$G$6:$DC$253,48,FALSE) -> 18 | N26: =VLOOKUP($C26,'RECAP SECT'!$G$6:$DC$253,49,FALSE) -> 29% | O26: =VLOOKUP($C26,'RECAP SECT'!$G$6:$DC$253,50,FALSE) -> 25% | P26: =VLOOKUP($C26,'RECAP SECT'!$G$6:$DC$253,51,FALSE) -> 11
A27: 80 | B27: VOSGES | C27: 55 | D27: SAINT DIE | E27: =VLOOKUP($C27,'RECAP SECT'!$G$6:$DC$253,3,FALSE) -> 47.1 | F27: =VLOOKUP($C27,'RECAP SECT'!$G$6:$DC$253,41,FALSE) -> 19,399 | G27: =VLOOKUP($C27,'RECAP SECT'!$G$6:$DC$253,42,FALSE) -> 412.03 | H27: =VLOOKUP($C27,'RECAP SECT'!$G$6:$DC$253,43,FALSE) -> 23% | I27: =VLOOKUP($C27,'RECAP SECT'!$G$6:$DC$253,44,FALSE) -> 9 | J27: =VLOOKUP($C27,'RECAP SECT'!$G$6:$DC$253,45,FALSE) -> 627 | K27: =VLOOKUP($C27,'RECAP SECT'!$G$6:$DC$253,46,FALSE) -> 13.32 | L27: =VLOOKUP($C27,'RECAP SECT'!$G$6:$DC$253,47,FALSE) -> 41% | M27: =VLOOKUP($C27,'RECAP SECT'!$G$6:$DC$253,48,FALSE) -> 17 | N27: =VLOOKUP($C27,'RECAP SECT'!$G$6:$DC$253,49,FALSE) -> 28% | O27: =VLOOKUP($C27,'RECAP SECT'!$G$6:$DC$253,50,FALSE) -> 24% | P27: =VLOOKUP($C27,'RECAP SECT'!$G$6:$DC$253,51,FALSE) -> 9
A28: Total CEGEE Directions Régionales | E28: =SUM(E10:E27) -> 1140

Sheet SE_CREDIT
B1: Accueil | F1: BAROMETRE BDD - TERRITOIRES
F2: CREDITS
F3: =ACCUEIL!F7 -> 2021-08-01
F7: Engagements et ventes accessoires pondérés Immo | J7: Engagements et ventes accessoires pondérés Conso | N7: Ventes sur client non détenteur de l’univers | R7: Total Crédits
F8: =DATEMAJ!C18 -> au 01/08 | H8: coef | I8: ='RECAP DIRCOM'!BM4 -> 8% | J8: =DATEMAJ!C19 -> au 01/08 | L8: coef | M8: ='RECAP DIRCOM'!BQ4 -> 6% | N8: =DATEMAJ!C20 -> au 01/08 | P8: coef | Q8: ='RECAP DIRCOM'!BU4 -> 6% | S8: coef | T8: ='RECAP DIRCOM'!BX4 -> 20%
B9: Direction | C9: eds | D9: Territoire | E9: ="ETP perf "&DATEMAJ!$C$28 -> ETP perf 30-juin | F9: PNB | G9: PNB / ETP | H9: % Ecart au 1er | I9: Rang | J9: PNB | K9: PNB / ETP | L9: % Ecart au 1er | M9: Rang | N9: VB | O9: VB / ETP | P9: % Ecart au 1er | Q9: Rang | R9: Moyenne ecart au 1er | S9: % Ecart au 1er | T9: Rang CEGEE
A10: 50 | B10: AUBE HAUTE MARNE | C10: 21 | D10: CHAUMONT | E10: =VLOOKUP($C10,'RECAP SECT'!$G$6:$DC$253,3,FALSE) -> 33.9 | F10: =VLOOKUP($C10,'RECAP SECT'!$G$6:$DC$253,56,FALSE) -> 2,265 | G10: =VLOOKUP($C10,'RECAP SECT'!$G$6:$DC$253,57,FALSE) -> 66.79 | H10: =VLOOKUP($C10,'RECAP SECT'!$G$6:$DC$253,58,FALSE) -> 61% | I10: =VLOOKUP($C10,'RECAP SECT'!$G$6:$DC$253,59,FALSE) -> 15 | J10: =VLOOKUP($C10,'RECAP SECT'!$G$6:$DC$253,60,FALSE) -> 1,939 | K10: =VLOOKUP($C10,'RECAP SECT'!$G$6:$DC$253,61,FALSE) -> 57.19 | L10: =VLOOKUP($C10,'RECAP SECT'!$G$6:$DC$253,62,FALSE) -> 0% | M10: =VLOOKUP($C10,'RECAP SECT'!$G$6:$DC$253,63,FALSE) -> 1 | N10: =VLOOKUP($C10,'RECAP SECT'!$G$6:$DC$253,64,FALSE) -> 465 | O10: =VLOOKUP($C10,'RECAP SECT'!$G$6:$DC$253,65,FALSE) -> 13.71 | P10: =VLOOKUP($C10,'RECAP SECT'!$G$6:$DC$253,66,FALSE) -> 25% | Q10: =VLOOKUP($C10,'RECAP SECT'!$G$6:$DC$253,67,FALSE) -> 7 | R10: =VLOOKUP($C10,'RECAP SECT'!$G$6:$DC$253,68,FALSE) -> 32% | S10: =VLOOKUP($C10,'RECAP SECT'!$G$6:$DC$253,69,FALSE) -> 27% | T10: =VLOOKUP($C10,'RECAP SECT'!$G$6:$DC$253,70,FALSE) -> 8
A11: 50 | B11: AUBE HAUTE MARNE | C11: 14 | D11: TROYES | E11: =VLOOKUP($C11,'RECAP SECT'!$G$6:$DC$253,3,FALSE) -> 67.1 | F11: =VLOOKUP($C11,'RECAP SECT'!$G$6:$DC$253,56,FALSE) -> 5,367 | G11: =VLOOKUP($C11,'RECAP SECT'!$G$6:$DC$253,57,FALSE) -> 80.03 | H11: =VLOOKUP($C11,'RECAP SECT'!$G$6:$DC$253,58,FALSE) -> 54% | I11: =VLOOKUP($C11,'RECAP SECT'!$G$6:$DC$253,59,FALSE) -> 11 | J11: =VLOOKUP($C11,'RECAP SECT'!$G$6:$DC$253,60,FALSE) -> 2,994 | K11: =VLOOKUP($C11,'RECAP SECT'!$G$6:$DC$253,61,FALSE) -> 44.65 | L11: =VLOOKUP($C11,'RECAP SECT'!$G$6:$DC$253,62,FALSE) -> 22% | M11: =VLOOKUP($C11,'RECAP SECT'!$G$6:$DC$253,63,FALSE) -> 11 | N11: =VLOOKUP($C11,'RECAP SECT'!$G$6:$DC$253,64,FALSE) -> 809 | O11: =VLOOKUP($C11,'RECAP SECT'!$G$6:$DC$253,65,FALSE) -> 12.06 | P11: =VLOOKUP($C11,'RECAP SECT'!$G$6:$DC$253,66,FALSE) -> 34% | Q11: =VLOOKUP($C11,'RECAP SECT'!$G$6:$DC$253,67,FALSE) -> 11 | R11: =VLOOKUP($C11,'RECAP SECT'!$G$6:$DC$253,68,FALSE) -> 38% | S11: =VLOOKUP($C11,'RECAP SECT'!$G$6:$DC$253,69,FALSE) -> 33% | T11: =VLOOKUP($C11,'RECAP SECT'!$G$6:$DC$253,70,FALSE) -> 14
A12: 262 | B12: BAS-RHIN | C12: 5060 | D12: HAGUENAU | E12: =VLOOKUP($C12,'RECAP SECT'!$G$6:$DC$253,3,FALSE) -> 70.0 | F12: =VLOOKUP($C12,'RECAP SECT'!$G$6:$DC$253,56,FALSE) -> 5,408 | G12: =VLOOKUP($C12,'RECAP SECT'!$G$6:$DC$253,57,FALSE) -> 77.27 | H12: =VLOOKUP($C12,'RECAP SECT'!$G$6:$DC$253,58,FALSE) -> 55% | I12: =VLOOKUP($C12,'RECAP SECT'!$G$6:$DC$253,59,FALSE) -> 14 | J12: =VLOOKUP($C12,'RECAP SECT'!$G$6:$DC$253,60,FALSE) -> 3,200 | K12: =VLOOKUP($C12,'RECAP SECT'!$G$6:$DC$253,61,FALSE) -> 45.73 | L12: =VLOOKUP($C12,'RECAP SECT'!$G$6:$DC$253,62,FALSE) -> 20% | M12: =VLOOKUP($C12,'RECAP SECT'!$G$6:$DC$253,63,FALSE) -> 8 | N12: =VLOOKUP($C12,'RECAP SECT'!$G$6:$DC$253,64,FALSE) -> 668 | O12: =VLOOKUP($C12,'RECAP SECT'!$G$6:$DC$253,65,FALSE) -> 9.54 | P12: =VLOOKUP($C12,'RECAP SECT'!$G$6:$DC$253,66,FALSE) -> 48% | Q12: =VLOOKUP($C12,'RECAP SECT'!$G$6:$DC$253,67,FALSE) -> 16 | R12: =VLOOKUP($C12,'RECAP SECT'!$G$6:$DC$253,68,FALSE) -> 43% | S12: =VLOOKUP($C12,'RECAP SECT'!$G$6:$DC$253,69,FALSE) -> 37% | T12: =VLOOKUP($C12,'RECAP SECT'!$G$6:$DC$253,70,FALSE) -> 15
A13: 262 | B13: BAS-RHIN | C13: 5101 | D13: SELESTAT | E13: =VLOOKUP($C13,'RECAP SECT'!$G$6:$DC$253,3,FALSE) -> 59.9 | F13: =VLOOKUP($C13,'RECAP SECT'!$G$6:$DC$253,56,FALSE) -> 3,471 | G13: =VLOOKUP($C13,'RECAP SECT'!$G$6:$DC$253,57,FALSE) -> 57.96 | H13: =VLOOKUP($C13,'RECAP SECT'!$G$6:$DC$253,58,FALSE) -> 67% | I13: =VLOOKUP($C13,'RECAP SECT'!$G$6:$DC$253,59,FALSE) -> 17 | J13: =VLOOKUP($C13,'RECAP SECT'!$G$6:$DC$253,60,FALSE) -> 2,800 | K13: =VLOOKUP($C13,'RECAP SECT'!$G$6:$DC$253,61,FALSE) -> 46.76 | L13: =VLOOKUP($C13,'RECAP SECT'!$G$6:$DC$253,62,FALSE) -> 18% | M13: =VLOOKUP($C13,'RECAP SECT'!$G$6:$DC$253,63,FALSE) -> 5 | N13: =VLOOKUP($C13,'RECAP SECT'!$G$6:$DC$253,64,FALSE) -> 640 | O13: =VLOOKUP($C13,'RECAP SECT'!$G$6:$DC$253,65,FALSE) -> 10.69 | P13: =VLOOKUP($C13,'RECAP SECT'!$G$6:$DC$253,66,FALSE) -> 42% | Q13: =VLOOKUP($C13,'RECAP SECT'!$G$6:$DC$253,67,FALSE) -> 15 | R13: =VLOOKUP($C13,'RECAP SECT'!$G$6:$DC$253,68,FALSE) -> 45% | S13: =VLOOKUP($C13,'RECAP SECT'!$G$6:$DC$253,69,FALSE) -> 39% | T13: =VLOOKUP($C13,'RECAP SECT'!$G$6:$DC$253,70,FALSE) -> 16
A14: 262 | B14: BAS-RHIN | C14: 5006 | D14: STRASBOURG | E14: =VLOOKUP($C14,'RECAP SECT'!$G$6:$DC$253,3,FALSE) -> 75.2 | F14: =VLOOKUP($C14,'RECAP SECT'!$G$6:$DC$253,56,FALSE) -> 7,569 | G14: =VLOOKUP($C14,'RECAP SECT'!$G$6:$DC$253,57,FALSE) -> 100.61 | H14: =VLOOKUP($C14,'RECAP SECT'!$G$6:$DC$253,58,FALSE) -> 42% | I14: =VLOOKUP($C14,'RECAP SECT'!$G$6:$DC$253,59,FALSE) -> 8 | J14: =VLOOKUP($C14,'RECAP SECT'!$G$6:$DC$253,60,FALSE) -> 2,843 | K14: =VLOOKUP($C14,'RECAP SECT'!$G$6:$DC$253,61,FALSE) -> 37.79 | L14: =VLOOKUP($C14,'RECAP SECT'!$G$6:$DC$253,62,FALSE) -> 34% | M14: =VLOOKUP($C14,'RECAP SECT'!$G$6:$DC$253,63,FALSE) -> 18 | N14: =VLOOKUP($C14,'RECAP SECT'!$G$6:$DC$253,64,FALSE) -> 904 | O14: =VLOOKUP($C14,'RECAP SECT'!$G$6:$DC$253,65,FALSE) -> 12.02 | P14: =VLOOKUP($C14,'RECAP SECT'!$G$6:$DC$253,66,FALSE) -> 34% | Q14: =VLOOKUP($C14,'RECAP SECT'!$G$6:$DC$253,67,FALSE) -> 12 | R14: =VLOOKUP($C14,'RECAP SECT'!$G$6:$DC$253,68,FALSE) -> 37% | S14: =VLOOKUP($C14,'RECAP SECT'!$G$6:$DC$253,69,FALSE) -> 32% | T14: =VLOOKUP($C14,'RECAP SECT'!$G$6:$DC$253,70,FALSE) -> 11
A15: 264 | B15: HAUT-RHIN | C15: 5130 | D15: COLMAR | E15: =VLOOKUP($C15,'RECAP SECT'!$G$6:$DC$253,3,FALSE) -> 61.5 | F15: =VLOOKUP($C15,'RECAP SECT'!$G$6:$DC$253,56,FALSE) -> 3,202 | G15: =VLOOKUP($C15,'RECAP SECT'!$G$6:$DC$253,57,FALSE) -> 52.03 | H15: =VLOOKUP($C15,'RECAP SECT'!$G$6:$DC$253,58,FALSE) -> 70% | I15: =VLOOKUP($C15,'RECAP SECT'!$G$6:$DC$253,59,FALSE) -> 18 | J15: =VLOOKUP($C15,'RECAP SECT'!$G$6:$DC$253,60,FALSE) -> 2,487 | K15: =VLOOKUP($C15,'RECAP SECT'!$G$6:$DC$253,61,FALSE) -> 40.41 | L15: =VLOOKUP($C15,'RECAP SECT'!$G$6:$DC$253,62,FALSE) -> 29% | M15: =VLOOKUP($C15,'RECAP SECT'!$G$6:$DC$253,63,FALSE) -> 16 | N15: =VLOOKUP($C15,'RECAP SECT'!$G$6:$DC$253,64,FALSE) -> 569 | O15: =VLOOKUP($C15,'RECAP SECT'!$G$6:$DC$253,65,FALSE) -> 9.25 | P15: =VLOOKUP($C15,'RECAP SECT'!$G$6:$DC$253,66,FALSE) -> 49% | Q15: =VLOOKUP($C15,'RECAP SECT'!$G$6:$DC$253,67,FALSE) -> 17 | R15: =VLOOKUP($C15,'RECAP SECT'!$G$6:$DC$253,68,FALSE) -> 52% | S15: =VLOOKUP($C15,'RECAP SECT'!$G$6:$DC$253,69,FALSE) -> 46% | T15: =VLOOKUP($C15,'RECAP SECT'!$G$6:$DC$253,70,FALSE) -> 18
A16: 264 | B16: HAUT-RHIN | C16: 5169 | D16: MULHOUSE | E16: =VLOOKUP($C16,'RECAP SECT'!$G$6:$DC$253,3,FALSE) -> 61.1 | F16: =VLOOKUP($C16,'RECAP SECT'!$G$6:$DC$253,56,FALSE) -> 3,888 | G16: =VLOOKUP($C16,'RECAP SECT'!$G$6:$DC$253,57,FALSE) -> 63.60 | H16: =VLOOKUP($C16,'RECAP SECT'!$G$6:$DC$253,58,FALSE) -> 63% | I16: =VLOOKUP($C16,'RECAP SECT'!$G$6:$DC$253,59,FALSE) -> 16 | J16: =VLOOKUP($C16,'RECAP SECT'!$G$6:$DC$253,60,FALSE) -> 2,519 | K16: =VLOOKUP($C16,'RECAP SECT'!$G$6:$DC$253,61,FALSE) -> 41.20 | L16: =VLOOKUP($C16,'RECAP SECT'!$G$6:$DC$253,62,FALSE) -> 28% | M16: =VLOOKUP($C16,'RECAP SECT'!$G$6:$DC$253,63,FALSE) -> 15 | N16: =VLOOKUP($C16,'RECAP SECT'!$G$6:$DC$253,64,FALSE) -> 561 | O16: =VLOOKUP($C16,'RECAP SECT'!$G$6:$DC$253,65,FALSE) -> 9.18 | P16: =VLOOKUP($C16,'RECAP SECT'!$G$6:$DC$253,66,FALSE) -> 50% | Q16: =VLOOKUP($C16,'RECAP SECT'!$G$6:$DC$253,67,FALSE) -> 18 | R16: =VLOOKUP($C16,'RECAP SECT'!$G$6:$DC$253,68,FALSE) -> 49% | S16: =VLOOKUP($C16,'RECAP SECT'!$G$6:$DC$253,69,FALSE) -> 43% | T16: =VLOOKUP($C16,'RECAP SECT'!$G$6:$DC$253,70,FALSE) -> 17
A17: 30 | B17: MARNE-ARDENNES | C17: 6 | D17: CHALONS EN CHAMPAGNE | E17: =VLOOKUP($C17,'RECAP SECT'!$G$6:$DC$253,3,FALSE) -> 44.7 | F17: =VLOOKUP($C17,'RECAP SECT'!$G$6:$DC$253,56,FALSE) -> 5,035 | G17: =VLOOKUP($C17,'RECAP SECT'!$G$6:$DC$253,57,FALSE) -> 112.72 | H17: =VLOOKUP($C17,'RECAP SECT'!$G$6:$DC$253,58,FALSE) -> 35% | I17: =VLOOKUP($C17,'RECAP SECT'!$G$6:$DC$253,59,FALSE) -> 6 | J17: =VLOOKUP($C17,'RECAP SECT'!$G$6:$DC$253,60,FALSE) -> 2,016 | K17: =VLOOKUP($C17,'RECAP SECT'!$G$6:$DC$253,61,FALSE) -> 45.12 | L17: =VLOOKUP($C17,'RECAP SECT'!$G$6:$DC$253,62,FALSE) -> 21% | M17: =VLOOKUP($C17,'RECAP SECT'!$G$6:$DC$253,63,FALSE) -> 10 | N17: =VLOOKUP($C17,'RECAP SECT'!$G$6:$DC$253,64,FALSE) -> 637 | O17: =VLOOKUP($C17,'RECAP SECT'!$G$6:$DC$253,65,FALSE) -> 14.26 | P17: =VLOOKUP($C17,'RECAP SECT'!$G$6:$DC$253,66,FALSE) -> 22% | Q17: =VLOOKUP($C17,'RECAP SECT'!$G$6:$DC$253,67,FALSE) -> 5 | R17: =VLOOKUP($C17,'RECAP SECT'!$G$6:$DC$253,68,FALSE) -> 27% | S17: =VLOOKUP($C17,'RECAP SECT'!$G$6:$DC$253,69,FALSE) -> 21% | T17: =VLOOKUP($C17,'RECAP SECT'!$G$6:$DC$253,70,FALSE) -> 7
A18: 30 | B18: MARNE-ARDENNES | C18: 2 | D18: CHARLEVILLE MEZIERES | E18: =VLOOKUP($C18,'RECAP SECT'!$G$6:$DC$253,3,FALSE) -> 56.6 | F18: =VLOOKUP($C18,'RECAP SECT'!$G$6:$DC$253,56,FALSE) -> 7,795 | G18: =VLOOKUP($C18,'RECAP SECT'!$G$6:$DC$253,57,FALSE) -> 137.71 | H18: =VLOOKUP($C18,'RECAP SECT'!$G$6:$DC$253,58,FALSE) -> 21% | I18: =VLOOKUP($C18,'RECAP SECT'!$G$6:$DC$253,59,FALSE) -> 4 | J18: =VLOOKUP($C18,'RECAP SECT'!$G$6:$DC$253,60,FALSE) -> 2,497 | K18: =VLOOKUP($C18,'RECAP SECT'!$G$6:$DC$253,61,FALSE) -> 44.12 | L18: =VLOOKUP($C18,'RECAP SECT'!$G$6:$DC$253,62,FALSE) -> 23% | M18: =VLOOKUP($C18,'RECAP SECT'!$G$6:$DC$253,63,FALSE) -> 12 | N18: =VLOOKUP($C18,'RECAP SECT'!$G$6:$DC$253,64,FALSE) -> 878 | O18: =VLOOKUP($C18,'RECAP SECT'!$G$6:$DC$253,65,FALSE) -> 15.51 | P18: =VLOOKUP($C18,'RECAP SECT'!$G$6:$DC$253,66,FALSE) -> 15% | Q18: =VLOOKUP($C18,'RECAP SECT'!$G$6:$DC$253,67,FALSE) -> 4 | R18: =VLOOKUP($C18,'RECAP SECT'!$G$6:$DC$253,68,FALSE) -> 20% | S18: =VLOOKUP($C18,'RECAP SECT'!$G$6:$DC$253,69,FALSE) -> 14% | T18: =VLOOKUP($C18,'RECAP SECT'!$G$6:$DC$253,70,FALSE) -> 4
A19: 30 | B19: MARNE-ARDENNES | C19: 11 | D19: REIMS | E19: =VLOOKUP($C19,'RECAP SECT'!$G$6:$DC$253,3,FALSE) -> 79.7 | F19: =VLOOKUP($C19,'RECAP SECT'!$G$6:$DC$253,56,FALSE) -> 13,394 | G19: =VLOOKUP($C19,'RECAP SECT'!$G$6:$DC$253,57,FALSE) -> 168.01 | H19: =VLOOKUP($C19,'RECAP SECT'!$G$6:$DC$253,58,FALSE) -> 3% | I19: =VLOOKUP($C19,'RECAP SECT'!$G$6:$DC$253,59,FALSE) -> 2 | J19: =VLOOKUP($C19,'RECAP SECT'!$G$6:$DC$253,60,FALSE) -> 3,481 | K19: =VLOOKUP($C19,'RECAP SECT'!$G$6:$DC$253,61,FALSE) -> 43.66 | L19: =VLOOKUP($C19,'RECAP SECT'!$G$6:$DC$253,62,FALSE) -> 24% | M19: =VLOOKUP($C19,'RECAP SECT'!$G$6:$DC$253,63,FALSE) -> 13 | N19: =VLOOKUP($C19,'RECAP SECT'!$G$6:$DC$253,64,FALSE) -> 1,296 | O19: =VLOOKUP($C19,'RECAP SECT'!$G$6:$DC$253,65,FALSE) -> 16.26 | P19: =VLOOKUP($C19,'RECAP SECT'!$G$6:$DC$253,66,FALSE) -> 11% | Q19: =VLOOKUP($C19,'RECAP SECT'!$G$6:$DC$253,67,FALSE) -> 2 | R19: =VLOOKUP($C19,'RECAP SECT'!$G$6:$DC$253,68,FALSE) -> 12% | S19: =VLOOKUP($C19,'RECAP SECT'!$G$6:$DC$253,69,FALSE) -> 6% | T19: =VLOOKUP($C19,'RECAP SECT'!$G$6:$DC$253,70,FALSE) -> 2
A20: 110 | B20: MEURTHE ET MOSELLE MEUSE | C20: 26 | D20: NANCY | E20: =VLOOKUP($C20,'RECAP SECT'!$G$6:$DC$253,3,FALSE) -> 66.2 | F20: =VLOOKUP($C20,'RECAP SECT'!$G$6:$DC$253,56,FALSE) -> 11,489 | G20: =VLOOKUP($C20,'RECAP SECT'!$G$6:$DC$253,57,FALSE) -> 173.45 | H20: =VLOOKUP($C20,'RECAP SECT'!$G$6:$DC$253,58,FALSE) -> 0% | I20: =VLOOKUP($C20,'RECAP SECT'!$G$6:$DC$253,59,FALSE) -> 1 | J20: =VLOOKUP($C20,'RECAP SECT'!$G$6:$DC$253,60,FALSE) -> 3,086 | K20: =VLOOKUP($C20,'RECAP SECT'!$G$6:$DC$253,61,FALSE) -> 46.59 | L20: =VLOOKUP($C20,'RECAP SECT'!$G$6:$DC$253,62,FALSE) -> 19% | M20: =VLOOKUP($C20,'RECAP SECT'!$G$6:$DC$253,63,FALSE) -> 6 | N20: =VLOOKUP($C20,'RECAP SECT'!$G$6:$DC$253,64,FALSE) -> 1,211 | O20: =VLOOKUP($C20,'RECAP SECT'!$G$6:$DC$253,65,FALSE) -> 18.28 | P20: =VLOOKUP($C20,'RECAP SECT'!$G$6:$DC$253,66,FALSE) -> 0% | Q20: =VLOOKUP($C20,'RECAP SECT'!$G$6:$DC$253,67,FALSE) -> 1 | R20: =VLOOKUP($C20,'RECAP SECT'!$G$6:$DC$253,68,FALSE) -> 6% | S20: =VLOOKUP($C20,'RECAP SECT'!$G$6:$DC$253,69,FALSE) -> 0% | T20: =VLOOKUP($C20,'RECAP SECT'!$G$6:$DC$253,70,FALSE) -> 1
A21: 110 | B21: MEURTHE ET MOSELLE MEUSE | C21: 27 | D21: PONT A MOUSSON | E21: =VLOOKUP($C21,'RECAP SECT'!$G$6:$DC$253,3,FALSE) -> 76.5 | F21: =VLOOKUP($C21,'RECAP SECT'!$G$6:$DC$253,56,FALSE) -> 12,696 | G21: =VLOOKUP($C21,'RECAP SECT'!$G$6:$DC$253,57,FALSE) -> 165.94 | H21: =VLOOKUP($C21,'RECAP SECT'!$G$6:$DC$253,58,FALSE) -> 4% | I21: =VLOOKUP($C21,'RECAP SECT'!$G$6:$DC$253,59,FALSE) -> 3 | J21: =VLOOKUP($C21,'RECAP SECT'!$G$6:$DC$253,60,FALSE) -> 3,459 | K21: =VLOOKUP($C21,'RECAP SECT'!$G$6:$DC$253,61,FALSE) -> 45.21 | L21: =VLOOKUP($C21,'RECAP SECT'!$G$6:$DC$253,62,FALSE) -> 21% | M21: =VLOOKUP($C21,'RECAP SECT'!$G$6:$DC$253,63,FALSE) -> 9 | N21: =VLOOKUP($C21,'RECAP SECT'!$G$6:$DC$253,64,FALSE) -> 1,223 | O21: =VLOOKUP($C21,'RECAP SECT'!$G$6:$DC$253,65,FALSE) -> 15.99 | P21: =VLOOKUP($C21,'RECAP SECT'!$G$6:$DC$253,66,FALSE) -> 13% | Q21: =VLOOKUP($C21,'RECAP SECT'!$G$6:$DC$253,67,FALSE) -> 3 | R21: =VLOOKUP($C21,'RECAP SECT'!$G$6:$DC$253,68,FALSE) -> 12% | S21: =VLOOKUP($C21,'RECAP SECT'!$G$6:$DC$253,69,FALSE) -> 6% | T21: =VLOOKUP($C21,'RECAP SECT'!$G$6:$DC$253,70,FALSE) -> 3
A22: 110 | B22: MEURTHE ET MOSELLE MEUSE | C22: 31 | D22: VERDUN | E22: =VLOOKUP($C22,'RECAP SECT'!$G$6:$DC$253,3,FALSE) -> 55.1 | F22: =VLOOKUP($C22,'RECAP SECT'!$G$6:$DC$253,56,FALSE) -> 6,171 | G22: =VLOOKUP($C22,'RECAP SECT'!$G$6:$DC$253,57,FALSE) -> 111.96 | H22: =VLOOKUP($C22,'RECAP SECT'!$G$6:$DC$253,58,FALSE) -> 35% | I22: =VLOOKUP($C22,'RECAP SECT'!$G$6:$DC$253,59,FALSE) -> 7 | J22: =VLOOKUP($C22,'RECAP SECT'!$G$6:$DC$253,60,FALSE) -> 2,938 | K22: =VLOOKUP($C22,'RECAP SECT'!$G$6:$DC$253,61,FALSE) -> 53.30 | L22: =VLOOKUP($C22,'RECAP SECT'!$G$6:$DC$253,62,FALSE) -> 7% | M22: =VLOOKUP($C22,'RECAP SECT'!$G$6:$DC$253,63,FALSE) -> 2 | N22: =VLOOKUP($C22,'RECAP SECT'!$G$6:$DC$253,64,FALSE) -> 771 | O22: =VLOOKUP($C22,'RECAP SECT'!$G$6:$DC$253,65,FALSE) -> 13.99 | P22: =VLOOKUP($C22,'RECAP SECT'!$G$6:$DC$253,66,FALSE) -> 23% | Q22: =VLOOKUP($C22,'RECAP SECT'!$G$6:$DC$253,67,FALSE) -> 6 | R22: =VLOOKUP($C22,'RECAP SECT'!$G$6:$DC$253,68,FALSE) -> 23% | S22: =VLOOKUP($C22,'RECAP SECT'!$G$6:$DC$253,69,FALSE) -> 18% | T22: =VLOOKUP($C22,'RECAP SECT'!$G$6:$DC$253,70,FALSE) -> 5
A23: 160 | B23: MOSELLE | C23: 45 | D23: METZ | E23: =VLOOKUP($C23,'RECAP SECT'!$G$6:$DC$253,3,FALSE) -> 88.4 | F23: =VLOOKUP($C23,'RECAP SECT'!$G$6:$DC$253,56,FALSE) -> 7,902 | G23: =VLOOKUP($C23,'RECAP SECT'!$G$6:$DC$253,57,FALSE) -> 89.34 | H23: =VLOOKUP($C23,'RECAP SECT'!$G$6:$DC$253,58,FALSE) -> 48% | I23: =VLOOKUP($C23,'RECAP SECT'!$G$6:$DC$253,59,FALSE) -> 9 | J23: =VLOOKUP($C23,'RECAP SECT'!$G$6:$DC$253,60,FALSE) -> 3,767 | K23: =VLOOKUP($C23,'RECAP SECT'!$G$6:$DC$253,61,FALSE) -> 42.59 | L23: =VLOOKUP($C23,'RECAP SECT'!$G$6:$DC$253,62,FALSE) -> 26% | M23: =VLOOKUP($C23,'RECAP SECT'!$G$6:$DC$253,63,FALSE) -> 14 | N23: =VLOOKUP($C23,'RECAP SECT'!$G$6:$DC$253,64,FALSE) -> 1,010 | O23: =VLOOKUP($C23,'RECAP SECT'!$G$6:$DC$253,65,FALSE) -> 11.42 | P23: =VLOOKUP($C23,'RECAP SECT'!$G$6:$DC$253,66,FALSE) -> 38% | Q23: =VLOOKUP($C23,'RECAP SECT'!$G$6:$DC$253,67,FALSE) -> 13 | R23: =VLOOKUP($C23,'RECAP SECT'!$G$6:$DC$253,68,FALSE) -> 38% | S23: =VLOOKUP($C23,'RECAP SECT'!$G$6:$DC$253,69,FALSE) -> 33% | T23: =VLOOKUP($C23,'RECAP SECT'!$G$6:$DC$253,70,FALSE) -> 13
A24: 160 | B24: MOSELLE | C24: 42 | D24: MOSELLE EST | E24: =VLOOKUP($C24,'RECAP SECT'!$G$6:$DC$253,3,FALSE) -> 70.2 | F24: =VLOOKUP($C24,'RECAP SECT'!$G$6:$DC$253,56,FALSE) -> 5,599 | G24: =VLOOKUP($C24,'RECAP SECT'!$G$6:$DC$253,57,FALSE) -> 79.72 | H24: =VLOOKUP($C24,'RECAP SECT'!$G$6:$DC$253,58,FALSE) -> 54% | I24: =VLOOKUP($C24,'RECAP SECT'!$G$6:$DC$253,59,FALSE) -> 12 | J24: =VLOOKUP($C24,'RECAP SECT'!$G$6:$DC$253,60,FALSE) -> 3,556 | K24: =VLOOKUP($C24,'RECAP SECT'!$G$6:$DC$253,61,FALSE) -> 50.64 | L24: =VLOOKUP($C24,'RECAP SECT'!$G$6:$DC$253,62,FALSE) -> 11% | M24: =VLOOKUP($C24,'RECAP SECT'!$G$6:$DC$253,63,FALSE) -> 3 | N24: =VLOOKUP($C24,'RECAP SECT'!$G$6:$DC$253,64,FALSE) -> 789 | O24: =VLOOKUP($C24,'RECAP SECT'!$G$6:$DC$253,65,FALSE) -> 11.23 | P24: =VLOOKUP($C24,'RECAP SECT'!$G$6:$DC$253,66,FALSE) -> 39% | Q24: =VLOOKUP($C24,'RECAP SECT'!$G$6:$DC$253,67,FALSE) -> 14 | R24: =VLOOKUP($C24,'RECAP SECT'!$G$6:$DC$253,68,FALSE) -> 37% | S24: =VLOOKUP($C24,'RECAP SECT'!$G$6:$DC$253,69,FALSE) -> 31% | T24: =VLOOKUP($C24,'RECAP SECT'!$G$6:$DC$253,70,FALSE) -> 9
A25: 160 | B25: MOSELLE | C25: 44 | D25: MOSELLE NORD | E25: =VLOOKUP($C25,'RECAP SECT'!$G$6:$DC$253,3,FALSE) -> 65.8 | F25: =VLOOKUP($C25,'RECAP SECT'!$G$6:$DC$253,56,FALSE) -> 7,862 | G25: =VLOOKUP($C25,'RECAP SECT'!$G$6:$DC$253,57,FALSE) -> 119.45 | H25: =VLOOKUP($C25,'RECAP SECT'!$G$6:$DC$253,58,FALSE) -> 31% | I25: =VLOOKUP($C25,'RECAP SECT'!$G$6:$DC$253,59,FALSE) -> 5 | J25: =VLOOKUP($C25,'RECAP SECT'!$G$6:$DC$253,60,FALSE) -> 3,119 | K25: =VLOOKUP($C25,'RECAP SECT'!$G$6:$DC$253,61,FALSE) -> 47.39 | L25: =VLOOKUP($C25,'RECAP SECT'!$G$6:$DC$253,62,FALSE) -> 17% | M25: =VLOOKUP($C25,'RECAP SECT'!$G$6:$DC$253,63,FALSE) -> 4 | N25: =VLOOKUP($C25,'RECAP SECT'!$G$6:$DC$253,64,FALSE) -> 836 | O25: =VLOOKUP($C25,'RECAP SECT'!$G$6:$DC$253,65,FALSE) -> 12.70 | P25: =VLOOKUP($C25,'RECAP SECT'!$G$6:$DC$253,66,FALSE) -> 31% | Q25: =VLOOKUP($C25,'RECAP SECT'!$G$6:$DC$253,67,FALSE) -> 9 | R25: =VLOOKUP($C25,'RECAP SECT'!$G$6:$DC$253,68,FALSE) -> 27% | S25: =VLOOKUP($C25,'RECAP SECT'!$G$6:$DC$253,69,FALSE) -> 21% | T25: =VLOOKUP($C25,'RECAP SECT'!$G$6:$DC$253,70,FALSE) -> 6
A26: 80 | B26: VOSGES | C26: 57 | D26: EPINAL | E26: =VLOOKUP($C26,'RECAP SECT'!$G$6:$DC$253,3,FALSE) -> 61.1 | F26: =VLOOKUP($C26,'RECAP SECT'!$G$6:$DC$253,56,FALSE) -> 5,216 | G26: =VLOOKUP($C26,'RECAP SECT'!$G$6:$DC$253,57,FALSE) -> 85.38 | H26: =VLOOKUP($C26,'RECAP SECT'!$G$6:$DC$253,58,FALSE) -> 51% | I26: =VLOOKUP($C26,'RECAP SECT'!$G$6:$DC$253,59,FALSE) -> 10 | J26: =VLOOKUP($C26,'RECAP SECT'!$G$6:$DC$253,60,FALSE) -> 2,413 | K26: =VLOOKUP($C26,'RECAP SECT'!$G$6:$DC$253,61,FALSE) -> 39.51 | L26: =VLOOKUP($C26,'RECAP SECT'!$G$6:$DC$253,62,FALSE) -> 31% | M26: =VLOOKUP($C26,'RECAP SECT'!$G$6:$DC$253,63,FALSE) -> 17 | N26: =VLOOKUP($C26,'RECAP SECT'!$G$6:$DC$253,64,FALSE) -> 817 | O26: =VLOOKUP($C26,'RECAP SECT'!$G$6:$DC$253,65,FALSE) -> 13.37 | P26: =VLOOKUP($C26,'RECAP SECT'!$G$6:$DC$253,66,FALSE) -> 27% | Q26: =VLOOKUP($C26,'RECAP SECT'!$G$6:$DC$253,67,FALSE) -> 8 | R26: =VLOOKUP($C26,'RECAP SECT'!$G$6:$DC$253,68,FALSE) -> 38% | S26: =VLOOKUP($C26,'RECAP SECT'!$G$6:$DC$253,69,FALSE) -> 32% | T26: =VLOOKUP($C26,'RECAP SECT'!$G$6:$DC$253,70,FALSE) -> 12
A27: 80 | B27: VOSGES | C27: 55 | D27: SAINT DIE | E27: =VLOOKUP($C27,'RECAP SECT'!$G$6:$DC$253,3,FALSE) -> 47.1 | F27: =VLOOKUP($C27,'RECAP SECT'!$G$6:$DC$253,56,FALSE) -> 3,723 | G27: =VLOOKUP($C27,'RECAP SECT'!$G$6:$DC$253,57,FALSE) -> 79.08 | H27: =VLOOKUP($C27,'RECAP SECT'!$G$6:$DC$253,58,FALSE) -> 54% | I27: =VLOOKUP($C27,'RECAP SECT'!$G$6:$DC$253,59,FALSE) -> 13 | J27: =VLOOKUP($C27,'RECAP SECT'!$G$6:$DC$253,60,FALSE) -> 2,192 | K27: =VLOOKUP($C27,'RECAP SECT'!$G$6:$DC$253,61,FALSE) -> 46.55 | L27: =VLOOKUP($C27,'RECAP SECT'!$G$6:$DC$253,62,FALSE) -> 19% | M27: =VLOOKUP($C27,'RECAP SECT'!$G$6:$DC$253,63,FALSE) -> 7 | N27: =VLOOKUP($C27,'RECAP SECT'!$G$6:$DC$253,64,FALSE) -> 579 | O27: =VLOOKUP($C27,'RECAP SECT'!$G$6:$DC$253,65,FALSE) -> 12.30 | P27: =VLOOKUP($C27,'RECAP SECT'!$G$6:$DC$253,66,FALSE) -> 33% | Q27: =VLOOKUP($C27,'RECAP SECT'!$G$6:$DC$253,67,FALSE) -> 10 | R27: =VLOOKUP($C27,'RECAP SECT'!$G$6:$DC$253,68,FALSE) -> 37% | S27: =VLOOKUP($C27,'RECAP SECT'!$G$6:$DC$253,69,FALSE) -> 32% | T27: =VLOOKUP($C27,'RECAP SECT'!$G$6:$DC$253,70,FALSE) -> 10
A28: Total CEGEE Directions Régionales | E28: =SUM(E10:E27) -> 1140

Sheet SE_IARD
B1: Accueil | F1: BAROMETRE BDD - TERRITOIRES
F2: IARD ET PREVOYANCE
F3: =ACCUEIL!F7 -> 2021-08-01
F7: Ventes Nettes produits pondérés | J7: Ventes sur client non détenteur de l’univers | N7: Total IARD Prévoyance
F8: =DATEMAJ!C23 -> au 01/08 | H8: coef | I8: ='RECAP DIRCOM'!CF4 -> 14% | J8: =DATEMAJ!C24 -> au 01/08 | L8: coef | M8: ='RECAP DIRCOM'!CJ4 -> 6% | O8: coef | P8: ='RECAP DIRCOM'!CM4 -> 20%
B9: Direction | C9: eds | D9: Territoire | E9: ="ETP perf "&DATEMAJ!$C$28 -> ETP perf 30-juin | F9: VN | G9: VN / ETP | H9: % Ecart au 1er | I9: Rang | J9: VB | K9: VB / ETP | L9: % Ecart au 1er | M9: Rang | N9: Moyenne ecart au 1er | O9: % Ecart au 1er | P9: Rang CEGEE
A10: 50 | B10: AUBE HAUTE MARNE | C10: 21 | D10: CHAUMONT | E10: =VLOOKUP($C10,'RECAP SECT'!$G$6:$DC$253,3,FALSE) -> 33.9 | F10: =VLOOKUP($C10,'RECAP SECT'!$G$6:$DC$253,75,FALSE) -> 5,445 | G10: =VLOOKUP($C10,'RECAP SECT'!$G$6:$DC$253,76,FALSE) -> 160.57 | H10: =VLOOKUP($C10,'RECAP SECT'!$G$6:$DC$253,77,FALSE) -> 22% | I10: =VLOOKUP($C10,'RECAP SECT'!$G$6:$DC$253,78,FALSE) -> 9 | J10: =VLOOKUP($C10,'RECAP SECT'!$G$6:$DC$253,79,FALSE) -> 1,035 | K10: =VLOOKUP($C10,'RECAP SECT'!$G$6:$DC$253,80,FALSE) -> 30.52 | L10: =VLOOKUP($C10,'RECAP SECT'!$G$6:$DC$253,81,FALSE) -> 16% | M10: =VLOOKUP($C10,'RECAP SECT'!$G$6:$DC$253,82,FALSE) -> 5 | N10: =VLOOKUP($C10,'RECAP SECT'!$G$6:$DC$253,83,FALSE) -> 20% | O10: =VLOOKUP($C10,'RECAP SECT'!$G$6:$DC$253,84,FALSE) -> 18% | P10: =VLOOKUP($C10,'RECAP SECT'!$G$6:$DC$253,85,FALSE) -> 9
A11: 50 | B11: AUBE HAUTE MARNE | C11: 14 | D11: TROYES | E11: =VLOOKUP($C11,'RECAP SECT'!$G$6:$DC$253,3,FALSE) -> 67.1 | F11: =VLOOKUP($C11,'RECAP SECT'!$G$6:$DC$253,75,FALSE) -> 7,219 | G11: =VLOOKUP($C11,'RECAP SECT'!$G$6:$DC$253,76,FALSE) -> 107.65 | H11: =VLOOKUP($C11,'RECAP SECT'!$G$6:$DC$253,77,FALSE) -> 48% | I11: =VLOOKUP($C11,'RECAP SECT'!$G$6:$DC$253,78,FALSE) -> 17 | J11: =VLOOKUP($C11,'RECAP SECT'!$G$6:$DC$253,79,FALSE) -> 1,727 | K11: =VLOOKUP($C11,'RECAP SECT'!$G$6:$DC$253,80,FALSE) -> 25.75 | L11: =VLOOKUP($C11,'RECAP SECT'!$G$6:$DC$253,81,FALSE) -> 29% | M11: =VLOOKUP($C11,'RECAP SECT'!$G$6:$DC$253,82,FALSE) -> 15 | N11: =VLOOKUP($C11,'RECAP SECT'!$G$6:$DC$253,83,FALSE) -> 42% | O11: =VLOOKUP($C11,'RECAP SECT'!$G$6:$DC$253,84,FALSE) -> 40% | P11: =VLOOKUP($C11,'RECAP SECT'!$G$6:$DC$253,85,FALSE) -> 17
A12: 262 | B12: BAS-RHIN | C12: 5060 | D12: HAGUENAU | E12: =VLOOKUP($C12,'RECAP SECT'!$G$6:$DC$253,3,FALSE) -> 70.0 | F12: =VLOOKUP($C12,'RECAP SECT'!$G$6:$DC$253,75,FALSE) -> 8,702 | G12: =VLOOKUP($C12,'RECAP SECT'!$G$6:$DC$253,76,FALSE) -> 124.33 | H12: =VLOOKUP($C12,'RECAP SECT'!$G$6:$DC$253,77,FALSE) -> 39% | I12: =VLOOKUP($C12,'RECAP SECT'!$G$6:$DC$253,78,FALSE) -> 16 | J12: =VLOOKUP($C12,'RECAP SECT'!$G$6:$DC$253,79,FALSE) -> 1,623 | K12: =VLOOKUP($C12,'RECAP SECT'!$G$6:$DC$253,80,FALSE) -> 23.19 | L12: =VLOOKUP($C12,'RECAP SECT'!$G$6:$DC$253,81,FALSE) -> 36% | M12: =VLOOKUP($C12,'RECAP SECT'!$G$6:$DC$253,82,FALSE) -> 18 | N12: =VLOOKUP($C12,'RECAP SECT'!$G$6:$DC$253,83,FALSE) -> 38% | O12: =VLOOKUP($C12,'RECAP SECT'!$G$6:$DC$253,84,FALSE) -> 36% | P12: =VLOOKUP($C12,'RECAP SECT'!$G$6:$DC$253,85,FALSE) -> 16
A13: 262 | B13: BAS-RHIN | C13: 5101 | D13: SELESTAT | E13: =VLOOKUP($C13,'RECAP SECT'!$G$6:$DC$253,3,FALSE) -> 59.9 | F13: =VLOOKUP($C13,'RECAP SECT'!$G$6:$DC$253,75,FALSE) -> 9,538 | G13: =VLOOKUP($C13,'RECAP SECT'!$G$6:$DC$253,76,FALSE) -> 159.28 | H13: =VLOOKUP($C13,'RECAP SECT'!$G$6:$DC$253,77,FALSE) -> 22% | I13: =VLOOKUP($C13,'RECAP SECT'!$G$6:$DC$253,78,FALSE) -> 10 | J13: =VLOOKUP($C13,'RECAP SECT'!$G$6:$DC$253,79,FALSE) -> 1,597 | K13: =VLOOKUP($C13,'RECAP SECT'!$G$6:$DC$253,80,FALSE) -> 26.67 | L13: =VLOOKUP($C13,'RECAP SECT'!$G$6:$DC$253,81,FALSE) -> 26% | M13: =VLOOKUP($C13,'RECAP SECT'!$G$6:$DC$253,82,FALSE) -> 13 | N13: =VLOOKUP($C13,'RECAP SECT'!$G$6:$DC$253,83,FALSE) -> 24% | O13: =VLOOKUP($C13,'RECAP SECT'!$G$6:$DC$253,84,FALSE) -> 21% | P13: =VLOOKUP($C13,'RECAP SECT'!$G$6:$DC$253,85,FALSE) -> 11
A14: 262 | B14: BAS-RHIN | C14: 5006 | D14: STRASBOURG | E14: =VLOOKUP($C14,'RECAP SECT'!$G$6:$DC$253,3,FALSE) -> 75.2 | F14: =VLOOKUP($C14,'RECAP SECT'!$G$6:$DC$253,75,FALSE) -> 15,450 | G14: =VLOOKUP($C14,'RECAP SECT'!$G$6:$DC$253,76,FALSE) -> 205.38 | H14: =VLOOKUP($C14,'RECAP SECT'!$G$6:$DC$253,77,FALSE) -> 0% | I14: =VLOOKUP($C14,'RECAP SECT'!$G$6:$DC$253,78,FALSE) -> 1 | J14: =VLOOKUP($C14,'RECAP SECT'!$G$6:$DC$253,79,FALSE) -> 2,301 | K14: =VLOOKUP($C14,'RECAP SECT'!$G$6:$DC$253,80,FALSE) -> 30.59 | L14: =VLOOKUP($C14,'RECAP SECT'!$G$6:$DC$253,81,FALSE) -> 16% | M14: =VLOOKUP($C14,'RECAP SECT'!$G$6:$DC$253,82,FALSE) -> 4 | N14: =VLOOKUP($C14,'RECAP SECT'!$G$6:$DC$253,83,FALSE) -> 5% | O14: =VLOOKUP($C14,'RECAP SECT'!$G$6:$DC$253,84,FALSE) -> 2% | P14: =VLOOKUP($C14,'RECAP SECT'!$G$6:$DC$253,85,FALSE) -> 2
A15: 264 | B15: HAUT-RHIN | C15: 5130 | D15: COLMAR | E15: =VLOOKUP($C15,'RECAP SECT'!$G$6:$DC$253,3,FALSE) -> 61.5 | F15: =VLOOKUP($C15,'RECAP SECT'!$G$6:$DC$253,75,FALSE) -> 9,692 | G15: =VLOOKUP($C15,'RECAP SECT'!$G$6:$DC$253,76,FALSE) -> 157.49 | H15: =VLOOKUP($C15,'RECAP SECT'!$G$6:$DC$253,77,FALSE) -> 23% | I15: =VLOOKUP($C15,'RECAP SECT'!$G$6:$DC$253,78,FALSE) -> 12 | J15: =VLOOKUP($C15,'RECAP SECT'!$G$6:$DC$253,79,FALSE) -> 1,516 | K15: =VLOOKUP($C15,'RECAP SECT'!$G$6:$DC$253,80,FALSE) -> 24.63 | L15: =VLOOKUP($C15,'RECAP SECT'!$G$6:$DC$253,81,FALSE) -> 32% | M15: =VLOOKUP($C15,'RECAP SECT'!$G$6:$DC$253,82,FALSE) -> 16 | N15: =VLOOKUP($C15,'RECAP SECT'!$G$6:$DC$253,83,FALSE) -> 26% | O15: =VLOOKUP($C15,'RECAP SECT'!$G$6:$DC$253,84,FALSE) -> 24% | P15: =VLOOKUP($C15,'RECAP SECT'!$G$6:$DC$253,85,FALSE) -> 12
A16: 264 | B16: HAUT-RHIN | C16: 5169 | D16: MULHOUSE | E16: =VLOOKUP($C16,'RECAP SECT'!$G$6:$DC$253,3,FALSE) -> 61.1 | F16: =VLOOKUP($C16,'RECAP SECT'!$G$6:$DC$253,75,FALSE) -> 5,467 | G16: =VLOOKUP($C16,'RECAP SECT'!$G$6:$DC$253,76,FALSE) -> 89.42 | H16: =VLOOKUP($C16,'RECAP SECT'!$G$6:$DC$253,77,FALSE) -> 56% | I16: =VLOOKUP($C16,'RECAP SECT'!$G$6:$DC$253,78,FALSE) -> 18 | J16: =VLOOKUP($C16,'RECAP SECT'!$G$6:$DC$253,79,FALSE) -> 1,631 | K16: =VLOOKUP($C16,'RECAP SECT'!$G$6:$DC$253,80,FALSE) -> 26.68 | L16: =VLOOKUP($C16,'RECAP SECT'!$G$6:$DC$253,81,FALSE) -> 26% | M16: =VLOOKUP($C16,'RECAP SECT'!$G$6:$DC$253,82,FALSE) -> 12 | N16: =VLOOKUP($C16,'RECAP SECT'!$G$6:$DC$253,83,FALSE) -> 47% | O16: =VLOOKUP($C16,'RECAP SECT'!$G$6:$DC$253,84,FALSE) -> 45% | P16: =VLOOKUP($C16,'RECAP SECT'!$G$6:$DC$253,85,FALSE) -> 18
A17: 30 | B17: MARNE-ARDENNES | C17: 6 | D17: CHALONS EN CHAMPAGNE | E17: =VLOOKUP($C17,'RECAP SECT'!$G$6:$DC$253,3,FALSE) -> 44.7 | F17: =VLOOKUP($C17,'RECAP SECT'!$G$6:$DC$253,75,FALSE) -> 7,725 | G17: =VLOOKUP($C17,'RECAP SECT'!$G$6:$DC$253,76,FALSE) -> 172.94 | H17: =VLOOKUP($C17,'RECAP SECT'!$G$6:$DC$253,77,FALSE) -> 16% | I17: =VLOOKUP($C17,'RECAP SECT'!$G$6:$DC$253,78,FALSE) -> 6 | J17: =VLOOKUP($C17,'RECAP SECT'!$G$6:$DC$253,79,FALSE) -> 1,346 | K17: =VLOOKUP($C17,'RECAP SECT'!$G$6:$DC$253,80,FALSE) -> 30.13 | L17: =VLOOKUP($C17,'RECAP SECT'!$G$6:$DC$253,81,FALSE) -> 17% | M17: =VLOOKUP($C17,'RECAP SECT'!$G$6:$DC$253,82,FALSE) -> 6 | N17: =VLOOKUP($C17,'RECAP SECT'!$G$6:$DC$253,83,FALSE) -> 16% | O17: =VLOOKUP($C17,'RECAP SECT'!$G$6:$DC$253,84,FALSE) -> 14% | P17: =VLOOKUP($C17,'RECAP SECT'!$G$6:$DC$253,85,FALSE) -> 5
A18: 30 | B18: MARNE-ARDENNES | C18: 2 | D18: CHARLEVILLE MEZIERES | E18: =VLOOKUP($C18,'RECAP SECT'!$G$6:$DC$253,3,FALSE) -> 56.6 | F18: =VLOOKUP($C18,'RECAP SECT'!$G$6:$DC$253,75,FALSE) -> 11,452 | G18: =VLOOKUP($C18,'RECAP SECT'!$G$6:$DC$253,76,FALSE) -> 202.31 | H18: =VLOOKUP($C18,'RECAP SECT'!$G$6:$DC$253,77,FALSE) -> 1% | I18: =VLOOKUP($C18,'RECAP SECT'!$G$6:$DC$253,78,FALSE) -> 2 | J18: =VLOOKUP($C18,'RECAP SECT'!$G$6:$DC$253,79,FALSE) -> 1,632 | K18: =VLOOKUP($C18,'RECAP SECT'!$G$6:$DC$253,80,FALSE) -> 28.83 | L18: =VLOOKUP($C18,'RECAP SECT'!$G$6:$DC$253,81,FALSE) -> 20% | M18: =VLOOKUP($C18,'RECAP SECT'!$G$6:$DC$253,82,FALSE) -> 9 | N18: =VLOOKUP($C18,'RECAP SECT'!$G$6:$DC$253,83,FALSE) -> 7% | O18: =VLOOKUP($C18,'RECAP SECT'!$G$6:$DC$253,84,FALSE) -> 5% | P18: =VLOOKUP($C18,'RECAP SECT'!$G$6:$DC$253,85,FALSE) -> 4
A19: 30 | B19: MARNE-ARDENNES | C19: 11 | D19: REIMS | E19: =VLOOKUP($C19,'RECAP SECT'!$G$6:$DC$253,3,FALSE) -> 79.7 | F19: =VLOOKUP($C19,'RECAP SECT'!$G$6:$DC$253,75,FALSE) -> 15,560 | G19: =VLOOKUP($C19,'RECAP SECT'!$G$6:$DC$253,76,FALSE) -> 195.17 | H19: =VLOOKUP($C19,'RECAP SECT'!$G$6:$DC$253,77,FALSE) -> 5% | I19: =VLOOKUP($C19,'RECAP SECT'!$G$6:$DC$253,78,FALSE) -> 4 | J19: =VLOOKUP($C19,'RECAP SECT'!$G$6:$DC$253,79,FALSE) -> 2,702 | K19: =VLOOKUP($C19,'RECAP SECT'!$G$6:$DC$253,80,FALSE) -> 33.89 | L19: =VLOOKUP($C19,'RECAP SECT'!$G$6:$DC$253,81,FALSE) -> 6% | M19: =VLOOKUP($C19,'RECAP SECT'!$G$6:$DC$253,82,FALSE) -> 2 | N19: =VLOOKUP($C19,'RECAP SECT'!$G$6:$DC$253,83,FALSE) -> 5% | O19: =VLOOKUP($C19,'RECAP SECT'!$G$6:$DC$253,84,FALSE) -> 3% | P19: =VLOOKUP($C19,'RECAP SECT'!$G$6:$DC$253,85,FALSE) -> 3
A20: 110 | B20: MEURTHE ET MOSELLE MEUSE | C20: 26 | D20: NANCY | E20: =VLOOKUP($C20,'RECAP SECT'!$G$6:$DC$253,3,FALSE) -> 66.2 | F20: =VLOOKUP($C20,'RECAP SECT'!$G$6:$DC$253,75,FALSE) -> 13,160 | G20: =VLOOKUP($C20,'RECAP SECT'!$G$6:$DC$253,76,FALSE) -> 198.66 | H20: =VLOOKUP($C20,'RECAP SECT'!$G$6:$DC$253,77,FALSE) -> 3% | I20: =VLOOKUP($C20,'RECAP SECT'!$G$6:$DC$253,78,FALSE) -> 3 | J20: =VLOOKUP($C20,'RECAP SECT'!$G$6:$DC$253,79,FALSE) -> 2,400 | K20: =VLOOKUP($C20,'RECAP SECT'!$G$6:$DC$253,80,FALSE) -> 36.23 | L20: =VLOOKUP($C20,'RECAP SECT'!$G$6:$DC$253,81,FALSE) -> 0% | M20: =VLOOKUP($C20,'RECAP SECT'!$G$6:$DC$253,82,FALSE) -> 1 | N20: =VLOOKUP($C20,'RECAP SECT'!$G$6:$DC$253,83,FALSE) -> 2% | O20: =VLOOKUP($C20,'RECAP SECT'!$G$6:$DC$253,84,FALSE) -> 0% | P20: =VLOOKUP($C20,'RECAP SECT'!$G$6:$DC$253,85,FALSE) -> 1
A21: 110 | B21: MEURTHE ET MOSELLE MEUSE | C21: 27 | D21: PONT A MOUSSON | E21: =VLOOKUP($C21,'RECAP SECT'!$G$6:$DC$253,3,FALSE) -> 76.5 | F21: =VLOOKUP($C21,'RECAP SECT'!$G$6:$DC$253,75,FALSE) -> 12,128 | G21: =VLOOKUP($C21,'RECAP SECT'!$G$6:$DC$253,76,FALSE) -> 158.51 | H21: =VLOOKUP($C21,'RECAP SECT'!$G$6:$DC$253,77,FALSE) -> 23% | I21: =VLOOKUP($C21,'RECAP SECT'!$G$6:$DC$253,78,FALSE) -> 11 | J21: =VLOOKUP($C21,'RECAP SECT'!$G$6:$DC$253,79,FALSE) -> 2,460 | K21: =VLOOKUP($C21,'RECAP SECT'!$G$6:$DC$253,80,FALSE) -> 32.15 | L21: =VLOOKUP($C21,'RECAP SECT'!$G$6:$DC$253,81,FALSE) -> 11% | M21: =VLOOKUP($C21,'RECAP SECT'!$G$6:$DC$253,82,FALSE) -> 3 | N21: =VLOOKUP($C21,'RECAP SECT'!$G$6:$DC$253,83,FALSE) -> 19% | O21: =VLOOKUP($C21,'RECAP SECT'!$G$6:$DC$253,84,FALSE) -> 17% | P21: =VLOOKUP($C21,'RECAP SECT'!$G$6:$DC$253,85,FALSE) -> 8
A22: 110 | B22: MEURTHE ET MOSELLE MEUSE | C22: 31 | D22: VERDUN | E22: =VLOOKUP($C22,'RECAP SECT'!$G$6:$DC$253,3,FALSE) -> 55.1 | F22: =VLOOKUP($C22,'RECAP SECT'!$G$6:$DC$253,75,FALSE) -> 8,005 | G22: =VLOOKUP($C22,'RECAP SECT'!$G$6:$DC$253,76,FALSE) -> 145.23 | H22: =VLOOKUP($C22,'RECAP SECT'!$G$6:$DC$253,77,FALSE) -> 29% | I22: =VLOOKUP($C22,'RECAP SECT'!$G$6:$DC$253,78,FALSE) -> 13 | J22: =VLOOKUP($C22,'RECAP SECT'!$G$6:$DC$253,79,FALSE) -> 1,593 | K22: =VLOOKUP($C22,'RECAP SECT'!$G$6:$DC$253,80,FALSE) -> 28.90 | L22: =VLOOKUP($C22,'RECAP SECT'!$G$6:$DC$253,81,FALSE) -> 20% | M22: =VLOOKUP($C22,'RECAP SECT'!$G$6:$DC$253,82,FALSE) -> 8 | N22: =VLOOKUP($C22,'RECAP SECT'!$G$6:$DC$253,83,FALSE) -> 27% | O22: =VLOOKUP($C22,'RECAP SECT'!$G$6:$DC$253,84,FALSE) -> 24% | P22: =VLOOKUP($C22,'RECAP SECT'!$G$6:$DC$253,85,FALSE) -> 13
A23: 160 | B23: MOSELLE | C23: 45 | D23: METZ | E23: =VLOOKUP($C23,'RECAP SECT'!$G$6:$DC$253,3,FALSE) -> 88.4 | F23: =VLOOKUP($C23,'RECAP SECT'!$G$6:$DC$253,75,FALSE) -> 11,761 | G23: =VLOOKUP($C23,'RECAP SECT'!$G$6:$DC$253,76,FALSE) -> 132.97 | H23: =VLOOKUP($C23,'RECAP SECT'!$G$6:$DC$253,77,FALSE) -> 35% | I23: =VLOOKUP($C23,'RECAP SECT'!$G$6:$DC$253,78,FALSE) -> 15 | J23: =VLOOKUP($C23,'RECAP SECT'!$G$6:$DC$253,79,FALSE) -> 2,425 | K23: =VLOOKUP($C23,'RECAP SECT'!$G$6:$DC$253,80,FALSE) -> 27.42 | L23: =VLOOKUP($C23,'RECAP SECT'!$G$6:$DC$253,81,FALSE) -> 24% | M23: =VLOOKUP($C23,'RECAP SECT'!$G$6:$DC$253,82,FALSE) -> 11 | N23: =VLOOKUP($C23,'RECAP SECT'!$G$6:$DC$253,83,FALSE) -> 32% | O23: =VLOOKUP($C23,'RECAP SECT'!$G$6:$DC$253,84,FALSE) -> 30% | P23: =VLOOKUP($C23,'RECAP SECT'!$G$6:$DC$253,85,FALSE) -> 14
A24: 160 | B24: MOSELLE | C24: 42 | D24: MOSELLE EST | E24: =VLOOKUP($C24,'RECAP SECT'!$G$6:$DC$253,3,FALSE) -> 70.2 | F24: =VLOOKUP($C24,'RECAP SECT'!$G$6:$DC$253,75,FALSE) -> 11,554 | G24: =VLOOKUP($C24,'RECAP SECT'!$G$6:$DC$253,76,FALSE) -> 164.52 | H24: =VLOOKUP($C24,'RECAP SECT'!$G$6:$DC$253,77,FALSE) -> 20% | I24: =VLOOKUP($C24,'RECAP SECT'!$G$6:$DC$253,78,FALSE) -> 8 | J24: =VLOOKUP($C24,'RECAP SECT'!$G$6:$DC$253,79,FALSE) -> 1,936 | K24: =VLOOKUP($C24,'RECAP SECT'!$G$6:$DC$253,80,FALSE) -> 27.57 | L24: =VLOOKUP($C24,'RECAP SECT'!$G$6:$DC$253,81,FALSE) -> 24% | M24: =VLOOKUP($C24,'RECAP SECT'!$G$6:$DC$253,82,FALSE) -> 10 | N24: =VLOOKUP($C24,'RECAP SECT'!$G$6:$DC$253,83,FALSE) -> 21% | O24: =VLOOKUP($C24,'RECAP SECT'!$G$6:$DC$253,84,FALSE) -> 19% | P24: =VLOOKUP($C24,'RECAP SECT'!$G$6:$DC$253,85,FALSE) -> 10
A25: 160 | B25: MOSELLE | C25: 44 | D25: MOSELLE NORD | E25: =VLOOKUP($C25,'RECAP SECT'!$G$6:$DC$253,3,FALSE) -> 65.8 | F25: =VLOOKUP($C25,'RECAP SECT'!$G$6:$DC$253,75,FALSE) -> 11,012 | G25: =VLOOKUP($C25,'RECAP SECT'!$G$6:$DC$253,76,FALSE) -> 167.32 | H25: =VLOOKUP($C25,'RECAP SECT'!$G$6:$DC$253,77,FALSE) -> 19% | I25: =VLOOKUP($C25,'RECAP SECT'!$G$6:$DC$253,78,FALSE) -> 7 | J25: =VLOOKUP($C25,'RECAP SECT'!$G$6:$DC$253,79,FALSE) -> 1,937 | K25: =VLOOKUP($C25,'RECAP SECT'!$G$6:$DC$253,80,FALSE) -> 29.43 | L25: =VLOOKUP($C25,'RECAP SECT'!$G$6:$DC$253,81,FALSE) -> 19% | M25: =VLOOKUP($C25,'RECAP SECT'!$G$6:$DC$253,82,FALSE) -> 7 | N25: =VLOOKUP($C25,'RECAP SECT'!$G$6:$DC$253,83,FALSE) -> 19% | O25: =VLOOKUP($C25,'RECAP SECT'!$G$6:$DC$253,84,FALSE) -> 16% | P25: =VLOOKUP($C25,'RECAP SECT'!$G$6:$DC$253,85,FALSE) -> 7
A26: 80 | B26: VOSGES | C26: 57 | D26: EPINAL | E26: =VLOOKUP($C26,'RECAP SECT'!$G$6:$DC$253,3,FALSE) -> 61.1 | F26: =VLOOKUP($C26,'RECAP SECT'!$G$6:$DC$253,75,FALSE) -> 10,889 | G26: =VLOOKUP($C26,'RECAP SECT'!$G$6:$DC$253,76,FALSE) -> 178.26 | H26: =VLOOKUP($C26,'RECAP SECT'!$G$6:$DC$253,77,FALSE) -> 13% | I26: =VLOOKUP($C26,'RECAP SECT'!$G$6:$DC$253,78,FALSE) -> 5 | J26: =VLOOKUP($C26,'RECAP SECT'!$G$6:$DC$253,79,FALSE) -> 1,575 | K26: =VLOOKUP($C26,'RECAP SECT'!$G$6:$DC$253,80,FALSE) -> 25.78 | L26: =VLOOKUP($C26,'RECAP SECT'!$G$6:$DC$253,81,FALSE) -> 29% | M26: =VLOOKUP($C26,'RECAP SECT'!$G$6:$DC$253,82,FALSE) -> 14 | N26: =VLOOKUP($C26,'RECAP SECT'!$G$6:$DC$253,83,FALSE) -> 18% | O26: =VLOOKUP($C26,'RECAP SECT'!$G$6:$DC$253,84,FALSE) -> 16% | P26: =VLOOKUP($C26,'RECAP SECT'!$G$6:$DC$253,85,FALSE) -> 6
A27: 80 | B27: VOSGES | C27: 55 | D27: SAINT DIE | E27: =VLOOKUP($C27,'RECAP SECT'!$G$6:$DC$253,3,FALSE) -> 47.1 | F27: =VLOOKUP($C27,'RECAP SECT'!$G$6:$DC$253,75,FALSE) -> 6,363 | G27: =VLOOKUP($C27,'RECAP SECT'!$G$6:$DC$253,76,FALSE) -> 135.16 | H27: =VLOOKUP($C27,'RECAP SECT'!$G$6:$DC$253,77,FALSE) -> 34% | I27: =VLOOKUP($C27,'RECAP SECT'!$G$6:$DC$253,78,FALSE) -> 14 | J27: =VLOOKUP($C27,'RECAP SECT'!$G$6:$DC$253,79,FALSE) -> 1,117 | K27: =VLOOKUP($C27,'RECAP SECT'!$G$6:$DC$253,80,FALSE) -> 23.73 | L27: =VLOOKUP($C27,'RECAP SECT'!$G$6:$DC$253,81,FALSE) -> 35% | M27: =VLOOKUP($C27,'RECAP SECT'!$G$6:$DC$253,82,FALSE) -> 17 | N27: =VLOOKUP($C27,'RECAP SECT'!$G$6:$DC$253,83,FALSE) -> 34% | O27: =VLOOKUP($C27,'RECAP SECT'!$G$6:$DC$253,84,FALSE) -> 32% | P27: =VLOOKUP($C27,'RECAP SECT'!$G$6:$DC$253,85,FALSE) -> 15
A28: Total CEGEE Directions Régionales | E28: =SUM(E10:E27) -> 1140

Sheet SE_SATISFACTION
B1: Accueil | F1: BAROMETRE BDD - TERRITOIRES
F2: SATISFACTION
F3: =ACCUEIL!F7 -> 2021-08-01
F7: NPS à froid (SAE) | I7: NPS à chaud (QHD) | L7: Total Satisfaction Clients
F8: =DATEMAJ!E4 -> au 30/06 | G8: coef | H8: ='RECAP DIRCOM'!M4 -> 10% | I8: =DATEMAJ!C5 -> au 30/06 | J8: coef | K8: ='RECAP DIRCOM'!P4 -> 10% | M8: coef | N8: ='RECAP DIRCOM'!S4 -> 20%
B9: Direction | C9: eds | D9: Territoire | E9: ="ETP perf "&DATEMAJ!$C$28 -> ETP perf 30-juin | G9: % Ecart au 1er | H9: Rang | J9: % Ecart au 1er | K9: Rang | L9: Moyenne ecart au 1er | M9: % Ecart au 1er | N9: Rang CEGEE
A10: 50 | B10: AUBE HAUTE MARNE | C10: 21 | D10: CHAUMONT | E10: =VLOOKUP($C10,'RECAP SECT'!$G$6:$DC$253,3,FALSE) -> 33.9 | F10: =VLOOKUP($C10,'RECAP SECT'!$G$6:$DC$253,5,FALSE) -> 10 | G10: =VLOOKUP($C10,'RECAP SECT'!$G$6:$DC$253,6,FALSE) -> 58% | H10: =VLOOKUP($C10,'RECAP SECT'!$G$6:$DC$253,7,FALSE) -> 12 | I10: =VLOOKUP($C10,'RECAP SECT'!$G$6:$DC$253,8,FALSE) -> 62% | J10: =VLOOKUP($C10,'RECAP SECT'!$G$6:$DC$253,9,FALSE) -> 15% | K10: =VLOOKUP($C10,'RECAP SECT'!$G$6:$DC$253,10,FALSE) -> 6 | L10: =VLOOKUP($C10,'RECAP SECT'!$G$6:$DC$253,11,FALSE) -> 37% | M10: =VLOOKUP($C10,'RECAP SECT'!$G$6:$DC$253,12,FALSE) -> 33% | N10: =VLOOKUP($C10,'RECAP SECT'!$G$6:$DC$253,13,FALSE) -> 11
A11: 50 | B11: AUBE HAUTE MARNE | C11: 14 | D11: TROYES | E11: =VLOOKUP($C11,'RECAP SECT'!$G$6:$DC$253,3,FALSE) -> 67.1 | F11: =VLOOKUP($C11,'RECAP SECT'!$G$6:$DC$253,5,FALSE) -> 19 | G11: =VLOOKUP($C11,'RECAP SECT'!$G$6:$DC$253,6,FALSE) -> 21% | H11: =VLOOKUP($C11,'RECAP SECT'!$G$6:$DC$253,7,FALSE) -> 5 | I11: =VLOOKUP($C11,'RECAP SECT'!$G$6:$DC$253,8,FALSE) -> 53% | J11: =VLOOKUP($C11,'RECAP SECT'!$G$6:$DC$253,9,FALSE) -> 28% | K11: =VLOOKUP($C11,'RECAP SECT'!$G$6:$DC$253,10,FALSE) -> 13 | L11: =VLOOKUP($C11,'RECAP SECT'!$G$6:$DC$253,11,FALSE) -> 25% | M11: =VLOOKUP($C11,'RECAP SECT'!$G$6:$DC$253,12,FALSE) -> 21% | N11: =VLOOKUP($C11,'RECAP SECT'!$G$6:$DC$253,13,FALSE) -> 6
A12: 262 | B12: BAS-RHIN | C12: 5060 | D12: HAGUENAU | E12: =VLOOKUP($C12,'RECAP SECT'!$G$6:$DC$253,3,FALSE) -> 70.0 | F12: =VLOOKUP($C12,'RECAP SECT'!$G$6:$DC$253,5,FALSE) -> 10 | G12: =VLOOKUP($C12,'RECAP SECT'!$G$6:$DC$253,6,FALSE) -> 58% | H12: =VLOOKUP($C12,'RECAP SECT'!$G$6:$DC$253,7,FALSE) -> 12 | I12: =VLOOKUP($C12,'RECAP SECT'!$G$6:$DC$253,8,FALSE) -> 54% | J12: =VLOOKUP($C12,'RECAP SECT'!$G$6:$DC$253,9,FALSE) -> 27% | K12: =VLOOKUP($C12,'RECAP SECT'!$G$6:$DC$253,10,FALSE) -> 11 | L12: =VLOOKUP($C12,'RECAP SECT'!$G$6:$DC$253,11,FALSE) -> 42% | M12: =VLOOKUP($C12,'RECAP SECT'!$G$6:$DC$253,12,FALSE) -> 38% | N12: =VLOOKUP($C12,'RECAP SECT'!$G$6:$DC$253,13,FALSE) -> 13
A13: 262 | B13: BAS-RHIN | C13: 5101 | D13: SELESTAT | E13: =VLOOKUP($C13,'RECAP SECT'!$G$6:$DC$253,3,FALSE) -> 59.9 | F13: =VLOOKUP($C13,'RECAP SECT'!$G$6:$DC$253,5,FALSE) -> 10 | G13: =VLOOKUP($C13,'RECAP SECT'!$G$6:$DC$253,6,FALSE) -> 58% | H13: =VLOOKUP($C13,'RECAP SECT'!$G$6:$DC$253,7,FALSE) -> 12 | I13: =VLOOKUP($C13,'RECAP SECT'!$G$6:$DC$253,8,FALSE) -> 53% | J13: =VLOOKUP($C13,'RECAP SECT'!$G$6:$DC$253,9,FALSE) -> 27% | K13: =VLOOKUP($C13,'RECAP SECT'!$G$6:$DC$253,10,FALSE) -> 12 | L13: =VLOOKUP($C13,'RECAP SECT'!$G$6:$DC$253,11,FALSE) -> 43% | M13: =VLOOKUP($C13,'RECAP SECT'!$G$6:$DC$253,12,FALSE) -> 39% | N13: =VLOOKUP($C13,'RECAP SECT'!$G$6:$DC$253,13,FALSE) -> 14
A14: 262 | B14: BAS-RHIN | C14: 5006 | D14: STRASBOURG | E14: =VLOOKUP($C14,'RECAP SECT'!$G$6:$DC$253,3,FALSE) -> 75.2 | F14: =VLOOKUP($C14,'RECAP SECT'!$G$6:$DC$253,5,FALSE) -> 17 | G14: =VLOOKUP($C14,'RECAP SECT'!$G$6:$DC$253,6,FALSE) -> 29% | H14: =VLOOKUP($C14,'RECAP SECT'!$G$6:$DC$253,7,FALSE) -> 7 | I14: =VLOOKUP($C14,'RECAP SECT'!$G$6:$DC$253,8,FALSE) -> 52% | J14: =VLOOKUP($C14,'RECAP SECT'!$G$6:$DC$253,9,FALSE) -> 30% | K14: =VLOOKUP($C14,'RECAP SECT'!$G$6:$DC$253,10,FALSE) -> 15 | L14: =VLOOKUP($C14,'RECAP SECT'!$G$6:$DC$253,11,FALSE) -> 29% | M14: =VLOOKUP($C14,'RECAP SECT'!$G$6:$DC$253,12,FALSE) -> 25% | N14: =VLOOKUP($C14,'RECAP SECT'!$G$6:$DC$253,13,FALSE) -> 8
A15: 264 | B15: HAUT-RHIN | C15: 5130 | D15: COLMAR | E15: =VLOOKUP($C15,'RECAP SECT'!$G$6:$DC$253,3,FALSE) -> 61.5 | F15: =VLOOKUP($C15,'RECAP SECT'!$G$6:$DC$253,5,FALSE) -> 6 | G15: =VLOOKUP($C15,'RECAP SECT'!$G$6:$DC$253,6,FALSE) -> 75% | H15: =VLOOKUP($C15,'RECAP SECT'!$G$6:$DC$253,7,FALSE) -> 17 | I15: =VLOOKUP($C15,'RECAP SECT'!$G$6:$DC$253,8,FALSE) -> 47% | J15: =VLOOKUP($C15,'RECAP SECT'!$G$6:$DC$253,9,FALSE) -> 36% | K15: =VLOOKUP($C15,'RECAP SECT'!$G$6:$DC$253,10,FALSE) -> 17 | L15: =VLOOKUP($C15,'RECAP SECT'!$G$6:$DC$253,11,FALSE) -> 55% | M15: =VLOOKUP($C15,'RECAP SECT'!$G$6:$DC$253,12,FALSE) -> 51% | N15: =VLOOKUP($C15,'RECAP SECT'!$G$6:$DC$253,13,FALSE) -> 17
A16: 264 | B16: HAUT-RHIN | C16: 5169 | D16: MULHOUSE | E16: =VLOOKUP($C16,'RECAP SECT'!$G$6:$DC$253,3,FALSE) -> 61.1 | F16: =VLOOKUP($C16,'RECAP SECT'!$G$6:$DC$253,5,FALSE) -> 6 | G16: =VLOOKUP($C16,'RECAP SECT'!$G$6:$DC$253,6,FALSE) -> 75% | H16: =VLOOKUP($C16,'RECAP SECT'!$G$6:$DC$253,7,FALSE) -> 17 | I16: =VLOOKUP($C16,'RECAP SECT'!$G$6:$DC$253,8,FALSE) -> 32% | J16: =VLOOKUP($C16,'RECAP SECT'!$G$6:$DC$253,9,FALSE) -> 56% | K16: =VLOOKUP($C16,'RECAP SECT'!$G$6:$DC$253,10,FALSE) -> 18 | L16: =VLOOKUP($C16,'RECAP SECT'!$G$6:$DC$253,11,FALSE) -> 66% | M16: =VLOOKUP($C16,'RECAP SECT'!$G$6:$DC$253,12,FALSE) -> 62% | N16: =VLOOKUP($C16,'RECAP SECT'!$G$6:$DC$253,13,FALSE) -> 18
A17: 30 | B17: MARNE-ARDENNES | C17: 6 | D17: CHALONS EN CHAMPAGNE | E17: =VLOOKUP($C17,'RECAP SECT'!$G$6:$DC$253,3,FALSE) -> 44.7 | F17: =VLOOKUP($C17,'RECAP SECT'!$G$6:$DC$253,5,FALSE) -> 21 | G17: =VLOOKUP($C17,'RECAP SECT'!$G$6:$DC$253,6,FALSE) -> 13% | H17: =VLOOKUP($C17,'RECAP SECT'!$G$6:$DC$253,7,FALSE) -> 3 | I17: =VLOOKUP($C17,'RECAP SECT'!$G$6:$DC$253,8,FALSE) -> 74% | J17: =VLOOKUP($C17,'RECAP SECT'!$G$6:$DC$253,9,FALSE) -> 0% | K17: =VLOOKUP($C17,'RECAP SECT'!$G$6:$DC$253,10,FALSE) -> 1 | L17: =VLOOKUP($C17,'RECAP SECT'!$G$6:$DC$253,11,FALSE) -> 6% | M17: =VLOOKUP($C17,'RECAP SECT'!$G$6:$DC$253,12,FALSE) -> 2% | N17: =VLOOKUP($C17,'RECAP SECT'!$G$6:$DC$253,13,FALSE) -> 3
A18: 30 | B18: MARNE-ARDENNES | C18: 2 | D18: CHARLEVILLE MEZIERES | E18: =VLOOKUP($C18,'RECAP SECT'!$G$6:$DC$253,3,FALSE) -> 56.6 | F18: =VLOOKUP($C18,'RECAP SECT'!$G$6:$DC$253,5,FALSE) -> 21 | G18: =VLOOKUP($C18,'RECAP SECT'!$G$6:$DC$253,6,FALSE) -> 13% | H18: =VLOOKUP($C18,'RECAP SECT'!$G$6:$DC$253,7,FALSE) -> 3 | I18: =VLOOKUP($C18,'RECAP SECT'!$G$6:$DC$253,8,FALSE) -> 67% | J18: =VLOOKUP($C18,'RECAP SECT'!$G$6:$DC$253,9,FALSE) -> 9% | K18: =VLOOKUP($C18,'RECAP SECT'!$G$6:$DC$253,10,FALSE) -> 4 | L18: =VLOOKUP($C18,'RECAP SECT'!$G$6:$DC$253,11,FALSE) -> 11% | M18: =VLOOKUP($C18,'RECAP SECT'!$G$6:$DC$253,12,FALSE) -> 7% | N18: =VLOOKUP($C18,'RECAP SECT'!$G$6:$DC$253,13,FALSE) -> 4
A19: 30 | B19: MARNE-ARDENNES | C19: 11 | D19: REIMS | E19: =VLOOKUP($C19,'RECAP SECT'!$G$6:$DC$253,3,FALSE) -> 79.7 | F19: =VLOOKUP($C19,'RECAP SECT'!$G$6:$DC$253,5,FALSE) -> 10 | G19: =VLOOKUP($C19,'RECAP SECT'!$G$6:$DC$253,6,FALSE) -> 58% | H19: =VLOOKUP($C19,'RECAP SECT'!$G$6:$DC$253,7,FALSE) -> 12 | I19: =VLOOKUP($C19,'RECAP SECT'!$G$6:$DC$253,8,FALSE) -> 62% | J19: =VLOOKUP($C19,'RECAP SECT'!$G$6:$DC$253,9,FALSE) -> 16% | K19: =VLOOKUP($C19,'RECAP SECT'!$G$6:$DC$253,10,FALSE) -> 7 | L19: =VLOOKUP($C19,'RECAP SECT'!$G$6:$DC$253,11,FALSE) -> 37% | M19: =VLOOKUP($C19,'RECAP SECT'!$G$6:$DC$253,12,FALSE) -> 33% | N19: =VLOOKUP($C19,'RECAP SECT'!$G$6:$DC$253,13,FALSE) -> 12
A20: 110 | B20: MEURTHE ET MOSELLE MEUSE | C20: 26 | D20: NANCY | E20: =VLOOKUP($C20,'RECAP SECT'!$G$6:$DC$253,3,FALSE) -> 66.2 | F20: =VLOOKUP($C20,'RECAP SECT'!$G$6:$DC$253,5,FALSE) -> 14 | G20: =VLOOKUP($C20,'RECAP SECT'!$G$6:$DC$253,6,FALSE) -> 42% | H20: =VLOOKUP($C20,'RECAP SECT'!$G$6:$DC$253,7,FALSE) -> 9 | I20: =VLOOKUP($C20,'RECAP SECT'!$G$6:$DC$253,8,FALSE) -> 57% | J20: =VLOOKUP($C20,'RECAP SECT'!$G$6:$DC$253,9,FALSE) -> 23% | K20: =VLOOKUP($C20,'RECAP SECT'!$G$6:$DC$253,10,FALSE) -> 10 | L20: =VLOOKUP($C20,'RECAP SECT'!$G$6:$DC$253,11,FALSE) -> 32% | M20: =VLOOKUP($C20,'RECAP SECT'!$G$6:$DC$253,12,FALSE) -> 28% | N20: =VLOOKUP($C20,'RECAP SECT'!$G$6:$DC$253,13,FALSE) -> 10
A21: 110 | B21: MEURTHE ET MOSELLE MEUSE | C21: 27 | D21: PONT A MOUSSON | E21: =VLOOKUP($C21,'RECAP SECT'!$G$6:$DC$253,3,FALSE) -> 76.5 | F21: =VLOOKUP($C21,'RECAP SECT'!$G$6:$DC$253,5,FALSE) -> 11 | G21: =VLOOKUP($C21,'RECAP SECT'!$G$6:$DC$253,6,FALSE) -> 54% | H21: =VLOOKUP($C21,'RECAP SECT'!$G$6:$DC$253,7,FALSE) -> 11 | I21: =VLOOKUP($C21,'RECAP SECT'!$G$6:$DC$253,8,FALSE) -> 50% | J21: =VLOOKUP($C21,'RECAP SECT'!$G$6:$DC$253,9,FALSE) -> 32% | K21: =VLOOKUP($C21,'RECAP SECT'!$G$6:$DC$253,10,FALSE) -> 16 | L21: =VLOOKUP($C21,'RECAP SECT'!$G$6:$DC$253,11,FALSE) -> 43% | M21: =VLOOKUP($C21,'RECAP SECT'!$G$6:$DC$253,12,FALSE) -> 39% | N21: =VLOOKUP($C21,'RECAP SECT'!$G$6:$DC$253,13,FALSE) -> 15
A22: 110 | B22: MEURTHE ET MOSELLE MEUSE | C22: 31 | D22: VERDUN | E22: =VLOOKUP($C22,'RECAP SECT'!$G$6:$DC$253,3,FALSE) -> 55.1 | F22: =VLOOKUP($C22,'RECAP SECT'!$G$6:$DC$253,5,FALSE) -> 18 | G22: =VLOOKUP($C22,'RECAP SECT'!$G$6:$DC$253,6,FALSE) -> 25% | H22: =VLOOKUP($C22,'RECAP SECT'!$G$6:$DC$253,7,FALSE) -> 6 | I22: =VLOOKUP($C22,'RECAP SECT'!$G$6:$DC$253,8,FALSE) -> 62% | J22: =VLOOKUP($C22,'RECAP SECT'!$G$6:$DC$253,9,FALSE) -> 15% | K22: =VLOOKUP($C22,'RECAP SECT'!$G$6:$DC$253,10,FALSE) -> 5 | L22: =VLOOKUP($C22,'RECAP SECT'!$G$6:$DC$253,11,FALSE) -> 20% | M22: =VLOOKUP($C22,'RECAP SECT'!$G$6:$DC$253,12,FALSE) -> 16% | N22: =VLOOKUP($C22,'RECAP SECT'!$G$6:$DC$253,13,FALSE) -> 5
A23: 160 | B23: MOSELLE | C23: 45 | D23: METZ | E23: =VLOOKUP($C23,'RECAP SECT'!$G$6:$DC$253,3,FALSE) -> 88.4 | F23: =VLOOKUP($C23,'RECAP SECT'!$G$6:$DC$253,5,FALSE) -> 14 | G23: =VLOOKUP($C23,'RECAP SECT'!$G$6:$DC$253,6,FALSE) -> 42% | H23: =VLOOKUP($C23,'RECAP SECT'!$G$6:$DC$253,7,FALSE) -> 9 | I23: =VLOOKUP($C23,'RECAP SECT'!$G$6:$DC$253,8,FALSE) -> 58% | J23: =VLOOKUP($C23,'RECAP SECT'!$G$6:$DC$253,9,FALSE) -> 21% | K23: =VLOOKUP($C23,'RECAP SECT'!$G$6:$DC$253,10,FALSE) -> 9 | L23: =VLOOKUP($C23,'RECAP SECT'!$G$6:$DC$253,11,FALSE) -> 31% | M23: =VLOOKUP($C23,'RECAP SECT'!$G$6:$DC$253,12,FALSE) -> 27% | N23: =VLOOKUP($C23,'RECAP SECT'!$G$6:$DC$253,13,FALSE) -> 9
A24: 160 | B24: MOSELLE | C24: 42 | D24: MOSELLE EST | E24: =VLOOKUP($C24,'RECAP SECT'!$G$6:$DC$253,3,FALSE) -> 70.2 | F24: =VLOOKUP($C24,'RECAP SECT'!$G$6:$DC$253,5,FALSE) -> 15 | G24: =VLOOKUP($C24,'RECAP SECT'!$G$6:$DC$253,6,FALSE) -> 38% | H24: =VLOOKUP($C24,'RECAP SECT'!$G$6:$DC$253,7,FALSE) -> 8 | I24: =VLOOKUP($C24,'RECAP SECT'!$G$6:$DC$253,8,FALSE) -> 61% | J24: =VLOOKUP($C24,'RECAP SECT'!$G$6:$DC$253,9,FALSE) -> 17% | K24: =VLOOKUP($C24,'RECAP SECT'!$G$6:$DC$253,10,FALSE) -> 8 | L24: =VLOOKUP($C24,'RECAP SECT'!$G$6:$DC$253,11,FALSE) -> 27% | M24: =VLOOKUP($C24,'RECAP SECT'!$G$6:$DC$253,12,FALSE) -> 23% | N24: =VLOOKUP($C24,'RECAP SECT'!$G$6:$DC$253,13,FALSE) -> 7
A25: 160 | B25: MOSELLE | C25: 44 | D25: MOSELLE NORD | E25: =VLOOKUP($C25,'RECAP SECT'!$G$6:$DC$253,3,FALSE) -> 65.8 | F25: =VLOOKUP($C25,'RECAP SECT'!$G$6:$DC$253,5,FALSE) -> 9 | G25: =VLOOKUP($C25,'RECAP SECT'!$G$6:$DC$253,6,FALSE) -> 63% | H25: =VLOOKUP($C25,'RECAP SECT'!$G$6:$DC$253,7,FALSE) -> 16 | I25: =VLOOKUP($C25,'RECAP SECT'!$G$6:$DC$253,8,FALSE) -> 52% | J25: =VLOOKUP($C25,'RECAP SECT'!$G$6:$DC$253,9,FALSE) -> 29% | K25: =VLOOKUP($C25,'RECAP SECT'!$G$6:$DC$253,10,FALSE) -> 14 | L25: =VLOOKUP($C25,'RECAP SECT'!$G$6:$DC$253,11,FALSE) -> 46% | M25: =VLOOKUP($C25,'RECAP SECT'!$G$6:$DC$253,12,FALSE) -> 42% | N25: =VLOOKUP($C25,'RECAP SECT'!$G$6:$DC$253,13,FALSE) -> 16
A26: 80 | B26: VOSGES | C26: 57 | D26: EPINAL | E26: =VLOOKUP($C26,'RECAP SECT'!$G$6:$DC$253,3,FALSE) -> 61.1 | F26: =VLOOKUP($C26,'RECAP SECT'!$G$6:$DC$253,5,FALSE) -> 24 | G26: =VLOOKUP($C26,'RECAP SECT'!$G$6:$DC$253,6,FALSE) -> 0% | H26: =VLOOKUP($C26,'RECAP SECT'!$G$6:$DC$253,7,FALSE) -> 1 | I26: =VLOOKUP($C26,'RECAP SECT'!$G$6:$DC$253,8,FALSE) -> 68% | J26: =VLOOKUP($C26,'RECAP SECT'!$G$6:$DC$253,9,FALSE) -> 8% | K26: =VLOOKUP($C26,'RECAP SECT'!$G$6:$DC$253,10,FALSE) -> 3 | L26: =VLOOKUP($C26,'RECAP SECT'!$G$6:$DC$253,11,FALSE) -> 4% | M26: =VLOOKUP($C26,'RECAP SECT'!$G$6:$DC$253,12,FALSE) -> 0% | N26: =VLOOKUP($C26,'RECAP SECT'!$G$6:$DC$253,13,FALSE) -> 1
A27: 80 | B27: VOSGES | C27: 55 | D27: SAINT DIE | E27: =VLOOKUP($C27,'RECAP SECT'!$G$6:$DC$253,3,FALSE) -> 47.1 | F27: =VLOOKUP($C27,'RECAP SECT'!$G$6:$DC$253,5,FALSE) -> 23 | G27: =VLOOKUP($C27,'RECAP SECT'!$G$6:$DC$253,6,FALSE) -> 4% | H27: =VLOOKUP($C27,'RECAP SECT'!$G$6:$DC$253,7,FALSE) -> 2 | I27: =VLOOKUP($C27,'RECAP SECT'!$G$6:$DC$253,8,FALSE) -> 69% | J27: =VLOOKUP($C27,'RECAP SECT'!$G$6:$DC$253,9,FALSE) -> 7% | K27: =VLOOKUP($C27,'RECAP SECT'!$G$6:$DC$253,10,FALSE) -> 2 | L27: =VLOOKUP($C27,'RECAP SECT'!$G$6:$DC$253,11,FALSE) -> 5% | M27: =VLOOKUP($C27,'RECAP SECT'!$G$6:$DC$253,12,FALSE) -> 1% | N27: =VLOOKUP($C27,'RECAP SECT'!$G$6:$DC$253,13,FALSE) -> 2
A28: Total CEGEE Directions Régionales | E28: =SUM(E10:E27) -> 1140

Sheet AG_CLASS
B1: Accueil | H1: BAROMETRE BDD - AGENCES
H2: CLASSEMENTS
H3: =ACCUEIL!F7 -> 2021-08-01
H8: CLASSEMENT GENERAL | I8: CRITERE Satisfaction Clients | J8: NPS à froid (SAE) | K8: NPS à chaud (QHD) | L8: CRITERE BANCARISATION | M8: Ventes Nettes produits pondérés | N8: Ventes sur client non détenteur de l’univers | O8: Mobilité Macron | P8: Remises commerciales | Q8: CRITERE EPARGNE | R8: Excédent Epargne y/c DAV pondéré | S8: Ventes sur client non détenteur de l’univers | T8: CRITERE IARD PREVOYANCE | U8: Ventes Nettes produits pondérés | V8: Ventes sur client non détenteur de l’univers | W8: CRITERE CREDITS | X8: Engagements et ventes accessoires pondérés Immo | Y8: Engagements et ventes accessoires pondérés Conso | Z8: Ventes sur client non détenteur de l’univers
B9: Direction | C9: eds | D9: Territoire | E9: eds | F9: Agence | G9: ="ETP perf "&DATEMAJ!$C$28 -> ETP perf 30-juin | H9: Rang | I9: Rang | J9: Rang | K9: Rang | L9: Rang | M9: Rang | N9: Rang | O9: Rang | P9: Rang | Q9: Rang | R9: Rang | S9: Rang | T9: Rang | U9: Rang | V9: Rang | W9: Rang | X9: Rang | Y9: Rang | Z9: Rang
A10: 50 | B10: MEURTHE ET MOSELLE MEUSE | C10: 26 | D10: NANCY | E10: 454481 | F10: NANCY PLACE DOMBASLE | G10: 11.6 | H10: 1 | I10: 131 | J10: 131 | K10: 141 | L10: 1 | M10: 2 | N10: 1 | O10: 1 | P10: 239 | Q10: 12 | R10: 46 | S10: 3 | T10: 4 | U10: 5 | V10: 3 | W10: 2 | X10: 3 | Y10: 75 | Z10: 1
A11: 50 | B11: MEURTHE ET MOSELLE MEUSE | C11: 27 | D11: PONT A MOUSSON | E11: 554531 | F11: POMPEY | G11: 2.8 | H11: 2 | I11: 91 | J11: 102 | K11: 82 | L11: 2 | M11: 1 | N11: 11 | O11: 5 | P11: 95 | Q11: 3 | R11: 8 | S11: 4 | T11: 17 | U11: 19 | V11: 13 | W11: 6 | X11: 9 | Y11: 8 | Z11: 15
A12: 50 | B12: MEURTHE ET MOSELLE MEUSE | C12: 26 | D12: NANCY | E12: 554356 | F12: JARVILLE LA MALGRANGE | G12: 3.5 | H12: 3 | I12: 37 | J12: 47 | K12: 49 | L12: 4 | M12: 7 | N12: 4 | O12: 2 | P12: 139 | Q12: 39 | R12: 64 | S12: 18 | T12: 16 | U12: 16 | V12: 17 | W12: 5 | X12: 4 | Y12: 118 | Z12: 4
A13: 50 | B13: MOSELLE | C13: 42 | D13: MOSELLE EST | E13: 457163 | F13: BEHREN LES FORBACH | G13: 2.4 | H13: 4 | I13: 3 | J13: 5 | K13: 20 | L13: 10 | M13: 42 | N13: 5 | O13: 17 | P13: 104 | Q13: 107 | R13: 164 | S13: 20 | T13: 30 | U13: 45 | V13: 22 | W13: 4 | X13: 10 | Y13: 3 | Z13: 3
A14: 50 | B14: MARNE-ARDENNES | C14: 2 | D14: CHARLEVILLE MEZIERES | E14: 408822 | F14: CHARLEVILLE MEZIERES | G14: 3.7 | H14: 5 | I14: 109 | J14: 113 | K14: 124 | L14: 39 | M14: 112 | N14: 8 | O14: 8 | P14: 152 | Q14: 2 | R14: 10 | S14: 2 | T14: 5 | U14: 8 | V14: 6 | W14: 18 | X14: 12 | Y14: 167 | Z14: 10
A15: 50 | B15: MARNE-ARDENNES | C15: 6 | D15: CHALONS EN CHAMPAGNE | E15: 451115 | F15: MOURMELON LE GRAND | G15: 2.9 | H15: 6 | I15: 50 | J15: 85 | K15: 13 | L15: 7 | M15: 6 | N15: 39 | O15: 3 | P15: 233 | Q15: 29 | R15: 144 | S15: 1 | T15: 27 | U15: 31 | V15: 27 | W15: 12 | X15: 30 | Y15: 4 | Z15: 13
A16: 50 | B16: MOSELLE | C16: 44 | D16: MOSELLE NORD | E16: 557113 | F16: AUDUN LE TICHE | G16: 2.0 | H16: 7 | I16: 59 | J16: 20 | K16: 173 | L16: 19 | M16: 23 | N16: 3 | O16: 236 | P16: 198 | Q16: 63 | R16: 94 | S16: 27 | T16: 52 | U16: 68 | V16: 23 | W16: 3 | X16: 2 | Y16: 26 | Z16: 5
A17: 50 | B17: MARNE-ARDENNES | C17: 2 | D17: CHARLEVILLE MEZIERES | E17: 508820 | F17: VOUZIERS | G17: 2.9 | H17: 8 | I17: 66 | J17: 64 | K17: 81 | L17: 58 | M17: 86 | N17: 12 | O17: 38 | P17: 179 | Q17: 100 | R17: 89 | S17: 151 | T17: 1 | U17: 1 | V17: 15 | W17: 20 | X17: 35 | Y17: 37 | Z17: 21
A18: 50 | B18: MOSELLE | C18: 44 | D18: MOSELLE NORD | E18: 557508 | F18: NILVANGE | G18: 2.6 | H18: 9 | I18: 87 | J18: 85 | K18: 86 | L18: 15 | M18: 14 | N18: 50 | O18: 47 | P18: 133 | Q18: 30 | R18: 93 | S18: 5 | T18: 6 | U18: 9 | V18: 8 | W18: 22 | X18: 34 | Y18: 48 | Z18: 23
A19: 50 | B19: MARNE-ARDENNES | C19: 11 | D19: REIMS | E19: 451336 | F19: TINQUEUX | G19: 5.7 | H19: 10 | I19: 144 | J19: 173 | K19: 105 | L19: 53 | M19: 63 | N19: 25 | O19: 16 | P19: 229 | Q19: 1 | R19: 1 | S19: 135 | T19: 29 | U19: 33 | V19: 42 | W19: 33 | X19: 21 | Y19: 171 | Z19: 36
A20: 50 | B20: MARNE-ARDENNES | C20: 11 | D20: REIMS | E20: 551349 | F20: REIMS SAINT REMI | G20: 3.0 | H20: 11 | I20: 137 | J20: 173 | K20: 76 | L20: 27 | M20: 41 | N20: 14 | O20: 12 | P20: 214 | Q20: 23 | R20: 50 | S20: 11 | T20: 7 | U20: 7 | V20: 11 | W20: 19 | X20: 22 | Y20: 113 | Z20: 12
A21: 50 | B21: VOSGES | C21: 57 | D21: EPINAL | E21: 488288 | F21: EPINAL LEOPOLD BOURG | G21: 2.0 | H21: 12 | I21: 61 | J21: 78 | K21: 38 | L21: 22 | M21: 26 | N21: 29 | O21: 11 | P21: 204 | Q21: 16 | R21: 12 | S21: 127 | T21: 95 | U21: 76 | V21: 171 | W21: 7 | X21: 8 | Y21: 28 | Z21: 18
A22: 50 | B22: BAS-RHIN | C22: 5101 | D22: SELESTAT | E22: 4113 | F22: BARR | G22: 2.9 | H22: 13 | I22: 56 | J22: 113 | K22: 7 | L22: 18 | M22: 36 | N22: 162 | O22: 22 | P22: 14 | Q22: 5 | R22: 9 | S22: 7 | T22: 40 | U22: 28 | V22: 129 | W22: 154 | X22: 117 | Y22: 223 | Z22: 89
A23: 50 | B23: MEURTHE ET MOSELLE MEUSE | C23: 31 | D23: VERDUN | E23: 554413 | F23: LONGWY BAS | G23: 3.6 | H23: 14 | I23: 42 | J23: 47 | K23: 61 | L23: 23 | M23: 25 | N23: 85 | O23: 194 | P23: 29 | Q23: 8 | R23: 15 | S23: 12 | T23: 121 | U23: 115 | V23: 120 | W23: 44 | X23: 31 | Y23: 42 | Z23: 125
A24: 50 | B24: BAS-RHIN | C24: 5101 | D24: SELESTAT | E24: 4126 | F24: MUTZIG | G24: 2.0 | H24: 15 | I24: 123 | J24: 131 | K24: 134 | L24: 33 | M24: 40 | N24: 23 | O24: 18 | P24: 211 | Q24: 15 | R24: 33 | S24: 10 | T24: 87 | U24: 134 | V24: 32 | W24: 8 | X24: 47 | Y24: 1 | Z24: 16
A25: 50 | B25: MEURTHE ET MOSELLE MEUSE | C25: 27 | D25: PONT A MOUSSON | E25: 454651 | F25: TOUL | G25: 10.4 | H25: 16 | I25: 227 | J25: 118 | K25: 258 | L25: 11 | M25: 15 | N25: 6 | O25: 6 | P25: 246 | Q25: 87 | R25: 87 | S25: 108 | T25: 56 | U25: 88 | V25: 16 | W25: 1 | X25: 1 | Y25: 33 | Z25: 2
A26: 50 | B26: MEURTHE ET MOSELLE MEUSE | C26: 26 | D26: NANCY | E26: 554476 | F26: NANCY ARTEM | G26: 2.7 | H26: 17 | I26: 97 | J26: 152 | K26: 30 | L26: 41 | M26: 35 | N26: 37 | O26: 14 | P26: 249 | Q26: 9 | R26: 6 | S26: 97 | T26: 67 | U26: 79 | V26: 47 | W26: 39 | X26: 57 | Y26: 134 | Z26: 11
A27: 50 | B27: MEURTHE ET MOSELLE MEUSE | C27: 31 | D27: VERDUN | E27: 454414 | F27: LONGWY HAUT | G27: 3.7 | H27: 18 | I27: 96 | J27: 69 | K27: 149 | L27: 71 | M27: 89 | N27: 55 | O27: 95 | P27: 107 | Q27: 7 | R27: 3 | S27: 41 | T27: 46 | U27: 54 | V27: 34 | W27: 66 | X27: 75 | Y27: 126 | Z27: 38
A28: 50 | B28: BAS-RHIN | C28: 5101 | D28: SELESTAT | E28: 4121 | F28: SCHIRMECK | G28: 3.2 | H28: 19 | I28: 10 | J28: 11 | K28: 32 | L28: 70 | M28: 94 | N28: 161 | O28: 88 | P28: 34 | Q28: 40 | R28: 60 | S28: 26 | T28: 66 | U28: 55 | V28: 108 | W28: 77 | X28: 82 | Y28: 112 | Z28: 54
A29: 50 | B29: MARNE-ARDENNES | C29: 11 | D29: REIMS | E29: 551367 | F29: AY CHAMPAGNE | G29: 2.5 | H29: 20 | I29: 36 | J29: 17 | K29: 145 | L29: 25 | M29: 76 | N29: 16 | O29: 4 | P29: 82 | Q29: 238 | R29: 234 | S29: 183 | T29: 33 | U29: 44 | V29: 28 | W29: 9 | X29: 5 | Y29: 117 | Z29: 9
A30: 50 | B30: MARNE-ARDENNES | C30: 6 | D30: CHALONS EN CHAMPAGNE | E30: 551330 | F30: MONTMIRAIL | G30: 2.9 | H30: 21 | I30: 15 | J30: 23 | K30: 9 | L30: 183 | M30: 215 | N30: 212 | O30: 64 | P30: 47 | Q30: 25 | R30: 54 | S30: 13 | T30: 51 | U30: 49 | V30: 44 | W30: 65 | X30: 54 | Y30: 66 | Z30: 111
A31: 262 | B31: MOSELLE | C31: 45 | D31: METZ | E31: 557444 | F31: SAINT JULIEN LES METZ | G31: 4.9 | H31: 22 | I31: 143 | J31: 173 | K31: 102 | L31: 92 | M31: 92 | N31: 67 | O31: 133 | P31: 141 | Q31: 20 | R31: 23 | S31: 43 | T31: 11 | U31: 15 | V31: 7 | W31: 63 | X31: 90 | Y31: 15 | Z31: 124
A32: 262 | B32: MARNE-ARDENNES | C32: 11 | D32: REIMS | E32: 551340 | F32: BETHENY | G32: 3.0 | H32: 23 | I32: 112 | J32: 118 | K32: 117 | L32: 139 | M32: 153 | N32: 34 | O32: 13 | P32: 243 | Q32: 17 | R32: 25 | S32: 25 | T32: 69 | U32: 75 | V32: 64 | W32: 13 | X32: 13 | Y32: 74 | Z32: 6
A33: 262 | B33: MARNE-ARDENNES | C33: 2 | D33: CHARLEVILLE MEZIERES | E33: 508815 | F33: CARIGNAN | G33: 2.8 | H33: 24 | I33: 79 | J33: 95 | K33: 67 | L33: 76 | M33: 144 | N33: 40 | O33: 141 | P33: 33 | Q33: 6 | R33: 4 | S33: 15 | T33: 139 | U33: 137 | V33: 146 | W33: 67 | X33: 52 | Y33: 99 | Z33: 92
A34: 262 | B34: MARNE-ARDENNES | C34: 2 | D34: CHARLEVILLE MEZIERES | E34: 508833 | F34: VILLERS SEMEUSE CORA | G34: 3.6 | H34: 25 | I34: 136 | J34: 152 | K34: 112 | L34: 34 | M34: 56 | N34: 10 | O34: 28 | P34: 156 | Q34: 49 | R34: 73 | S34: 23 | T34: 50 | U34: 43 | V34: 63 | W34: 27 | X34: 40 | Y34: 31 | Z34: 32
A35: 262 | B35: BAS-RHIN | C35: 5060 | D35: HAGUENAU | E35: 4092 | F35: HOCHFELDEN | G35: 2.4 | H35: 26 | I35: 116 | J35: 152 | K35: 75 | L35: 5 | M35: 4 | N35: 46 | O35: 58 | P35: 53 | Q35: 227 | R35: 246 | S35: 38 | T35: 36 | U35: 50 | V35: 29 | W35: 16 | X35: 23 | Y35: 13 | Z35: 43
A36: 262 | B36: MEURTHE ET MOSELLE MEUSE | C36: 27 | D36: PONT A MOUSSON | E36: 554533 | F36: PONT A MOUSSON BREUIL | G36: 2.8 | H36: 27 | I36: 185 | J36: 169 | K36: 195 | L36: 44 | M36: 68 | N36: 33 | O36: 29 | P36: 127 | Q36: 4 | R36: 2 | S36: 156 | T36: 141 | U36: 145 | V36: 122 | W36: 21 | X36: 16 | Y36: 98 | Z36: 31
A37: 262 | B37: MARNE-ARDENNES | C37: 2 | D37: CHARLEVILLE MEZIERES | E37: 508839 | F37: GIVET | G37: 3.7 | H37: 28 | I37: 60 | J37: 40 | K37: 104 | L37: 129 | M37: 203 | N37: 80 | O37: 91 | P37: 25 | Q37: 163 | R37: 195 | S37: 56 | T37: 3 | U37: 2 | V37: 75 | W37: 98 | X37: 136 | Y37: 39 | Z37: 159
A38: 262 | B38: BAS-RHIN | C38: 5006 | D38: STRASBOURG | E38: 4047 | F38: STRASBOURG CRONENBOURG | G38: 5.0 | H38: 29 | I38: 76 | J38: 102 | K38: 55 | L38: 126 | M38: 126 | N38: 45 | O38: 20 | P38: 237 | Q38: 54 | R38: 116 | S38: 8 | T38: 31 | U38: 25 | V38: 105 | W38: 35 | X38: 14 | Y38: 205 | Z38: 56
A39: 262 | B39: MOSELLE | C39: 42 | D39: MOSELLE EST | E39: 557250 | F39: CREUTZWALD | G39: 2.7 | H39: 30 | I39: 148 | J39: 203 | K39: 51 | L39: 124 | M39: 181 | N39: 76 | O39: 149 | P39: 42 | Q39: 14 | R39: 28 | S39: 14 | T39: 21 | U39: 22 | V39: 41 | W39: 62 | X39: 142 | Y39: 10 | Z39: 105
A40: 262 | B40: MARNE-ARDENNES | C40: 11 | D40: REIMS | E40: 451350 | F40: REIMS CENTRE VILLE | G40: 7.3 | H40: 31 | I40: 158 | J40: 169 | K40: 157 | L40: 110 | M40: 123 | N40: 24 | O40: 25 | P40: 230 | Q40: 52 | R40: 45 | S40: 106 | T40: 44 | U40: 52 | V40: 35 | W40: 10 | X40: 7 | Y40: 57 | Z40: 20
A41: 262 | B41: MARNE-ARDENNES | C41: 2 | D41: CHARLEVILLE MEZIERES | E41: 408801 | F41: CHARLEVILLE JEAN JAURES | G41: 9.4 | H41: 32 | I41: 55 | J41: 47 | K41: 83 | L41: 54 | M41: 103 | N41: 43 | O41: 7 | P41: 161 | Q41: 83 | R41: 138 | S41: 24 | T41: 140 | U41: 144 | V41: 121 | W41: 15 | X41: 11 | Y41: 135 | Z41: 8
A42: 262 | B42: MARNE-ARDENNES | C42: 6 | D42: CHALONS EN CHAMPAGNE | E42: 451120 | F42: SARRY | G42: 2.5 | H42: 33 | I42: 16 | J42: 33 | K42: 4 | L42: 115 | M42: 197 | N42: 173 | O42: 61 | P42: 7 | Q42: 18 | R42: 20 | S42: 50 | T42: 133 | U42: 133 | V42: 134 | W42: 150 | X42: 119 | Y42: 156 | Z42: 146
A43: 262 | B43: MARNE-ARDENNES | C43: 2 | D43: CHARLEVILLE MEZIERES | E43: 408862 | F43: REVIN | G43: 4.3 | H43: 34 | I43: 7 | J43: 5 | K43: 40 | L43: 116 | M43: 169 | N43: 100 | O43: 106 | P43: 44 | Q43: 59 | R43: 67 | S43: 55 | T43: 127 | U43: 122 | V43: 124 | W43: 125 | X43: 113 | Y43: 206 | Z43: 62
A44: 262 | B44: BAS-RHIN | C44: 5060 | D44: HAGUENAU | E44: 4079 | F44: SOULTZ SOUS FORETS | G44: 2.2 | H44: 35 | I44: 89 | J44: 102 | K44: 78 | L44: 17 | M44: 11 | N44: 169 | O44: 54 | P44: 64 | Q44: 122 | R44: 168 | S44: 34 | T44: 59 | U44: 65 | V44: 46 | W44: 64 | X44: 59 | Y44: 59 | Z44: 93
A45: 262 | B45: MOSELLE | C45: 42 | D45: MOSELLE EST | E45: 557305 | F45: FAULQUEMONT | G45: 2.4 | H45: 36 | I45: 29 | J45: 17 | K45: 116 | L45: 64 | M45: 73 | N45: 51 | O45: 35 | P45: 173 | Q45: 103 | R45: 128 | S45: 57 | T45: 85 | U45: 98 | V45: 62 | W45: 46 | X45: 39 | Y45: 61 | Z45: 65
A46: 262 | B46: VOSGES | C46: 55 | D46: SAINT DIE | E46: 488246 | F46: CORNIMONT LA BRESSE | G46: 2.7 | H46: 37 | I46: 8 | J46: 14 | K46: 6 | L46: 173 | M46: 168 | N46: 129 | O46: 191 | P46: 145 | Q46: 181 | R46: 165 | S46: 218 | T46: 34 | U46: 27 | V46: 100 | W46: 47 | X46: 74 | Y46: 20 | Z46: 75
A47: 262 | B47: BAS-RHIN | C47: 5006 | D47: STRASBOURG | E47: 4010 | F47: STRASBOURG MEINAU | G47: 3.3 | H47: 38 | I47: 155 | J47: 137 | K47: 180 | L47: 20 | M47: 28 | N47: 7 | O47: 53 | P47: 181 | Q47: 130 | R47: 224 | S47: 6 | T47: 8 | U47: 11 | V47: 12 | W47: 135 | X47: 246 | Y47: 40 | Z47: 107
A48: 262 | B48: MEURTHE ET MOSELLE MEUSE | C48: 26 | D48: NANCY | E48: 554601 | F48: SAINT MAX | G48: 4.3 | H48: 39 | I48: 18 | J48: 9 | K48: 98 | L48: 101 | M48: 100 | N48: 211 | O48: 55 | P48: 86 | Q48: 68 | R48: 118 | S48: 17 | T48: 64 | U48: 64 | V48: 66 | W48: 156 | X48: 130 | Y48: 148 | Z48: 152
A49: 262 | B49: MEURTHE ET MOSELLE MEUSE | C49: 27 | D49: PONT A MOUSSON | E49: 454535 | F49: PONT A MOUSSON CENTRALE | G49: 7.8 | H49: 40 | I49: 167 | J49: 118 | K49: 217 | L49: 12 | M49: 12 | N49: 31 | O49: 27 | P49: 171 | Q49: 46 | R49: 29 | S49: 134 | T49: 71 | U49: 81 | V49: 51 | W49: 58 | X49: 29 | Y49: 235 | Z49: 45
A50: 262 | B50: VOSGES | C50: 57 | D50: EPINAL | E50: 588631 | F50: THAON LES VOSGES | G50: 5.5 | H50: 41 | I50: 67 | J50: 95 | K50: 39 | L50: 61 | M50: 60 | N50: 53 | O50: 65 | P50: 174 | Q50: 112 | R50: 75 | S50: 232 | T50: 25 | U50: 24 | V50: 39 | W50: 104 | X50: 148 | Y50: 64 | Z50: 104
A51: 262 | B51: MEURTHE ET MOSELLE MEUSE | C51: 27 | D51: PONT A MOUSSON | E51: 554381 | F51: LAXOU ARISTIDE BRIAND | G51: 4.0 | H51: 42 | I51: 72 | J51: 47 | K51: 136 | L51: 28 | M51: 5 | N51: 98 | O51: 78 | P51: 250 | Q51: 81 | R51: 92 | S51: 67 | T51: 63 | U51: 63 | V51: 68 | W51: 124 | X51: 87 | Y51: 194 | Z51: 98
A52: 262 | B52: MOSELLE | C52: 42 | D52: MOSELLE EST | E52: 457165 | F52: BITCHE | G52: 2.1 | H52: 43 | I52: 147 | J52: 173 | K52: 111 | L52: 6 | M52: 8 | N52: 15 | O52: 151 | P52: 39 | Q52: 231 | R52: 256 | S52: 9 | T52: 13 | U52: 20 | V52: 2 | W52: 103 | X52: 164 | Y52: 43 | Z52: 121
A53: 262 | B53: MARNE-ARDENNES | C53: 11 | D53: REIMS | E53: 551305 | F53: REIMS HIPPODROME | G53: 3.9 | H53: 44 | I53: 14 | J53: 28 | K53: 5 | L53: 226 | M53: 213 | N53: 28 | O53: 10 | P53: 260 | Q53: 151 | R53: 169 | S53: 89 | T53: 32 | U53: 30 | V53: 73 | W53: 32 | X53: 26 | Y53: 149 | Z53: 24
A54: 262 | B54: MEURTHE ET MOSELLE MEUSE | C54: 31 | D54: VERDUN | E54: 555679 | F54: VERDUN MAZEL | G54: 3.8 | H54: 45 | I54: 11 | J54: 11 | K54: 41 | L54: 84 | M54: 87 | N54: 84 | O54: 114 | P54: 99 | Q54: 60 | R54: 86 | S54: 33 | T54: 182 | U54: 195 | V54: 148 | W54: 71 | X54: 64 | Y54: 72 | Z54: 91
A55: 262 | B55: MEURTHE ET MOSELLE MEUSE | C55: 31 | D55: VERDUN | E55: 555624 | F55: STENAY | G55: 2.8 | H55: 46 | I55: 48 | J55: 40 | K55: 85 | L55: 9 | M55: 19 | N55: 36 | O55: 144 | P55: 22 | Q55: 109 | R55: 143 | S55: 40 | T55: 131 | U55: 139 | V55: 109 | W55: 116 | X55: 145 | Y55: 58 | Z55: 134
A56: 262 | B56: AUBE HAUTE MARNE | C56: 21 | D56: CHAUMONT | E56: 510590 | F56: CHAUMONT REPUBLIQUE | G56: 4.4 | H56: 47 | I56: 99 | J56: 102 | K56: 108 | L56: 73 | M56: 137 | N56: 41 | O56: 84 | P56: 45 | Q56: 64 | R56: 52 | S56: 152 | T56: 45 | U56: 35 | V56: 71 | W56: 80 | X56: 163 | Y56: 14 | Z56: 110
A57: 262 | B57: MOSELLE | C57: 42 | D57: MOSELLE EST | E57: 457308 | F57: FORBACH CENTRALE | G57: 11.2 | H57: 48 | I57: 47 | J57: 47 | K57: 71 | L57: 42 | M57: 45 | N57: 115 | O57: 152 | P57: 58 | Q57: 77 | R57: 91 | S57: 58 | T57: 78 | U57: 58 | V57: 159 | W57: 131 | X57: 154 | Y57: 46 | Z57: 177
A58: 262 | B58: AUBE HAUTE MARNE | C58: 21 | D58: CHAUMONT | E58: 451151 | F58: WASSY | G58: 2.0 | H58: 49 | I58: 24 | J58: 23 | K58: 54 | L58: 47 | M58: 51 | N58: 72 | O58: 127 | P58: 84 | Q58: 204 | R58: 241 | S58: 16 | T58: 108 | U58: 113 | V58: 92 | W58: 31 | X58: 114 | Y58: 2 | Z58: 86
A59: 262 | B59: BAS-RHIN | C59: 5006 | D59: STRASBOURG | E59: 4037 | F59: MUNDOLSHEIM | G59: 4.0 | H59: 50 | I59: 179 | J59: 209 | K59: 114 | L59: 21 | M59: 13 | N59: 47 | O59: 49 | P59: 186 | Q59: 47 | R59: 43 | S59: 84 | T59: 55 | U59: 42 | V59: 96 | W59: 91 | X59: 110 | Y59: 103 | Z59: 73
A60: 262 | B60: MEURTHE ET MOSELLE MEUSE | C60: 27 | D60: PONT A MOUSSON | E60: 554506 | F60: CHALIGNY NEUVES MAISONS | G60: 3.8 | H60: 51 | I60: 232 | J60: 217 | K60: 233 | L60: 3 | M60: 3 | N60: 17 | O60: 9 | P60: 92 | Q60: 175 | R60: 158 | S60: 217 | T60: 81 | U60: 91 | V60: 61 | W60: 11 | X60: 6 | Y60: 199 | Z60: 7
A61: 262 | B61: MARNE-ARDENNES | C61: 6 | D61: CHALONS EN CHAMPAGNE | E61: 551354 | F61: VERTUS | G61: 2.5 | H61: 52 | I61: 5 | J61: 20 | K61: 1 | L61: 201 | M61: 138 | N61: 203 | O61: 113 | P61: 228 | Q61: 95 | R61: 100 | S61: 103 | T61: 96 | U61: 108 | V61: 83 | W61: 105 | X61: 89 | Y61: 119 | Z61: 123
A62: 262 | B62: MARNE-ARDENNES | C62: 6 | D62: CHALONS EN CHAMPAGNE | E62: 551110 | F62: CHALONS ROOSEVELT | G62: 5.0 | H62: 53 | I62: 25 | J62: 47 | K62: 8 | L62: 123 | M62: 163 | N62: 119 | O62: 51 | P62: 91 | Q62: 80 | R62: 101 | S62: 49 | T62: 82 | U62: 67 | V62: 143 | W62: 119 | X62: 72 | Y62: 202 | Z62: 113
A63: 262 | B63: HAUT-RHIN | C63: 5130 | D63: COLMAR | E63: 4144 | F63: RIBEAUVILLE | G63: 2.9 | H63: 54 | I63: 101 | J63: 118 | K63: 79 | L63: 36 | M63: 52 | N63: 65 | O63: 136 | P63: 32 | Q63: 31 | R63: 32 | S63: 64 | T63: 57 | U63: 29 | V63: 210 | W63: 236 | X63: 206 | Y63: 191 | Z63: 245
A64: 262 | B64: MEURTHE ET MOSELLE MEUSE | C64: 31 | D64: VERDUN | E64: 554412 | F64: LONGUYON | G64: 2.8 | H64: 55 | I64: 23 | J64: 28 | K64: 29 | L64: 134 | M64: 176 | N64: 94 | O64: 76 | P64: 98 | Q64: 160 | R64: 141 | S64: 215 | T64: 104 | U64: 104 | V64: 113 | W64: 29 | X64: 33 | Y64: 38 | Z64: 51
A65: 262 | B65: MOSELLE | C65: 44 | D65: MOSELLE NORD | E65: 457306 | F65: FLORANGE | G65: 3.7 | H65: 56 | I65: 129 | J65: 85 | K65: 184 | L65: 74 | M65: 64 | N65: 133 | O65: 161 | P65: 93 | Q65: 19 | R65: 18 | S65: 61 | T65: 79 | U65: 82 | V65: 84 | W65: 121 | X65: 62 | Y65: 150 | Z65: 178
A66: 262 | B66: BAS-RHIN | C66: 5060 | D66: HAGUENAU | E66: 4082 | F66: BOUXWILLER | G66: 2.5 | H66: 57 | I66: 69 | J66: 78 | K66: 64 | L66: 121 | M66: 74 | N66: 137 | O66: 103 | P66: 206 | Q66: 43 | R66: 40 | S66: 68 | T66: 144 | U66: 187 | V66: 57 | W66: 50 | X66: 32 | Y66: 82 | Z66: 101
A67: 262 | B67: MARNE-ARDENNES | C67: 11 | D67: REIMS | E67: 551310 | F67: REIMS CHATILLONS | G67: 4.1 | H67: 58 | I67: 149 | J67: 189 | K67: 87 | L67: 72 | M67: 115 | N67: 95 | O67: 30 | P67: 60 | Q67: 97 | R67: 115 | S67: 72 | T67: 58 | U67: 48 | V67: 89 | W67: 23 | X67: 19 | Y67: 108 | Z67: 42
A68: 262 | B68: MEURTHE ET MOSELLE MEUSE | C68: 27 | D68: PONT A MOUSSON | E68: 554416 | F68: LUDRES | G68: 3.8 | H68: 59 | I68: 32 | J68: 40 | K68: 46 | L68: 130 | M68: 124 | N68: 62 | O68: 36 | P68: 207 | Q68: 32 | R68: 26 | S68: 90 | T68: 224 | U68: 228 | V68: 214 | W68: 51 | X68: 56 | Y68: 122 | Z68: 33
A69: 262 | B69: MOSELLE | C69: 44 | D69: MOSELLE NORD | E69: 457348 | F69: HAGONDANGE | G69: 9.3 | H69: 60 | I69: 171 | J69: 192 | K69: 135 | L69: 29 | M69: 32 | N69: 196 | O69: 98 | P69: 48 | Q69: 84 | R69: 74 | S69: 143 | T69: 61 | U69: 40 | V69: 125 | W69: 52 | X69: 41 | Y69: 140 | Z69: 53
A70: 262 | B70: MOSELLE | C70: 44 | D70: MOSELLE NORD | E70: 557352 | F70: HETTANGE GRANDE | G70: 4.1 | H70: 61 | I70: 191 | J70: 173 | K70: 196 | L70: 24 | M70: 9 | N70: 70 | O70: 209 | P70: 187 | Q70: 115 | R70: 114 | S70: 130 | T70: 35 | U70: 32 | V70: 82 | W70: 70 | X70: 79 | Y70: 30 | Z70: 132
A71: 262 | B71: VOSGES | C71: 55 | D71: SAINT DIE | E71: 588666 | F71: VAGNEY | G71: 3.9 | H71: 62 | I71: 4 | J71: 3 | K71: 31 | L71: 131 | M71: 122 | N71: 191 | O71: 159 | P71: 83 | Q71: 92 | R71: 68 | S71: 213 | T71: 191 | U71: 156 | V71: 247 | W71: 162 | X71: 157 | Y71: 155 | Z71: 126
A72: 262 | B72: BAS-RHIN | C72: 5006 | D72: STRASBOURG | E72: 4054 | F72: STRASBOURG MONTAGNE VERTE | G72: 2.4 | H72: 63 | I72: 130 | J72: 85 | K72: 185 | L72: 170 | M72: 227 | N72: 13 | O72: 123 | P72: 143 | Q72: 237 | R72: 231 | S72: 177 | T72: 2 | U72: 3 | V72: 1 | W72: 102 | X72: 170 | Y72: 86 | Z72: 58
A73: 262 | B73: MEURTHE ET MOSELLE MEUSE | C73: 31 | D73: VERDUN | E73: 455298 | F73: ETAIN | G73: 1.5 | H73: 64 | I73: 225 | J73: 217 | K73: 220 | L73: 82 | M73: 37 | N73: 164 | O73: 237 | P73: 227 | Q73: 96 | R73: 102 | S73: 105 | T73: 10 | U73: 14 | V73: 10 | W73: 57 | X73: 63 | Y73: 9 | Z73: 208
A74: 262 | B74: MEURTHE ET MOSELLE MEUSE | C74: 27 | D74: PONT A MOUSSON | E74: 554357 | F74: JOEUF | G74: 3.8 | H74: 65 | I74: 135 | J74: 173 | K74: 72 | L74: 90 | M74: 127 | N74: 48 | O74: 23 | P74: 162 | Q74: 250 | R74: 245 | S74: 204 | T74: 23 | U74: 26 | V74: 19 | W74: 14 | X74: 18 | Y74: 25 | Z74: 14
A75: 262 | B75: BAS-RHIN | C75: 5101 | D75: SELESTAT | E75: 4120 | F75: WASSELONNE | G75: 4.4 | H75: 66 | I75: 202 | J75: 237 | K75: 107 | L75: 197 | M75: 136 | N75: 172 | O75: 249 | P75: 197 | Q75: 10 | R75: 13 | S75: 28 | T75: 39 | U75: 37 | V75: 58 | W75: 76 | X75: 195 | Y75: 11 | Z75: 85
A76: 262 | B76: MEURTHE ET MOSELLE MEUSE | C76: 26 | D76: NANCY | E76: 554636 | F76: TOMBLAINE | G76: 2.5 | H76: 67 | I76: 20 | J76: 28 | K76: 15 | L76: 221 | M76: 230 | N76: 89 | O76: 134 | P76: 172 | Q76: 85 | R76: 82 | S76: 115 | T76: 70 | U76: 101 | V76: 25 | W76: 138 | X76: 203 | Y76: 163 | Z76: 50
A77: 262 | B77: MEURTHE ET MOSELLE MEUSE | C77: 26 | D77: NANCY | E77: 454426 | F77: LUNEVILLE CARNOT | G77: 10.0 | H77: 68 | I77: 156 | J77: 152 | K77: 165 | L77: 60 | M77: 62 | N77: 91 | O77: 62 | P77: 149 | Q77: 136 | R77: 121 | S77: 186 | T77: 53 | U77: 39 | V77: 76 | W77: 37 | X77: 36 | Y77: 70 | Z77: 52
A78: 262 | B78: VOSGES | C78: 57 | D78: EPINAL | E78: 588716 | F78: XERTIGNY | G78: 2.9 | H78: 69 | I78: 159 | J78: 152 | K78: 177 | L78: 59 | M78: 71 | N78: 144 | O78: 166 | P78: 30 | Q78: 116 | R78: 123 | S78: 119 | T78: 14 | U78: 4 | V78: 111 | W78: 177 | X78: 200 | Y78: 168 | Z78: 133
A79: 264 | B79: MARNE-ARDENNES | C79: 6 | D79: CHALONS EN CHAMPAGNE | E79: 451101 | F79: CHALONS VIVIERS | G79: 9.3 | H79: 70 | I79: 49 | J79: 78 | K79: 25 | L79: 108 | M79: 116 | N79: 106 | O79: 45 | P79: 142 | Q79: 118 | R79: 151 | S79: 44 | T79: 113 | U79: 130 | V79: 85 | W79: 74 | X79: 66 | Y79: 102 | Z79: 72
A80: 264 | B80: VOSGES | C80: 57 | D80: EPINAL | E80: 488706 | F80: VITTEL | G80: 3.6 | H80: 71 | I80: 40 | J80: 69 | K80: 18 | L80: 225 | M80: 232 | N80: 187 | O80: 93 | P80: 153 | Q80: 57 | R80: 36 | S80: 189 | T80: 75 | U80: 51 | V80: 183 | W80: 99 | X80: 177 | Y80: 128 | Z80: 34
A81: 264 | B81: VOSGES | C81: 57 | D81: EPINAL | E81: 588206 | F81: CHARMES | G81: 2.8 | H81: 72 | I81: 45 | J81: 64 | K81: 37 | L81: 150 | M81: 84 | N81: 136 | O81: 181 | P81: 216 | Q81: 228 | R81: 205 | S81: 248 | T81: 22 | U81: 17 | V81: 77 | W81: 87 | X81: 131 | Y81: 55 | Z81: 97
A82: 264 | B82: BAS-RHIN | C82: 5006 | D82: STRASBOURG | E82: 4019 | F82: STRASBOURG ANVERS | G82: 4.3 | H82: 73 | I82: 120 | J82: 64 | K82: 198 | L82: 46 | M82: 17 | N82: 44 | O82: 48 | P82: 259 | Q82: 51 | R82: 56 | S82: 74 | T82: 97 | U82: 107 | V82: 86 | W82: 172 | X82: 105 | Y82: 212 | Z82: 183
A83: 264 | B83: MEURTHE ET MOSELLE MEUSE | C83: 31 | D83: VERDUN | E83: 455456 | F83: MONTMEDY | G83: 1.8 | H83: 74 | I83: 104 | J83: 118 | K83: 93 | L83: 63 | M83: 85 | N83: 68 | O83: 180 | P83: 43 | Q83: 111 | R83: 110 | S83: 136 | T83: 124 | U83: 94 | V83: 177 | W83: 49 | X83: 91 | Y83: 27 | Z83: 57
A84: 264 | B84: MARNE-ARDENNES | C84: 11 | D84: REIMS | E84: 551314 | F84: FISMES | G84: 3.0 | H84: 75 | I84: 51 | J84: 85 | K84: 14 | L84: 57 | M84: 101 | N84: 63 | O84: 19 | P84: 108 | Q84: 202 | R84: 227 | S84: 59 | T84: 130 | U84: 146 | V84: 87 | W84: 48 | X84: 43 | Y84: 142 | Z84: 30
A85: 264 | B85: VOSGES | C85: 57 | D85: EPINAL | E85: 588396 | F85: LE VAL D AJOL | G85: 2.9 | H85: 76 | I85: 1 | J85: 1 | K85: 2 | L85: 223 | M85: 216 | N85: 259 | O85: 212 | P85: 55 | Q85: 106 | R85: 66 | S85: 250 | T85: 149 | U85: 90 | V85: 245 | W85: 238 | X85: 178 | Y85: 258 | Z85: 201
A86: 264 | B86: MOSELLE | C86: 45 | D86: METZ | E86: 557447 | F86: METZ SAINT MAXIMIN | G86: 3.1 | H86: 77 | I86: 166 | J86: 209 | K86: 84 | L86: 30 | M86: 167 | N86: 2 | O86: 15 | P86: 41 | Q86: 82 | R86: 84 | S86: 102 | T86: 158 | U86: 193 | V86: 80 | W86: 38 | X86: 28 | Y86: 169 | Z86: 29
A87: 264 | B87: VOSGES | C87: 55 | D87: SAINT DIE | E87: 488326 | F87: GERARDMER | G87: 5.1 | H87: 78 | I87: 38 | J87: 60 | K87: 36 | L87: 192 | M87: 120 | N87: 241 | O87: 135 | P87: 201 | Q87: 24 | R87: 11 | S87: 238 | T87: 204 | U87: 173 | V87: 239 | W87: 123 | X87: 100 | Y87: 94 | Z87: 158
A88: 264 | B88: MOSELLE | C88: 45 | D88: METZ | E88: 457443 | F88: METZ REPUBLIQUE | G88: 4.2 | H88: 79 | I88: 6 | J88: 8 | K88: 21 | L88: 190 | M88: 202 | N88: 189 | O88: 193 | P88: 74 | Q88: 102 | R88: 70 | S88: 231 | T88: 232 | U88: 242 | V88: 165 | W88: 101 | X88: 88 | Y88: 157 | Z88: 82
A89: 264 | B89: BAS-RHIN | C89: 5006 | D89: STRASBOURG | E89: 4048 | F89: STRASBOURG KOENIGSHOFFEN | G89: 2.0 | H89: 80 | I89: 211 | J89: 131 | K89: 247 | L89: 31 | M89: 33 | N89: 9 | O89: 102 | P89: 221 | Q89: 213 | R89: 236 | S89: 42 | T89: 9 | U89: 13 | V89: 9 | W89: 107 | X89: 122 | Y89: 52 | Z89: 169
A90: 264 | B90: MARNE-ARDENNES | C90: 2 | D90: CHARLEVILLE MEZIERES | E90: 508819 | F90: MOUZON | G90: 2.0 | H90: 81 | I90: 114 | J90: 113 | K90: 138 | L90: 235 | M90: 238 | N90: 71 | O90: 164 | P90: 222 | Q90: 65 | R90: 31 | S90: 255 | T90: 125 | U90: 163 | V90: 49 | W90: 17 | X90: 24 | Y90: 56 | Z90: 19
A91: 264 | B91: VOSGES | C91: 55 | D91: SAINT DIE | E91: 488586 | F91: SAINT DIE | G91: 10.7 | H91: 82 | I91: 13 | J91: 11 | K91: 44 | L91: 182 | M91: 161 | N91: 152 | O91: 162 | P91: 168 | Q91: 93 | R91: 99 | S91: 100 | T91: 178 | U91: 155 | V91: 221 | W91: 159 | X91: 123 | Y91: 207 | Z91: 112
A92: 264 | B92: MARNE-ARDENNES | C92: 2 | D92: CHARLEVILLE MEZIERES | E92: 508802 | F92: CHARLEVILLE NEVERS | G92: 3.0 | H92: 83 | I92: 52 | J92: 55 | K92: 66 | L92: 162 | M92: 211 | N92: 148 | O92: 37 | P92: 52 | Q92: 243 | R92: 249 | S92: 51 | T92: 19 | U92: 18 | V92: 48 | W92: 127 | X92: 138 | Y92: 45 | Z92: 199
A93: 264 | B93: BAS-RHIN | C93: 5006 | D93: STRASBOURG | E93: 4023 | F93: STRASBOURG VOSGES | G93: 3.3 | H93: 84 | I93: 126 | J93: 33 | K93: 238 | L93: 65 | M93: 67 | N93: 81 | O93: 90 | P93: 130 | Q93: 21 | R93: 27 | S93: 31 | T93: 168 | U93: 127 | V93: 242 | W93: 189 | X93: 166 | Y93: 203 | Z93: 168
A94: 264 | B94: MOSELLE | C94: 45 | D94: METZ | E94: 457453 | F94: MONTIGNY LES METZ | G94: 7.9 | H94: 85 | I94: 54 | J94: 85 | K94: 19 | L94: 106 | M94: 47 | N94: 202 | O94: 72 | P94: 232 | Q94: 71 | R94: 119 | S94: 21 | T94: 234 | U94: 213 | V94: 248 | W94: 72 | X94: 61 | Y94: 131 | Z94: 64
A95: 264 | B95: BAS-RHIN | C95: 5006 | D95: STRASBOURG | E95: 4038 | F95: OBERHAUSBERGEN | G95: 4.8 | H95: 86 | I95: 142 | J95: 196 | K95: 56 | L95: 151 | M95: 78 | N95: 90 | O95: 70 | P95: 248 | Q95: 38 | R95: 58 | S95: 30 | T95: 106 | U95: 84 | V95: 185 | W95: 92 | X95: 71 | Y95: 114 | Z95: 127
A96: 264 | B96: MARNE-ARDENNES | C96: 6 | D96: CHALONS EN CHAMPAGNE | E96: 551128 | F96: SAINTE MENEHOULD | G96: 3.2 | H96: 87 | I96: 62 | J96: 47 | K96: 101 | L96: 85 | M96: 104 | N96: 110 | O96: 85 | P96: 59 | Q96: 189 | R96: 214 | S96: 53 | T96: 49 | U96: 46 | V96: 54 | W96: 202 | X96: 220 | Y96: 144 | Z96: 172
A97: 264 | B97: BAS-RHIN | C97: 5006 | D97: STRASBOURG | E97: 4006 | F97: STRASBOURG NEUDORF | G97: 8.6 | H97: 88 | I97: 28 | J97: 20 | K97: 97 | L97: 69 | M97: 72 | N97: 60 | O97: 92 | P97: 144 | Q97: 173 | R97: 173 | S97: 163 | T97: 84 | U97: 86 | V97: 81 | W97: 224 | X97: 161 | Y97: 260 | Z97: 167
A98: 264 | B98: VOSGES | C98: 57 | D98: EPINAL | E98: 488561 | F98: REMIREMONT | G98: 6.7 | H98: 89 | I98: 86 | J98: 102 | K98: 62 | L98: 97 | M98: 102 | N98: 122 | O98: 116 | P98: 90 | Q98: 79 | R98: 65 | S98: 162 | T98: 145 | U98: 114 | V98: 201 | W98: 153 | X98: 108 | Y98: 227 | Z98: 94
A99: 264 | B99: MEURTHE ET MOSELLE MEUSE | C99: 31 | D99: VERDUN | E99: 455676 | F99: VAUCOULEURS | G99: 1.8 | H99: 90 | I99: 245 | J99: 234 | K99: 242 | L99: 13 | M99: 27 | N99: 86 | O99: 34 | P99: 20 | Q99: 220 | R99: 194 | S99: 249 | T99: 20 | U99: 23 | V99: 21 | W99: 40 | X99: 77 | Y99: 24 | Z99: 40
A100: 264 | B100: BAS-RHIN | C100: 5006 | D100: STRASBOURG | E100: 4024 | F100: STRASBOURG AUSTERLITZ | G100: 2.3 | H100: 91 | I100: 254 | J100: 240 | K100: 248 | L100: 16 | M100: 10 | N100: 20 | O100: 43 | P100: 199 | Q100: 66 | R100: 83 | S100: 48 | T100: 47 | U100: 69 | V100: 18 | W100: 78 | X100: 76 | Y100: 164 | Z100: 55
A101: 264 | B101: BAS-RHIN | C101: 5006 | D101: STRASBOURG | E101: 4027 | F101: SCHILTIGHEIM CENTRE | G101: 3.7 | H101: 92 | I101: 175 | J101: 142 | K101: 203 | L101: 66 | M101: 75 | N101: 21 | O101: 42 | P101: 203 | Q101: 41 | R101: 48 | S101: 45 | T101: 156 | U101: 154 | V101: 169 | W101: 90 | X101: 50 | Y101: 218 | Z101: 83
A102: 264 | B102: MEURTHE ET MOSELLE MEUSE | C102: 26 | D102: NANCY | E102: 554166 | F102: BLAINVILLE | G102: 3.2 | H102: 93 | I102: 216 | J102: 173 | K102: 240 | L102: 77 | M102: 98 | N102: 42 | O102: 39 | P102: 159 | Q102: 61 | R102: 63 | S102: 81 | T102: 103 | U102: 158 | V102: 36 | W102: 45 | X102: 78 | Y102: 51 | Z102: 27
A103: 30 | B103: MARNE-ARDENNES | C103: 11 | D103: REIMS | E103: 451370 | F103: EPERNAY | G103: 11.5 | H103: 94 | I103: 90 | J103: 131 | K103: 50 | L103: 80 | M103: 77 | N103: 131 | O103: 56 | P103: 131 | Q103: 132 | R103: 112 | S103: 203 | T103: 123 | U103: 93 | V103: 176 | W103: 141 | X103: 111 | Y103: 192 | Z103: 108
A104: 30 | B104: BAS-RHIN | C104: 5006 | D104: STRASBOURG | E104: 4043 | F104: STRASBOURG HALLES | G104: 8.2 | H104: 95 | I104: 93 | J104: 69 | K104: 144 | L104: 204 | M104: 107 | N104: 22 | O104: 50 | P104: 262 | Q104: 48 | R104: 53 | S104: 71 | T104: 147 | U104: 150 | V104: 131 | W104: 114 | X104: 51 | Y104: 255 | Z104: 84
A105: 30 | B105: MARNE-ARDENNES | C105: 11 | D105: REIMS | E105: 451361 | F105: PIERRY LECLERC | G105: 1.9 | H105: 96 | I105: 77 | J105: 118 | K105: 35 | L105: 100 | M105: 198 | N105: 75 | O105: 44 | P105: 9 | Q105: 168 | R105: 137 | S105: 241 | T105: 102 | U105: 97 | V105: 115 | W105: 120 | X105: 135 | Y105: 91 | Z105: 115
A106: 30 | B106: BAS-RHIN | C106: 5060 | D106: HAGUENAU | E106: 4030 | F106: BRUMATH | G106: 5.2 | H106: 97 | I106: 152 | J106: 118 | K106: 189 | L106: 125 | M106: 57 | N106: 158 | O106: 108 | P106: 235 | Q106: 36 | R106: 47 | S106: 37 | T106: 205 | U106: 188 | V106: 224 | W106: 69 | X106: 60 | Y106: 101 | Z106: 76
A107: 30 | B107: VOSGES | C107: 57 | D107: EPINAL | E107: 488451 | F107: MIRECOURT | G107: 4.7 | H107: 98 | I107: 39 | J107: 55 | K107: 47 | L107: 216 | M107: 212 | N107: 107 | O107: 83 | P107: 193 | Q107: 121 | R107: 122 | S107: 139 | T107: 109 | U107: 109 | V107: 112 | W107: 133 | X107: 149 | Y107: 180 | Z107: 68
A108: 30 | B108: MEURTHE ET MOSELLE MEUSE | C108: 31 | D108: VERDUN | E108: 455151 | F108: BAR LE DUC | G108: 8.9 | H108: 99 | I108: 121 | J108: 118 | K108: 139 | L108: 78 | M108: 69 | N108: 168 | O108: 97 | P108: 101 | Q108: 139 | R108: 106 | S108: 236 | T108: 116 | U108: 129 | V108: 88 | W108: 94 | X108: 152 | Y108: 60 | Z108: 79
A109: 30 | B109: MARNE-ARDENNES | C109: 6 | D109: CHALONS EN CHAMPAGNE | E109: 551103 | F109: FAGNIERES LECLERC | G109: 3.1 | H109: 100 | I109: 27 | J109: 28 | K109: 57 | L109: 89 | M109: 131 | N109: 56 | O109: 52 | P109: 78 | Q109: 233 | R109: 221 | S109: 210 | T109: 163 | U109: 206 | V109: 65 | W109: 82 | X109: 118 | Y109: 68 | Z109: 71
A110: 30 | B110: BAS-RHIN | C110: 5101 | D110: SELESTAT | E110: 4107 | F110: VILLE | G110: 2.9 | H110: 101 | I110: 257 | J110: 260 | K110: 164 | L110: 14 | M110: 16 | N110: 155 | O110: 165 | P110: 10 | Q110: 44 | R110: 34 | S110: 85 | T110: 26 | U110: 10 | V110: 206 | W110: 188 | X110: 258 | Y110: 85 | Z110: 120
A111: 30 | B111: BAS-RHIN | C111: 5060 | D111: HAGUENAU | E111: 4066 | F111: NIEDERBRONN LES BAINS | G111: 6.1 | H111: 102 | I111: 44 | J111: 69 | K111: 28 | L111: 188 | M111: 188 | N111: 230 | O111: 182 | P111: 69 | Q111: 69 | R111: 41 | S111: 235 | T111: 165 | U111: 138 | V111: 225 | W111: 175 | X111: 175 | Y111: 80 | Z111: 227
A112: 30 | B112: MEURTHE ET MOSELLE MEUSE | C112: 26 | D112: NANCY | E112: 554266 | F112: DOMBASLE SUR MEURTHE | G112: 3.7 | H112: 103 | I112: 231 | J112: 231 | K112: 215 | L112: 158 | M112: 134 | N112: 64 | O112: 67 | P112: 224 | Q112: 37 | R112: 37 | S112: 65 | T112: 60 | U112: 78 | V112: 30 | W112: 60 | X112: 70 | Y112: 32 | Z112: 118
A113: 30 | B113: MEURTHE ET MOSELLE MEUSE | C113: 26 | D113: NANCY | E113: 554116 | F113: BACCARAT | G113: 2.6 | H113: 104 | I113: 64 | J113: 78 | K113: 48 | L113: 109 | M113: 106 | N113: 197 | O113: 160 | P113: 61 | Q113: 119 | R113: 98 | S113: 198 | T113: 166 | U113: 157 | V113: 184 | W113: 157 | X113: 150 | Y113: 90 | Z113: 175
A114: 30 | B114: MEURTHE ET MOSELLE MEUSE | C114: 31 | D114: VERDUN | E114: 554700 | F114: VILLERUPT | G114: 3.0 | H114: 105 | I114: 31 | J114: 17 | K114: 129 | L114: 146 | M114: 155 | N114: 167 | O114: 230 | P114: 50 | Q114: 91 | R114: 109 | S114: 79 | T114: 220 | U114: 212 | V114: 220 | W114: 160 | X114: 180 | Y114: 35 | Z114: 232
A115: 30 | B115: VOSGES | C115: 57 | D115: EPINAL | E115: 588336 | F115: GOLBEY | G115: 3.1 | H115: 106 | I115: 134 | J115: 161 | K115: 88 | L115: 198 | M115: 201 | N115: 93 | O115: 68 | P115: 196 | Q115: 104 | R115: 71 | S115: 224 | T115: 128 | U115: 126 | V115: 126 | W115: 41 | X115: 38 | Y115: 190 | Z115: 17
A116: 30 | B116: AUBE HAUTE MARNE | C116: 14 | D116: TROYES | E116: 510570 | F116: NOGENT SUR SEINE | G116: 4.5 | H116: 107 | I116: 21 | J116: 28 | K116: 16 | L116: 133 | M116: 151 | N116: 156 | O116: 69 | P116: 117 | Q116: 176 | R116: 157 | S116: 221 | T116: 225 | U116: 192 | V116: 256 | W116: 88 | X116: 83 | Y116: 107 | Z116: 100
A117: 30 | B117: VOSGES | C117: 55 | D117: SAINT DIE | E117: 588386 | F117: LE THILLOT | G117: 2.5 | H117: 108 | I117: 110 | J117: 102 | K117: 142 | L117: 138 | M117: 194 | N117: 214 | O117: 157 | P117: 4 | Q117: 114 | R117: 142 | S117: 54 | T117: 54 | U117: 38 | V117: 104 | W117: 215 | X117: 251 | Y117: 78 | Z117: 228
A118: 30 | B118: AUBE HAUTE MARNE | C118: 14 | D118: TROYES | E118: 510523 | F118: LA CHAPELLE ST LUC | G118: 5.6 | H118: 109 | I118: 164 | J118: 152 | K118: 181 | L118: 38 | M118: 46 | N118: 35 | O118: 139 | P118: 111 | Q118: 199 | R118: 216 | S118: 76 | T118: 28 | U118: 61 | V118: 5 | W118: 197 | X118: 179 | Y118: 173 | Z118: 196
A119: 30 | B119: AUBE HAUTE MARNE | C119: 21 | D119: CHAUMONT | E119: 451156 | F119: SAINT DIZIER CENTRE | G119: 9.2 | H119: 110 | I119: 117 | J119: 102 | K119: 153 | L119: 149 | M119: 128 | N119: 83 | O119: 107 | P119: 188 | Q119: 110 | R119: 111 | S119: 126 | T119: 94 | U119: 110 | V119: 78 | W119: 118 | X119: 184 | Y119: 77 | Z119: 77
A120: 30 | B120: AUBE HAUTE MARNE | C120: 14 | D120: TROYES | E120: 510520 | F120: SAINT ANDRE LES VERGERS | G120: 4.1 | H120: 111 | I120: 128 | J120: 95 | K120: 176 | L120: 87 | M120: 118 | N120: 61 | O120: 109 | P120: 51 | Q120: 72 | R120: 72 | S120: 87 | T120: 242 | U120: 248 | V120: 187 | W120: 59 | X120: 125 | Y120: 17 | Z120: 70
A121: 30 | B121: MARNE-ARDENNES | C121: 11 | D121: REIMS | E121: 551365 | F121: DORMANS | G121: 2.6 | H121: 112 | I121: 53 | J121: 33 | K121: 123 | L121: 243 | M121: 245 | N121: 216 | O121: 40 | P121: 205 | Q121: 113 | R121: 139 | S121: 63 | T121: 170 | U121: 185 | V121: 123 | W121: 53 | X121: 48 | Y121: 137 | Z121: 47
A122: 30 | B122: MARNE-ARDENNES | C122: 11 | D122: REIMS | E122: 551309 | F122: REIMS EUROPE | G122: 2.7 | H122: 113 | I122: 92 | J122: 69 | K122: 140 | L122: 206 | M122: 226 | N122: 120 | O122: 117 | P122: 115 | Q122: 128 | R122: 129 | S122: 129 | T122: 73 | U122: 125 | V122: 20 | W122: 155 | X122: 143 | Y122: 151 | Z122: 129
A123: 30 | B123: MOSELLE | C123: 42 | D123: MOSELLE EST | E123: 557210 | F123: CHATEAU SALINS | G123: 2.6 | H123: 114 | I123: 197 | J123: 243 | K123: 63 | L123: 26 | M123: 20 | N123: 153 | O123: 204 | P123: 37 | Q123: 125 | R123: 150 | S123: 62 | T123: 146 | U123: 136 | V123: 167 | W123: 95 | X123: 167 | Y123: 19 | Z123: 140
A124: 30 | B124: MOSELLE | C124: 45 | D124: METZ | E124: 457574 | F124: ROMBAS | G124: 3.2 | H124: 115 | I124: 212 | J124: 234 | K124: 154 | L124: 35 | M124: 79 | N124: 79 | O124: 153 | P124: 1 | Q124: 22 | R124: 19 | S124: 73 | T124: 129 | U124: 123 | V124: 132 | W124: 247 | X124: 209 | Y124: 246 | Z124: 234
A125: 30 | B125: VOSGES | C125: 57 | D125: EPINAL | E125: 488286 | F125: EPINAL ARISTIDE BRIAND | G125: 9.1 | H125: 116 | I125: 41 | J125: 33 | K125: 92 | L125: 122 | M125: 88 | N125: 59 | O125: 121 | P125: 220 | Q125: 207 | R125: 181 | S125: 229 | T125: 80 | U125: 71 | V125: 128 | W125: 216 | X125: 160 | Y125: 254 | Z125: 153
A126: 30 | B126: MOSELLE | C126: 42 | D126: MOSELLE EST | E126: 457583 | F126: SAINT AVOLD | G126: 7.6 | H126: 117 | I126: 105 | J126: 102 | K126: 125 | L126: 141 | M126: 139 | N126: 145 | O126: 101 | P126: 124 | Q126: 127 | R126: 124 | S126: 144 | T126: 119 | U126: 128 | V126: 103 | W126: 140 | X126: 128 | Y126: 129 | Z126: 145
A127: 30 | B127: VOSGES | C127: 57 | D127: EPINAL | E127: 588501 | F127: NEUFCHATEAU | G127: 6.0 | H127: 118 | I127: 9 | J127: 9 | K127: 65 | L127: 203 | M127: 224 | N127: 179 | O127: 59 | P127: 114 | Q127: 223 | R127: 213 | S127: 193 | T127: 174 | U127: 160 | V127: 196 | W127: 110 | X127: 132 | Y127: 160 | Z127: 59
A128: 30 | B128: AUBE HAUTE MARNE | C128: 21 | D128: CHAUMONT | E128: 451154 | F128: JOINVILLE | G128: 1.9 | H128: 119 | I128: 2 | J128: 3 | K128: 3 | L128: 233 | M128: 229 | N128: 116 | O128: 190 | P128: 219 | Q128: 257 | R128: 251 | S128: 259 | T128: 107 | U128: 153 | V128: 43 | W128: 117 | X128: 228 | Y128: 89 | Z128: 35
A129: 30 | B129: MARNE-ARDENNES | C129: 11 | D129: REIMS | E129: 551369 | F129: DAMERY | G129: 2.3 | H129: 120 | I129: 208 | J129: 196 | K129: 207 | L129: 196 | M129: 186 | N129: 27 | O129: 21 | P129: 257 | Q129: 148 | R129: 147 | S129: 155 | T129: 41 | U129: 72 | V129: 14 | W129: 30 | X129: 27 | Y129: 65 | Z129: 46
A130: 30 | B130: AUBE HAUTE MARNE | C130: 21 | D130: CHAUMONT | E130: 410560 | F130: BOURBONNE LES BAINS | G130: 2.0 | H130: 121 | I130: 30 | J130: 60 | K130: 11 | L130: 113 | M130: 80 | N130: 229 | O130: 179 | P130: 118 | Q130: 197 | R130: 184 | S130: 180 | T130: 134 | U130: 151 | V130: 90 | W130: 213 | X130: 226 | Y130: 105 | Z130: 235
A131: 30 | B131: MARNE-ARDENNES | C131: 11 | D131: REIMS | E131: 451301 | F131: REIMS HOTEL DE VILLE | G131: 7.8 | H131: 122 | I131: 124 | J131: 142 | K131: 109 | L131: 32 | M131: 34 | N131: 57 | O131: 26 | P131: 191 | Q131: 256 | R131: 253 | S131: 228 | T131: 62 | U131: 57 | V131: 67 | W131: 79 | X131: 49 | Y131: 177 | Z131: 90
A132: 30 | B132: MOSELLE | C132: 44 | D132: MOSELLE NORD | E132: 457158 | F132: YUTZ | G132: 4.6 | H132: 123 | I132: 138 | J132: 102 | K132: 188 | L132: 94 | M132: 61 | N132: 239 | O132: 227 | P132: 77 | Q132: 135 | R132: 113 | S132: 211 | T132: 98 | U132: 77 | V132: 168 | W132: 158 | X132: 106 | Y132: 152 | Z132: 171
A133: 30 | B133: MOSELLE | C133: 44 | D133: MOSELLE NORD | E133: 457632 | F133: THIONVILLE CENTRALE | G133: 11.8 | H133: 124 | I133: 108 | J133: 69 | K133: 174 | L133: 88 | M133: 108 | N133: 102 | O133: 203 | P133: 31 | Q133: 143 | R133: 171 | S133: 66 | T133: 117 | U133: 111 | V133: 114 | W133: 190 | X133: 183 | Y133: 123 | Z133: 223
A134: 30 | B134: MEURTHE ET MOSELLE MEUSE | C134: 27 | D134: PONT A MOUSSON | E134: 554321 | F134: FROUARD | G134: 3.0 | H134: 125 | I134: 251 | J134: 253 | K134: 175 | L134: 67 | M134: 117 | N134: 146 | O134: 63 | P134: 15 | Q134: 13 | R134: 7 | S134: 201 | T134: 137 | U134: 167 | V134: 72 | W134: 81 | X134: 42 | Y134: 187 | Z134: 103
A135: 30 | B135: MEURTHE ET MOSELLE MEUSE | C135: 31 | D135: VERDUN | E135: 455678 | F135: VERDUN CENTRALE | G135: 10.6 | H135: 126 | I135: 85 | J135: 95 | K135: 74 | L135: 91 | M135: 81 | N135: 109 | O135: 41 | P135: 177 | Q135: 203 | R135: 198 | S135: 178 | T135: 210 | U135: 224 | V135: 157 | W135: 56 | X135: 37 | Y135: 165 | Z135: 61
A136: 30 | B136: MARNE-ARDENNES | C136: 6 | D136: CHALONS EN CHAMPAGNE | E136: 451381 | F136: SEZANNE | G136: 6.5 | H136: 127 | I136: 95 | J136: 118 | K136: 69 | L136: 112 | M136: 147 | N136: 125 | O136: 46 | P136: 87 | Q136: 186 | R136: 196 | S136: 116 | T136: 126 | U136: 99 | V136: 170 | W136: 128 | X136: 107 | Y136: 201 | Z136: 80
A137: 30 | B137: BAS-RHIN | C137: 5006 | D137: STRASBOURG | E137: 4045 | F137: STRASBOURG FRANCS BOURGEOIS | G137: 4.6 | H137: 128 | I137: 182 | J137: 161 | K137: 202 | L137: 102 | M137: 93 | N137: 104 | O137: 138 | P137: 129 | Q137: 11 | R137: 5 | S137: 140 | T137: 239 | U137: 200 | V137: 258 | W137: 174 | X137: 93 | Y137: 229 | Z137: 186
A138: 30 | B138: MEURTHE ET MOSELLE MEUSE | C138: 31 | D138: VERDUN | E138: 455231 | F138: COMMERCY | G138: 4.7 | H138: 129 | I138: 150 | J138: 142 | K138: 167 | L138: 119 | M138: 141 | N138: 101 | O138: 122 | P138: 88 | Q138: 149 | R138: 131 | S138: 208 | T138: 135 | U138: 100 | V138: 197 | W138: 68 | X138: 115 | Y138: 44 | Z138: 66
A139: 30 | B139: VOSGES | C139: 55 | D139: SAINT DIE | E139: 588587 | F139: SAINT DIE CATHEDRALE | G139: 3.7 | H139: 130 | I139: 75 | J139: 131 | K139: 22 | L139: 195 | M139: 195 | N139: 200 | O139: 206 | P139: 94 | Q139: 55 | R139: 38 | S139: 171 | T139: 223 | U139: 239 | V139: 166 | W139: 161 | X139: 137 | Y139: 174 | Z139: 135
A140: 30 | B140: MOSELLE | C140: 45 | D140: METZ | E140: 557612 | F140: SAINTE MARIE AUX CHENES | G140: 3.9 | H140: 131 | I140: 17 | J140: 14 | K140: 45 | L140: 229 | M140: 242 | N140: 244 | O140: 241 | P140: 38 | Q140: 180 | R140: 223 | S140: 35 | T140: 122 | U140: 112 | V140: 130 | W140: 212 | X140: 219 | Y140: 233 | Z140: 116
A141: 30 | B141: VOSGES | C141: 57 | D141: EPINAL | E141: 488281 | F141: ELOYES | G141: 4.7 | H141: 132 | I141: 22 | J141: 14 | K141: 70 | L141: 142 | M141: 159 | N141: 260 | O141: 242 | P141: 2 | Q141: 108 | R141: 76 | S141: 220 | T141: 243 | U141: 230 | V141: 252 | W141: 237 | X141: 155 | Y141: 232 | Z141: 248
A142: 30 | B142: MOSELLE | C142: 42 | D142: MOSELLE EST | E142: 457614 | F142: SARREBOURG | G142: 8.7 | H142: 133 | I142: 160 | J142: 142 | K142: 183 | L142: 107 | M142: 109 | N142: 178 | O142: 146 | P142: 63 | Q142: 70 | R142: 77 | S142: 77 | T142: 155 | U142: 132 | V142: 218 | W142: 146 | X142: 129 | Y142: 121 | Z142: 166
A143: 30 | B143: MEURTHE ET MOSELLE MEUSE | C143: 27 | D143: PONT A MOUSSON | E143: 454696 | F143: VILLERS GENERAL LECLERC | G143: 6.1 | H143: 134 | I143: 68 | J143: 47 | K143: 128 | L143: 166 | M143: 157 | N143: 225 | O143: 120 | P143: 116 | Q143: 105 | R143: 90 | S143: 161 | T143: 167 | U143: 162 | V143: 178 | W143: 207 | X143: 202 | Y143: 175 | Z143: 202
A144: 110 | B144: BAS-RHIN | C144: 5101 | D144: SELESTAT | E144: 4109 | F144: MARCKOLSHEIM | G144: 2.7 | H144: 135 | I144: 88 | J144: 85 | K144: 103 | L144: 148 | M144: 105 | N144: 163 | O144: 174 | P144: 164 | Q144: 164 | R144: 180 | S144: 80 | T144: 177 | U144: 199 | V144: 110 | W144: 93 | X144: 126 | Y144: 36 | Z144: 161
A145: 110 | B145: MARNE-ARDENNES | C145: 2 | D145: CHARLEVILLE MEZIERES | E145: 408806 | F145: SEDAN | G145: 9.2 | H145: 136 | I145: 98 | J145: 161 | K145: 27 | L145: 202 | M145: 214 | N145: 193 | O145: 66 | P145: 120 | Q145: 76 | R145: 49 | S145: 230 | T145: 208 | U145: 177 | V145: 244 | W145: 113 | X145: 69 | Y145: 217 | Z145: 95
A146: 110 | B146: MOSELLE | C146: 42 | D146: MOSELLE EST | E146: 557503 | F146: NEUNKIRCH | G146: 3.8 | H146: 137 | I146: 34 | J146: 60 | K146: 23 | L146: 213 | M146: 206 | N146: 215 | O146: 250 | P146: 66 | Q146: 89 | R146: 55 | S146: 256 | T146: 221 | U146: 205 | V146: 233 | W146: 205 | X146: 240 | Y146: 71 | Z146: 222
A147: 110 | B147: MEURTHE ET MOSELLE MEUSE | C147: 31 | D147: VERDUN | E147: 555406 | F147: LIGNY EN BARROIS | G147: 2.8 | H147: 138 | I147: 57 | J147: 55 | K147: 73 | L147: 169 | M147: 162 | N147: 154 | O147: 171 | P147: 138 | Q147: 159 | R147: 160 | S147: 141 | T147: 189 | U147: 183 | V147: 207 | W147: 148 | X147: 159 | Y147: 81 | Z147: 157
A148: 110 | B148: MOSELLE | C148: 45 | D148: METZ | E148: 557712 | F148: WOIPPY | G148: 5.4 | H148: 139 | I148: 102 | J148: 78 | K148: 148 | L148: 105 | M148: 125 | N148: 54 | O148: 129 | P148: 113 | Q148: 209 | R148: 199 | S148: 206 | T148: 86 | U148: 119 | V148: 40 | W148: 181 | X148: 141 | Y148: 224 | Z148: 154
A149: 110 | B149: MEURTHE ET MOSELLE MEUSE | C149: 26 | D149: NANCY | E149: 554296 | F149: ESSEY LES NANCY | G149: 3.9 | H149: 140 | I149: 125 | J149: 137 | K149: 119 | L149: 98 | M149: 66 | N149: 132 | O149: 79 | P149: 184 | Q149: 134 | R149: 103 | S149: 233 | T149: 211 | U149: 207 | V149: 200 | W149: 96 | X149: 68 | Y149: 184 | Z149: 88
A150: 110 | B150: AUBE HAUTE MARNE | C150: 14 | D150: TROYES | E150: 410550 | F150: BAR SUR AUBE | G150: 5.9 | H150: 141 | I150: 65 | J150: 55 | K150: 94 | L150: 168 | M150: 170 | N150: 186 | O150: 228 | P150: 70 | Q150: 236 | R150: 217 | S150: 237 | T150: 93 | U150: 105 | V150: 79 | W150: 147 | X150: 237 | Y150: 47 | Z150: 119
A151: 110 | B151: MOSELLE | C151: 44 | D151: MOSELLE NORD | E151: 457350 | F151: HAYANGE | G151: 7.3 | H151: 142 | I151: 145 | J151: 78 | K151: 221 | L151: 40 | M151: 50 | N151: 135 | O151: 140 | P151: 26 | Q151: 212 | R151: 242 | S151: 19 | T151: 138 | U151: 140 | V151: 133 | W151: 139 | X151: 98 | Y151: 145 | Z151: 165
A152: 110 | B152: MOSELLE | C152: 45 | D152: METZ | E152: 557559 | F152: REMILLY | G152: 4.1 | H152: 143 | I152: 157 | J152: 173 | K152: 143 | L152: 207 | M152: 190 | N152: 224 | O152: 202 | P152: 110 | Q152: 74 | R152: 57 | S152: 196 | T152: 120 | U152: 116 | V152: 117 | W152: 142 | X152: 146 | Y152: 69 | Z152: 184
A153: 110 | B153: AUBE HAUTE MARNE | C153: 14 | D153: TROYES | E153: 510511 | F153: TROYES BROSSOLETTE | G153: 2.6 | H153: 144 | I153: 106 | J153: 152 | K153: 52 | L153: 86 | M153: 65 | N153: 139 | O153: 145 | P153: 128 | Q153: 156 | R153: 166 | S153: 112 | T153: 198 | U153: 204 | V153: 173 | W153: 152 | X153: 112 | Y153: 132 | Z153: 180
A154: 110 | B154: VOSGES | C154: 55 | D154: SAINT DIE | E154: 588461 | F154: MOYENMOUTIER | G154: 2.5 | H154: 145 | I154: 230 | J154: 222 | K154: 224 | L154: 55 | M154: 54 | N154: 92 | O154: 244 | P154: 68 | Q154: 33 | R154: 14 | S154: 253 | T154: 193 | U154: 184 | V154: 213 | W154: 129 | X154: 224 | Y154: 16 | Z154: 160
A155: 110 | B155: MOSELLE | C155: 42 | D155: MOSELLE EST | E155: 457617 | F155: SARREGUEMINES | G155: 8.2 | H155: 146 | I155: 111 | J155: 113 | K155: 131 | L155: 154 | M155: 111 | N155: 219 | O155: 155 | P155: 146 | Q155: 133 | R155: 159 | S155: 60 | T155: 136 | U155: 118 | V155: 161 | W155: 183 | X155: 116 | Y155: 220 | Z155: 193
A156: 110 | B156: HAUT-RHIN | C156: 5130 | D156: COLMAR | E156: 4143 | F156: MUNSTER | G156: 5.0 | H156: 147 | I156: 133 | J156: 118 | K156: 156 | L156: 48 | M156: 49 | N156: 105 | O156: 115 | P156: 85 | Q156: 217 | R156: 202 | S156: 205 | T156: 132 | U156: 103 | V156: 179 | W156: 170 | X156: 221 | Y156: 53 | Z156: 197
A157: 110 | B157: HAUT-RHIN | C157: 5169 | D157: MULHOUSE | E157: 4195 | F157: CERNAY | G157: 2.4 | H157: 148 | I157: 187 | J157: 196 | K157: 159 | L157: 218 | M157: 246 | N157: 74 | O157: 124 | P157: 102 | Q157: 26 | R157: 16 | S157: 150 | T157: 235 | U157: 251 | V157: 107 | W157: 55 | X157: 58 | Y157: 111 | Z157: 44
A158: 110 | B158: AUBE HAUTE MARNE | C158: 14 | D158: TROYES | E158: 410571 | F158: ROMILLY SUR SEINE | G158: 6.9 | H158: 149 | I158: 83 | J158: 64 | K158: 127 | L158: 104 | M158: 96 | N158: 194 | O158: 100 | P158: 89 | Q158: 198 | R158: 193 | S158: 169 | T158: 190 | U158: 189 | V158: 204 | W158: 132 | X158: 124 | Y158: 104 | Z158: 149
A159: 110 | B159: HAUT-RHIN | C159: 5130 | D159: COLMAR | E159: 4153 | F159: ROUFFACH | G159: 3.7 | H159: 150 | I159: 193 | J159: 226 | K159: 110 | L159: 222 | M159: 217 | N159: 113 | O159: 222 | P159: 166 | Q159: 188 | R159: 191 | S159: 132 | T159: 18 | U159: 21 | V159: 33 | W159: 149 | X159: 207 | Y159: 63 | Z159: 128
A160: 110 | B160: MOSELLE | C160: 44 | D160: MOSELLE NORD | E160: 557347 | F160: GUENANGE | G160: 5.0 | H160: 151 | I160: 242 | J160: 243 | K160: 222 | L160: 99 | M160: 149 | N160: 108 | O160: 150 | P160: 23 | Q160: 94 | R160: 79 | S160: 167 | T160: 152 | U160: 176 | V160: 91 | W160: 26 | X160: 25 | Y160: 166 | Z160: 22
A161: 110 | B161: MOSELLE | C161: 45 | D161: METZ | E161: 557439 | F161: METZ POMPIDOU | G161: 3.9 | H161: 152 | I161: 84 | J161: 40 | K161: 171 | L161: 215 | M161: 165 | N161: 210 | O161: 169 | P161: 213 | Q161: 162 | R161: 189 | S161: 70 | T161: 92 | U161: 131 | V161: 45 | W161: 209 | X161: 172 | Y161: 210 | Z161: 194
A162: 110 | B162: MEURTHE ET MOSELLE MEUSE | C162: 27 | D162: PONT A MOUSSON | E162: 554257 | F162: DIEULOUARD | G162: 3.4 | H162: 153 | I162: 26 | J162: 33 | K162: 34 | L162: 160 | M162: 205 | N162: 238 | O162: 125 | P162: 5 | Q162: 224 | R162: 208 | S162: 225 | T162: 222 | U162: 217 | V162: 219 | W162: 143 | X162: 95 | Y162: 100 | Z162: 212
A163: 110 | B163: AUBE HAUTE MARNE | C163: 21 | D163: CHAUMONT | E163: 410541 | F163: LANGRES | G163: 6.7 | H163: 154 | I163: 190 | J163: 226 | K163: 106 | L163: 128 | M163: 95 | N163: 159 | O163: 105 | P163: 169 | Q163: 154 | R163: 172 | S163: 94 | T163: 89 | U163: 80 | V163: 118 | W163: 109 | X163: 187 | Y163: 79 | Z163: 60
A164: 110 | B164: BAS-RHIN | C164: 5060 | D164: HAGUENAU | E164: 4085 | F164: INGWILLER | G164: 3.2 | H164: 155 | I164: 103 | J164: 55 | K164: 190 | L164: 79 | M164: 24 | N164: 78 | O164: 261 | P164: 244 | Q164: 225 | R164: 238 | S164: 75 | T164: 151 | U164: 171 | V164: 94 | W164: 151 | X164: 232 | Y164: 7 | Z164: 243
A165: 110 | B165: MOSELLE | C165: 42 | D165: MOSELLE EST | E165: 557668 | F165: VALMONT | G165: 4.5 | H165: 156 | I165: 19 | J165: 25 | K165: 26 | L165: 232 | M165: 233 | N165: 253 | O165: 245 | P165: 80 | Q165: 155 | R165: 156 | S165: 138 | T165: 161 | U165: 147 | V165: 195 | W165: 246 | X165: 210 | Y165: 225 | Z165: 246
A166: 110 | B166: MOSELLE | C166: 44 | D166: MOSELLE NORD | E166: 557622 | F166: SIERCK LES BAINS | G166: 1.3 | H166: 157 | I166: 181 | J166: 209 | K166: 126 | L166: 140 | M166: 231 | N166: 32 | O166: 104 | P166: 24 | Q166: 42 | R166: 22 | S166: 176 | T166: 248 | U166: 254 | V166: 158 | W166: 86 | X166: 55 | Y166: 244 | Z166: 48
A167: 110 | B167: MEURTHE ET MOSELLE MEUSE | C167: 27 | D167: PONT A MOUSSON | E167: 454355 | F167: JARNY | G167: 4.7 | H167: 158 | I167: 218 | J167: 240 | K167: 155 | L167: 56 | M167: 39 | N167: 190 | O167: 99 | P167: 180 | Q167: 161 | R167: 152 | S167: 170 | T167: 83 | U167: 95 | V167: 53 | W167: 130 | X167: 53 | Y167: 238 | Z167: 137
A168: 110 | B168: VOSGES | C168: 55 | D168: SAINT DIE | E168: 588186 | F168: BRUYERES | G168: 3.7 | H168: 159 | I168: 70 | J168: 95 | K168: 42 | L168: 153 | M168: 180 | N168: 99 | O168: 178 | P168: 75 | Q168: 260 | R168: 258 | S168: 234 | T168: 91 | U168: 102 | V168: 69 | W168: 54 | X168: 139 | Y168: 29 | Z168: 37
A169: 110 | B169: BAS-RHIN | C169: 5060 | D169: HAGUENAU | E169: 4071 | F169: WISSEMBOURG | G169: 8.4 | H169: 160 | I169: 127 | J169: 196 | K169: 17 | L169: 178 | M169: 182 | N169: 195 | O169: 217 | P169: 81 | Q169: 67 | R169: 61 | S169: 123 | T169: 173 | U169: 174 | V169: 156 | W169: 221 | X169: 222 | Y169: 200 | Z169: 189
A170: 110 | B170: BAS-RHIN | C170: 5060 | D170: HAGUENAU | E170: 4057 | F170: BISCHWILLER | G170: 6.5 | H170: 161 | I170: 188 | J170: 169 | K170: 200 | L170: 62 | M170: 53 | N170: 181 | O170: 223 | P170: 67 | Q170: 172 | R170: 177 | S170: 147 | T170: 74 | U170: 66 | V170: 116 | W170: 194 | X170: 205 | Y170: 62 | Z170: 244
A171: 110 | B171: MOSELLE | C171: 45 | D171: METZ | E171: 557105 | F171: ARS SUR MOSELLE | G171: 3.6 | H171: 162 | I171: 132 | J171: 113 | K171: 162 | L171: 219 | M171: 166 | N171: 149 | O171: 81 | P171: 245 | Q171: 169 | R171: 167 | S171: 174 | T171: 202 | U171: 197 | V171: 198 | W171: 28 | X171: 20 | Y171: 116 | Z171: 49
A172: 110 | B172: MEURTHE ET MOSELLE MEUSE | C172: 26 | D172: NANCY | E172: 454171 | F172: BLAMONT | G172: 1.5 | H172: 163 | I172: 255 | J172: 261 | K172: 99 | L172: 8 | M172: 18 | N172: 18 | O172: 96 | P172: 21 | Q172: 229 | R172: 204 | S172: 251 | T172: 43 | U172: 53 | V172: 31 | W172: 97 | X172: 84 | Y172: 181 | Z172: 69
A173: 110 | B173: MOSELLE | C173: 45 | D173: METZ | E173: 557178 | F173: BOULAY | G173: 3.9 | H173: 164 | I173: 35 | J173: 25 | K173: 100 | L173: 186 | M173: 204 | N173: 134 | O173: 163 | P173: 103 | Q173: 182 | R173: 186 | S173: 142 | T173: 188 | U173: 215 | V173: 140 | W173: 199 | X173: 213 | Y173: 95 | Z173: 215
A174: 110 | B174: MARNE-ARDENNES | C174: 2 | D174: CHARLEVILLE MEZIERES | E174: 408840 | F174: RETHEL | G174: 5.3 | H174: 165 | I174: 63 | J174: 85 | K174: 33 | L174: 143 | M174: 174 | N174: 170 | O174: 168 | P174: 36 | Q174: 167 | R174: 153 | S174: 187 | T174: 184 | U174: 161 | V174: 231 | W174: 232 | X174: 147 | Y174: 256 | Z174: 220
A175: 110 | B175: MOSELLE | C175: 42 | D175: MOSELLE EST | E175: 457258 | F175: DIEUZE | G175: 3.2 | H175: 166 | I175: 118 | J175: 152 | K175: 77 | L175: 117 | M175: 175 | N175: 217 | O175: 175 | P175: 3 | Q175: 187 | R175: 176 | S175: 182 | T175: 100 | U175: 87 | V175: 147 | W175: 217 | X175: 248 | Y175: 136 | Z175: 195
A176: 110 | B176: AUBE HAUTE MARNE | C176: 14 | D176: TROYES | E176: 510530 | F176: ARCIS SUR AUBE | G176: 3.9 | H176: 167 | I176: 33 | J176: 1 | K176: 231 | L176: 95 | M176: 99 | N176: 223 | O176: 142 | P176: 35 | Q176: 249 | R176: 247 | S176: 93 | T176: 169 | U176: 164 | V176: 182 | W176: 204 | X176: 235 | Y176: 154 | Z176: 155
A177: 110 | B177: MOSELLE | C177: 42 | D177: MOSELLE EST | E177: 557523 | F177: PHALSBOURG | G177: 2.2 | H177: 168 | I177: 177 | J177: 192 | K177: 151 | L177: 249 | M177: 225 | N177: 126 | O177: 80 | P177: 255 | Q177: 101 | R177: 96 | S177: 122 | T177: 159 | U177: 141 | V177: 205 | W177: 34 | X177: 99 | Y177: 6 | Z177: 41
A178: 110 | B178: VOSGES | C178: 55 | D178: SAINT DIE | E178: 588551 | F178: RAMBERVILLERS | G178: 3.5 | H178: 169 | I178: 58 | J178: 95 | K178: 12 | L178: 236 | M178: 200 | N178: 183 | O178: 86 | P178: 247 | Q178: 179 | R178: 146 | S178: 254 | T178: 185 | U178: 182 | V178: 194 | W178: 122 | X178: 101 | Y178: 110 | Z178: 142
A179: 110 | B179: AUBE HAUTE MARNE | C179: 14 | D179: TROYES | E179: 510513 | F179: TROYES 1ER MAI | G179: 3.2 | H179: 170 | I179: 184 | J179: 69 | K179: 249 | L179: 152 | M179: 209 | N179: 19 | O179: 87 | P179: 125 | Q179: 195 | R179: 203 | S179: 98 | T179: 162 | U179: 170 | V179: 141 | W179: 43 | X179: 46 | Y179: 115 | Z179: 25
A180: 110 | B180: HAUT-RHIN | C180: 5130 | D180: COLMAR | E180: 4141 | F180: HORBOURG WIHR | G180: 5.8 | H180: 171 | I180: 172 | J180: 137 | K180: 209 | L180: 244 | M180: 220 | N180: 143 | O180: 158 | P180: 242 | Q180: 56 | R180: 39 | S180: 164 | T180: 153 | U180: 159 | V180: 152 | W180: 108 | X180: 103 | Y180: 143 | Z180: 87
A181: 110 | B181: BAS-RHIN | C181: 5101 | D181: SELESTAT | E181: 4015 | F181: LINGOLSHEIM | G181: 4.4 | H181: 172 | I181: 165 | J181: 173 | K181: 158 | L181: 209 | M181: 179 | N181: 233 | O181: 231 | P181: 140 | Q181: 86 | R181: 80 | S181: 124 | T181: 88 | U181: 96 | V181: 70 | W181: 230 | X181: 244 | Y181: 139 | Z181: 236
A182: 110 | B182: MOSELLE | C182: 45 | D182: METZ | E182: 557434 | F182: MARLY | G182: 3.7 | H182: 173 | I182: 71 | J182: 78 | K182: 68 | L182: 118 | M182: 119 | N182: 147 | O182: 156 | P182: 79 | Q182: 165 | R182: 174 | S182: 110 | T182: 245 | U182: 246 | V182: 227 | W182: 173 | X182: 144 | Y182: 182 | Z182: 173
A183: 110 | B183: MEURTHE ET MOSELLE MEUSE | C183: 31 | D183: VERDUN | E183: 455566 | F183: REVIGNY SUR ORNAIN | G183: 3.4 | H183: 174 | I183: 100 | J183: 137 | K183: 58 | L183: 93 | M183: 143 | N183: 138 | O183: 167 | P183: 11 | Q183: 234 | R183: 225 | S183: 197 | T183: 160 | U183: 168 | V183: 145 | W183: 171 | X183: 215 | Y183: 73 | Z183: 170
A184: 110 | B184: MEURTHE ET MOSELLE MEUSE | C184: 27 | D184: PONT A MOUSSON | E184: 554496 | F184: NANCY TROIS MAISONS | G184: 2.6 | H184: 175 | I184: 256 | J184: 255 | K184: 227 | L184: 49 | M184: 55 | N184: 206 | O184: 196 | P184: 12 | Q184: 62 | R184: 69 | S184: 69 | T184: 68 | U184: 89 | V184: 37 | W184: 163 | X184: 208 | Y184: 22 | Z184: 238
A185: 110 | B185: BAS-RHIN | C185: 5060 | D185: HAGUENAU | E185: 4041 | F185: HOERDT | G185: 1.9 | H185: 176 | I185: 235 | J185: 259 | K185: 10 | L185: 50 | M185: 38 | N185: 237 | O185: 192 | P185: 97 | Q185: 34 | R185: 17 | S185: 195 | T185: 142 | U185: 85 | V185: 246 | W185: 250 | X185: 211 | Y185: 241 | Z185: 252
A186: 110 | B186: BAS-RHIN | C186: 5006 | D186: STRASBOURG | E186: 4020 | F186: STRASBOURG ROBERTSAU | G186: 6.2 | H186: 177 | I186: 194 | J186: 203 | K186: 161 | L186: 137 | M186: 91 | N186: 207 | O186: 94 | P186: 178 | Q186: 88 | R186: 97 | S186: 78 | T186: 194 | U186: 169 | V186: 240 | W186: 126 | X186: 73 | Y186: 189 | Z186: 136
A187: 110 | B187: MOSELLE | C187: 45 | D187: METZ | E187: 557445 | F187: METZ SAINT LIVIER | G187: 2.9 | H187: 178 | I187: 140 | J187: 173 | K187: 96 | L187: 127 | M187: 114 | N187: 228 | O187: 197 | P187: 49 | Q187: 137 | R187: 120 | S187: 190 | T187: 181 | U187: 165 | V187: 217 | W187: 184 | X187: 127 | Y187: 247 | Z187: 138
A188: 110 | B188: MARNE-ARDENNES | C188: 11 | D188: REIMS | E188: 551341 | F188: REIMS JEAN JAURES | G188: 4.3 | H188: 179 | I188: 209 | J188: 226 | K188: 170 | L188: 75 | M188: 150 | N188: 142 | O188: 33 | P188: 13 | Q188: 171 | R188: 212 | S188: 36 | T188: 105 | U188: 142 | V188: 60 | W188: 136 | X188: 97 | Y188: 234 | Z188: 78
A189: 110 | B189: MARNE-ARDENNES | C189: 2 | D189: CHARLEVILLE MEZIERES | E189: 508817 | F189: CHARLEVILLE MOHON | G189: 3.4 | H189: 180 | I189: 82 | J189: 102 | K189: 59 | L189: 165 | M189: 250 | N189: 103 | O189: 57 | P189: 6 | Q189: 215 | R189: 188 | S189: 247 | T189: 192 | U189: 210 | V189: 160 | W189: 145 | X189: 102 | Y189: 213 | Z189: 106
A190: 110 | B190: MOSELLE | C190: 45 | D190: METZ | E190: 557437 | F190: METZ SARRE | G190: 3.9 | H190: 181 | I190: 173 | J190: 85 | K190: 244 | L190: 145 | M190: 145 | N190: 49 | O190: 199 | P190: 157 | Q190: 251 | R190: 248 | S190: 184 | T190: 15 | U190: 12 | V190: 26 | W190: 244 | X190: 236 | Y190: 178 | Z190: 250
A191: 160 | B191: MEURTHE ET MOSELLE MEUSE | C191: 26 | D191: NANCY | E191: 454671 | F191: VANDOEUVRE LES NANCY | G191: 4.6 | H191: 182 | I191: 210 | J191: 222 | K191: 179 | L191: 83 | M191: 97 | N191: 38 | O191: 31 | P191: 183 | Q191: 230 | R191: 218 | S191: 216 | T191: 179 | U191: 191 | V191: 137 | W191: 25 | X191: 17 | Y191: 176 | Z191: 26
A192: 160 | B192: BAS-RHIN | C192: 5101 | D192: SELESTAT | E192: 4007 | F192: ILLKIRCH CENTRE | G192: 7.3 | H192: 183 | I192: 201 | J192: 217 | K192: 163 | L192: 51 | M192: 21 | N192: 180 | O192: 126 | P192: 212 | Q192: 200 | R192: 209 | S192: 99 | T192: 99 | U192: 83 | V192: 150 | W192: 192 | X192: 189 | Y192: 147 | Z192: 198
A193: 160 | B193: BAS-RHIN | C193: 5101 | D193: SELESTAT | E193: 4116 | F193: MOLSHEIM | G193: 5.1 | H193: 184 | I193: 176 | J193: 161 | K193: 187 | L193: 187 | M193: 129 | N193: 220 | O193: 189 | P193: 189 | Q193: 53 | R193: 44 | S193: 121 | T193: 207 | U193: 196 | V193: 211 | W193: 182 | X193: 193 | Y193: 179 | Z193: 143
A194: 160 | B194: MEURTHE ET MOSELLE MEUSE | C194: 27 | D194: PONT A MOUSSON | E194: 554196 | F194: CHAMPIGNEULLES | G194: 3.6 | H194: 185 | I194: 199 | J194: 217 | K194: 160 | L194: 43 | M194: 29 | N194: 208 | O194: 143 | P194: 134 | Q194: 210 | R194: 220 | S194: 111 | T194: 115 | U194: 120 | V194: 101 | W194: 179 | X194: 151 | Y194: 141 | Z194: 211
A195: 160 | B195: HAUT-RHIN | C195: 5130 | D195: COLMAR | E195: 4157 | F195: NEUF BRISACH | G195: 3.6 | H195: 186 | I195: 107 | J195: 69 | K195: 172 | L195: 228 | M195: 236 | N195: 175 | O195: 238 | P195: 121 | Q195: 221 | R195: 215 | S195: 173 | T195: 77 | U195: 59 | V195: 155 | W195: 165 | X195: 174 | Y195: 87 | Z195: 176
A196: 160 | B196: MARNE-ARDENNES | C196: 6 | D196: CHALONS EN CHAMPAGNE | E196: 451166 | F196: VITRY LE FRANCOIS | G196: 6.8 | H196: 187 | I196: 122 | J196: 173 | K196: 53 | L196: 199 | M196: 208 | N196: 165 | O196: 32 | P196: 165 | Q196: 201 | R196: 197 | S196: 168 | T196: 164 | U196: 143 | V196: 203 | W196: 111 | X196: 67 | Y196: 230 | Z196: 81
A197: 160 | B197: BAS-RHIN | C197: 5006 | D197: STRASBOURG | E197: 4026 | F197: STRASBOURG DANUBE | G197: 4.5 | H197: 188 | I197: 169 | J197: 33 | K197: 256 | L197: 234 | M197: 173 | N197: 218 | O197: 253 | P197: 241 | Q197: 246 | R197: 252 | S197: 46 | T197: 12 | U197: 6 | V197: 52 | W197: 222 | X197: 218 | Y197: 106 | Z197: 251
A198: 160 | B198: MOSELLE | C198: 45 | D198: METZ | E198: 557432 | F198: MAIZIERES LES METZ | G198: 3.9 | H198: 189 | I198: 115 | J198: 40 | K198: 223 | L198: 135 | M198: 158 | N198: 124 | O198: 89 | P198: 105 | Q198: 145 | R198: 154 | S198: 91 | T198: 199 | U198: 194 | V198: 199 | W198: 226 | X198: 156 | Y198: 252 | Z198: 203
A199: 160 | B199: MARNE-ARDENNES | C199: 11 | D199: REIMS | E199: 451308 | F199: REIMS SAINT THOMAS | G199: 7.3 | H199: 190 | I199: 213 | J199: 189 | K199: 230 | L199: 185 | M199: 160 | N199: 114 | O199: 77 | P199: 225 | Q199: 205 | R199: 192 | S199: 202 | T199: 148 | U199: 166 | V199: 99 | W199: 24 | X199: 15 | Y199: 93 | Z199: 63
A200: 160 | B200: BAS-RHIN | C200: 5060 | D200: HAGUENAU | E200: 4087 | F200: SAVERNE | G200: 7.9 | H200: 191 | I200: 203 | J200: 161 | K200: 232 | L200: 132 | M200: 44 | N200: 127 | O200: 119 | P200: 258 | Q200: 142 | R200: 135 | S200: 157 | T200: 172 | U200: 175 | V200: 149 | W200: 106 | X200: 86 | Y200: 96 | Z200: 141
A201: 160 | B201: BAS-RHIN | C201: 5006 | D201: STRASBOURG | E201: 4028 | F201: BISCHHEIM | G201: 3.5 | H201: 192 | I201: 192 | J201: 169 | K201: 206 | L201: 167 | M201: 156 | N201: 171 | O201: 218 | P201: 119 | Q201: 144 | R201: 136 | S201: 166 | T201: 72 | U201: 70 | V201: 98 | W201: 234 | X201: 234 | Y201: 185 | Z201: 225
A202: 160 | B202: HAUT-RHIN | C202: 5169 | D202: MULHOUSE | E202: 4181 | F202: WITTELSHEIM | G202: 3.3 | H202: 193 | I202: 168 | J202: 185 | K202: 150 | L202: 220 | M202: 219 | N202: 77 | O202: 112 | P202: 200 | Q202: 242 | R202: 237 | S202: 165 | T202: 110 | U202: 148 | V202: 50 | W202: 42 | X202: 104 | Y202: 18 | Z202: 28
A203: 160 | B203: AUBE HAUTE MARNE | C203: 21 | D203: CHAUMONT | E203: 410566 | F203: CHAUMONT HOTEL DE VILLE | G203: 7.7 | H203: 194 | I203: 161 | J203: 192 | K203: 115 | L203: 136 | M203: 152 | N203: 96 | O203: 110 | P203: 135 | Q203: 185 | R203: 187 | S203: 145 | T203: 201 | U203: 202 | V203: 186 | W203: 112 | X203: 158 | Y203: 41 | Z203: 148
A204: 160 | B204: BAS-RHIN | C204: 5060 | D204: HAGUENAU | E204: 4031 | F204: TRUCHTERSHEIM | G204: 2.9 | H204: 195 | I204: 162 | J204: 203 | K204: 90 | L204: 81 | M204: 22 | N204: 254 | O204: 225 | P204: 210 | Q204: 58 | R204: 59 | S204: 82 | T204: 252 | U204: 235 | V204: 262 | W204: 248 | X204: 227 | Y204: 250 | Z204: 207
... 68 more rows

Sheet AG_FICHE
A1: Accueil
A2: BAROMETRE GRAND PUBLIC
A4: UNITE: | B4: Agence | E4: ETP perf : | F4: =VLOOKUP(A5,'RECAP AG'!$G$6:$DG$269,3,FALSE) -> 7.90
A5: =VLOOKUP(B5,LISTES!$C$6:$D$269,2,FALSE) -> 4189 | B5: ALTKIRCH
C6: Coefficient du critère | E6: Résultats | I6: Ecart au 1ier | K6: =IF(OR(A5=4017,A5=4022),"Rang estimé","Rang") -> Rang
E7: du 1ier | G7: de l'Agence | I7: Du mois
A9: RANG GRAND PUBLIC | K9: =VLOOKUP($A$5,'RECAP AG'!$G$6:$DG$269,104,FALSE) -> 258
A11: SATISFACTION CLIENTS | C11: 20% | K11: =VLOOKUP($A$5,'RECAP AG'!$G$6:$DG$269,13,FALSE) -> 224
B12: NPS à froid (SAE) | C12: 10% | E12: =+'RECAP AG'!K4 -> 46 | G12: =VLOOKUP($A$5,'RECAP AG'!$G$6:$DG$269,5,FALSE) -> 8.0 | I12: =VLOOKUP($A$5,'RECAP AG'!$G$6:$DG$269,6,FALSE) -> 72% | K12: =VLOOKUP($A$5,'RECAP AG'!$G$6:$DG$269,7,FALSE) -> 189
B13: NPS à chaud (QHD) | C13: 10% | E13: =+'RECAP AG'!M4 -> 10% | G13: =VLOOKUP($A$5,'RECAP AG'!$G$6:$DG$269,8,FALSE) -> 34% | I13: =VLOOKUP($A$5,'RECAP AG'!$G$6:$DG$269,9,FALSE) -> 62% | K13: =VLOOKUP($A$5,'RECAP AG'!$G$6:$DG$269,10,FALSE) -> 243
A15: BANCARISATION | C15: 20% | K15: =VLOOKUP($A$5,'RECAP AG'!$G$6:$DG$269,36,FALSE) -> 260
B16: Ventes Nettes produits pondérés | C16: 10% | E16: ='RECAP AG'!X4 -> 133.6 | G16: =VLOOKUP($A$5,'RECAP AG'!$G$6:$DG$269,19,FALSE) -> 8.7 | I16: =VLOOKUP($A$5,'RECAP AG'!$G$6:$DG$269,20,FALSE) -> 93% | K16: =VLOOKUP($A$5,'RECAP AG'!$G$6:$DG$269,21,FALSE) -> 258
B17: Ventes sur client non détenteur de l’univers | C17: 4% | E17: ='RECAP AG'!AB4 -> 65.9 | G17: =VLOOKUP($A$5,'RECAP AG'!$G$6:$DG$269,23,FALSE) -> 18.5 | I17: =VLOOKUP($A$5,'RECAP AG'!$G$6:$DG$269,24,FALSE) -> 72% | K17: =VLOOKUP($A$5,'RECAP AG'!$G$6:$DG$269,25,FALSE) -> 255
B18: Mobilité Macron | C18: 3% | E18: ='RECAP AG'!AF4 -> 35.3 | G18: =VLOOKUP($A$5,'RECAP AG'!$G$6:$DG$269,27,FALSE) -> 2.7 | I18: =VLOOKUP($A$5,'RECAP AG'!$G$6:$DG$269,28,FALSE) -> 92% | K18: =VLOOKUP($A$5,'RECAP AG'!$G$6:$DG$269,29,FALSE) -> 214
B19: Remises commerciales | C19: 3% | E19: ='RECAP AG'!AJ4 -> -0.5 | G19: =VLOOKUP($A$5,'RECAP AG'!$G$6:$DG$269,31,FALSE) -> -2.9 | I19: =VLOOKUP($A$5,'RECAP AG'!$G$6:$DG$269,32,FALSE) -> 98% | K19: =VLOOKUP($A$5,'RECAP AG'!$G$6:$DG$269,33,FALSE) -> 238
A21: EPARGNE | C21: 20% | K21: =VLOOKUP($A$5,'RECAP AG'!$G$6:$DG$269,51,FALSE) -> 244
B22: Excédent Epargne y/c DAV pondéré | C22: 14% | E22: ='RECAP AG'!AU4 -> 1791.5 | G22: =VLOOKUP($A$5,'RECAP AG'!$G$6:$DG$269,42,FALSE) -> 67.2 | I22: =VLOOKUP($A$5,'RECAP AG'!$G$6:$DG$269,43,FALSE) -> 96% | K22: =VLOOKUP($A$5,'RECAP AG'!$G$6:$DG$269,44,FALSE) -> 222
B23: Ventes sur client non détenteur de l’univers | C23: 6% | E23: ='RECAP AG'!AY4 -> 50.9 | G23: =VLOOKUP($A$5,'RECAP AG'!$G$6:$DG$269,46,FALSE) -> 7.0 | I23: =VLOOKUP($A$5,'RECAP AG'!$G$6:$DG$269,47,FALSE) -> 86% | K23: =VLOOKUP($A$5,'RECAP AG'!$G$6:$DG$269,48,FALSE) -> 260
A25: IARD PREVOYANCE | C25: 20% | K25: =VLOOKUP($A$5,'RECAP AG'!$G$6:$DG$269,85,FALSE) -> 258
B26: Ventes Nettes produits pondérés | C26: 14% | E26: ='RECAP AG'!CC4 -> 545.5 | G26: =VLOOKUP($A$5,'RECAP AG'!$G$6:$DG$269,76,FALSE) -> -1.9 | I26: =VLOOKUP($A$5,'RECAP AG'!$G$6:$DG$269,77,FALSE) -> 100% | K26: =VLOOKUP($A$5,'RECAP AG'!$G$6:$DG$269,78,FALSE) -> 258
B27: Ventes sur client non détenteur de l’univers | C27: 6% | E27: ='RECAP AG'!CG4 -> 60.1 | G27: =VLOOKUP($A$5,'RECAP AG'!$G$6:$DG$269,80,FALSE) -> 19.4 | I27: =VLOOKUP($A$5,'RECAP AG'!$G$6:$DG$269,81,FALSE) -> 68% | K27: =VLOOKUP($A$5,'RECAP AG'!$G$6:$DG$269,82,FALSE) -> 234
A29: CREDITS | C29: 20% | K29: =VLOOKUP($A$5,'RECAP AG'!$G$6:$DG$269,70,FALSE) -> 208
B30: Engagements et ventes accessoires pondérés Immo | C30: 8% | E30: ='RECAP AG'!BJ4 -> 397.0 | G30: =VLOOKUP($A$5,'RECAP AG'!$G$6:$DG$269,57,FALSE) -> 48.2 | I30: =VLOOKUP($A$5,'RECAP AG'!$G$6:$DG$269,58,FALSE) -> 88% | K30: =VLOOKUP($A$5,'RECAP AG'!$G$6:$DG$269,59,FALSE) -> 216
B31: Engagements et ventes accessoires pondérés Conso | C31: 6% | E31: ='RECAP AG'!BN4 -> 103.1 | G31: =VLOOKUP($A$5,'RECAP AG'!$G$6:$DG$269,61,FALSE) -> 50.4 | I31: =VLOOKUP($A$5,'RECAP AG'!$G$6:$DG$269,62,FALSE) -> 51% | K31: =VLOOKUP($A$5,'RECAP AG'!$G$6:$DG$269,63,FALSE) -> 83
B32: Ventes sur client non détenteur de l’univers | C32: 6% | E32: ='RECAP AG'!BR4 -> 32.0 | G32: =VLOOKUP($A$5,'RECAP AG'!$G$6:$DG$269,65,FALSE) -> 7.6 | I32: =VLOOKUP($A$5,'RECAP AG'!$G$6:$DG$269,66,FALSE) -> 76% | K32: =VLOOKUP($A$5,'RECAP AG'!$G$6:$DG$269,67,FALSE) -> 239

Sheet AG_TOTAL
B1: Accueil | H1: BAROMETRE BDD - AGENCES
H2: TOTAL GENERAL
H3: =ACCUEIL!F7 -> 2021-08-01
H7: TOTAL GENERAL | K7: Total Satisfaction Clients | N7: Total Bancarisation | Q7: Total Epargne | T7: Total IARD Prévoyance | W7: Total Crédits
I8: coef | J8: 100% | L8: coef | M8: =AG_SATISFACTION!P8 -> 20% | O8: coef | P8: =AG_BANCA!Z8 -> 20% | R8: coef | S8: =AG_EPARGNE!R8 -> 20% | U8: coef | V8: =AG_IARD!R8 -> 20% | X8: coef | Y8: =AG_CREDIT!V8 -> 20%
B9: Direction | C9: eds | D9: Territoire | E9: eds | F9: Agence | G9: ="ETP perf "&DATEMAJ!$C$28 -> ETP perf 30-juin | H9: Moyenne ecart au 1er | I9: % Ecart au 1er | J9: Rang CEGEE | K9: Moyenne ecart au 1er | L9: % Ecart au 1er | M9: Rang CEGEE | N9: Moyenne ecart au 1er | O9: % Ecart au 1er | P9: Rang CEGEE | Q9: Moyenne ecart au 1er | R9: % Ecart au 1er | S9: Rang CEGEE | T9: Moyenne ecart au 1er | U9: % Ecart au 1er | V9: Rang CEGEE | W9: Moyenne ecart au 1er | X9: % Ecart au 1er | Y9: Rang CEGEE
A10: 50 | B10: MEURTHE ET MOSELLE MEUSE | C10: 26 | D10: NANCY | E10: 454481 | F10: NANCY PLACE DOMBASLE | G10: 11.6 | H10: 20% | I10: 0% | J10: 1 | K10: 46% | L10: 44% | M10: 131 | N10: 16% | O10: 0% | P10: 1 | Q10: 48% | R10: 28% | S10: 12 | T10: 26% | U10: 19% | V10: 4 | W10: 20% | X10: 8% | Y10: 2
A11: 50 | B11: MEURTHE ET MOSELLE MEUSE | C11: 27 | D11: PONT A MOUSSON | E11: 554531 | F11: POMPEY | G11: 2.8 | H11: 22% | I11: 2% | J11: 2 | K11: 39% | L11: 37% | M11: 91 | N11: 19% | O11: 3% | P11: 2 | Q11: 35% | R11: 14% | S11: 3 | T11: 38% | U11: 31% | V11: 17 | W11: 35% | X11: 22% | Y11: 6
A12: 50 | B12: MEURTHE ET MOSELLE MEUSE | C12: 26 | D12: NANCY | E12: 554356 | F12: JARVILLE LA MALGRANGE | G12: 3.5 | H12: 25% | I12: 5% | J12: 3 | K12: 29% | L12: 27% | M12: 37 | N12: 28% | O12: 12% | P12: 4 | Q12: 59% | R12: 39% | S12: 39 | T12: 38% | U12: 30% | V12: 16 | W12: 29% | X12: 17% | Y12: 5
A13: 50 | B13: MOSELLE | C13: 42 | D13: MOSELLE EST | E13: 457163 | F13: BEHREN LES FORBACH | G13: 2.4 | H13: 28% | I13: 9% | J13: 4 | K13: 10% | L13: 8% | M13: 3 | N13: 41% | O13: 25% | P13: 10 | Q13: 72% | R13: 52% | S13: 107 | T13: 49% | U13: 42% | V13: 30 | W13: 27% | X13: 15% | Y13: 4
A14: 50 | B14: MARNE-ARDENNES | C14: 2 | D14: CHARLEVILLE MEZIERES | E14: 408822 | F14: CHARLEVILLE MEZIERES | G14: 3.7 | H14: 28% | I14: 9% | J14: 5 | K14: 43% | L14: 41% | M14: 109 | N14: 52% | O14: 35% | P14: 39 | Q14: 30% | R14: 10% | S14: 2 | T14: 30% | U14: 22% | V14: 5 | W14: 46% | X14: 33% | Y14: 18
A15: 50 | B15: MARNE-ARDENNES | C15: 6 | D15: CHALONS EN CHAMPAGNE | E15: 451115 | F15: MOURMELON LE GRAND | G15: 2.9 | H15: 31% | I15: 11% | J15: 6 | K15: 31% | L15: 29% | M15: 50 | N15: 38% | O15: 22% | P15: 7 | Q15: 57% | R15: 37% | S15: 29 | T15: 46% | U15: 39% | V15: 27 | W15: 40% | X15: 28% | Y15: 12
A16: 50 | B16: MOSELLE | C16: 44 | D16: MOSELLE NORD | E16: 557113 | F16: AUDUN LE TICHE | G16: 2.0 | H16: 31% | I16: 11% | J16: 7 | K16: 32% | L16: 30% | M16: 59 | N16: 44% | O16: 28% | P16: 19 | Q16: 65% | R16: 44% | S16: 63 | T16: 53% | U16: 45% | V16: 52 | W16: 21% | X16: 8% | Y16: 3
A17: 50 | B17: MARNE-ARDENNES | C17: 2 | D17: CHARLEVILLE MEZIERES | E17: 508820 | F17: VOUZIERS | G17: 2.9 | H17: 32% | I17: 12% | J17: 8 | K17: 35% | L17: 33% | M17: 66 | N17: 56% | O17: 40% | P17: 58 | Q17: 71% | R17: 51% | S17: 100 | T17: 7% | U17: 0% | V17: 1 | W17: 47% | X17: 35% | Y17: 20
A18: 50 | B18: MOSELLE | C18: 44 | D18: MOSELLE NORD | E18: 557508 | F18: NILVANGE | G18: 2.6 | H18: 32% | I18: 12% | J18: 9 | K18: 38% | L18: 36% | M18: 87 | N18: 42% | O18: 26% | P18: 15 | Q18: 57% | R18: 37% | S18: 30 | T18: 30% | U18: 23% | V18: 6 | W18: 49% | X18: 37% | Y18: 22
A19: 50 | B19: MARNE-ARDENNES | C19: 11 | D19: REIMS | E19: 451336 | F19: TINQUEUX | G19: 5.7 | H19: 33% | I19: 14% | J19: 10 | K19: 49% | L19: 47% | M19: 144 | N19: 55% | O19: 39% | P19: 53 | Q19: 20% | R19: 0% | S19: 1 | T19: 48% | U19: 41% | V19: 29 | W19: 52% | X19: 40% | Y19: 33
A20: 50 | B20: MARNE-ARDENNES | C20: 11 | D20: REIMS | E20: 551349 | F20: REIMS SAINT REMI | G20: 3.0 | H20: 34% | I20: 14% | J20: 11 | K20: 47% | L20: 45% | M20: 137 | N20: 47% | O20: 31% | P20: 27 | Q20: 54% | R20: 34% | S20: 23 | T20: 31% | U20: 23% | V20: 7 | W20: 47% | X20: 34% | Y20: 19
A21: 50 | B21: VOSGES | C21: 57 | D21: EPINAL | E21: 488288 | F21: EPINAL LEOPOLD BOURG | G21: 2.0 | H21: 34% | I21: 14% | J21: 12 | K21: 33% | L21: 31% | M21: 61 | N21: 46% | O21: 29% | P21: 22 | Q21: 51% | R21: 31% | S21: 16 | T21: 62% | U21: 55% | V21: 95 | W21: 36% | X21: 24% | Y21: 7
A22: 50 | B22: BAS-RHIN | C22: 5101 | D22: SELESTAT | E22: 4113 | F22: BARR | G22: 2.9 | H22: 35% | I22: 15% | J22: 13 | K22: 32% | L22: 30% | M22: 56 | N22: 44% | O22: 27% | P22: 18 | Q22: 39% | R22: 18% | S22: 5 | T22: 51% | U22: 44% | V22: 40 | W22: 68% | X22: 56% | Y22: 154
A23: 50 | B23: MEURTHE ET MOSELLE MEUSE | C23: 31 | D23: VERDUN | E23: 554413 | F23: LONGWY BAS | G23: 3.6 | H23: 37% | I23: 17% | J23: 14 | K23: 30% | L23: 28% | M23: 42 | N23: 46% | O23: 30% | P23: 23 | Q23: 46% | R23: 26% | S23: 8 | T23: 65% | U23: 58% | V23: 121 | W23: 54% | X23: 42% | Y23: 44
A24: 50 | B24: BAS-RHIN | C24: 5101 | D24: SELESTAT | E24: 4126 | F24: MUTZIG | G24: 2.0 | H24: 37% | I24: 17% | J24: 15 | K24: 46% | L24: 44% | M24: 123 | N24: 49% | O24: 33% | P24: 33 | Q24: 51% | R24: 31% | S24: 15 | T24: 61% | U24: 53% | V24: 87 | W24: 36% | X24: 24% | Y24: 8
A25: 50 | B25: MEURTHE ET MOSELLE MEUSE | C25: 27 | D25: PONT A MOUSSON | E25: 454651 | F25: TOUL | G25: 10.4 | H25: 38% | I25: 18% | J25: 16 | K25: 68% | L25: 66% | M25: 227 | N25: 41% | O25: 25% | P25: 11 | Q25: 69% | R25: 49% | S25: 87 | T25: 55% | U25: 47% | V25: 56 | W25: 12% | X25: 0% | Y25: 1
A26: 50 | B26: MEURTHE ET MOSELLE MEUSE | C26: 26 | D26: NANCY | E26: 554476 | F26: NANCY ARTEM | G26: 2.7 | H26: 38% | I26: 19% | J26: 17 | K26: 41% | L26: 38% | M26: 97 | N26: 52% | O26: 36% | P26: 41 | Q26: 46% | R26: 26% | S26: 9 | T26: 57% | U26: 50% | V26: 67 | W26: 53% | X26: 41% | Y26: 39
A27: 50 | B27: MEURTHE ET MOSELLE MEUSE | C27: 31 | D27: VERDUN | E27: 454414 | F27: LONGWY HAUT | G27: 3.7 | H27: 38% | I27: 19% | J27: 18 | K27: 40% | L27: 38% | M27: 96 | N27: 58% | O27: 42% | P27: 71 | Q27: 41% | R27: 21% | S27: 7 | T27: 52% | U27: 45% | V27: 46 | W27: 59% | X27: 46% | Y27: 66
A28: 50 | B28: BAS-RHIN | C28: 5101 | D28: SELESTAT | E28: 4121 | F28: SCHIRMECK | G28: 3.2 | H28: 39% | I28: 19% | J28: 19 | K28: 18% | L28: 16% | M28: 10 | N28: 58% | O28: 42% | P28: 70 | Q28: 59% | R28: 39% | S28: 40 | T28: 57% | U28: 50% | V28: 66 | W28: 60% | X28: 48% | Y28: 77
A29: 50 | B29: MARNE-ARDENNES | C29: 11 | D29: REIMS | E29: 551367 | F29: AY CHAMPAGNE | G29: 2.5 | H29: 39% | I29: 20% | J29: 20 | K29: 29% | L29: 27% | M29: 36 | N29: 47% | O29: 31% | P29: 25 | Q29: 92% | R29: 72% | S29: 238 | T29: 50% | U29: 42% | V29: 33 | W29: 37% | X29: 25% | Y29: 9
A30: 50 | B30: MARNE-ARDENNES | C30: 6 | D30: CHALONS EN CHAMPAGNE | E30: 551330 | F30: MONTMIRAIL | G30: 2.9 | H30: 39% | I30: 20% | J30: 21 | K30: 19% | L30: 17% | M30: 15 | N30: 69% | O30: 53% | P30: 183 | Q30: 55% | R30: 35% | S30: 25 | T30: 53% | U30: 45% | V30: 51 | W30: 58% | X30: 46% | Y30: 65
A31: 262 | B31: MOSELLE | C31: 45 | D31: METZ | E31: 557444 | F31: SAINT JULIEN LES METZ | G31: 4.9 | H31: 39% | I31: 20% | J31: 22 | K31: 49% | L31: 47% | M31: 143 | N31: 60% | O31: 44% | P31: 92 | Q31: 53% | R31: 33% | S31: 20 | T31: 35% | U31: 27% | V31: 11 | W31: 58% | X31: 46% | Y31: 63
A32: 262 | B32: MARNE-ARDENNES | C32: 11 | D32: REIMS | E32: 551340 | F32: BETHENY | G32: 3.0 | H32: 40% | I32: 20% | J32: 23 | K32: 44% | L32: 42% | M32: 112 | N32: 65% | O32: 49% | P32: 139 | Q32: 52% | R32: 31% | S32: 17 | T32: 58% | U32: 50% | V32: 69 | W32: 40% | X32: 28% | Y32: 13
A33: 262 | B33: MARNE-ARDENNES | C33: 2 | D33: CHARLEVILLE MEZIERES | E33: 508815 | F33: CARIGNAN | G33: 2.8 | H33: 40% | I33: 21% | J33: 24 | K33: 37% | L33: 35% | M33: 79 | N33: 58% | O33: 42% | P33: 76 | Q33: 39% | R33: 19% | S33: 6 | T33: 67% | U33: 60% | V33: 139 | W33: 59% | X33: 47% | Y33: 67
A34: 262 | B34: MARNE-ARDENNES | C34: 2 | D34: CHARLEVILLE MEZIERES | E34: 508833 | F34: VILLERS SEMEUSE CORA | G34: 3.6 | H34: 41% | I34: 21% | J34: 25 | K34: 47% | L34: 45% | M34: 136 | N34: 50% | O34: 34% | P34: 34 | Q34: 61% | R34: 41% | S34: 49 | T34: 53% | U34: 45% | V34: 50 | W34: 50% | X34: 38% | Y34: 27
A35: 262 | B35: BAS-RHIN | C35: 5060 | D35: HAGUENAU | E35: 4092 | F35: HOCHFELDEN | G35: 2.4 | H35: 41% | I35: 21% | J35: 26 | K35: 44% | L35: 42% | M35: 116 | N35: 33% | O35: 17% | P35: 5 | Q35: 90% | R35: 70% | S35: 227 | T35: 51% | U35: 44% | V35: 36 | W35: 44% | X35: 32% | Y35: 16
A36: 262 | B36: MEURTHE ET MOSELLE MEUSE | C36: 27 | D36: PONT A MOUSSON | E36: 554533 | F36: PONT A MOUSSON BREUIL | G36: 2.8 | H36: 41% | I36: 21% | J36: 27 | K36: 57% | L36: 55% | M36: 185 | N36: 53% | O36: 37% | P36: 44 | Q36: 38% | R36: 18% | S36: 4 | T36: 68% | U36: 60% | V36: 141 | W36: 48% | X36: 36% | Y36: 21
A37: 262 | B37: MARNE-ARDENNES | C37: 2 | D37: CHARLEVILLE MEZIERES | E37: 508839 | F37: GIVET | G37: 3.7 | H37: 41% | I37: 22% | J37: 28 | K37: 32% | L37: 30% | M37: 60 | N37: 64% | O37: 48% | P37: 129 | Q37: 80% | R37: 60% | S37: 163 | T37: 25% | U37: 18% | V37: 3 | W37: 63% | X37: 51% | Y37: 98
A38: 262 | B38: BAS-RHIN | C38: 5006 | D38: STRASBOURG | E38: 4047 | F38: STRASBOURG CRONENBOURG | G38: 5.0 | H38: 41% | I38: 22% | J38: 29 | K38: 37% | L38: 35% | M38: 76 | N38: 64% | O38: 47% | P38: 126 | Q38: 63% | R38: 43% | S38: 54 | T38: 49% | U38: 42% | V38: 31 | W38: 52% | X38: 40% | Y38: 35
A39: 262 | B39: MOSELLE | C39: 42 | D39: MOSELLE EST | E39: 557250 | F39: CREUTZWALD | G39: 2.7 | H39: 41% | I39: 22% | J39: 30 | K39: 50% | L39: 48% | M39: 148 | N39: 63% | O39: 47% | P39: 124 | Q39: 51% | R39: 31% | S39: 14 | T39: 43% | U39: 35% | V39: 21 | W39: 58% | X39: 46% | Y39: 62
A40: 262 | B40: MARNE-ARDENNES | C40: 11 | D40: REIMS | E40: 451350 | F40: REIMS CENTRE VILLE | G40: 7.3 | H40: 42% | I40: 22% | J40: 31 | K40: 53% | L40: 51% | M40: 158 | N40: 62% | O40: 46% | P40: 110 | Q40: 62% | R40: 42% | S40: 52 | T40: 52% | U40: 44% | V40: 44 | W40: 38% | X40: 26% | Y40: 10
A41: 262 | B41: MARNE-ARDENNES | C41: 2 | D41: CHARLEVILLE MEZIERES | E41: 408801 | F41: CHARLEVILLE JEAN JAURES | G41: 9.4 | H41: 42% | I41: 22% | J41: 32 | K41: 32% | L41: 30% | M41: 55 | N41: 55% | O41: 39% | P41: 54 | Q41: 69% | R41: 49% | S41: 83 | T41: 68% | U41: 60% | V41: 140 | W41: 43% | X41: 31% | Y41: 15
A42: 262 | B42: MARNE-ARDENNES | C42: 6 | D42: CHALONS EN CHAMPAGNE | E42: 451120 | F42: SARRY | G42: 2.5 | H42: 42% | I42: 22% | J42: 33 | K42: 20% | L42: 17% | M42: 16 | N42: 63% | O42: 47% | P42: 115 | Q42: 53% | R42: 32% | S42: 18 | T42: 67% | U42: 59% | V42: 133 | W42: 67% | X42: 55% | Y42: 150
A43: 262 | B43: MARNE-ARDENNES | C43: 2 | D43: CHARLEVILLE MEZIERES | E43: 408862 | F43: REVIN | G43: 4.3 | H43: 42% | I43: 23% | J43: 34 | K43: 12% | L43: 10% | M43: 7 | N43: 63% | O43: 47% | P43: 116 | Q43: 64% | R43: 44% | S43: 59 | T43: 66% | U43: 58% | V43: 127 | W43: 65% | X43: 53% | Y43: 125
A44: 262 | B44: BAS-RHIN | C44: 5060 | D44: HAGUENAU | E44: 4079 | F44: SOULTZ SOUS FORETS | G44: 2.2 | H44: 42% | I44: 23% | J44: 35 | K44: 39% | L44: 37% | M44: 89 | N44: 43% | O44: 27% | P44: 17 | Q44: 74% | R44: 54% | S44: 122 | T44: 55% | U44: 48% | V44: 59 | W44: 58% | X44: 46% | Y44: 64
A45: 262 | B45: MOSELLE | C45: 42 | D45: MOSELLE EST | E45: 557305 | F45: FAULQUEMONT | G45: 2.4 | H45: 43% | I45: 23% | J45: 36 | K45: 27% | L45: 25% | M45: 29 | N45: 57% | O45: 41% | P45: 64 | Q45: 71% | R45: 51% | S45: 103 | T45: 61% | U45: 53% | V45: 85 | W45: 55% | X45: 43% | Y45: 46
A46: 262 | B46: VOSGES | C46: 55 | D46: SAINT DIE | E46: 488246 | F46: CORNIMONT LA BRESSE | G46: 2.7 | H46: 43% | I46: 23% | J46: 37 | K46: 15% | L46: 13% | M46: 8 | N46: 68% | O46: 52% | P46: 173 | Q46: 82% | R46: 62% | S46: 181 | T46: 50% | U46: 43% | V46: 34 | W46: 55% | X46: 43% | Y46: 47
A47: 262 | B47: BAS-RHIN | C47: 5006 | D47: STRASBOURG | E47: 4010 | F47: STRASBOURG MEINAU | G47: 3.3 | H47: 43% | I47: 23% | J47: 38 | K47: 51% | L47: 49% | M47: 155 | N47: 44% | O47: 28% | P47: 20 | Q47: 75% | R47: 55% | S47: 130 | T47: 33% | U47: 26% | V47: 8 | W47: 67% | X47: 54% | Y47: 135
A48: 262 | B48: MEURTHE ET MOSELLE MEUSE | C48: 26 | D48: NANCY | E48: 554601 | F48: SAINT MAX | G48: 4.3 | H48: 43% | I48: 23% | J48: 39 | K48: 21% | L48: 18% | M48: 18 | N48: 61% | O48: 45% | P48: 101 | Q48: 66% | R48: 46% | S48: 68 | T48: 56% | U48: 49% | V48: 64 | W48: 68% | X48: 56% | Y48: 156
A49: 262 | B49: MEURTHE ET MOSELLE MEUSE | C49: 27 | D49: PONT A MOUSSON | E49: 454535 | F49: PONT A MOUSSON CENTRALE | G49: 7.8 | H49: 43% | I49: 23% | J49: 40 | K49: 54% | L49: 52% | M49: 167 | N49: 42% | O49: 26% | P49: 12 | Q49: 60% | R49: 40% | S49: 46 | T49: 58% | U49: 51% | V49: 71 | W49: 58% | X49: 45% | Y49: 58
A50: 262 | B50: VOSGES | C50: 57 | D50: EPINAL | E50: 588631 | F50: THAON LES VOSGES | G50: 5.5 | H50: 43% | I50: 23% | J50: 41 | K50: 35% | L50: 33% | M50: 67 | N50: 57% | O50: 41% | P50: 61 | Q50: 73% | R50: 52% | S50: 112 | T50: 45% | U50: 37% | V50: 25 | W50: 64% | X50: 52% | Y50: 104
A51: 262 | B51: MEURTHE ET MOSELLE MEUSE | C51: 27 | D51: PONT A MOUSSON | E51: 554381 | F51: LAXOU ARISTIDE BRIAND | G51: 4.0 | H51: 43% | I51: 23% | J51: 42 | K51: 36% | L51: 33% | M51: 72 | N51: 49% | O51: 33% | P51: 28 | Q51: 68% | R51: 48% | S51: 81 | T51: 56% | U51: 49% | V51: 63 | W51: 65% | X51: 53% | Y51: 124
A52: 262 | B52: MOSELLE | C52: 42 | D52: MOSELLE EST | E52: 457165 | F52: BITCHE | G52: 2.1 | H52: 43% | I52: 23% | J52: 43 | K52: 50% | L52: 48% | M52: 147 | N52: 35% | O52: 19% | P52: 6 | Q52: 90% | R52: 70% | S52: 231 | T52: 35% | U52: 28% | V52: 13 | W52: 64% | X52: 52% | Y52: 103
A53: 262 | B53: MARNE-ARDENNES | C53: 11 | D53: REIMS | E53: 551305 | F53: REIMS HIPPODROME | G53: 3.9 | H53: 43% | I53: 23% | J53: 44 | K53: 19% | L53: 17% | M53: 14 | N53: 76% | O53: 60% | P53: 226 | Q53: 78% | R53: 58% | S53: 151 | T53: 50% | U53: 42% | V53: 32 | W53: 51% | X53: 39% | Y53: 32
A54: 262 | B54: MEURTHE ET MOSELLE MEUSE | C54: 31 | D54: VERDUN | E54: 555679 | F54: VERDUN MAZEL | G54: 3.8 | H54: 43% | I54: 24% | J54: 45 | K54: 19% | L54: 17% | M54: 11 | N54: 59% | O54: 43% | P54: 84 | Q54: 64% | R54: 44% | S54: 60 | T54: 73% | U54: 66% | V54: 182 | W54: 59% | X54: 47% | Y54: 71
A55: 262 | B55: MEURTHE ET MOSELLE MEUSE | C55: 31 | D55: VERDUN | E55: 555624 | F55: STENAY | G55: 2.8 | H55: 43% | I55: 24% | J55: 46 | K55: 31% | L55: 29% | M55: 48 | N55: 41% | O55: 25% | P55: 9 | Q55: 72% | R55: 52% | S55: 109 | T55: 66% | U55: 59% | V55: 131 | W55: 65% | X55: 53% | Y55: 116
A56: 262 | B56: AUBE HAUTE MARNE | C56: 21 | D56: CHAUMONT | E56: 510590 | F56: CHAUMONT REPUBLIQUE | G56: 4.4 | H56: 44% | I56: 24% | J56: 47 | K56: 41% | L56: 39% | M56: 99 | N56: 58% | O56: 42% | P56: 73 | Q56: 65% | R56: 44% | S56: 64 | T56: 52% | U56: 44% | V56: 45 | W56: 61% | X56: 49% | Y56: 80
A57: 262 | B57: MOSELLE | C57: 42 | D57: MOSELLE EST | E57: 457308 | F57: FORBACH CENTRALE | G57: 11.2 | H57: 44% | I57: 24% | J57: 48 | K57: 31% | L57: 29% | M57: 47 | N57: 53% | O57: 36% | P57: 42 | Q57: 67% | R57: 47% | S57: 77 | T57: 60% | U57: 53% | V57: 78 | W57: 66% | X57: 54% | Y57: 131
A58: 262 | B58: AUBE HAUTE MARNE | C58: 21 | D58: CHAUMONT | E58: 451151 | F58: WASSY | G58: 2.0 | H58: 44% | I58: 24% | J58: 49 | K58: 24% | L58: 21% | M58: 24 | N58: 53% | O58: 37% | P58: 47 | Q58: 85% | R58: 65% | S58: 204 | T58: 64% | U58: 56% | V58: 108 | W58: 51% | X58: 39% | Y58: 31
A59: 262 | B59: BAS-RHIN | C59: 5006 | D59: STRASBOURG | E59: 4037 | F59: MUNDOLSHEIM | G59: 4.0 | H59: 44% | I59: 24% | J59: 50 | K59: 56% | L59: 54% | M59: 179 | N59: 45% | O59: 28% | P59: 21 | Q59: 61% | R59: 41% | S59: 47 | T59: 54% | U59: 47% | V59: 55 | W59: 62% | X59: 50% | Y59: 91
A60: 262 | B60: MEURTHE ET MOSELLE MEUSE | C60: 27 | D60: PONT A MOUSSON | E60: 554506 | F60: CHALIGNY NEUVES MAISONS | G60: 3.8 | H60: 44% | I60: 24% | J60: 51 | K60: 70% | L60: 68% | M60: 232 | N60: 28% | O60: 12% | P60: 3 | Q60: 82% | R60: 62% | S60: 175 | T60: 60% | U60: 53% | V60: 81 | W60: 39% | X60: 26% | Y60: 11
A61: 262 | B61: MARNE-ARDENNES | C61: 6 | D61: CHALONS EN CHAMPAGNE | E61: 551354 | F61: VERTUS | G61: 2.5 | H61: 44% | I61: 25% | J61: 52 | K61: 11% | L61: 9% | M61: 5 | N61: 71% | O61: 55% | P61: 201 | Q61: 71% | R61: 50% | S61: 95 | T61: 63% | U61: 55% | V61: 96 | W61: 64% | X61: 52% | Y61: 105
A62: 262 | B62: MARNE-ARDENNES | C62: 6 | D62: CHALONS EN CHAMPAGNE | E62: 551110 | F62: CHALONS ROOSEVELT | G62: 5.0 | H62: 45% | I62: 25% | J62: 53 | K62: 25% | L62: 22% | M62: 25 | N62: 63% | O62: 47% | P62: 123 | Q62: 68% | R62: 47% | S62: 80 | T62: 60% | U62: 53% | V62: 82 | W62: 65% | X62: 53% | Y62: 119
A63: 262 | B63: HAUT-RHIN | C63: 5130 | D63: COLMAR | E63: 4144 | F63: RIBEAUVILLE | G63: 2.9 | H63: 45% | I63: 25% | J63: 54 | K63: 41% | L63: 39% | M63: 101 | N63: 51% | O63: 35% | P63: 36 | Q63: 57% | R63: 37% | S63: 31 | T63: 55% | U63: 47% | V63: 57 | W63: 77% | X63: 64% | Y63: 236
A64: 262 | B64: MEURTHE ET MOSELLE MEUSE | C64: 31 | D64: VERDUN | E64: 554412 | F64: LONGUYON | G64: 2.8 | H64: 45% | I64: 25% | J64: 55 | K64: 23% | L64: 21% | M64: 23 | N64: 65% | O64: 48% | P64: 134 | Q64: 80% | R64: 59% | S64: 160 | T64: 64% | U64: 56% | V64: 104 | W64: 51% | X64: 38% | Y64: 29
A65: 262 | B65: MOSELLE | C65: 44 | D65: MOSELLE NORD | E65: 457306 | F65: FLORANGE | G65: 3.7 | H65: 45% | I65: 25% | J65: 56 | K65: 46% | L65: 44% | M65: 129 | N65: 58% | O65: 42% | P65: 74 | Q65: 53% | R65: 32% | S65: 19 | T65: 60% | U65: 53% | V65: 79 | W65: 65% | X65: 53% | Y65: 121
A66: 262 | B66: BAS-RHIN | C66: 5060 | D66: HAGUENAU | E66: 4082 | F66: BOUXWILLER | G66: 2.5 | H66: 45% | I66: 25% | J66: 57 | K66: 35% | L66: 33% | M66: 69 | N66: 63% | O66: 47% | P66: 121 | Q66: 59% | R66: 39% | S66: 43 | T66: 68% | U66: 61% | V66: 144 | W66: 56% | X66: 44% | Y66: 50
A67: 262 | B67: MARNE-ARDENNES | C67: 11 | D67: REIMS | E67: 551310 | F67: REIMS CHATILLONS | G67: 4.1 | H67: 45% | I67: 25% | J67: 58 | K67: 50% | L67: 48% | M67: 149 | N67: 58% | O67: 42% | P67: 72 | Q67: 71% | R67: 51% | S67: 97 | T67: 55% | U67: 47% | V67: 58 | W67: 49% | X67: 37% | Y67: 23
A68: 262 | B68: MEURTHE ET MOSELLE MEUSE | C68: 27 | D68: PONT A MOUSSON | E68: 554416 | F68: LUDRES | G68: 3.8 | H68: 45% | I68: 25% | J68: 59 | K68: 28% | L68: 26% | M68: 32 | N68: 64% | O68: 48% | P68: 130 | Q68: 58% | R68: 37% | S68: 32 | T68: 79% | U68: 71% | V68: 224 | W68: 56% | X68: 44% | Y68: 51
A69: 262 | B69: MOSELLE | C69: 44 | D69: MOSELLE NORD | E69: 457348 | F69: HAGONDANGE | G69: 9.3 | H69: 45% | I69: 26% | J69: 60 | K69: 54% | L69: 52% | M69: 171 | N69: 49% | O69: 33% | P69: 29 | Q69: 69% | R69: 49% | S69: 84 | T69: 55% | U69: 48% | V69: 61 | W69: 57% | X69: 44% | Y69: 52
A70: 262 | B70: MOSELLE | C70: 44 | D70: MOSELLE NORD | E70: 557352 | F70: HETTANGE GRANDE | G70: 4.1 | H70: 46% | I70: 26% | J70: 61 | K70: 58% | L70: 56% | M70: 191 | N70: 46% | O70: 30% | P70: 24 | Q70: 73% | R70: 53% | S70: 115 | T70: 51% | U70: 43% | V70: 35 | W70: 59% | X70: 47% | Y70: 70
A71: 262 | B71: VOSGES | C71: 55 | D71: SAINT DIE | E71: 588666 | F71: VAGNEY | G71: 3.9 | H71: 46% | I71: 26% | J71: 62 | K71: 10% | L71: 8% | M71: 4 | N71: 64% | O71: 48% | P71: 131 | Q71: 70% | R71: 50% | S71: 92 | T71: 75% | U71: 67% | V71: 191 | W71: 69% | X71: 56% | Y71: 162
A72: 262 | B72: BAS-RHIN | C72: 5006 | D72: STRASBOURG | E72: 4054 | F72: STRASBOURG MONTAGNE VERTE | G72: 2.4 | H72: 46% | I72: 26% | J72: 63 | K72: 46% | L72: 44% | M72: 130 | N72: 68% | O72: 52% | P72: 170 | Q72: 92% | R72: 71% | S72: 237 | T72: 19% | U72: 11% | V72: 2 | W72: 64% | X72: 52% | Y72: 102
A73: 262 | B73: MEURTHE ET MOSELLE MEUSE | C73: 31 | D73: VERDUN | E73: 455298 | F73: ETAIN | G73: 1.5 | H73: 46% | I73: 26% | J73: 64 | K73: 67% | L73: 65% | M73: 225 | N73: 59% | O73: 42% | P73: 82 | Q73: 71% | R73: 51% | S73: 96 | T73: 34% | U73: 27% | V73: 10 | W73: 57% | X73: 45% | Y73: 57
A74: 262 | B74: MEURTHE ET MOSELLE MEUSE | C74: 27 | D74: PONT A MOUSSON | E74: 554357 | F74: JOEUF | G74: 3.8 | H74: 46% | I74: 26% | J74: 65 | K74: 47% | L74: 45% | M74: 135 | N74: 60% | O74: 44% | P74: 90 | Q74: 97% | R74: 77% | S74: 250 | T74: 44% | U74: 36% | V74: 23 | W74: 41% | X74: 29% | Y74: 14
A75: 262 | B75: BAS-RHIN | C75: 5101 | D75: SELESTAT | E75: 4120 | F75: WASSELONNE | G75: 4.4 | H75: 46% | I75: 26% | J75: 66 | K75: 61% | L75: 59% | M75: 202 | N75: 71% | O75: 55% | P75: 197 | Q75: 47% | R75: 26% | S75: 10 | T75: 51% | U75: 44% | V75: 39 | W75: 60% | X75: 48% | Y75: 76
A76: 262 | B76: MEURTHE ET MOSELLE MEUSE | C76: 26 | D76: NANCY | E76: 554636 | F76: TOMBLAINE | G76: 2.5 | H76: 46% | I76: 27% | J76: 67 | K76: 22% | L76: 20% | M76: 20 | N76: 74% | O76: 58% | P76: 221 | Q76: 69% | R76: 49% | S76: 85 | T76: 58% | U76: 50% | V76: 70 | W76: 67% | X76: 54% | Y76: 138
A77: 262 | B77: MEURTHE ET MOSELLE MEUSE | C77: 26 | D77: NANCY | E77: 454426 | F77: LUNEVILLE CARNOT | G77: 10.0 | H77: 46% | I77: 27% | J77: 68 | K77: 51% | L77: 49% | M77: 156 | N77: 56% | O77: 40% | P77: 60 | Q77: 76% | R77: 56% | S77: 136 | T77: 53% | U77: 45% | V77: 53 | W77: 53% | X77: 41% | Y77: 37
A78: 262 | B78: VOSGES | C78: 57 | D78: EPINAL | E78: 588716 | F78: XERTIGNY | G78: 2.9 | H78: 46% | I78: 27% | J78: 69 | K78: 53% | L78: 51% | M78: 159 | N78: 56% | O78: 40% | P78: 59 | Q78: 74% | R78: 53% | S78: 116 | T78: 36% | U78: 29% | V78: 14 | W78: 71% | X78: 59% | Y78: 177
A79: 264 | B79: MARNE-ARDENNES | C79: 6 | D79: CHALONS EN CHAMPAGNE | E79: 451101 | F79: CHALONS VIVIERS | G79: 9.3 | H79: 47% | I79: 27% | J79: 70 | K79: 31% | L79: 29% | M79: 49 | N79: 62% | O79: 46% | P79: 108 | Q79: 74% | R79: 54% | S79: 118 | T79: 64% | U79: 57% | V79: 113 | W79: 60% | X79: 47% | Y79: 74
A80: 264 | B80: VOSGES | C80: 57 | D80: EPINAL | E80: 488706 | F80: VITTEL | G80: 3.6 | H80: 47% | I80: 27% | J80: 71 | K80: 30% | L80: 28% | M80: 40 | N80: 75% | O80: 59% | P80: 225 | Q80: 64% | R80: 44% | S80: 57 | T80: 59% | U80: 52% | V80: 75 | W80: 63% | X80: 51% | Y80: 99
A81: 264 | B81: VOSGES | C81: 57 | D81: EPINAL | E81: 588206 | F81: CHARMES | G81: 2.8 | H81: 47% | I81: 27% | J81: 72 | K81: 31% | L81: 29% | M81: 45 | N81: 66% | O81: 50% | P81: 150 | Q81: 90% | R81: 70% | S81: 228 | T81: 43% | U81: 36% | V81: 22 | W81: 62% | X81: 50% | Y81: 87
A82: 264 | B82: BAS-RHIN | C82: 5006 | D82: STRASBOURG | E82: 4019 | F82: STRASBOURG ANVERS | G82: 4.3 | H82: 47% | I82: 27% | J82: 73 | K82: 45% | L82: 43% | M82: 120 | N82: 53% | O82: 37% | P82: 46 | Q82: 62% | R82: 42% | S82: 51 | T82: 63% | U82: 55% | V82: 97 | W82: 70% | X82: 58% | Y82: 172
A83: 264 | B83: MEURTHE ET MOSELLE MEUSE | C83: 31 | D83: VERDUN | E83: 455456 | F83: MONTMEDY | G83: 1.8 | H83: 47% | I83: 27% | J83: 74 | K83: 42% | L83: 40% | M83: 104 | N83: 57% | O83: 41% | P83: 63 | Q83: 73% | R83: 52% | S83: 111 | T83: 65% | U83: 58% | V83: 124 | W83: 56% | X83: 44% | Y83: 49
A84: 264 | B84: MARNE-ARDENNES | C84: 11 | D84: REIMS | E84: 551314 | F84: FISMES | G84: 3.0 | H84: 47% | I84: 27% | J84: 75 | K84: 31% | L84: 29% | M84: 51 | N84: 56% | O84: 40% | P84: 57 | Q84: 85% | R84: 65% | S84: 202 | T84: 66% | U84: 59% | V84: 130 | W84: 55% | X84: 43% | Y84: 48
A85: 264 | B85: VOSGES | C85: 57 | D85: EPINAL | E85: 588396 | F85: LE VAL D AJOL | G85: 2.9 | H85: 47% | I85: 27% | J85: 76 | K85: 2% | L85: 0% | M85: 1 | N85: 75% | O85: 59% | P85: 223 | Q85: 72% | R85: 52% | S85: 106 | T85: 69% | U85: 61% | V85: 149 | W85: 77% | X85: 65% | Y85: 238
A86: 264 | B86: MOSELLE | C86: 45 | D86: METZ | E86: 557447 | F86: METZ SAINT MAXIMIN | G86: 3.1 | H86: 47% | I86: 28% | J86: 77 | K86: 54% | L86: 52% | M86: 166 | N86: 49% | O86: 33% | P86: 30 | Q86: 69% | R86: 48% | S86: 82 | T86: 70% | U86: 63% | V86: 158 | W86: 53% | X86: 41% | Y86: 38
A87: 264 | B87: VOSGES | C87: 55 | D87: SAINT DIE | E87: 488326 | F87: GERARDMER | G87: 5.1 | H87: 47% | I87: 28% | J87: 78 | K87: 30% | L87: 27% | M87: 38 | N87: 70% | O87: 54% | P87: 192 | Q87: 55% | R87: 35% | S87: 24 | T87: 76% | U87: 68% | V87: 204 | W87: 65% | X87: 53% | Y87: 123
A88: 264 | B88: MOSELLE | C88: 45 | D88: METZ | E88: 457443 | F88: METZ REPUBLIQUE | G88: 4.2 | H88: 48% | I88: 28% | J88: 79 | K88: 12% | L88: 10% | M88: 6 | N88: 70% | O88: 54% | P88: 190 | Q88: 71% | R88: 51% | S88: 102 | T88: 80% | U88: 72% | V88: 232 | W88: 63% | X88: 51% | Y88: 101
A89: 264 | B89: BAS-RHIN | C89: 5006 | D89: STRASBOURG | E89: 4048 | F89: STRASBOURG KOENIGSHOFFEN | G89: 2.0 | H89: 48% | I89: 28% | J89: 80 | K89: 63% | L89: 61% | M89: 211 | N89: 49% | O89: 33% | P89: 31 | Q89: 87% | R89: 67% | S89: 213 | T89: 34% | U89: 26% | V89: 9 | W89: 64% | X89: 52% | Y89: 107
A90: 264 | B90: MARNE-ARDENNES | C90: 2 | D90: CHARLEVILLE MEZIERES | E90: 508819 | F90: MOUZON | G90: 2.0 | H90: 48% | I90: 28% | J90: 81 | K90: 44% | L90: 42% | M90: 114 | N90: 78% | O90: 62% | P90: 235 | Q90: 66% | R90: 45% | S90: 65 | T90: 66% | U90: 58% | V90: 125 | W90: 45% | X90: 33% | Y90: 17
A91: 264 | B91: VOSGES | C91: 55 | D91: SAINT DIE | E91: 488586 | F91: SAINT DIE | G91: 10.7 | H91: 48% | I91: 28% | J91: 82 | K91: 19% | L91: 17% | M91: 13 | N91: 69% | O91: 53% | P91: 182 | Q91: 70% | R91: 50% | S91: 93 | T91: 72% | U91: 65% | V91: 178 | W91: 68% | X91: 56% | Y91: 159
A92: 264 | B92: MARNE-ARDENNES | C92: 2 | D92: CHARLEVILLE MEZIERES | E92: 508802 | F92: CHARLEVILLE NEVERS | G92: 3.0 | H92: 48% | I92: 28% | J92: 83 | K92: 31% | L92: 29% | M92: 52 | N92: 67% | O92: 51% | P92: 162 | Q92: 93% | R92: 73% | S92: 243 | T92: 42% | U92: 35% | V92: 19 | W92: 65% | X92: 53% | Y92: 127
A93: 264 | B93: BAS-RHIN | C93: 5006 | D93: STRASBOURG | E93: 4023 | F93: STRASBOURG VOSGES | G93: 3.3 | H93: 48% | I93: 28% | J93: 84 | K93: 46% | L93: 44% | M93: 126 | N93: 57% | O93: 41% | P93: 65 | Q93: 53% | R93: 33% | S93: 21 | T93: 71% | U93: 64% | V93: 168 | W93: 72% | X93: 60% | Y93: 189
A94: 264 | B94: MOSELLE | C94: 45 | D94: METZ | E94: 457453 | F94: MONTIGNY LES METZ | G94: 7.9 | H94: 48% | I94: 29% | J94: 85 | K94: 32% | L94: 30% | M94: 54 | N94: 62% | O94: 45% | P94: 106 | Q94: 67% | R94: 46% | S94: 71 | T94: 80% | U94: 73% | V94: 234 | W94: 59% | X94: 47% | Y94: 72
A95: 264 | B95: BAS-RHIN | C95: 5006 | D95: STRASBOURG | E95: 4038 | F95: OBERHAUSBERGEN | G95: 4.8 | H95: 48% | I95: 29% | J95: 86 | K95: 49% | L95: 47% | M95: 142 | N95: 66% | O95: 50% | P95: 151 | Q95: 59% | R95: 38% | S95: 38 | T95: 64% | U95: 56% | V95: 106 | W95: 63% | X95: 50% | Y95: 92
A96: 264 | B96: MARNE-ARDENNES | C96: 6 | D96: CHALONS EN CHAMPAGNE | E96: 551128 | F96: SAINTE MENEHOULD | G96: 3.2 | H96: 48% | I96: 29% | J96: 87 | K96: 33% | L96: 31% | M96: 62 | N96: 59% | O96: 43% | P96: 85 | Q96: 83% | R96: 63% | S96: 189 | T96: 53% | U96: 45% | V96: 49 | W96: 73% | X96: 60% | Y96: 202
A97: 264 | B97: BAS-RHIN | C97: 5006 | D97: STRASBOURG | E97: 4006 | F97: STRASBOURG NEUDORF | G97: 8.6 | H97: 49% | I97: 29% | J97: 88 | K97: 26% | L97: 24% | M97: 28 | N97: 58% | O97: 42% | P97: 69 | Q97: 82% | R97: 61% | S97: 173 | T97: 60% | U97: 53% | V97: 84 | W97: 75% | X97: 63% | Y97: 224
A98: 264 | B98: VOSGES | C98: 57 | D98: EPINAL | E98: 488561 | F98: REMIREMONT | G98: 6.7 | H98: 49% | I98: 29% | J98: 89 | K98: 38% | L98: 36% | M98: 86 | N98: 61% | O98: 44% | P98: 97 | Q98: 68% | R98: 47% | S98: 79 | T98: 68% | U98: 61% | V98: 145 | W98: 68% | X98: 55% | Y98: 153
A99: 264 | B99: MEURTHE ET MOSELLE MEUSE | C99: 31 | D99: VERDUN | E99: 455676 | F99: VAUCOULEURS | G99: 1.8 | H99: 49% | I99: 29% | J99: 90 | K99: 76% | L99: 74% | M99: 245 | N99: 42% | O99: 26% | P99: 13 | Q99: 88% | R99: 68% | S99: 220 | T99: 42% | U99: 35% | V99: 20 | W99: 54% | X99: 41% | Y99: 40
A100: 264 | B100: BAS-RHIN | C100: 5006 | D100: STRASBOURG | E100: 4024 | F100: STRASBOURG AUSTERLITZ | G100: 2.3 | H100: 49% | I100: 29% | J100: 91 | K100: 82% | L100: 79% | M100: 254 | N100: 42% | O100: 26% | P100: 16 | Q100: 66% | R100: 45% | S100: 66 | T100: 52% | U100: 45% | V100: 47 | W100: 61% | X100: 49% | Y100: 78
A101: 264 | B101: BAS-RHIN | C101: 5006 | D101: STRASBOURG | E101: 4027 | F101: SCHILTIGHEIM CENTRE | G101: 3.7 | H101: 49% | I101: 29% | J101: 92 | K101: 55% | L101: 53% | M101: 175 | N101: 57% | O101: 41% | P101: 66 | Q101: 59% | R101: 39% | S101: 41 | T101: 70% | U101: 63% | V101: 156 | W101: 62% | X101: 50% | Y101: 90
A102: 264 | B102: MEURTHE ET MOSELLE MEUSE | C102: 26 | D102: NANCY | E102: 554166 | F102: BLAINVILLE | G102: 3.2 | H102: 49% | I102: 30% | J102: 93 | K102: 65% | L102: 63% | M102: 216 | N102: 58% | O102: 42% | P102: 77 | Q102: 64% | R102: 44% | S102: 61 | T102: 64% | U102: 56% | V102: 103 | W102: 55% | X102: 42% | Y102: 45
A103: 30 | B103: MARNE-ARDENNES | C103: 11 | D103: REIMS | E103: 451370 | F103: EPERNAY | G103: 11.5 | H103: 50% | I103: 30% | J103: 94 | K103: 39% | L103: 37% | M103: 90 | N103: 59% | O103: 42% | P103: 80 | Q103: 75% | R103: 55% | S103: 132 | T103: 65% | U103: 58% | V103: 123 | W103: 67% | X103: 55% | Y103: 141
A104: 30 | B104: BAS-RHIN | C104: 5006 | D104: STRASBOURG | E104: 4043 | F104: STRASBOURG HALLES | G104: 8.2 | H104: 50% | I104: 30% | J104: 95 | K104: 40% | L104: 38% | M104: 93 | N104: 71% | O104: 55% | P104: 204 | Q104: 61% | R104: 41% | S104: 48 | T104: 68% | U104: 61% | V104: 147 | W104: 65% | X104: 52% | Y104: 114
A105: 30 | B105: MARNE-ARDENNES | C105: 11 | D105: REIMS | E105: 451361 | F105: PIERRY LECLERC | G105: 1.9 | H105: 50% | I105: 30% | J105: 96 | K105: 37% | L105: 35% | M105: 77 | N105: 61% | O105: 45% | P105: 100 | Q105: 80% | R105: 60% | S105: 168 | T105: 64% | U105: 56% | V105: 102 | W105: 65% | X105: 53% | Y105: 120
A106: 30 | B106: BAS-RHIN | C106: 5060 | D106: HAGUENAU | E106: 4030 | F106: BRUMATH | G106: 5.2 | H106: 50% | I106: 30% | J106: 97 | K106: 51% | L106: 49% | M106: 152 | N106: 63% | O106: 47% | P106: 125 | Q106: 58% | R106: 38% | S106: 36 | T106: 76% | U106: 68% | V106: 205 | W106: 59% | X106: 47% | Y106: 69
A107: 30 | B107: VOSGES | C107: 57 | D107: EPINAL | E107: 488451 | F107: MIRECOURT | G107: 4.7 | H107: 50% | I107: 30% | J107: 98 | K107: 30% | L107: 27% | M107: 39 | N107: 73% | O107: 57% | P107: 216 | Q107: 74% | R107: 54% | S107: 121 | T107: 64% | U107: 57% | V107: 109 | W107: 66% | X107: 54% | Y107: 133
A108: 30 | B108: MEURTHE ET MOSELLE MEUSE | C108: 31 | D108: VERDUN | E108: 455151 | F108: BAR LE DUC | G108: 8.9 | H108: 50% | I108: 30% | J108: 99 | K108: 45% | L108: 43% | M108: 121 | N108: 58% | O108: 42% | P108: 78 | Q108: 76% | R108: 56% | S108: 139 | T108: 65% | U108: 57% | V108: 116 | W108: 63% | X108: 51% | Y108: 94
A109: 30 | B109: MARNE-ARDENNES | C109: 6 | D109: CHALONS EN CHAMPAGNE | E109: 551103 | F109: FAGNIERES LECLERC | G109: 3.1 | H109: 50% | I109: 30% | J109: 100 | K109: 26% | L109: 24% | M109: 27 | N109: 59% | O109: 43% | P109: 89 | Q109: 90% | R109: 70% | S109: 233 | T109: 71% | U109: 63% | V109: 163 | W109: 61% | X109: 49% | Y109: 82
A110: 30 | B110: BAS-RHIN | C110: 5101 | D110: SELESTAT | E110: 4107 | F110: VILLE | G110: 2.9 | H110: 50% | I110: 30% | J110: 101 | K110: 88% | L110: 86% | M110: 257 | N110: 42% | O110: 26% | P110: 14 | Q110: 60% | R110: 40% | S110: 44 | T110: 45% | U110: 38% | V110: 26 | W110: 72% | X110: 60% | Y110: 188
A111: 30 | B111: BAS-RHIN | C111: 5060 | D111: HAGUENAU | E111: 4066 | F111: NIEDERBRONN LES BAINS | G111: 6.1 | H111: 50% | I111: 30% | J111: 102 | K111: 30% | L111: 28% | M111: 44 | N111: 70% | O111: 54% | P111: 188 | Q111: 67% | R111: 46% | S111: 69 | T111: 71% | U111: 63% | V111: 165 | W111: 71% | X111: 58% | Y111: 175
A112: 30 | B112: MEURTHE ET MOSELLE MEUSE | C112: 26 | D112: NANCY | E112: 554266 | F112: DOMBASLE SUR MEURTHE | G112: 3.7 | H112: 50% | I112: 30% | J112: 103 | K112: 70% | L112: 68% | M112: 231 | N112: 67% | O112: 50% | P112: 158 | Q112: 59% | R112: 38% | S112: 37 | T112: 55% | U112: 48% | V112: 60 | W112: 58% | X112: 46% | Y112: 60
A113: 30 | B113: MEURTHE ET MOSELLE MEUSE | C113: 26 | D113: NANCY | E113: 554116 | F113: BACCARAT | G113: 2.6 | H113: 50% | I113: 30% | J113: 104 | K113: 34% | L113: 32% | M113: 64 | N113: 62% | O113: 46% | P113: 109 | Q113: 74% | R113: 54% | S113: 119 | T113: 71% | U113: 63% | V113: 166 | W113: 68% | X113: 56% | Y113: 157
A114: 30 | B114: MEURTHE ET MOSELLE MEUSE | C114: 31 | D114: VERDUN | E114: 554700 | F114: VILLERUPT | G114: 3.0 | H114: 50% | I114: 30% | J114: 105 | K114: 27% | L114: 25% | M114: 31 | N114: 65% | O114: 49% | P114: 146 | Q114: 70% | R114: 50% | S114: 91 | T114: 78% | U114: 70% | V114: 220 | W114: 68% | X114: 56% | Y114: 160
A115: 30 | B115: VOSGES | C115: 57 | D115: EPINAL | E115: 588336 | F115: GOLBEY | G115: 3.1 | H115: 50% | I115: 30% | J115: 106 | K115: 47% | L115: 44% | M115: 134 | N115: 71% | O115: 55% | P115: 198 | Q115: 71% | R115: 51% | S115: 104 | T115: 66% | U115: 59% | V115: 128 | W115: 54% | X115: 42% | Y115: 41
A116: 30 | B116: AUBE HAUTE MARNE | C116: 14 | D116: TROYES | E116: 510570 | F116: NOGENT SUR SEINE | G116: 4.5 | H116: 50% | I116: 31% | J116: 107 | K116: 22% | L116: 20% | M116: 21 | N116: 65% | O116: 48% | P116: 133 | Q116: 82% | R116: 62% | S116: 176 | T116: 79% | U116: 71% | V116: 225 | W116: 62% | X116: 50% | Y116: 88
A117: 30 | B117: VOSGES | C117: 55 | D117: SAINT DIE | E117: 588386 | F117: LE THILLOT | G117: 2.5 | H117: 50% | I117: 31% | J117: 108 | K117: 44% | L117: 42% | M117: 110 | N117: 65% | O117: 49% | P117: 138 | Q117: 73% | R117: 53% | S117: 114 | T117: 54% | U117: 47% | V117: 54 | W117: 74% | X117: 62% | Y117: 215
A118: 30 | B118: AUBE HAUTE MARNE | C118: 14 | D118: TROYES | E118: 510523 | F118: LA CHAPELLE ST LUC | G118: 5.6 | H118: 50% | I118: 31% | J118: 109 | K118: 54% | L118: 52% | M118: 164 | N118: 51% | O118: 35% | P118: 38 | Q118: 84% | R118: 64% | S118: 199 | T118: 48% | U118: 41% | V118: 28 | W118: 72% | X118: 60% | Y118: 197
A119: 30 | B119: AUBE HAUTE MARNE | C119: 21 | D119: CHAUMONT | E119: 451156 | F119: SAINT DIZIER CENTRE | G119: 9.2 | H119: 50% | I119: 31% | J119: 110 | K119: 45% | L119: 42% | M119: 117 | N119: 66% | O119: 50% | P119: 149 | Q119: 73% | R119: 52% | S119: 110 | T119: 62% | U119: 55% | V119: 94 | W119: 65% | X119: 53% | Y119: 118
A120: 30 | B120: AUBE HAUTE MARNE | C120: 14 | D120: TROYES | E120: 510520 | F120: SAINT ANDRE LES VERGERS | G120: 4.1 | H120: 51% | I120: 31% | J120: 111 | K120: 46% | L120: 44% | M120: 128 | N120: 59% | O120: 43% | P120: 87 | Q120: 67% | R120: 46% | S120: 72 | T120: 82% | U120: 74% | V120: 242 | W120: 58% | X120: 46% | Y120: 59
A121: 30 | B121: MARNE-ARDENNES | C121: 11 | D121: REIMS | E121: 551365 | F121: DORMANS | G121: 2.6 | H121: 51% | I121: 31% | J121: 112 | K121: 32% | L121: 30% | M121: 53 | N121: 79% | O121: 63% | P121: 243 | Q121: 73% | R121: 53% | S121: 113 | T121: 71% | U121: 64% | V121: 170 | W121: 57% | X121: 45% | Y121: 53
A122: 30 | B122: MARNE-ARDENNES | C122: 11 | D122: REIMS | E122: 551309 | F122: REIMS EUROPE | G122: 2.7 | H122: 51% | I122: 31% | J122: 113 | K122: 40% | L122: 37% | M122: 92 | N122: 71% | O122: 55% | P122: 206 | Q122: 75% | R122: 55% | S122: 128 | T122: 59% | U122: 51% | V122: 73 | W122: 68% | X122: 56% | Y122: 155
A123: 30 | B123: MOSELLE | C123: 42 | D123: MOSELLE EST | E123: 557210 | F123: CHATEAU SALINS | G123: 2.6 | H123: 51% | I123: 31% | J123: 114 | K123: 60% | L123: 58% | M123: 197 | N123: 47% | O123: 31% | P123: 26 | Q123: 75% | R123: 54% | S123: 125 | T123: 68% | U123: 61% | V123: 146 | W123: 63% | X123: 51% | Y123: 95
A124: 30 | B124: MOSELLE | C124: 45 | D124: METZ | E124: 457574 | F124: ROMBAS | G124: 3.2 | H124: 51% | I124: 31% | J124: 115 | K124: 64% | L124: 61% | M124: 212 | N124: 51% | O124: 35% | P124: 35 | Q124: 54% | R124: 34% | S124: 22 | T124: 66% | U124: 59% | V124: 129 | W124: 79% | X124: 67% | Y124: 247
A125: 30 | B125: VOSGES | C125: 57 | D125: EPINAL | E125: 488286 | F125: EPINAL ARISTIDE BRIAND | G125: 9.1 | H125: 51% | I125: 31% | J125: 116 | K125: 30% | L125: 28% | M125: 41 | N125: 63% | O125: 47% | P125: 122 | Q125: 86% | R125: 65% | S125: 207 | T125: 60% | U125: 53% | V125: 80 | W125: 74% | X125: 62% | Y125: 216
A126: 30 | B126: MOSELLE | C126: 42 | D126: MOSELLE EST | E126: 457583 | F126: SAINT AVOLD | G126: 7.6 | H126: 51% | I126: 31% | J126: 117 | K126: 42% | L126: 40% | M126: 105 | N126: 65% | O126: 49% | P126: 141 | Q126: 75% | R126: 55% | S126: 127 | T126: 65% | U126: 58% | V126: 119 | W126: 67% | X126: 55% | Y126: 140
A127: 30 | B127: VOSGES | C127: 57 | D127: EPINAL | E127: 588501 | F127: NEUFCHATEAU | G127: 6.0 | H127: 51% | I127: 31% | J127: 118 | K127: 18% | L127: 16% | M127: 9 | N127: 71% | O127: 55% | P127: 203 | Q127: 89% | R127: 69% | S127: 223 | T127: 72% | U127: 64% | V127: 174 | W127: 64% | X127: 52% | Y127: 110
A128: 30 | B128: AUBE HAUTE MARNE | C128: 21 | D128: CHAUMONT | E128: 451154 | F128: JOINVILLE | G128: 1.9 | H128: 51% | I128: 31% | J128: 119 | K128: 4% | L128: 2% | M128: 2 | N128: 78% | O128: 61% | P128: 233 | Q128: 104% | R128: 83% | S128: 257 | T128: 64% | U128: 56% | V128: 107 | W128: 65% | X128: 53% | Y128: 117
A129: 30 | B129: MARNE-ARDENNES | C129: 11 | D129: REIMS | E129: 551369 | F129: DAMERY | G129: 2.3 | H129: 51% | I129: 31% | J129: 120 | K129: 63% | L129: 61% | M129: 208 | N129: 71% | O129: 55% | P129: 196 | Q129: 78% | R129: 58% | S129: 148 | T129: 52% | U129: 44% | V129: 41 | W129: 51% | X129: 38% | Y129: 30
A130: 30 | B130: AUBE HAUTE MARNE | C130: 21 | D130: CHAUMONT | E130: 410560 | F130: BOURBONNE LES BAINS | G130: 2.0 | H130: 51% | I130: 32% | J130: 121 | K130: 27% | L130: 25% | M130: 30 | N130: 63% | O130: 46% | P130: 113 | Q130: 84% | R130: 64% | S130: 197 | T130: 67% | U130: 59% | V130: 134 | W130: 74% | X130: 62% | Y130: 213
A131: 30 | B131: MARNE-ARDENNES | C131: 11 | D131: REIMS | E131: 451301 | F131: REIMS HOTEL DE VILLE | G131: 7.8 | H131: 51% | I131: 32% | J131: 122 | K131: 46% | L131: 44% | M131: 124 | N131: 49% | O131: 33% | P131: 32 | Q131: 103% | R131: 83% | S131: 256 | T131: 56% | U131: 48% | V131: 62 | W131: 61% | X131: 49% | Y131: 79
A132: 30 | B132: MOSELLE | C132: 44 | D132: MOSELLE NORD | E132: 457158 | F132: YUTZ | G132: 4.6 | H132: 51% | I132: 32% | J132: 123 | K132: 49% | L132: 47% | M132: 138 | N132: 60% | O132: 44% | P132: 94 | Q132: 76% | R132: 56% | S132: 135 | T132: 63% | U132: 55% | V132: 98 | W132: 68% | X132: 56% | Y132: 158
A133: 30 | B133: MOSELLE | C133: 44 | D133: MOSELLE NORD | E133: 457632 | F133: THIONVILLE CENTRALE | G133: 11.8 | H133: 51% | I133: 32% | J133: 124 | K133: 43% | L133: 41% | M133: 108 | N133: 59% | O133: 43% | P133: 88 | Q133: 77% | R133: 57% | S133: 143 | T133: 65% | U133: 57% | V133: 117 | W133: 72% | X133: 60% | Y133: 190
A134: 30 | B134: MEURTHE ET MOSELLE MEUSE | C134: 27 | D134: PONT A MOUSSON | E134: 554321 | F134: FROUARD | G134: 3.0 | H134: 52% | I134: 32% | J134: 125 | K134: 79% | L134: 77% | M134: 251 | N134: 58% | O134: 41% | P134: 67 | Q134: 51% | R134: 31% | S134: 13 | T134: 67% | U134: 60% | V134: 137 | W134: 61% | X134: 49% | Y134: 81
A135: 30 | B135: MEURTHE ET MOSELLE MEUSE | C135: 31 | D135: VERDUN | E135: 455678 | F135: VERDUN CENTRALE | G135: 10.6 | H135: 52% | I135: 32% | J135: 126 | K135: 38% | L135: 36% | M135: 85 | N135: 60% | O135: 44% | P135: 91 | Q135: 85% | R135: 65% | S135: 203 | T135: 76% | U135: 69% | V135: 210 | W135: 57% | X135: 45% | Y135: 56
A136: 30 | B136: MARNE-ARDENNES | C136: 6 | D136: CHALONS EN CHAMPAGNE | E136: 451381 | F136: SEZANNE | G136: 6.5 | H136: 52% | I136: 32% | J136: 127 | K136: 40% | L136: 38% | M136: 95 | N136: 62% | O136: 46% | P136: 112 | Q136: 83% | R136: 63% | S136: 186 | T136: 66% | U136: 58% | V136: 126 | W136: 65% | X136: 53% | Y136: 128
A137: 30 | B137: BAS-RHIN | C137: 5006 | D137: STRASBOURG | E137: 4045 | F137: STRASBOURG FRANCS BOURGEOIS | G137: 4.6 | H137: 52% | I137: 32% | J137: 128 | K137: 57% | L137: 55% | M137: 182 | N137: 61% | O137: 45% | P137: 102 | Q137: 48% | R137: 28% | S137: 11 | T137: 81% | U137: 74% | V137: 239 | W137: 70% | X137: 58% | Y137: 174
A138: 30 | B138: MEURTHE ET MOSELLE MEUSE | C138: 31 | D138: VERDUN | E138: 455231 | F138: COMMERCY | G138: 4.7 | H138: 52% | I138: 32% | J138: 129 | K138: 50% | L138: 48% | M138: 150 | N138: 63% | O138: 47% | P138: 119 | Q138: 78% | R138: 58% | S138: 149 | T138: 67% | U138: 59% | V138: 135 | W138: 59% | X138: 47% | Y138: 68
A139: 30 | B139: VOSGES | C139: 55 | D139: SAINT DIE | E139: 588587 | F139: SAINT DIE CATHEDRALE | G139: 3.7 | H139: 52% | I139: 32% | J139: 130 | K139: 37% | L139: 35% | M139: 75 | N139: 71% | O139: 55% | P139: 195 | Q139: 63% | R139: 43% | S139: 55 | T139: 79% | U139: 71% | V139: 223 | W139: 68% | X139: 56% | Y139: 161
A140: 30 | B140: MOSELLE | C140: 45 | D140: METZ | E140: 557612 | F140: SAINTE MARIE AUX CHENES | G140: 3.9 | H140: 52% | I140: 32% | J140: 131 | K140: 20% | L140: 18% | M140: 17 | N140: 76% | O140: 60% | P140: 229 | Q140: 82% | R140: 62% | S140: 180 | T140: 65% | U140: 58% | V140: 122 | W140: 74% | X140: 62% | Y140: 212
A141: 30 | B141: VOSGES | C141: 57 | D141: EPINAL | E141: 488281 | F141: ELOYES | G141: 4.7 | H141: 52% | I141: 32% | J141: 132 | K141: 22% | L141: 20% | M141: 22 | N141: 65% | O141: 49% | P141: 142 | Q141: 72% | R141: 52% | S141: 108 | T141: 82% | U141: 75% | V141: 243 | W141: 77% | X141: 64% | Y141: 237
A142: 30 | B142: MOSELLE | C142: 42 | D142: MOSELLE EST | E142: 457614 | F142: SARREBOURG | G142: 8.7 | H142: 52% | I142: 32% | J142: 133 | K142: 53% | L142: 51% | M142: 160 | N142: 62% | O142: 46% | P142: 107 | Q142: 67% | R142: 46% | S142: 70 | T142: 70% | U142: 63% | V142: 155 | W142: 67% | X142: 55% | Y142: 146
A143: 30 | B143: MEURTHE ET MOSELLE MEUSE | C143: 27 | D143: PONT A MOUSSON | E143: 454696 | F143: VILLERS GENERAL LECLERC | G143: 6.1 | H143: 52% | I143: 32% | J143: 134 | K143: 35% | L143: 33% | M143: 68 | N143: 67% | O143: 51% | P143: 166 | Q143: 72% | R143: 51% | S143: 105 | T143: 71% | U143: 64% | V143: 167 | W143: 73% | X143: 61% | Y143: 207
A144: 110 | B144: BAS-RHIN | C144: 5101 | D144: SELESTAT | E144: 4109 | F144: MARCKOLSHEIM | G144: 2.7 | H144: 52% | I144: 32% | J144: 135 | K144: 39% | L144: 37% | M144: 88 | N144: 65% | O144: 49% | P144: 148 | Q144: 80% | R144: 60% | S144: 164 | T144: 72% | U144: 65% | V144: 177 | W144: 63% | X144: 51% | Y144: 93
A145: 110 | B145: MARNE-ARDENNES | C145: 2 | D145: CHARLEVILLE MEZIERES | E145: 408806 | F145: SEDAN | G145: 9.2 | H145: 52% | I145: 33% | J145: 136 | K145: 41% | L145: 39% | M145: 98 | N145: 71% | O145: 55% | P145: 202 | Q145: 67% | R145: 47% | S145: 76 | T145: 76% | U145: 69% | V145: 208 | W145: 65% | X145: 52% | Y145: 113
A146: 110 | B146: MOSELLE | C146: 42 | D146: MOSELLE EST | E146: 557503 | F146: NEUNKIRCH | G146: 3.8 | H146: 53% | I146: 33% | J146: 137 | K146: 28% | L146: 26% | M146: 34 | N146: 72% | O146: 56% | P146: 213 | Q146: 69% | R146: 49% | S146: 89 | T146: 78% | U146: 71% | V146: 221 | W146: 73% | X146: 61% | Y146: 205
A147: 110 | B147: MEURTHE ET MOSELLE MEUSE | C147: 31 | D147: VERDUN | E147: 555406 | F147: LIGNY EN BARROIS | G147: 2.8 | H147: 53% | I147: 33% | J147: 138 | K147: 32% | L147: 30% | M147: 57 | N147: 68% | O147: 52% | P147: 169 | Q147: 79% | R147: 59% | S147: 159 | T147: 75% | U147: 67% | V147: 189 | W147: 67% | X147: 55% | Y147: 148
A148: 110 | B148: MOSELLE | C148: 45 | D148: METZ | E148: 557712 | F148: WOIPPY | G148: 5.4 | H148: 53% | I148: 33% | J148: 139 | K148: 41% | L148: 39% | M148: 102 | N148: 61% | O148: 45% | P148: 105 | Q148: 86% | R148: 66% | S148: 209 | T148: 61% | U148: 53% | V148: 86 | W148: 71% | X148: 59% | Y148: 181
A149: 110 | B149: MEURTHE ET MOSELLE MEUSE | C149: 26 | D149: NANCY | E149: 554296 | F149: ESSEY LES NANCY | G149: 3.9 | H149: 53% | I149: 33% | J149: 140 | K149: 46% | L149: 44% | M149: 125 | N149: 61% | O149: 44% | P149: 98 | Q149: 76% | R149: 55% | S149: 134 | T149: 76% | U149: 69% | V149: 211 | W149: 63% | X149: 51% | Y149: 96
A150: 110 | B150: AUBE HAUTE MARNE | C150: 14 | D150: TROYES | E150: 410550 | F150: BAR SUR AUBE | G150: 5.9 | H150: 53% | I150: 33% | J150: 141 | K150: 34% | L150: 32% | M150: 65 | N150: 67% | O150: 51% | P150: 168 | Q150: 91% | R150: 71% | S150: 236 | T150: 62% | U150: 55% | V150: 93 | W150: 67% | X150: 55% | Y150: 147
A151: 110 | B151: MOSELLE | C151: 44 | D151: MOSELLE NORD | E151: 457350 | F151: HAYANGE | G151: 7.3 | H151: 53% | I151: 33% | J151: 142 | K151: 50% | L151: 47% | M151: 145 | N151: 52% | O151: 36% | P151: 40 | Q151: 87% | R151: 66% | S151: 212 | T151: 67% | U151: 60% | V151: 138 | W151: 67% | X151: 55% | Y151: 139
A152: 110 | B152: MOSELLE | C152: 45 | D152: METZ | E152: 557559 | F152: REMILLY | G152: 4.1 | H152: 53% | I152: 33% | J152: 143 | K152: 52% | L152: 50% | M152: 157 | N152: 71% | O152: 55% | P152: 207 | Q152: 67% | R152: 47% | S152: 74 | T152: 65% | U152: 58% | V152: 120 | W152: 67% | X152: 55% | Y152: 142
A153: 110 | B153: AUBE HAUTE MARNE | C153: 14 | D153: TROYES | E153: 510511 | F153: TROYES BROSSOLETTE | G153: 2.6 | H153: 53% | I153: 33% | J153: 144 | K153: 42% | L153: 40% | M153: 106 | N153: 59% | O153: 43% | P153: 86 | Q153: 79% | R153: 59% | S153: 156 | T153: 75% | U153: 68% | V153: 198 | W153: 68% | X153: 55% | Y153: 152
A154: 110 | B154: VOSGES | C154: 55 | D154: SAINT DIE | E154: 588461 | F154: MOYENMOUTIER | G154: 2.5 | H154: 53% | I154: 33% | J154: 145 | K154: 69% | L154: 67% | M154: 230 | N154: 56% | O154: 39% | P154: 55 | Q154: 58% | R154: 38% | S154: 33 | T154: 75% | U154: 67% | V154: 193 | W154: 66% | X154: 54% | Y154: 129
A155: 110 | B155: MOSELLE | C155: 42 | D155: MOSELLE EST | E155: 457617 | F155: SARREGUEMINES | G155: 8.2 | H155: 53% | I155: 33% | J155: 146 | K155: 44% | L155: 42% | M155: 111 | N155: 66% | O155: 50% | P155: 154 | Q155: 76% | R155: 55% | S155: 133 | T155: 67% | U155: 59% | V155: 136 | W155: 71% | X155: 59% | Y155: 183
A156: 110 | B156: HAUT-RHIN | C156: 5130 | D156: COLMAR | E156: 4143 | F156: MUNSTER | G156: 5.0 | H156: 53% | I156: 33% | J156: 147 | K156: 47% | L156: 44% | M156: 133 | N156: 54% | O156: 38% | P156: 48 | Q156: 87% | R156: 67% | S156: 217 | T156: 66% | U156: 59% | V156: 132 | W156: 70% | X156: 58% | Y156: 170
A157: 110 | B157: HAUT-RHIN | C157: 5169 | D157: MULHOUSE | E157: 4195 | F157: CERNAY | G157: 2.4 | H157: 53% | I157: 33% | J157: 148 | K157: 58% | L157: 55% | M157: 187 | N157: 73% | O157: 57% | P157: 218 | Q157: 56% | R157: 36% | S157: 26 | T157: 80% | U157: 73% | V157: 235 | W157: 57% | X157: 45% | Y157: 55
A158: 110 | B158: AUBE HAUTE MARNE | C158: 14 | D158: TROYES | E158: 410571 | F158: ROMILLY SUR SEINE | G158: 6.9 | H158: 53% | I158: 33% | J158: 149 | K158: 38% | L158: 35% | M158: 83 | N158: 61% | O158: 45% | P158: 104 | Q158: 84% | R158: 64% | S158: 198 | T158: 75% | U158: 67% | V158: 190 | W158: 66% | X158: 54% | Y158: 132
A159: 110 | B159: HAUT-RHIN | C159: 5130 | D159: COLMAR | E159: 4153 | F159: ROUFFACH | G159: 3.7 | H159: 53% | I159: 34% | J159: 150 | K159: 58% | L159: 56% | M159: 193 | N159: 74% | O159: 58% | P159: 222 | Q159: 83% | R159: 63% | S159: 188 | T159: 42% | U159: 35% | V159: 18 | W159: 67% | X159: 55% | Y159: 149
A160: 110 | B160: MOSELLE | C160: 44 | D160: MOSELLE NORD | E160: 557347 | F160: GUENANGE | G160: 5.0 | H160: 53% | I160: 34% | J160: 151 | K160: 74% | L160: 72% | M160: 242 | N160: 61% | O160: 45% | P160: 99 | Q160: 71% | R160: 50% | S160: 94 | T160: 69% | U160: 62% | V160: 152 | W160: 50% | X160: 38% | Y160: 26
A161: 110 | B161: MOSELLE | C161: 45 | D161: METZ | E161: 557439 | F161: METZ POMPIDOU | G161: 3.9 | H161: 54% | I161: 34% | J161: 152 | K161: 38% | L161: 36% | M161: 84 | N161: 73% | O161: 57% | P161: 215 | Q161: 80% | R161: 59% | S161: 162 | T161: 62% | U161: 55% | V161: 92 | W161: 74% | X161: 61% | Y161: 209
A162: 110 | B162: MEURTHE ET MOSELLE MEUSE | C162: 27 | D162: PONT A MOUSSON | E162: 554257 | F162: DIEULOUARD | G162: 3.4 | H162: 54% | I162: 34% | J162: 153 | K162: 25% | L162: 23% | M162: 26 | N162: 67% | O162: 51% | P162: 160 | Q162: 89% | R162: 69% | S162: 224 | T162: 78% | U162: 71% | V162: 222 | W162: 67% | X162: 55% | Y162: 143
A163: 110 | B163: AUBE HAUTE MARNE | C163: 21 | D163: CHAUMONT | E163: 410541 | F163: LANGRES | G163: 6.7 | H163: 54% | I163: 34% | J163: 154 | K163: 58% | L163: 56% | M163: 190 | N163: 64% | O163: 48% | P163: 128 | Q163: 79% | R163: 59% | S163: 154 | T163: 61% | U163: 54% | V163: 89 | W163: 64% | X163: 52% | Y163: 109
A164: 110 | B164: BAS-RHIN | C164: 5060 | D164: HAGUENAU | E164: 4085 | F164: INGWILLER | G164: 3.2 | H164: 54% | I164: 34% | J164: 155 | K164: 42% | L164: 40% | M164: 103 | N164: 59% | O164: 42% | P164: 79 | Q164: 89% | R164: 69% | S164: 225 | T164: 69% | U164: 61% | V164: 151 | W164: 68% | X164: 55% | Y164: 151
A165: 110 | B165: MOSELLE | C165: 42 | D165: MOSELLE EST | E165: 557668 | F165: VALMONT | G165: 4.5 | H165: 54% | I165: 34% | J165: 156 | K165: 22% | L165: 20% | M165: 19 | N165: 77% | O165: 61% | P165: 232 | Q165: 79% | R165: 59% | S165: 155 | T165: 70% | U165: 63% | V165: 161 | W165: 79% | X165: 66% | Y165: 246
A166: 110 | B166: MOSELLE | C166: 44 | D166: MOSELLE NORD | E166: 557622 | F166: SIERCK LES BAINS | G166: 1.3 | H166: 54% | I166: 34% | J166: 157 | K166: 56% | L166: 54% | M166: 181 | N166: 65% | O166: 49% | P166: 140 | Q166: 59% | R166: 39% | S166: 42 | T166: 84% | U166: 77% | V166: 248 | W166: 62% | X166: 50% | Y166: 86
A167: 110 | B167: MEURTHE ET MOSELLE MEUSE | C167: 27 | D167: PONT A MOUSSON | E167: 454355 | F167: JARNY | G167: 4.7 | H167: 54% | I167: 34% | J167: 158 | K167: 65% | L167: 63% | M167: 218 | N167: 56% | O167: 39% | P167: 56 | Q167: 80% | R167: 59% | S167: 161 | T167: 60% | U167: 53% | V167: 83 | W167: 66% | X167: 54% | Y167: 130
A168: 110 | B168: VOSGES | C168: 55 | D168: SAINT DIE | E168: 588186 | F168: BRUYERES | G168: 3.7 | H168: 54% | I168: 34% | J168: 159 | K168: 35% | L168: 33% | M168: 70 | N168: 66% | O168: 50% | P168: 153 | Q168: 107% | R168: 87% | S168: 260 | T168: 61% | U168: 54% | V168: 91 | W168: 57% | X168: 45% | Y168: 54
A169: 110 | B169: BAS-RHIN | C169: 5060 | D169: HAGUENAU | E169: 4071 | F169: WISSEMBOURG | G169: 8.4 | H169: 54% | I169: 34% | J169: 160 | K169: 46% | L169: 44% | M169: 127 | N169: 69% | O169: 53% | P169: 178 | Q169: 66% | R169: 46% | S169: 67 | T169: 72% | U169: 64% | V169: 173 | W169: 75% | X169: 63% | Y169: 221
A170: 110 | B170: BAS-RHIN | C170: 5060 | D170: HAGUENAU | E170: 4057 | F170: BISCHWILLER | G170: 6.5 | H170: 54% | I170: 34% | J170: 161 | K170: 58% | L170: 56% | M170: 188 | N170: 57% | O170: 41% | P170: 62 | Q170: 82% | R170: 61% | S170: 172 | T170: 59% | U170: 51% | V170: 74 | W170: 72% | X170: 60% | Y170: 194
A171: 110 | B171: MOSELLE | C171: 45 | D171: METZ | E171: 557105 | F171: ARS SUR MOSELLE | G171: 3.6 | H171: 54% | I171: 34% | J171: 162 | K171: 47% | L171: 44% | M171: 132 | N171: 74% | O171: 58% | P171: 219 | Q171: 81% | R171: 61% | S171: 169 | T171: 75% | U171: 68% | V171: 202 | W171: 51% | X171: 38% | Y171: 28
A172: 110 | B172: MEURTHE ET MOSELLE MEUSE | C172: 26 | D172: NANCY | E172: 454171 | F172: BLAMONT | G172: 1.5 | H172: 54% | I172: 34% | J172: 163 | K172: 84% | L172: 82% | M172: 255 | N172: 39% | O172: 22% | P172: 8 | Q172: 90% | R172: 70% | S172: 229 | T172: 52% | U172: 44% | V172: 43 | W172: 63% | X172: 51% | Y172: 97
A173: 110 | B173: MOSELLE | C173: 45 | D173: METZ | E173: 557178 | F173: BOULAY | G173: 3.9 | H173: 54% | I173: 34% | J173: 164 | K173: 28% | L173: 26% | M173: 35 | N173: 70% | O173: 54% | P173: 186 | Q173: 83% | R173: 62% | S173: 182 | T173: 75% | U173: 67% | V173: 188 | W173: 73% | X173: 60% | Y173: 199
A174: 110 | B174: MARNE-ARDENNES | C174: 2 | D174: CHARLEVILLE MEZIERES | E174: 408840 | F174: RETHEL | G174: 5.3 | H174: 54% | I174: 34% | J174: 165 | K174: 33% | L174: 31% | M174: 63 | N174: 65% | O174: 49% | P174: 143 | Q174: 80% | R174: 60% | S174: 167 | T174: 74% | U174: 66% | V174: 184 | W174: 76% | X174: 64% | Y174: 232
A175: 110 | B175: MOSELLE | C175: 42 | D175: MOSELLE EST | E175: 457258 | F175: DIEUZE | G175: 3.2 | H175: 54% | I175: 34% | J175: 166 | K175: 45% | L175: 43% | M175: 118 | N175: 63% | O175: 47% | P175: 117 | Q175: 83% | R175: 63% | S175: 187 | T175: 63% | U175: 56% | V175: 100 | W175: 74% | X175: 62% | Y175: 217
A176: 110 | B176: AUBE HAUTE MARNE | C176: 14 | D176: TROYES | E176: 510530 | F176: ARCIS SUR AUBE | G176: 3.9 | H176: 54% | I176: 34% | J176: 167 | K176: 28% | L176: 26% | M176: 33 | N176: 60% | O176: 44% | P176: 95 | Q176: 96% | R176: 75% | S176: 249 | T176: 71% | U176: 64% | V176: 169 | W176: 73% | X176: 61% | Y176: 204
A177: 110 | B177: MOSELLE | C177: 42 | D177: MOSELLE EST | E177: 557523 | F177: PHALSBOURG | G177: 2.2 | H177: 54% | I177: 35% | J177: 168 | K177: 56% | L177: 54% | M177: 177 | N177: 81% | O177: 65% | P177: 249 | Q177: 71% | R177: 51% | S177: 101 | T177: 70% | U177: 63% | V177: 159 | W177: 52% | X177: 40% | Y177: 34
A178: 110 | B178: VOSGES | C178: 55 | D178: SAINT DIE | E178: 588551 | F178: RAMBERVILLERS | G178: 3.5 | H178: 55% | I178: 35% | J178: 169 | K178: 32% | L178: 30% | M178: 58 | N178: 78% | O178: 62% | P178: 236 | Q178: 82% | R178: 62% | S178: 179 | T178: 74% | U178: 66% | V178: 185 | W178: 65% | X178: 53% | Y178: 122
A179: 110 | B179: AUBE HAUTE MARNE | C179: 14 | D179: TROYES | E179: 510513 | F179: TROYES 1ER MAI | G179: 3.2 | H179: 55% | I179: 35% | J179: 170 | K179: 57% | L179: 55% | M179: 184 | N179: 66% | O179: 50% | P179: 152 | Q179: 84% | R179: 63% | S179: 195 | T179: 70% | U179: 63% | V179: 162 | W179: 54% | X179: 42% | Y179: 43
A180: 110 | B180: HAUT-RHIN | C180: 5130 | D180: COLMAR | E180: 4141 | F180: HORBOURG WIHR | G180: 5.8 | H180: 55% | I180: 35% | J180: 171 | K180: 55% | L180: 52% | M180: 172 | N180: 79% | O180: 63% | P180: 244 | Q180: 63% | R180: 43% | S180: 56 | T180: 70% | U180: 62% | V180: 153 | W180: 64% | X180: 52% | Y180: 108
A181: 110 | B181: BAS-RHIN | C181: 5101 | D181: SELESTAT | E181: 4015 | F181: LINGOLSHEIM | G181: 4.4 | H181: 55% | I181: 35% | J181: 172 | K181: 54% | L181: 52% | M181: 165 | N181: 72% | O181: 56% | P181: 209 | Q181: 69% | R181: 49% | S181: 86 | T181: 61% | U181: 54% | V181: 88 | W181: 76% | X181: 64% | Y181: 230
A182: 110 | B182: MOSELLE | C182: 45 | D182: METZ | E182: 557434 | F182: MARLY | G182: 3.7 | H182: 55% | I182: 35% | J182: 173 | K182: 35% | L182: 33% | M182: 71 | N182: 63% | O182: 47% | P182: 118 | Q182: 80% | R182: 60% | S182: 165 | T182: 83% | U182: 76% | V182: 245 | W182: 70% | X182: 58% | Y182: 173
A183: 110 | B183: MEURTHE ET MOSELLE MEUSE | C183: 31 | D183: VERDUN | E183: 455566 | F183: REVIGNY SUR ORNAIN | G183: 3.4 | H183: 55% | I183: 35% | J183: 174 | K183: 41% | L183: 39% | M183: 100 | N183: 60% | O183: 44% | P183: 93 | Q183: 90% | R183: 70% | S183: 234 | T183: 70% | U183: 63% | V183: 160 | W183: 70% | X183: 58% | Y183: 171
A184: 110 | B184: MEURTHE ET MOSELLE MEUSE | C184: 27 | D184: PONT A MOUSSON | E184: 554496 | F184: NANCY TROIS MAISONS | G184: 2.6 | H184: 55% | I184: 35% | J184: 175 | K184: 88% | L184: 85% | M184: 256 | N184: 54% | O184: 38% | P184: 49 | Q184: 64% | R184: 44% | S184: 62 | T184: 57% | U184: 50% | V184: 68 | W184: 69% | X184: 57% | Y184: 163
A185: 110 | B185: BAS-RHIN | C185: 5060 | D185: HAGUENAU | E185: 4041 | F185: HOERDT | G185: 1.9 | H185: 55% | I185: 35% | J185: 176 | K185: 72% | L185: 70% | M185: 235 | N185: 54% | O185: 38% | P185: 50 | Q185: 58% | R185: 38% | S185: 34 | T185: 68% | U185: 61% | V185: 142 | W185: 80% | X185: 68% | Y185: 250
A186: 110 | B186: BAS-RHIN | C186: 5006 | D186: STRASBOURG | E186: 4020 | F186: STRASBOURG ROBERTSAU | G186: 6.2 | H186: 55% | I186: 35% | J186: 177 | K186: 59% | L186: 57% | M186: 194 | N186: 65% | O186: 49% | P186: 137 | Q186: 69% | R186: 49% | S186: 88 | T186: 75% | U186: 67% | V186: 194 | W186: 65% | X186: 53% | Y186: 126
A187: 110 | B187: MOSELLE | C187: 45 | D187: METZ | E187: 557445 | F187: METZ SAINT LIVIER | G187: 2.9 | H187: 55% | I187: 35% | J187: 178 | K187: 49% | L187: 47% | M187: 140 | N187: 64% | O187: 48% | P187: 127 | Q187: 76% | R187: 56% | S187: 137 | T187: 73% | U187: 66% | V187: 181 | W187: 71% | X187: 59% | Y187: 184
A188: 110 | B188: MARNE-ARDENNES | C188: 11 | D188: REIMS | E188: 551341 | F188: REIMS JEAN JAURES | G188: 4.3 | H188: 55% | I188: 35% | J188: 179 | K188: 63% | L188: 61% | M188: 209 | N188: 58% | O188: 42% | P188: 75 | Q188: 82% | R188: 61% | S188: 171 | T188: 64% | U188: 56% | V188: 105 | W188: 67% | X188: 54% | Y188: 136
A189: 110 | B189: MARNE-ARDENNES | C189: 2 | D189: CHARLEVILLE MEZIERES | E189: 508817 | F189: CHARLEVILLE MOHON | G189: 3.4 | H189: 55% | I189: 35% | J189: 180 | K189: 37% | L189: 35% | M189: 82 | N189: 67% | O189: 51% | P189: 165 | Q189: 87% | R189: 67% | S189: 215 | T189: 75% | U189: 67% | V189: 192 | W189: 67% | X189: 55% | Y189: 145
A190: 110 | B190: MOSELLE | C190: 45 | D190: METZ | E190: 557437 | F190: METZ SARRE | G190: 3.9 | H190: 55% | I190: 35% | J190: 181 | K190: 55% | L190: 53% | M190: 173 | N190: 65% | O190: 49% | P190: 145 | Q190: 99% | R190: 79% | S190: 251 | T190: 37% | U190: 29% | V190: 15 | W190: 78% | X190: 66% | Y190: 244
A191: 160 | B191: MEURTHE ET MOSELLE MEUSE | C191: 26 | D191: NANCY | E191: 454671 | F191: VANDOEUVRE LES NANCY | G191: 4.6 | H191: 55% | I191: 36% | J191: 182 | K191: 63% | L191: 61% | M191: 210 | N191: 59% | O191: 43% | P191: 83 | Q191: 90% | R191: 70% | S191: 230 | T191: 72% | U191: 65% | V191: 179 | W191: 50% | X191: 38% | Y191: 25
A192: 160 | B192: BAS-RHIN | C192: 5101 | D192: SELESTAT | E192: 4007 | F192: ILLKIRCH CENTRE | G192: 7.3 | H192: 55% | I192: 36% | J192: 183 | K192: 61% | L192: 59% | M192: 201 | N192: 55% | O192: 38% | P192: 51 | Q192: 84% | R192: 64% | S192: 200 | T192: 63% | U192: 55% | V192: 99 | W192: 72% | X192: 60% | Y192: 192
A193: 160 | B193: BAS-RHIN | C193: 5101 | D193: SELESTAT | E193: 4116 | F193: MOLSHEIM | G193: 5.1 | H193: 55% | I193: 36% | J193: 184 | K193: 55% | L193: 53% | M193: 176 | N193: 70% | O193: 54% | P193: 187 | Q193: 62% | R193: 42% | S193: 53 | T193: 76% | U193: 69% | V193: 207 | W193: 71% | X193: 59% | Y193: 182
A194: 160 | B194: MEURTHE ET MOSELLE MEUSE | C194: 27 | D194: PONT A MOUSSON | E194: 554196 | F194: CHAMPIGNEULLES | G194: 3.6 | H194: 55% | I194: 36% | J194: 185 | K194: 61% | L194: 58% | M194: 199 | N194: 53% | O194: 37% | P194: 43 | Q194: 86% | R194: 66% | S194: 210 | T194: 65% | U194: 57% | V194: 115 | W194: 71% | X194: 59% | Y194: 179
A195: 160 | B195: HAUT-RHIN | C195: 5130 | D195: COLMAR | E195: 4157 | F195: NEUF BRISACH | G195: 3.6 | H195: 55% | I195: 36% | J195: 186 | K195: 42% | L195: 40% | M195: 107 | N195: 76% | O195: 60% | P195: 228 | Q195: 88% | R195: 68% | S195: 221 | T195: 60% | U195: 53% | V195: 77 | W195: 69% | X195: 57% | Y195: 165
A196: 160 | B196: MARNE-ARDENNES | C196: 6 | D196: CHALONS EN CHAMPAGNE | E196: 451166 | F196: VITRY LE FRANCOIS | G196: 6.8 | H196: 56% | I196: 36% | J196: 187 | K196: 45% | L196: 43% | M196: 122 | N196: 71% | O196: 55% | P196: 199 | Q196: 85% | R196: 65% | S196: 201 | T196: 71% | U196: 63% | V196: 164 | W196: 64% | X196: 52% | Y196: 111
A197: 160 | B197: BAS-RHIN | C197: 5006 | D197: STRASBOURG | E197: 4026 | F197: STRASBOURG DANUBE | G197: 4.5 | H197: 56% | I197: 36% | J197: 188 | K197: 54% | L197: 52% | M197: 169 | N197: 78% | O197: 61% | P197: 234 | Q197: 95% | R197: 75% | S197: 246 | T197: 35% | U197: 27% | V197: 12 | W197: 75% | X197: 63% | Y197: 222
A198: 160 | B198: MOSELLE | C198: 45 | D198: METZ | E198: 557432 | F198: MAIZIERES LES METZ | G198: 3.9 | H198: 56% | I198: 36% | J198: 189 | K198: 44% | L198: 42% | M198: 115 | N198: 65% | O198: 48% | P198: 135 | Q198: 77% | R198: 57% | S198: 145 | T198: 75% | U198: 68% | V198: 199 | W198: 76% | X198: 63% | Y198: 226
A199: 160 | B199: MARNE-ARDENNES | C199: 11 | D199: REIMS | E199: 451308 | F199: REIMS SAINT THOMAS | G199: 7.3 | H199: 56% | I199: 36% | J199: 190 | K199: 64% | L199: 62% | M199: 213 | N199: 69% | O199: 53% | P199: 185 | Q199: 85% | R199: 65% | S199: 205 | T199: 68% | U199: 61% | V199: 148 | W199: 50% | X199: 38% | Y199: 24
A200: 160 | B200: BAS-RHIN | C200: 5060 | D200: HAGUENAU | E200: 4087 | F200: SAVERNE | G200: 7.9 | H200: 56% | I200: 36% | J200: 191 | K200: 61% | L200: 59% | M200: 203 | N200: 64% | O200: 48% | P200: 132 | Q200: 77% | R200: 56% | S200: 142 | T200: 72% | U200: 64% | V200: 172 | W200: 64% | X200: 52% | Y200: 106
A201: 160 | B201: BAS-RHIN | C201: 5006 | D201: STRASBOURG | E201: 4028 | F201: BISCHHEIM | G201: 3.5 | H201: 56% | I201: 36% | J201: 192 | K201: 58% | L201: 56% | M201: 192 | N201: 67% | O201: 51% | P201: 167 | Q201: 77% | R201: 57% | S201: 144 | T201: 59% | U201: 51% | V201: 72 | W201: 76% | X201: 64% | Y201: 234
A202: 160 | B202: HAUT-RHIN | C202: 5169 | D202: MULHOUSE | E202: 4181 | F202: WITTELSHEIM | G202: 3.3 | H202: 56% | I202: 36% | J202: 193 | K202: 54% | L202: 52% | M202: 168 | N202: 74% | O202: 58% | P202: 220 | Q202: 93% | R202: 72% | S202: 242 | T202: 64% | U202: 57% | V202: 110 | W202: 54% | X202: 42% | Y202: 42
A203: 160 | B203: AUBE HAUTE MARNE | C203: 21 | D203: CHAUMONT | E203: 410566 | F203: CHAUMONT HOTEL DE VILLE | G203: 7.7 | H203: 56% | I203: 37% | J203: 194 | K203: 53% | L203: 51% | M203: 161 | N203: 65% | O203: 49% | P203: 136 | Q203: 83% | R203: 63% | S203: 185 | T203: 75% | U203: 68% | V203: 201 | W203: 64% | X203: 52% | Y203: 112
... 69 more rows

Sheet AG_BANCA
B1: Accueil | H1: BAROMETRE BDD - AGENCES
H2: BANCARISATION
H3: =ACCUEIL!F7 -> 2021-08-01
H7: Ventes Nettes produits pondérés | L7: Ventes sur client non détenteur de l’univers | P7: Mobilité Macron | T7: Remises commerciales | X7: Total Bancarisation
H8: =DATEMAJ!C8 -> au 01/08 | J8: coef | K8: ='RECAP DIRCOM'!AA4 -> 10% | L8: =DATEMAJ!C9 -> au 01/08 | N8: coef | O8: ='RECAP DIRCOM'!AE4 -> 4% | P8: =DATEMAJ!C10 -> au 01/08 | R8: coef | S8: ='RECAP DIRCOM'!AI4 -> 3% | T8: =DATEMAJ!C11 -> au 30/06 | V8: coef | W8: ='RECAP DIRCOM'!AM4 -> 3% | Y8: coef | Z8: ='RECAP DIRCOM'!$AP$4 -> 20%
B9: Direction | C9: eds | D9: Territoire | E9: eds | F9: Agence | G9: ="ETP perf "&DATEMAJ!$C$28 -> ETP perf 30-juin | H9: VN | I9: VN / ETP | J9: % Ecart au 1er | K9: Rang | L9: VB | M9: VB / ETP | N9: % Ecart au 1er | O9: Rang | P9: Nb | Q9: Nb / ETP | R9: % Ecart au 1er | S9: Rang | T9: Montant | U9: Montant / ETP | V9: % Ecart au 1er | W9: Rang | X9: Moyenne ecart au 1er | Y9: % Ecart au 1er | Z9: Rang CEGEE
A10: 50 | B10: AUBE HAUTE MARNE | C10: 21 | D10: CHAUMONT | E10: 410560 | F10: BOURBONNE LES BAINS | G10: =VLOOKUP($E10,'RECAP AG'!$G$6:$DC$268,3,FALSE) -> 2.0 | H10: =VLOOKUP($E10,'RECAP AG'!$G$6:$DC$268,18,FALSE) -> 114.7 | I10: =VLOOKUP($E10,'RECAP AG'!$G$6:$DC$268,19,FALSE) -> 57.35 | J10: =VLOOKUP($E10,'RECAP AG'!$G$6:$DC$268,20,FALSE) -> 57% | K10: =VLOOKUP($E10,'RECAP AG'!$G$6:$DC$268,21,FALSE) -> 80 | L10: =VLOOKUP($E10,'RECAP AG'!$G$6:$DC$268,22,FALSE) -> 47 | M10: =VLOOKUP($E10,'RECAP AG'!$G$6:$DC$268,23,FALSE) -> 23.50 | N10: =VLOOKUP($E10,'RECAP AG'!$G$6:$DC$268,24,FALSE) -> 64% | O10: =VLOOKUP($E10,'RECAP AG'!$G$6:$DC$268,25,FALSE) -> 229 | P10: =VLOOKUP($E10,'RECAP AG'!$G$6:$DC$268,26,FALSE) -> 8 | Q10: =VLOOKUP($E10,'RECAP AG'!$G$6:$DC$268,27,FALSE) -> 4.00 | R10: =VLOOKUP($E10,'RECAP AG'!$G$6:$DC$268,28,FALSE) -> 89% | S10: =VLOOKUP($E10,'RECAP AG'!$G$6:$DC$268,29,FALSE) -> 179 | T10: =VLOOKUP($E10,'RECAP AG'!$G$6:$DC$268,30,FALSE) -> -3.59 | U10: =VLOOKUP($E10,'RECAP AG'!$G$6:$DC$268,31,FALSE) -> -1.80 | V10: =VLOOKUP($E10,'RECAP AG'!$G$6:$DC$268,32,FALSE) -> 52% | W10: =VLOOKUP($E10,'RECAP AG'!$G$6:$DC$268,33,FALSE) -> 118 | X10: =VLOOKUP($E10,'RECAP AG'!$G$6:$DC$268,34,FALSE) -> 63% | Y10: =VLOOKUP($E10,'RECAP AG'!$G$6:$DC$268,35,FALSE) -> 46% | Z10: =VLOOKUP($E10,'RECAP AG'!$G$6:$DC$268,36,FALSE) -> 113
A11: 50 | B11: AUBE HAUTE MARNE | C11: 21 | D11: CHAUMONT | E11: 410566 | F11: CHAUMONT HOTEL DE VILLE | G11: =VLOOKUP($E11,'RECAP AG'!$G$6:$DC$268,3,FALSE) -> 7.7 | H11: =VLOOKUP($E11,'RECAP AG'!$G$6:$DC$268,18,FALSE) -> 329.1 | I11: =VLOOKUP($E11,'RECAP AG'!$G$6:$DC$268,19,FALSE) -> 42.62 | J11: =VLOOKUP($E11,'RECAP AG'!$G$6:$DC$268,20,FALSE) -> 68% | K11: =VLOOKUP($E11,'RECAP AG'!$G$6:$DC$268,21,FALSE) -> 152 | L11: =VLOOKUP($E11,'RECAP AG'!$G$6:$DC$268,22,FALSE) -> 264 | M11: =VLOOKUP($E11,'RECAP AG'!$G$6:$DC$268,23,FALSE) -> 34.19 | N11: =VLOOKUP($E11,'RECAP AG'!$G$6:$DC$268,24,FALSE) -> 48% | O11: =VLOOKUP($E11,'RECAP AG'!$G$6:$DC$268,25,FALSE) -> 96 | P11: =VLOOKUP($E11,'RECAP AG'!$G$6:$DC$268,26,FALSE) -> 47 | Q11: =VLOOKUP($E11,'RECAP AG'!$G$6:$DC$268,27,FALSE) -> 6.09 | R11: =VLOOKUP($E11,'RECAP AG'!$G$6:$DC$268,28,FALSE) -> 83% | S11: =VLOOKUP($E11,'RECAP AG'!$G$6:$DC$268,29,FALSE) -> 110 | T11: =VLOOKUP($E11,'RECAP AG'!$G$6:$DC$268,30,FALSE) -> -14.82 | U11: =VLOOKUP($E11,'RECAP AG'!$G$6:$DC$268,31,FALSE) -> -1.92 | V11: =VLOOKUP($E11,'RECAP AG'!$G$6:$DC$268,32,FALSE) -> 57% | W11: =VLOOKUP($E11,'RECAP AG'!$G$6:$DC$268,33,FALSE) -> 135 | X11: =VLOOKUP($E11,'RECAP AG'!$G$6:$DC$268,34,FALSE) -> 65% | Y11: =VLOOKUP($E11,'RECAP AG'!$G$6:$DC$268,35,FALSE) -> 49% | Z11: =VLOOKUP($E11,'RECAP AG'!$G$6:$DC$268,36,FALSE) -> 136
A12: 50 | B12: AUBE HAUTE MARNE | C12: 21 | D12: CHAUMONT | E12: 510590 | F12: CHAUMONT REPUBLIQUE | G12: =VLOOKUP($E12,'RECAP AG'!$G$6:$DC$268,3,FALSE) -> 4.4 | H12: =VLOOKUP($E12,'RECAP AG'!$G$6:$DC$268,18,FALSE) -> 196.5 | I12: =VLOOKUP($E12,'RECAP AG'!$G$6:$DC$268,19,FALSE) -> 44.32 | J12: =VLOOKUP($E12,'RECAP AG'!$G$6:$DC$268,20,FALSE) -> 67% | K12: =VLOOKUP($E12,'RECAP AG'!$G$6:$DC$268,21,FALSE) -> 137 | L12: =VLOOKUP($E12,'RECAP AG'!$G$6:$DC$268,22,FALSE) -> 185 | M12: =VLOOKUP($E12,'RECAP AG'!$G$6:$DC$268,23,FALSE) -> 41.72 | N12: =VLOOKUP($E12,'RECAP AG'!$G$6:$DC$268,24,FALSE) -> 37% | O12: =VLOOKUP($E12,'RECAP AG'!$G$6:$DC$268,25,FALSE) -> 41 | P12: =VLOOKUP($E12,'RECAP AG'!$G$6:$DC$268,26,FALSE) -> 32 | Q12: =VLOOKUP($E12,'RECAP AG'!$G$6:$DC$268,27,FALSE) -> 7.22 | R12: =VLOOKUP($E12,'RECAP AG'!$G$6:$DC$268,28,FALSE) -> 80% | S12: =VLOOKUP($E12,'RECAP AG'!$G$6:$DC$268,29,FALSE) -> 84 | T12: =VLOOKUP($E12,'RECAP AG'!$G$6:$DC$268,30,FALSE) -> -6.19 | U12: =VLOOKUP($E12,'RECAP AG'!$G$6:$DC$268,31,FALSE) -> -1.40 | V12: =VLOOKUP($E12,'RECAP AG'!$G$6:$DC$268,32,FALSE) -> 36% | W12: =VLOOKUP($E12,'RECAP AG'!$G$6:$DC$268,33,FALSE) -> 45 | X12: =VLOOKUP($E12,'RECAP AG'!$G$6:$DC$268,34,FALSE) -> 58% | Y12: =VLOOKUP($E12,'RECAP AG'!$G$6:$DC$268,35,FALSE) -> 42% | Z12: =VLOOKUP($E12,'RECAP AG'!$G$6:$DC$268,36,FALSE) -> 73
A13: 50 | B13: AUBE HAUTE MARNE | C13: 21 | D13: CHAUMONT | E13: 451154 | F13: JOINVILLE | G13: =VLOOKUP($E13,'RECAP AG'!$G$6:$DC$268,3,FALSE) -> 1.9 | H13: =VLOOKUP($E13,'RECAP AG'!$G$6:$DC$268,18,FALSE) -> 43.8 | I13: =VLOOKUP($E13,'RECAP AG'!$G$6:$DC$268,19,FALSE) -> 23.32 | J13: =VLOOKUP($E13,'RECAP AG'!$G$6:$DC$268,20,FALSE) -> 83% | K13: =VLOOKUP($E13,'RECAP AG'!$G$6:$DC$268,21,FALSE) -> 229 | L13: =VLOOKUP($E13,'RECAP AG'!$G$6:$DC$268,22,FALSE) -> 61 | M13: =VLOOKUP($E13,'RECAP AG'!$G$6:$DC$268,23,FALSE) -> 32.48 | N13: =VLOOKUP($E13,'RECAP AG'!$G$6:$DC$268,24,FALSE) -> 51% | O13: =VLOOKUP($E13,'RECAP AG'!$G$6:$DC$268,25,FALSE) -> 116 | P13: =VLOOKUP($E13,'RECAP AG'!$G$6:$DC$268,26,FALSE) -> 7 | Q13: =VLOOKUP($E13,'RECAP AG'!$G$6:$DC$268,27,FALSE) -> 3.73 | R13: =VLOOKUP($E13,'RECAP AG'!$G$6:$DC$268,28,FALSE) -> 89% | S13: =VLOOKUP($E13,'RECAP AG'!$G$6:$DC$268,29,FALSE) -> 190 | T13: =VLOOKUP($E13,'RECAP AG'!$G$6:$DC$268,30,FALSE) -> -4.84 | U13: =VLOOKUP($E13,'RECAP AG'!$G$6:$DC$268,31,FALSE) -> -2.58 | V13: =VLOOKUP($E13,'RECAP AG'!$G$6:$DC$268,32,FALSE) -> 84% | W13: =VLOOKUP($E13,'RECAP AG'!$G$6:$DC$268,33,FALSE) -> 219 | X13: =VLOOKUP($E13,'RECAP AG'!$G$6:$DC$268,34,FALSE) -> 78% | Y13: =VLOOKUP($E13,'RECAP AG'!$G$6:$DC$268,35,FALSE) -> 61% | Z13: =VLOOKUP($E13,'RECAP AG'!$G$6:$DC$268,36,FALSE) -> 233
A14: 50 | B14: AUBE HAUTE MARNE | C14: 21 | D14: CHAUMONT | E14: 410541 | F14: LANGRES | G14: =VLOOKUP($E14,'RECAP AG'!$G$6:$DC$268,3,FALSE) -> 6.7 | H14: =VLOOKUP($E14,'RECAP AG'!$G$6:$DC$268,18,FALSE) -> 357.6 | I14: =VLOOKUP($E14,'RECAP AG'!$G$6:$DC$268,19,FALSE) -> 53.11 | J14: =VLOOKUP($E14,'RECAP AG'!$G$6:$DC$268,20,FALSE) -> 60% | K14: =VLOOKUP($E14,'RECAP AG'!$G$6:$DC$268,21,FALSE) -> 95 | L14: =VLOOKUP($E14,'RECAP AG'!$G$6:$DC$268,22,FALSE) -> 197 | M14: =VLOOKUP($E14,'RECAP AG'!$G$6:$DC$268,23,FALSE) -> 29.26 | N14: =VLOOKUP($E14,'RECAP AG'!$G$6:$DC$268,24,FALSE) -> 56% | O14: =VLOOKUP($E14,'RECAP AG'!$G$6:$DC$268,25,FALSE) -> 159 | P14: =VLOOKUP($E14,'RECAP AG'!$G$6:$DC$268,26,FALSE) -> 42 | Q14: =VLOOKUP($E14,'RECAP AG'!$G$6:$DC$268,27,FALSE) -> 6.24 | R14: =VLOOKUP($E14,'RECAP AG'!$G$6:$DC$268,28,FALSE) -> 82% | S14: =VLOOKUP($E14,'RECAP AG'!$G$6:$DC$268,29,FALSE) -> 105 | T14: =VLOOKUP($E14,'RECAP AG'!$G$6:$DC$268,30,FALSE) -> -14.76 | U14: =VLOOKUP($E14,'RECAP AG'!$G$6:$DC$268,31,FALSE) -> -2.19 | V14: =VLOOKUP($E14,'RECAP AG'!$G$6:$DC$268,32,FALSE) -> 69% | W14: =VLOOKUP($E14,'RECAP AG'!$G$6:$DC$268,33,FALSE) -> 169 | X14: =VLOOKUP($E14,'RECAP AG'!$G$6:$DC$268,34,FALSE) -> 64% | Y14: =VLOOKUP($E14,'RECAP AG'!$G$6:$DC$268,35,FALSE) -> 48% | Z14: =VLOOKUP($E14,'RECAP AG'!$G$6:$DC$268,36,FALSE) -> 128
A15: 50 | B15: AUBE HAUTE MARNE | C15: 21 | D15: CHAUMONT | E15: 451156 | F15: SAINT DIZIER CENTRE | G15: =VLOOKUP($E15,'RECAP AG'!$G$6:$DC$268,3,FALSE) -> 9.2 | H15: =VLOOKUP($E15,'RECAP AG'!$G$6:$DC$268,18,FALSE) -> 420.1 | I15: =VLOOKUP($E15,'RECAP AG'!$G$6:$DC$268,19,FALSE) -> 45.82 | J15: =VLOOKUP($E15,'RECAP AG'!$G$6:$DC$268,20,FALSE) -> 66% | K15: =VLOOKUP($E15,'RECAP AG'!$G$6:$DC$268,21,FALSE) -> 128 | L15: =VLOOKUP($E15,'RECAP AG'!$G$6:$DC$268,22,FALSE) -> 320 | M15: =VLOOKUP($E15,'RECAP AG'!$G$6:$DC$268,23,FALSE) -> 34.91 | N15: =VLOOKUP($E15,'RECAP AG'!$G$6:$DC$268,24,FALSE) -> 47% | O15: =VLOOKUP($E15,'RECAP AG'!$G$6:$DC$268,25,FALSE) -> 83 | P15: =VLOOKUP($E15,'RECAP AG'!$G$6:$DC$268,26,FALSE) -> 57 | Q15: =VLOOKUP($E15,'RECAP AG'!$G$6:$DC$268,27,FALSE) -> 6.22 | R15: =VLOOKUP($E15,'RECAP AG'!$G$6:$DC$268,28,FALSE) -> 82% | S15: =VLOOKUP($E15,'RECAP AG'!$G$6:$DC$268,29,FALSE) -> 107 | T15: =VLOOKUP($E15,'RECAP AG'!$G$6:$DC$268,30,FALSE) -> -21.28 | U15: =VLOOKUP($E15,'RECAP AG'!$G$6:$DC$268,31,FALSE) -> -2.32 | V15: =VLOOKUP($E15,'RECAP AG'!$G$6:$DC$268,32,FALSE) -> 74% | W15: =VLOOKUP($E15,'RECAP AG'!$G$6:$DC$268,33,FALSE) -> 188 | X15: =VLOOKUP($E15,'RECAP AG'!$G$6:$DC$268,34,FALSE) -> 66% | Y15: =VLOOKUP($E15,'RECAP AG'!$G$6:$DC$268,35,FALSE) -> 50% | Z15: =VLOOKUP($E15,'RECAP AG'!$G$6:$DC$268,36,FALSE) -> 149
A16: 50 | B16: AUBE HAUTE MARNE | C16: 21 | D16: CHAUMONT | E16: 451151 | F16: WASSY | G16: =VLOOKUP($E16,'RECAP AG'!$G$6:$DC$268,3,FALSE) -> 2.0 | H16: =VLOOKUP($E16,'RECAP AG'!$G$6:$DC$268,18,FALSE) -> 133.4 | I16: =VLOOKUP($E16,'RECAP AG'!$G$6:$DC$268,19,FALSE) -> 67.54 | J16: =VLOOKUP($E16,'RECAP AG'!$G$6:$DC$268,20,FALSE) -> 49% | K16: =VLOOKUP($E16,'RECAP AG'!$G$6:$DC$268,21,FALSE) -> 51 | L16: =VLOOKUP($E16,'RECAP AG'!$G$6:$DC$268,22,FALSE) -> 71 | M16: =VLOOKUP($E16,'RECAP AG'!$G$6:$DC$268,23,FALSE) -> 35.95 | N16: =VLOOKUP($E16,'RECAP AG'!$G$6:$DC$268,24,FALSE) -> 45% | O16: =VLOOKUP($E16,'RECAP AG'!$G$6:$DC$268,25,FALSE) -> 72 | P16: =VLOOKUP($E16,'RECAP AG'!$G$6:$DC$268,26,FALSE) -> 11 | Q16: =VLOOKUP($E16,'RECAP AG'!$G$6:$DC$268,27,FALSE) -> 5.57 | R16: =VLOOKUP($E16,'RECAP AG'!$G$6:$DC$268,28,FALSE) -> 84% | S16: =VLOOKUP($E16,'RECAP AG'!$G$6:$DC$268,29,FALSE) -> 127 | T16: =VLOOKUP($E16,'RECAP AG'!$G$6:$DC$268,30,FALSE) -> -3.27 | U16: =VLOOKUP($E16,'RECAP AG'!$G$6:$DC$268,31,FALSE) -> -1.66 | V16: =VLOOKUP($E16,'RECAP AG'!$G$6:$DC$268,32,FALSE) -> 46% | W16: =VLOOKUP($E16,'RECAP AG'!$G$6:$DC$268,33,FALSE) -> 84 | X16: =VLOOKUP($E16,'RECAP AG'!$G$6:$DC$268,34,FALSE) -> 53% | Y16: =VLOOKUP($E16,'RECAP AG'!$G$6:$DC$268,35,FALSE) -> 37% | Z16: =VLOOKUP($E16,'RECAP AG'!$G$6:$DC$268,36,FALSE) -> 47
A17: 50 | B17: AUBE HAUTE MARNE | C17: 14 | D17: TROYES | E17: 510530 | F17: ARCIS SUR AUBE | G17: =VLOOKUP($E17,'RECAP AG'!$G$6:$DC$268,3,FALSE) -> 3.9 | H17: =VLOOKUP($E17,'RECAP AG'!$G$6:$DC$268,18,FALSE) -> 207.0 | I17: =VLOOKUP($E17,'RECAP AG'!$G$6:$DC$268,19,FALSE) -> 52.55 | J17: =VLOOKUP($E17,'RECAP AG'!$G$6:$DC$268,20,FALSE) -> 61% | K17: =VLOOKUP($E17,'RECAP AG'!$G$6:$DC$268,21,FALSE) -> 99 | L17: =VLOOKUP($E17,'RECAP AG'!$G$6:$DC$268,22,FALSE) -> 95 | M17: =VLOOKUP($E17,'RECAP AG'!$G$6:$DC$268,23,FALSE) -> 24.12 | N17: =VLOOKUP($E17,'RECAP AG'!$G$6:$DC$268,24,FALSE) -> 63% | O17: =VLOOKUP($E17,'RECAP AG'!$G$6:$DC$268,25,FALSE) -> 223 | P17: =VLOOKUP($E17,'RECAP AG'!$G$6:$DC$268,26,FALSE) -> 21 | Q17: =VLOOKUP($E17,'RECAP AG'!$G$6:$DC$268,27,FALSE) -> 5.33 | R17: =VLOOKUP($E17,'RECAP AG'!$G$6:$DC$268,28,FALSE) -> 85% | S17: =VLOOKUP($E17,'RECAP AG'!$G$6:$DC$268,29,FALSE) -> 142 | T17: =VLOOKUP($E17,'RECAP AG'!$G$6:$DC$268,30,FALSE) -> -5.10 | U17: =VLOOKUP($E17,'RECAP AG'!$G$6:$DC$268,31,FALSE) -> -1.30 | V17: =VLOOKUP($E17,'RECAP AG'!$G$6:$DC$268,32,FALSE) -> 31% | W17: =VLOOKUP($E17,'RECAP AG'!$G$6:$DC$268,33,FALSE) -> 35 | X17: =VLOOKUP($E17,'RECAP AG'!$G$6:$DC$268,34,FALSE) -> 60% | Y17: =VLOOKUP($E17,'RECAP AG'!$G$6:$DC$268,35,FALSE) -> 44% | Z17: =VLOOKUP($E17,'RECAP AG'!$G$6:$DC$268,36,FALSE) -> 95
A18: 50 | B18: AUBE HAUTE MARNE | C18: 14 | D18: TROYES | E18: 410550 | F18: BAR SUR AUBE | G18: =VLOOKUP($E18,'RECAP AG'!$G$6:$DC$268,3,FALSE) -> 5.9 | H18: =VLOOKUP($E18,'RECAP AG'!$G$6:$DC$268,18,FALSE) -> 232.5 | I18: =VLOOKUP($E18,'RECAP AG'!$G$6:$DC$268,19,FALSE) -> 39.25 | J18: =VLOOKUP($E18,'RECAP AG'!$G$6:$DC$268,20,FALSE) -> 71% | K18: =VLOOKUP($E18,'RECAP AG'!$G$6:$DC$268,21,FALSE) -> 170 | L18: =VLOOKUP($E18,'RECAP AG'!$G$6:$DC$268,22,FALSE) -> 163 | M18: =VLOOKUP($E18,'RECAP AG'!$G$6:$DC$268,23,FALSE) -> 27.52 | N18: =VLOOKUP($E18,'RECAP AG'!$G$6:$DC$268,24,FALSE) -> 58% | O18: =VLOOKUP($E18,'RECAP AG'!$G$6:$DC$268,25,FALSE) -> 186 | P18: =VLOOKUP($E18,'RECAP AG'!$G$6:$DC$268,26,FALSE) -> 14 | Q18: =VLOOKUP($E18,'RECAP AG'!$G$6:$DC$268,27,FALSE) -> 2.36 | R18: =VLOOKUP($E18,'RECAP AG'!$G$6:$DC$268,28,FALSE) -> 93% | S18: =VLOOKUP($E18,'RECAP AG'!$G$6:$DC$268,29,FALSE) -> 228 | T18: =VLOOKUP($E18,'RECAP AG'!$G$6:$DC$268,30,FALSE) -> -9.39 | U18: =VLOOKUP($E18,'RECAP AG'!$G$6:$DC$268,31,FALSE) -> -1.58 | V18: =VLOOKUP($E18,'RECAP AG'!$G$6:$DC$268,32,FALSE) -> 43% | W18: =VLOOKUP($E18,'RECAP AG'!$G$6:$DC$268,33,FALSE) -> 70 | X18: =VLOOKUP($E18,'RECAP AG'!$G$6:$DC$268,34,FALSE) -> 67% | Y18: =VLOOKUP($E18,'RECAP AG'!$G$6:$DC$268,35,FALSE) -> 51% | Z18: =VLOOKUP($E18,'RECAP AG'!$G$6:$DC$268,36,FALSE) -> 168
A19: 50 | B19: AUBE HAUTE MARNE | C19: 14 | D19: TROYES | E19: 510556 | F19: BAR SUR SEINE | G19: =VLOOKUP($E19,'RECAP AG'!$G$6:$DC$268,3,FALSE) -> 3.5 | H19: =VLOOKUP($E19,'RECAP AG'!$G$6:$DC$268,18,FALSE) -> 155.6 | I19: =VLOOKUP($E19,'RECAP AG'!$G$6:$DC$268,19,FALSE) -> 44.56 | J19: =VLOOKUP($E19,'RECAP AG'!$G$6:$DC$268,20,FALSE) -> 67% | K19: =VLOOKUP($E19,'RECAP AG'!$G$6:$DC$268,21,FALSE) -> 135 | L19: =VLOOKUP($E19,'RECAP AG'!$G$6:$DC$268,22,FALSE) -> 122 | M19: =VLOOKUP($E19,'RECAP AG'!$G$6:$DC$268,23,FALSE) -> 34.94 | N19: =VLOOKUP($E19,'RECAP AG'!$G$6:$DC$268,24,FALSE) -> 47% | O19: =VLOOKUP($E19,'RECAP AG'!$G$6:$DC$268,25,FALSE) -> 82 | P19: =VLOOKUP($E19,'RECAP AG'!$G$6:$DC$268,26,FALSE) -> 27 | Q19: =VLOOKUP($E19,'RECAP AG'!$G$6:$DC$268,27,FALSE) -> 7.73 | R19: =VLOOKUP($E19,'RECAP AG'!$G$6:$DC$268,28,FALSE) -> 78% | S19: =VLOOKUP($E19,'RECAP AG'!$G$6:$DC$268,29,FALSE) -> 71 | T19: =VLOOKUP($E19,'RECAP AG'!$G$6:$DC$268,30,FALSE) -> -11.89 | U19: =VLOOKUP($E19,'RECAP AG'!$G$6:$DC$268,31,FALSE) -> -3.41 | V19: =VLOOKUP($E19,'RECAP AG'!$G$6:$DC$268,32,FALSE) -> 119% | W19: =VLOOKUP($E19,'RECAP AG'!$G$6:$DC$268,33,FALSE) -> 256 | X19: =VLOOKUP($E19,'RECAP AG'!$G$6:$DC$268,34,FALSE) -> 72% | Y19: =VLOOKUP($E19,'RECAP AG'!$G$6:$DC$268,35,FALSE) -> 56% | Z19: =VLOOKUP($E19,'RECAP AG'!$G$6:$DC$268,36,FALSE) -> 210
